Workbook

Sheet Home
B11: Home
B13: Performance Metrics
B15: Raw Data
B17: Administration
F23: November Performance Metrics

Sheet Manager Performance
J3: Start Date: 11/01/2024, End Date: 11/12/2024
K4: Score | L4: # NPS WO's | M4: # Failures | N4: NPS | O4: SMS Promoter Count | P4: SMS Count | Q4: SMS tNPS | R4: Total Repeatable WO | S4: Total Repeats | T4: Repeats | U4: Total Repeatable WO | V4: Repeat IN | W4: IN Repeat % | X4: Total Repeatable WO | Y4: Repeat TC | Z4: Repeat TC % | AA4: Jobs | AB4: Pass | AC4: SQT Compliance | AD4: Parameters Tested | AE4: Parameters Passing | AF4: SQT Pass | AG4: Ingress Test Run | AH4: Test Passed | AI4: Ingress Test Pass | AJ4: FCR WO | AK4: FCR Failures | AL4: FCR | AM4: Jobs | AN4: Jobs Late | AO4: OTA | AP4: Jobs | AQ4: Completed Jobs | AR4: Completion % | AS4: Total Jobs | AT4: Total Valid | AU4: Drop Validation
F6: Macon (1) | G6: Middle Georgia | I6: Macon | J6: Macon | K6: =IF(AC6="","",IFERROR(IF(N6>=68.26%,1.25,0)+IF(T6<=5.04%,2.5,0)+IF(AC6>=90%,2.5,0)+IF(AO6>=97%,1.25,0)+IF(Q6>=90%,2.5,0),"")) -> 6.25 | L6: =SUM(L18:L19) -> 17 | M6: =SUM(M18:M19) -> 2 | N6: =IFERROR(_xlfn.XLOOKUP($I6,'Company Summary'!$H$6:$H$13,'Company Summary'!$I$6:$I$13),"")/100 -> 0.7059 | O6: =COUNTIFS('SMS tNPS'!L:L,F6,'SMS tNPS'!HB:HB,"Yes") -> 83 | P6: =COUNTIFS('SMS tNPS'!L:L,F6,'SMS tNPS'!HB:HB,"Yes")+COUNTIFS('SMS tNPS'!L:L,F6,'SMS tNPS'!HB:HB,"No") -> 96 | Q6: =IFERROR(SUM(O6/P6),"") -> 0.8646 | R6: =SUM(R18:R19) -> 485 | S6: =SUM(S18:S19) -> 21 | T6: =IFERROR(_xlfn.XLOOKUP($I6,'Company Summary'!$H$6:$H$13,'Company Summary'!$K$6:$K$13),"")/100 -> 0.0433 | U6: =SUM(U18:U19) -> 232 | V6: =SUM(V18:V19) -> 7 | W6: =IFERROR(SUM(V6/U6),"") -> 0.0302 | X6: =SUM(X18:X19) -> 253 | Y6: =SUM(Y18:Y19) -> 14 | Z6: =IFERROR(SUM(Y6/X6),"") -> 0.0553 | AA6: =IF($I6="","",SUMIF('SQT Data'!$G:$G,$G6,'SQT Data'!$R:$R)) -> 201 | AB6: =IF($I6="","",SUMIF('SQT Data'!$G:$G,$G6,'SQT Data'!$S:$S)) -> 193 | AC6: =IFERROR(SUM(AB6/AA6),"") -> 0.9602 | AD6: =IF($I6="","",SUMIF('SQT Data'!$G:$G,$G6,'SQT Data'!$U:$U)) -> 1535 | AE6: =IF($I6="","",SUMIF('SQT Data'!$G:$G,$G6,'SQT Data'!$V:$V)) -> 1401 | AF6: =IFERROR(SUM(AE6/AD6),"") -> 0.9127 | AJ6: =SUM(AJ18:AJ19) -> 286 | AK6: =SUM(AK18:AK19) -> 11 | AL6: =IFERROR(_xlfn.XLOOKUP($I6,'Company Summary'!$H$6:$H$13,'Company Summary'!$J$6:$J$13),"")/100 -> 0.9615 | AM6: =SUM(AM18:AM19) -> 225 | AN6: =SUM(AN18:AN19) -> 9 | AO6: =IFERROR(_xlfn.XLOOKUP($I6,'Company Summary'!$H$6:$H$13,'Company Summary'!$O$6:$O$13),"")/100 -> 0.96 | AP6: =SUM(AP18:AP19) -> 569 | AQ6: =SUM(AQ18:AQ19) -> 481 | AR6: =IFERROR(_xlfn.XLOOKUP(I6,'Company Summary'!$H$6:$H$13,'Company Summary'!$P$6:$P$13),"")/100 -> 0.8439 | AS6: =SUM(AS18:AS19) -> 17 | AT6: =SUM(AT18:AT19) -> 12 | AU6: =IFERROR(AT6/AS6,"") -> 0.7059
F7: Gainesville/Ocala (214) | G7: Gainesville | I7: Gainesville/Ocala | J7: Gainesville | K7: =IF(AC7="","",IFERROR(IF(N7>=68.26%,1.25,0)+IF(T7<=5.04%,2.5,0)+IF(AC7>=90%,2.5,0)+IF(AO7>=97%,1.25,0)+IF(Q7>=90%,2.5,0),"")) -> 7.5 | L7: =L20 -> 28 | M7: =M20 -> 3 | N7: =IFERROR(_xlfn.XLOOKUP($I7,'Company Summary'!$H$6:$H$13,'Company Summary'!$I$6:$I$13),"")/100 -> 0.625 | O7: =COUNTIFS('SMS tNPS'!L:L,F7,'SMS tNPS'!HB:HB,"Yes") -> 71 | P7: =COUNTIFS('SMS tNPS'!L:L,F7,'SMS tNPS'!HB:HB,"Yes")+COUNTIFS('SMS tNPS'!L:L,F7,'SMS tNPS'!HB:HB,"No") -> 76 | Q7: =IFERROR(SUM(O7/P7),"") -> 0.9342 | R7: =R20 -> 260 | S7: =S20 -> 6 | T7: =IFERROR(_xlfn.XLOOKUP($I7,'Company Summary'!$H$6:$H$13,'Company Summary'!$K$6:$K$13),"")/100 -> 0.024 | U7: =U20 -> 132 | V7: 4 | W7: 0.0303 | X7: =X20 -> 128 | Y7: 2 | Z7: 0.0156 | AA7: =IF($I7="","",SUMIF('SQT Data'!$G:$G,$G7,'SQT Data'!$R:$R)) -> 184 | AB7: =IF($I7="","",SUMIF('SQT Data'!$G:$G,$G7,'SQT Data'!$S:$S)) -> 178 | AC7: =IFERROR(SUM(AB7/AA7),"") -> 0.9674 | AD7: =IF($I7="","",SUMIF('SQT Data'!$G:$G,$G7,'SQT Data'!$U:$U)) -> 1299 | AE7: =IF($I7="","",SUMIF('SQT Data'!$G:$G,$G7,'SQT Data'!$V:$V)) -> 1132 | AF7: =IFERROR(SUM(AE7/AD7),"") -> 0.8714 | AJ7: =AJ20 -> 159 | AK7: =AK20 -> 3 | AL7: =IFERROR(_xlfn.XLOOKUP($I7,'Company Summary'!$H$6:$H$13,'Company Summary'!$J$6:$J$13),"")/100 -> 0.9794 | AM7: =AM20 -> 115 | AN7: =AN20 -> 6 | AO7: =IFERROR(_xlfn.XLOOKUP($I7,'Company Summary'!$H$6:$H$13,'Company Summary'!$O$6:$O$13),"")/100 -> 0.9583 | AP7: =AP20 -> 292 | AQ7: =AQ20 -> 248 | AR7: =IFERROR(_xlfn.XLOOKUP(I7,'Company Summary'!$H$6:$H$13,'Company Summary'!$P$6:$P$13),"")/100 -> 0.8417 | AS7: =AS20 -> 8 | AT7: =AT20 -> 2 | AU7: =IFERROR(AT7/AS7,"") -> 0.25
F8: New Orleans (126) | G8: New Orleans | I8: Hampton Roads | J8: Hampton Roads | K8: 6.25 | L8: =L21 -> 3 | M8: =M21 -> 1 | N8: =IFERROR(_xlfn.XLOOKUP($I8,'Company Summary'!$H$6:$H$13,'Company Summary'!$I$6:$I$13),"")/100 -> 0.7222 | O8: =COUNTIFS('SMS tNPS'!L:L,F10,'SMS tNPS'!HB:HB,"Yes") -> 91 | P8: =COUNTIFS('SMS tNPS'!L:L,F10,'SMS tNPS'!HB:HB,"Yes")+COUNTIFS('SMS tNPS'!L:L,F10,'SMS tNPS'!HB:HB,"No") -> 107 | Q8: 0.8505 | R8: =R21 -> 86 | S8: =S21 -> 4 | T8: =IFERROR(_xlfn.XLOOKUP($I8,'Company Summary'!$H$6:$H$13,'Company Summary'!$K$6:$K$13),"")/100 -> 0.0333 | U8: =U21 -> 70 | V8: 2 | W8: 0.0286 | X8: =X21 -> 16 | Y8: 2 | Z8: 0.125 | AA8: =IF($I8="","",SUMIF('SQT Data'!$G:$G,$G10,'SQT Data'!$R:$R)) -> 246 | AB8: =IF($I8="","",SUMIF('SQT Data'!$G:$G,$G10,'SQT Data'!$S:$S)) -> 237 | AC8: 0.9634 | AD8: =IF($I8="","",SUMIF('SQT Data'!$G:$G,$G10,'SQT Data'!$U:$U)) -> 1885 | AE8: =IF($I8="","",SUMIF('SQT Data'!$G:$G,$G10,'SQT Data'!$V:$V)) -> 1596 | AF8: =IFERROR(SUM(AE8/AD8),"") -> 0.8467 | AJ8: =AJ21 -> 53 | AK8: =AK21 -> 1 | AL8: =IFERROR(_xlfn.XLOOKUP($I8,'Company Summary'!$H$6:$H$13,'Company Summary'!$J$6:$J$13),"")/100 -> 0.9767 | AM8: =AM21 -> 15 | AN8: =AN21 -> 1 | AO8: =IFERROR(_xlfn.XLOOKUP($I8,'Company Summary'!$H$6:$H$13,'Company Summary'!$O$6:$O$13),"")/100 -> 0.9561 | AP8: =AP21 -> 33 | AQ8: =AQ21 -> 31 | AR8: =IFERROR(_xlfn.XLOOKUP(I8,'Company Summary'!$H$6:$H$13,'Company Summary'!$P$6:$P$13),"")/100 -> 0.9115 | AS8: =SUM(AS21:AS22) -> 2 | AT8: =SUM(AT21:AT22) -> 1 | AU8: 0.5
F9: Greater Louisiana (182) | G9: GREATER LOUISIANA | I9: Roanoke | J9: Roanoke | K9: 10 | L9: =L23 -> 18 | M9: 2 | N9: =IFERROR(_xlfn.XLOOKUP($I9,'Company Summary'!$H$6:$H$13,'Company Summary'!$I$6:$I$13),"")/100 -> 0.75 | O9: =COUNTIFS('SMS tNPS'!L:L,F11,'SMS tNPS'!HB:HB,"Yes") -> 91 | P9: =COUNTIFS('SMS tNPS'!L:L,F11,'SMS tNPS'!HB:HB,"Yes")+COUNTIFS('SMS tNPS'!L:L,F11,'SMS tNPS'!HB:HB,"No") -> 99 | Q9: 0.9192 | R9: =R23 -> 247 | S9: 5 | T9: =IFERROR(_xlfn.XLOOKUP($I9,'Company Summary'!$H$6:$H$13,'Company Summary'!$K$6:$K$13),"")/100 -> 0.0169 | U9: =U23 -> 138 | V9: 3 | W9: 0.0217 | X9: =X23 -> 109 | Y9: 2 | Z9: 0.0183 | AA9: =IF($I9="","",SUMIF('SQT Data'!$G:$G,$G11,'SQT Data'!$R:$R)) -> 195 | AB9: =IF($I9="","",SUMIF('SQT Data'!$G:$G,$G11,'SQT Data'!$S:$S)) -> 193 | AC9: 0.9897 | AD9: =IF($I9="","",SUMIF('SQT Data'!$G:$G,$G11,'SQT Data'!$U:$U)) -> 1527 | AE9: =IF($I9="","",SUMIF('SQT Data'!$G:$G,$G11,'SQT Data'!$V:$V)) -> 1346 | AF9: 0.8815 | AJ9: =AJ23 -> 153 | AK9: 2 | AL9: =IFERROR(_xlfn.XLOOKUP($I9,'Company Summary'!$H$6:$H$13,'Company Summary'!$J$6:$J$13),"")/100 -> 0.989 | AM9: =AM23 -> 136 | AN9: 3 | AO9: =IFERROR(_xlfn.XLOOKUP($I9,'Company Summary'!$H$6:$H$13,'Company Summary'!$O$6:$O$13),"")/100 -> 0.9814 | AP9: =AP23 -> 266 | AQ9: 246 | AR9: =IFERROR(_xlfn.XLOOKUP(I9,'Company Summary'!$H$6:$H$13,'Company Summary'!$P$6:$P$13),"")/100 -> 0.9306 | AS9: =AS23 -> 2 | AT9: =AT23 -> 2 | AU9: 1
F10: Hampton Roads (215) | G10: Hampton Roads | I10: Pensacola | J10: Gulf Coast | K10: 6.25 | L10: 26 | M10: 1 | N10: =IFERROR(_xlfn.XLOOKUP($I10,'Company Summary'!$H$6:$H$13,'Company Summary'!$I$6:$I$13),"")/100 -> 0.8276 | O10: =COUNTIFS('SMS tNPS'!L:L,F12,'SMS tNPS'!HB:HB,"Yes") -> 86 | P10: =COUNTIFS('SMS tNPS'!L:L,F12,'SMS tNPS'!HB:HB,"Yes")+COUNTIFS('SMS tNPS'!L:L,F12,'SMS tNPS'!HB:HB,"No") -> 97 | Q10: 0.8866 | R10: 401 | S10: 15 | T10: =IFERROR(_xlfn.XLOOKUP($I10,'Company Summary'!$H$6:$H$13,'Company Summary'!$K$6:$K$13),"")/100 -> 0.036 | U10: 154 | V10: 7 | W10: 0.0455 | X10: 247 | Y10: 8 | Z10: 0.0324 | AA10: =IF($I10="","",SUMIF('SQT Data'!$G:$G,$G12,'SQT Data'!$R:$R)) -> 246 | AB10: =IF($I10="","",SUMIF('SQT Data'!$G:$G,$G12,'SQT Data'!$S:$S)) -> 232 | AC10: 0.9431 | AD10: =IF($I10="","",SUMIF('SQT Data'!$G:$G,$G12,'SQT Data'!$U:$U)) -> 1779 | AE10: =IF($I10="","",SUMIF('SQT Data'!$G:$G,$G12,'SQT Data'!$V:$V)) -> 1592 | AF10: 0.8949 | AJ10: 214 | AK10: 8 | AL10: =IFERROR(_xlfn.XLOOKUP($I10,'Company Summary'!$H$6:$H$13,'Company Summary'!$J$6:$J$13),"")/100 -> 0.9664 | AM10: 141 | AN10: 11 | AO10: =IFERROR(_xlfn.XLOOKUP($I10,'Company Summary'!$H$6:$H$13,'Company Summary'!$O$6:$O$13),"")/100 -> 0.9114 | AP10: 438 | AQ10: 389 | AR10: =IFERROR(_xlfn.XLOOKUP(I10,'Company Summary'!$H$6:$H$13,'Company Summary'!$P$6:$P$13),"")/100 -> 0.8816 | AS10: =AS24 -> 8 | AT10: =AT24 -> 6 | AU10: 0.75
B11: Home | F11: Roanoke (239) | G11: Roanoke | I11: Oklahoma City | J11: Oklahoma City | K11: 8.75 | L11: =L25+L26 -> 27 | M11: =M25+M26 -> 2 | N11: =IFERROR(_xlfn.XLOOKUP($I11,'Company Summary'!$H$6:$H$13,'Company Summary'!$I$6:$I$13),"")/100 -> 0.6875 | O11: =O25+O26 -> 63 | P11: =P25+P26 -> 68 | Q11: 0.9265 | R11: =R25+R26 -> 314 | S11: =S25+S26 -> 8 | T11: =IFERROR(_xlfn.XLOOKUP($I11,'Company Summary'!$H$6:$H$13,'Company Summary'!$K$6:$K$13),"")/100 -> 0.0224 | U11: =U25+U26 -> 128 | V11: =V25+V26 -> 2 | W11: 0.0156 | X11: =X25+X26 -> 186 | Y11: =Y25+Y26 -> 6 | Z11: 0.0323 | AA11: =AA25+AA26 -> 173 | AB11: =AB25+AB26 -> 161 | AC11: 0.9306 | AD11: =AD25+AD26 -> 1271 | AE11: =AE25+AE26 -> 1192 | AF11: 0.9378 | AJ11: =AJ25+AJ26 -> 167 | AK11: =AK25+AK26 -> 4 | AL11: =IFERROR(_xlfn.XLOOKUP($I11,'Company Summary'!$H$6:$H$13,'Company Summary'!$J$6:$J$13),"")/100 -> 0.9784 | AM11: =AM25+AM26 -> 125 | AN11: =AN25+AN26 -> 7 | AO11: =IFERROR(_xlfn.XLOOKUP($I11,'Company Summary'!$H$6:$H$13,'Company Summary'!$O$6:$O$13),"")/100 -> 0.9507 | AP11: =AP25+AP26 -> 359 | AQ11: =AQ25+AQ26 -> 312 | AR11: =IFERROR(_xlfn.XLOOKUP(I11,'Company Summary'!$H$6:$H$13,'Company Summary'!$P$6:$P$13),"")/100 -> 0.8744 | AS11: =AS25+AS26 -> 10 | AT11: =AT25+AT26 -> 8 | AU11: 0.8
F12: Pensacola (135) | G12: Gulf Coast
B13: Performance Metrics | F13: Oklahoma City (131) | G13: Oklahoma City | J13: COX Total | K13: 6.25 | L13: =SUM(L6:L11) -> 119 | M13: =SUM(M6:M11) -> 11 | N13: =IFERROR(1-(M13/L13),"") -> 0.9076 | O13: =SUM(O6:O11) -> 485 | P13: =SUM(P6:P11) -> 543 | Q13: 0.8932 | R13: =SUM(R6:R11) -> 1793 | S13: =SUM(S6:S11) -> 59 | T13: =IFERROR(SUM(S13/R13),"") -> 0.0329 | U13: =SUM(U6:U11) -> 854 | V13: =SUM(V6:V11) -> 25 | W13: 0.0293 | X13: =SUM(X6:X11) -> 939 | Y13: =SUM(Y6:Y11) -> 34 | Z13: 0.0362 | AA13: =SUM(AA6:AA11) -> 1245 | AB13: =SUM(AB6:AB11) -> 1194 | AC13: 0.959 | AD13: =SUM(AD6:AD11) -> 9296 | AE13: =SUM(AE6:AE11) -> 8259 | AF13: 0.8884 | AJ13: =SUM(AJ6:AJ11) -> 1032 | AK13: =SUM(AK6:AK11) -> 29 | AL13: =IFERROR(1-AK13/AJ13,"") -> 0.9719 | AM13: =SUM(AM6:AM11) -> 757 | AN13: =SUM(AN6:AN11) -> 37 | AO13: =IFERROR(1-AN13/AM13,"") -> 0.9511 | AP13: =SUM(AP6:AP11) -> 1957 | AQ13: =SUM(AQ6:AQ11) -> 1707 | AR13: =IFERROR(AQ13/AP13,"") -> 0.8723 | AS13: =SUM(AS6:AS11) -> 47 | AT13: =SUM(AT6:AT11) -> 31 | AU13: 0.6596
B14: Gainesville
B15: Macon
B16: Hampton Roads | J16: Supervisor | K16: Score | L16: # NPS WO's | M16: # Failures | N16: NPS | O16: SMS Promoter Count | P16: SMS Count | Q16: SMS tNPS | R16: Total Repeatable WO | S16: Total Repeats | T16: Repeats | U16: Total Repeatable WO | V16: Repeat IN | W16: IN Repeat % | X16: Total Repeatable WO | Y16: Repeat TC | Z16: Repeat TC % | AA16: Jobs | AB16: Pass | AC16: SQT Compliance | AD16: Parameters Tested | AE16: Parameters Passing | AF16: SQT Pass | AG16: Ingress Test Run | AH16: Test Passed | AI16: Ingress Test Pass | AJ16: FCR WO | AK16: FCR Failures | AL16: FCR | AM16: Jobs | AN16: Jobs Late | AO16: OTA | AP16: Jobs | AQ16: Completed Jobs | AR16: Completion % | AS16: Total Jobs | AT16: Total Valid | AU16: Drop Validation
B17: Roanoke
B18: Gulf Coast | H18: Macon | J18: Deandre McCants | K18: =IF(AC18="","",IFERROR(IF(N18>=68.26%,1.25,0)+IF(T18<=5.04%,2.5,0)+IF(AC18>=90%,2.5,0)+IF(AO18>=97%,1.25,0)+IF(Q18>=90%,2.5,0),"")) -> 6.25 | L18: =Macon!I34 -> 2 | M18: =Macon!J34 -> 0 | N18: =IFERROR(1-(M18/L18),"") -> 1 | O18: =Macon!L34 -> 26 | P18: =Macon!M34 -> 29 | Q18: =IFERROR(SUM(O18/P18),"") -> 0.8966 | R18: =Macon!O34 -> 121 | S18: =Macon!P34 -> 6 | T18: =IFERROR(SUM(S18/R18),"") -> 0.0496 | U18: =Macon!R34 -> 56 | V18: =Macon!S34 -> 3 | W18: =IFERROR(SUM(V18/U18),"") -> 0.0536 | X18: =Macon!U34 -> 65 | Y18: =Macon!V34 -> 3 | Z18: =IFERROR(SUM(Y18/X18),"") -> 0.0462 | AA18: =Macon!X34 -> 67 | AB18: =Macon!Y34 -> 62 | AC18: =IFERROR(SUM(AB18/AA18),"") -> 0.9254 | AD18: =Macon!AA34 -> 493 | AE18: =Macon!AB34 -> 433 | AF18: =IFERROR(SUM(AE18/AD18),"") -> 0.8783 | AJ18: =Macon!AF34 -> 60 | AK18: =Macon!AG34 -> 3 | AL18: =IFERROR(1-AK18/AJ18,"") -> 0.95 | AM18: =Macon!AI34 -> 54 | AN18: =Macon!AJ34 -> 2 | AO18: =IFERROR(1-AN18/AM18,"") -> 0.963 | AP18: =Macon!AL34 -> 146 | AQ18: =Macon!AM34 -> 121 | AR18: =IFERROR(AQ18/AP18,"") -> 0.8288 | AS18: =Macon!AO34 -> 8 | AT18: =Macon!AP34 -> 4 | AU18: =IFERROR(AT18/AS18,"") -> 0.5
B19: Oklahoma City | J19: Robert Yerby | K19: 6.25 | L19: =Macon!I68 -> 15 | M19: =Macon!J68 -> 2 | N19: 0.8667 | O19: =Macon!L68 -> 57 | P19: =Macon!M68 -> 67 | Q19: 0.8507 | R19: =Macon!O68 -> 364 | S19: =Macon!P68 -> 15 | T19: 0.0412 | U19: =Macon!R68 -> 176 | V19: =Macon!S68 -> 4 | W19: 0.0227 | X19: =Macon!U68 -> 188 | Y19: =Macon!V68 -> 11 | Z19: 0.0585 | AA19: =Macon!X68 -> 134 | AB19: =Macon!Y68 -> 131 | AC19: =IFERROR(SUM(AB19/AA19),"") -> 0.9776 | AD19: =Macon!AA68 -> 1042 | AE19: =Macon!AB68 -> 968 | AF19: 0.929 | AJ19: =Macon!AF68 -> 226 | AK19: =Macon!AG68 -> 8 | AL19: 0.9646 | AM19: =Macon!AI68 -> 171 | AN19: =Macon!AJ68 -> 7 | AO19: 0.9591 | AP19: =Macon!AL68 -> 423 | AQ19: =Macon!AM68 -> 360 | AR19: 0.8511 | AS19: =Macon!AO68 -> 9 | AT19: =Macon!AP68 -> 8 | AU19: =IFERROR(AT19/AS19,"") -> 0.8889
B20: Tech Rankings | H20: Gainesville | J20: Scotty Lynch | K20: 8.75 | L20: =Gainesville!I34 -> 28 | M20: =Gainesville!J34 -> 3 | N20: 0.8929 | O20: =Gainesville!L34 -> 51 | P20: =Gainesville!M34 -> 54 | Q20: 0.9444 | R20: =Gainesville!O34 -> 260 | S20: =Gainesville!P34 -> 6 | T20: 0.0231 | U20: =Gainesville!R34 -> 132 | V20: =Gainesville!S34 -> 4 | W20: 0.0303 | X20: =Gainesville!U34 -> 128 | Y20: =Gainesville!V34 -> 2 | Z20: 0.0156 | AA20: =Gainesville!X34 -> 144 | AB20: =Gainesville!Y34 -> 139 | AC20: =IFERROR(SUM(AB20/AA20),"") -> 0.9653 | AD20: =Gainesville!AA34 -> 1092 | AE20: =Gainesville!AB34 -> 980 | AF20: 0.8974 | AJ20: =Gainesville!AF34 -> 159 | AK20: =Gainesville!AG34 -> 3 | AL20: 0.9811 | AM20: =Gainesville!AI34 -> 115 | AN20: =Gainesville!AJ34 -> 6 | AO20: 0.9478 | AP20: =Gainesville!AL34 -> 292 | AQ20: =Gainesville!AM34 -> 248 | AR20: 0.8493 | AS20: =Gainesville!AO34 -> 8 | AT20: =Gainesville!AP34 -> 2 | AU20: =IFERROR(AT20/AS20,"") -> 0.25
B21: SMS Rankings | H21: Hampton Roads | J21: Chuck Kennedy | K21: 5 | L21: ='Hampton Roads'!I17 -> 3 | M21: ='Hampton Roads'!J17 -> 1 | N21: =IFERROR(1-(M21/L21),"") -> 0.6667 | O21: ='Hampton Roads'!L17 -> 8 | P21: ='Hampton Roads'!M17 -> 10 | Q21: 0.8 | R21: ='Hampton Roads'!O17 -> 86 | S21: ='Hampton Roads'!P17 -> 4 | T21: =IFERROR(SUM(S21/R21),"") -> 0.0465 | U21: ='Hampton Roads'!R17 -> 70 | V21: ='Hampton Roads'!S17 -> 2 | W21: 0.0286 | X21: ='Hampton Roads'!U17 -> 16 | Y21: ='Hampton Roads'!V17 -> 2 | Z21: 0.125 | AA21: ='Hampton Roads'!X17 -> 17 | AB21: ='Hampton Roads'!Y17 -> 17 | AC21: 1 | AD21: ='Hampton Roads'!AA17 -> 136 | AE21: ='Hampton Roads'!AB17 -> 121 | AF21: 0.8897 | AJ21: ='Hampton Roads'!AF17 -> 53 | AK21: ='Hampton Roads'!AG17 -> 1 | AL21: =IFERROR(1-AK21/AJ21,"") -> 0.9811 | AM21: ='Hampton Roads'!AI17 -> 15 | AN21: ='Hampton Roads'!AJ17 -> 1 | AO21: =IFERROR(1-AN21/AM21,"") -> 0.9333 | AP21: ='Hampton Roads'!AL17 -> 33 | AQ21: ='Hampton Roads'!AM17 -> 31 | AR21: =IFERROR(AQ21/AP21,"") -> 0.9394 | AS21: ='Hampton Roads'!AO17 -> 0 | AT21: ='Hampton Roads'!AP17 -> 0
B22: SQT Comp Rankings | J22: Frank Dole | K22: 6.25 | L22: ='Hampton Roads'!I45 -> 15 | M22: ='Hampton Roads'!J45 -> 0 | N22: 1 | O22: ='Hampton Roads'!L45 -> 94 | P22: ='Hampton Roads'!M45 -> 111 | Q22: 0.8468 | R22: ='Hampton Roads'!O45 -> 274 | S22: ='Hampton Roads'!P45 -> 8 | T22: 0.0292 | U22: ='Hampton Roads'!R45 -> 200 | V22: ='Hampton Roads'!S45 -> 4 | W22: 0.02 | X22: ='Hampton Roads'!U45 -> 74 | Y22: ='Hampton Roads'!V45 -> 4 | Z22: 0.0541 | AA22: ='Hampton Roads'!X45 -> 259 | AB22: ='Hampton Roads'!Y45 -> 249 | AC22: 0.9614 | AD22: ='Hampton Roads'!AA45 -> 1969 | AE22: ='Hampton Roads'!AB45 -> 1663 | AF22: 0.8446 | AJ22: ='Hampton Roads'!AF45 -> 204 | AK22: ='Hampton Roads'!AG45 -> 5 | AL22: 0.9755 | AM22: ='Hampton Roads'!AI45 -> 99 | AN22: ='Hampton Roads'!AJ45 -> 4 | AO22: 0.9596 | AP22: ='Hampton Roads'!AL45 -> 193 | AQ22: ='Hampton Roads'!AM45 -> 175 | AR22: 0.9067 | AS22: ='Hampton Roads'!AO45 -> 2 | AT22: ='Hampton Roads'!AP45 -> 1 | AU22: 0.5
B23: SQT Pass Rankings | H23: Roanoke | J23: Donnie Evans | K23: 10 | L23: =Roanoke!I34 -> 18 | M23: =Roanoke!J34 -> 2 | N23: 0.8889 | O23: =Roanoke!L34 -> 71 | P23: =Roanoke!M34 -> 75 | Q23: 0.9467 | R23: =Roanoke!O34 -> 247 | S23: =Roanoke!P34 -> 5 | T23: 0.0202 | U23: =Roanoke!R34 -> 138 | V23: =Roanoke!S34 -> 3 | W23: 0.0217 | X23: =Roanoke!U34 -> 109 | Y23: =Roanoke!V34 -> 2 | Z23: 0.0183 | AA23: =Roanoke!X34 -> 139 | AB23: =Roanoke!Y34 -> 138 | AC23: 0.9928 | AD23: =Roanoke!AA34 -> 1104 | AE23: =Roanoke!AB34 -> 975 | AF23: 0.8832 | AJ23: =Roanoke!AF34 -> 153 | AK23: =Roanoke!AG34 -> 2 | AL23: 0.9869 | AM23: =Roanoke!AI34 -> 136 | AN23: =Roanoke!AJ34 -> 3 | AO23: 0.9779 | AP23: =Roanoke!AL34 -> 266 | AQ23: =Roanoke!AM34 -> 246 | AR23: 0.9248 | AS23: =Roanoke!AO34 -> 2 | AT23: =Roanoke!AP34 -> 2 | AU23: 1
B24: Repeat Rankings | H24: Gulf Coast | J24: Tim Judy | K24: 6.25 | L24: ='Gulf Coast'!I34 -> 26 | M24: ='Gulf Coast'!J34 -> 1 | N24: 0.9615 | O24: ='Gulf Coast'!L34 -> 75 | P24: ='Gulf Coast'!M34 -> 86 | Q24: 0.8721 | R24: ='Gulf Coast'!O34 -> 401 | S24: ='Gulf Coast'!P34 -> 15 | T24: 0.0374 | U24: ='Gulf Coast'!R34 -> 154 | V24: ='Gulf Coast'!S34 -> 7 | W24: 0.0455 | X24: ='Gulf Coast'!U34 -> 247 | Y24: ='Gulf Coast'!V34 -> 8 | Z24: 0.0324 | AA24: ='Gulf Coast'!X34 -> 221 | AB24: ='Gulf Coast'!Y34 -> 209 | AC24: 0.9457 | AD24: ='Gulf Coast'!AA34 -> 1595 | AE24: ='Gulf Coast'!AB34 -> 1417 | AF24: 0.8884 | AJ24: ='Gulf Coast'!AF34 -> 214 | AK24: ='Gulf Coast'!AG34 -> 8 | AL24: 0.9626 | AM24: ='Gulf Coast'!AI34 -> 141 | AN24: ='Gulf Coast'!AJ34 -> 11 | AO24: 0.922 | AP24: ='Gulf Coast'!AL34 -> 438 | AQ24: ='Gulf Coast'!AM34 -> 389 | AR24: 0.8881 | AS24: ='Gulf Coast'!AO34 -> 8 | AT24: ='Gulf Coast'!AP34 -> 6 | AU24: 0.75
H25: Oklahoma City | L25: ='Oklahoma City'!I59 -> 0 | M25: ='Oklahoma City'!J59 -> 0 | O25: ='Oklahoma City'!L59 -> 0 | P25: ='Oklahoma City'!M59 -> 0 | R25: ='Oklahoma City'!O59 -> 0 | S25: ='Oklahoma City'!P59 -> 0 | U25: ='Oklahoma City'!R59 -> 0 | V25: ='Oklahoma City'!S59 -> 0 | X25: ='Oklahoma City'!U59 -> 0 | Y25: ='Oklahoma City'!V59 -> 0 | AA25: ='Oklahoma City'!X59 -> 0 | AB25: ='Oklahoma City'!Y59 -> 0 | AD25: ='Oklahoma City'!AA59 -> 0 | AE25: ='Oklahoma City'!AB59 -> 0 | AJ25: ='Oklahoma City'!AF59 -> 0 | AK25: ='Oklahoma City'!AG59 -> 0 | AM25: ='Oklahoma City'!AI59 -> 0 | AN25: ='Oklahoma City'!AJ59 -> 0 | AP25: ='Oklahoma City'!AL59 -> 0 | AQ25: ='Oklahoma City'!AM59 -> 0 | AS25: ='Oklahoma City'!AO59 -> 0 | AT25: ='Oklahoma City'!AP59 -> 0
J26: Chad Williams | K26: 8.75 | L26: ='Oklahoma City'!I24 -> 27 | M26: ='Oklahoma City'!J24 -> 2 | N26: =IFERROR(1-(M26/L26),"") -> 0.9259 | O26: ='Oklahoma City'!L24 -> 63 | P26: ='Oklahoma City'!M24 -> 68 | Q26: =IFERROR(SUM(O26/P26),"") -> 0.9265 | R26: ='Oklahoma City'!O24 -> 314 | S26: ='Oklahoma City'!P24 -> 8 | T26: =IFERROR(SUM(S26/R26),"") -> 0.0255 | U26: ='Oklahoma City'!R24 -> 128 | V26: ='Oklahoma City'!S24 -> 2 | W26: =IFERROR(SUM(V26/U26),"") -> 0.0156 | X26: ='Oklahoma City'!U24 -> 186 | Y26: ='Oklahoma City'!V24 -> 6 | Z26: =IFERROR(SUM(Y26/X26),"") -> 0.0323 | AA26: ='Oklahoma City'!X24 -> 173 | AB26: ='Oklahoma City'!Y24 -> 161 | AC26: =IFERROR(SUM(AB26/AA26),"") -> 0.9306 | AD26: ='Oklahoma City'!AA24 -> 1271 | AE26: ='Oklahoma City'!AB24 -> 1192 | AF26: =IFERROR(SUM(AE26/AD26),"") -> 0.9378 | AJ26: ='Oklahoma City'!AF24 -> 167 | AK26: ='Oklahoma City'!AG24 -> 4 | AL26: =IFERROR(1-AK26/AJ26,"") -> 0.976 | AM26: ='Oklahoma City'!AI24 -> 125 | AN26: ='Oklahoma City'!AJ24 -> 7 | AO26: =IFERROR(1-AN26/AM26,"") -> 0.944 | AP26: ='Oklahoma City'!AL24 -> 359 | AQ26: ='Oklahoma City'!AM24 -> 312 | AR26: =IFERROR(AQ26/AP26,"") -> 0.8691 | AS26: ='Oklahoma City'!AO24 -> 10 | AT26: ='Oklahoma City'!AP24 -> 8 | AU26: =IFERROR(AT26/AS26,"") -> 0.8
B27: Raw Data

Sheet Gainesville
F3: Scotty Lynch
F5: Tech Name | G5: Tech ID | H5: Score | I5: # NPS WO's | J5: # Failures | K5: NPS | L5: SMS Promoter Count | M5: SMS Count | N5: SMS tNPS | O5: Total Repeatable WO | P5: Total Repeats | Q5: Repeats | R5: Total Repeatable WO | S5: Repeat IN | T5: IN Repeat % | U5: Total Repeatable WO | V5: Repeat TC | W5: Repeat TC % | X5: Jobs | Y5: Test Run | Z5: SQT Compliance | AA5: Parameters Tested | AB5: Parameters Passing | AC5: SQT Pass | AD5: Test Passed | AE5: Ingress Test Pass | AF5: FCR WO | AG5: FCR Failures | AH5: FCR | AI5: Jobs | AJ5: Jobs Late | AK5: OTA | AL5: Jobs | AM5: Completed Jobs | AN5: Completion % | AO5: Total Jobs | AP5: Total Valid | AQ5: Drop Validation
F7: Scotty Lynch | G7: 6958 | H7: =IF(Z7="","",IFERROR(IF(K7>=68.26%,1.25,0)+IF(Q7<=5.04%,2.5,0)+IF(Z7>=90%,2.5,0)+IF(AK7>=96%,1.25,0)+IF(N7>=90%,2.5,0),"")) ->  | I7: =IFERROR(VLOOKUP($G7,'Technician Summary'!$G$7:$BB$372,2,FALSE),"") -> 0 | J7: =(IFERROR(_xlfn.XLOOKUP($G7,'Technician Summary'!G:G,'Technician Summary'!I:I),"")) -> 0 | K7: =IFERROR(1-((J7*2)/I7),"") ->  | L7: =IF(G7="","",COUNTIFS('SMS tNPS'!DE:DE,G7,'SMS tNPS'!HB:HB,"Yes")) -> 0 | M7: =IFERROR(IF(G7="","",COUNTIFS('SMS tNPS'!DE:DE,G7,'SMS tNPS'!HB:HB,"Yes"))+COUNTIFS('SMS tNPS'!DE:DE,G7,'SMS tNPS'!HB:HB,"No"),"") -> 0 | N7: =IFERROR(SUM(L7/M7),"") ->  | O7: =IFERROR(VLOOKUP($G7,'Technician Summary'!$G$7:$BK$372,14,FALSE),"") -> 5 | P7: =IFERROR(VLOOKUP($G7,'Technician Summary'!$G$7:$BK$372,15,FALSE),"") -> 0 | Q7: =IFERROR(SUM(P7/O7),"") -> 0 | R7: =IFERROR(VLOOKUP($G7,'Technician Summary'!$G$7:$BK$372,17,FALSE),"") -> 4 | S7: =IFERROR(VLOOKUP($G7,'Technician Summary'!$G$7:$BK$372,18,FALSE),"") -> 0 | T7: =IFERROR(SUM(S7/R7),"") -> 0 | U7: =IFERROR(VLOOKUP($G7,'Technician Summary'!$G$7:$BK$372,20,FALSE),"") -> 1 | V7: =IFERROR(VLOOKUP($G7,'Technician Summary'!$G$7:$BK$372,21,FALSE),"") -> 0 | W7: =IFERROR(SUM(V7/U7),"") -> 0 | X7: =IF($G7="","",SUMIF('SQT Data'!$K:$K,$G7,'SQT Data'!$R:$R)) -> 0 | Y7: =IF($G7="","",SUMIF('SQT Data'!$K:$K,$G7,'SQT Data'!$S:$S)) -> 0 | Z7: =IFERROR(SUM(Y7/X7),"") ->  | AA7: =IF($G7="","",SUMIF('SQT Data'!$K:$K,$G7,'SQT Data'!$U:$U)) -> 0 | AB7: =IF($G7="","",SUMIF('SQT Data'!$K:$K,$G7,'SQT Data'!$V:$V)) -> 0 | AC7: =IFERROR(SUM(AB7/AA7),"") ->  | AD7: =SUMIF('SQT Data'!#REF!,G7,'SQT Data'!#REF!) ->  | AE7: =IFERROR(SUM(AD7/#REF!),"") ->  | AF7: =IFERROR(VLOOKUP($G7,'Technician Summary'!$G$7:$BK$372,7,FALSE),"") -> 1 | AG7: =IFERROR(VLOOKUP($G7,'Technician Summary'!$G$7:$BK$372,8,FALSE),"") -> 0 | AH7: =IFERROR(1-AG7/AF7,"") -> 1 | AI7: =IFERROR(VLOOKUP($G7,'Technician Summary'!$G$7:$BK$372,34,FALSE),"") -> 0 | AJ7: =IFERROR(VLOOKUP($G7,'Technician Summary'!$G$7:$BK$372,35,FALSE),"") -> 0 | AK7: =IFERROR(1-AJ7/AI7,"") ->  | AL7: =IFERROR(VLOOKUP($G7,'Technician Summary'!$G$7:$BK$372,37,FALSE),"") -> 1 | AM7: =IFERROR(VLOOKUP($G7,'Technician Summary'!$G$7:$BK$372,38,FALSE),"") -> 1 | AN7: =IFERROR(AM7/AL7,"") -> 1 | AO7: =COUNTIFS('Drop Validation'!$Q:$Q,$G7,'Drop Validation'!$G:$G,"In Scope") -> 0 | AP7: =COUNTIFS('Drop Validation'!$Q:$Q,$G7,'Drop Validation'!$AB:$AB,"Compliant",'Drop Validation'!$G:$G,"In Scope") -> 0 | AQ7: =IFERROR(AP7/AO7,"") -> 
F8: Sean Pestel | G8: 11576 | H8: =IF(Z8="","",IFERROR(IF(K8>=68.26%,1.25,0)+IF(Q8<=5.04%,2.5,0)+IF(Z8>=90%,2.5,0)+IF(AK8>=96%,1.25,0)+IF(N8>=90%,2.5,0),"")) -> 7.5 | I8: =IFERROR(VLOOKUP($G8,'Technician Summary'!$G$7:$BB$372,2,FALSE),"") ->  | J8: =(IFERROR(_xlfn.XLOOKUP($G8,'Technician Summary'!G:G,'Technician Summary'!I:I),"")) ->  | K8: =IFERROR(1-((J8*2)/I8),"") ->  | L8: =IF(G8="","",COUNTIFS('SMS tNPS'!DE:DE,G8,'SMS tNPS'!HB:HB,"Yes")) -> 4 | M8: =IFERROR(IF(G8="","",COUNTIFS('SMS tNPS'!DE:DE,G8,'SMS tNPS'!HB:HB,"Yes"))+COUNTIFS('SMS tNPS'!DE:DE,G8,'SMS tNPS'!HB:HB,"No"),"") -> 4 | N8: =IFERROR(SUM(L8/M8),"") -> 1 | O8: =IFERROR(VLOOKUP($G8,'Technician Summary'!$G$7:$BK$372,14,FALSE),"") ->  | P8: =IFERROR(VLOOKUP($G8,'Technician Summary'!$G$7:$BK$372,15,FALSE),"") ->  | Q8: =IFERROR(SUM(P8/O8),"") ->  | R8: =IFERROR(VLOOKUP($G8,'Technician Summary'!$G$7:$BK$372,17,FALSE),"") ->  | S8: =IFERROR(VLOOKUP($G8,'Technician Summary'!$G$7:$BK$372,18,FALSE),"") ->  | T8: =IFERROR(SUM(S8/R8),"") ->  | U8: =IFERROR(VLOOKUP($G8,'Technician Summary'!$G$7:$BK$372,20,FALSE),"") ->  | V8: =IFERROR(VLOOKUP($G8,'Technician Summary'!$G$7:$BK$372,21,FALSE),"") ->  | W8: =IFERROR(SUM(V8/U8),"") ->  | X8: =IF($G8="","",SUMIF('SQT Data'!$K:$K,$G8,'SQT Data'!$R:$R)) -> 19 | Y8: =IF($G8="","",SUMIF('SQT Data'!$K:$K,$G8,'SQT Data'!$S:$S)) -> 18 | Z8: =IFERROR(SUM(Y8/X8),"") -> 0.9474 | AA8: =IF($G8="","",SUMIF('SQT Data'!$K:$K,$G8,'SQT Data'!$U:$U)) -> 144 | AB8: =IF($G8="","",SUMIF('SQT Data'!$K:$K,$G8,'SQT Data'!$V:$V)) -> 141 | AC8: =IFERROR(SUM(AB8/AA8),"") -> 0.9792 | AD8: =SUMIF('SQT Data'!#REF!,G8,'SQT Data'!#REF!) ->  | AE8: =IFERROR(SUM(AD8/#REF!),"") ->  | AF8: =IFERROR(VLOOKUP($G8,'Technician Summary'!$G$7:$BK$372,7,FALSE),"") ->  | AG8: =IFERROR(VLOOKUP($G8,'Technician Summary'!$G$7:$BK$372,8,FALSE),"") ->  | AH8: =IFERROR(1-AG8/AF8,"") ->  | AI8: =IFERROR(VLOOKUP($G8,'Technician Summary'!$G$7:$BK$372,34,FALSE),"") ->  | AJ8: =IFERROR(VLOOKUP($G8,'Technician Summary'!$G$7:$BK$372,35,FALSE),"") ->  | AK8: =IFERROR(1-AJ8/AI8,"") ->  | AL8: =IFERROR(VLOOKUP($G8,'Technician Summary'!$G$7:$BK$372,37,FALSE),"") ->  | AM8: =IFERROR(VLOOKUP($G8,'Technician Summary'!$G$7:$BK$372,38,FALSE),"") ->  | AN8: =IFERROR(AM8/AL8,"") ->  | AO8: =COUNTIFS('Drop Validation'!$Q:$Q,$G8,'Drop Validation'!$G:$G,"In Scope") -> 0 | AP8: =COUNTIFS('Drop Validation'!$Q:$Q,$G8,'Drop Validation'!$AB:$AB,"Compliant",'Drop Validation'!$G:$G,"In Scope") -> 0 | AQ8: =IFERROR(AP8/AO8,"") -> 
F9: Omar Graterol | G9: 28359 | H9: 5 | I9: =IFERROR(VLOOKUP($G9,'Technician Summary'!$G$7:$BB$372,2,FALSE),"") -> 6 | J9: =(IFERROR(_xlfn.XLOOKUP($G9,'Technician Summary'!G:G,'Technician Summary'!I:I),"")) -> 3 | K9: 0 | L9: =IF(G9="","",COUNTIFS('SMS tNPS'!DE:DE,G9,'SMS tNPS'!HB:HB,"Yes")) -> 5 | M9: =IFERROR(IF(G9="","",COUNTIFS('SMS tNPS'!DE:DE,G9,'SMS tNPS'!HB:HB,"Yes"))+COUNTIFS('SMS tNPS'!DE:DE,G9,'SMS tNPS'!HB:HB,"No"),"") -> 6 | N9: 0.8333 | O9: =IFERROR(VLOOKUP($G9,'Technician Summary'!$G$7:$BK$372,14,FALSE),"") -> 39 | P9: =IFERROR(VLOOKUP($G9,'Technician Summary'!$G$7:$BK$372,15,FALSE),"") -> 0 | Q9: 0 | R9: =IFERROR(VLOOKUP($G9,'Technician Summary'!$G$7:$BK$372,17,FALSE),"") -> 16 | S9: =IFERROR(VLOOKUP($G9,'Technician Summary'!$G$7:$BK$372,18,FALSE),"") -> 0 | T9: 0 | U9: =IFERROR(VLOOKUP($G9,'Technician Summary'!$G$7:$BK$372,20,FALSE),"") -> 23 | V9: =IFERROR(VLOOKUP($G9,'Technician Summary'!$G$7:$BK$372,21,FALSE),"") -> 0 | W9: 0 | X9: =IF($G9="","",SUMIF('SQT Data'!$K:$K,$G9,'SQT Data'!$R:$R)) -> 23 | Y9: =IF($G9="","",SUMIF('SQT Data'!$K:$K,$G9,'SQT Data'!$S:$S)) -> 23 | Z9: 1 | AA9: =IF($G9="","",SUMIF('SQT Data'!$K:$K,$G9,'SQT Data'!$U:$U)) -> 181 | AB9: =IF($G9="","",SUMIF('SQT Data'!$K:$K,$G9,'SQT Data'!$V:$V)) -> 171 | AC9: 0.9448 | AD9: =SUMIF('SQT Data'!#REF!,G9,'SQT Data'!#REF!) ->  | AE9: =IFERROR(SUM(AD9/#REF!),"") ->  | AF9: =IFERROR(VLOOKUP($G9,'Technician Summary'!$G$7:$BK$372,7,FALSE),"") -> 23 | AG9: =IFERROR(VLOOKUP($G9,'Technician Summary'!$G$7:$BK$372,8,FALSE),"") -> 0 | AH9: 1 | AI9: =IFERROR(VLOOKUP($G9,'Technician Summary'!$G$7:$BK$372,34,FALSE),"") -> 15 | AJ9: =IFERROR(VLOOKUP($G9,'Technician Summary'!$G$7:$BK$372,35,FALSE),"") -> 3 | AK9: 0.8 | AL9: =IFERROR(VLOOKUP($G9,'Technician Summary'!$G$7:$BK$372,37,FALSE),"") -> 48 | AM9: =IFERROR(VLOOKUP($G9,'Technician Summary'!$G$7:$BK$372,38,FALSE),"") -> 38 | AN9: 0.7917 | AO9: =COUNTIFS('Drop Validation'!$Q:$Q,$G9,'Drop Validation'!$G:$G,"In Scope") -> 0 | AP9: =COUNTIFS('Drop Validation'!$Q:$Q,$G9,'Drop Validation'!$AB:$AB,"Compliant",'Drop Validation'!$G:$G,"In Scope") -> 0
F10: Dimitri Pina | G10: 29269 | H10: 7.5 | I10: =IFERROR(VLOOKUP($G10,'Technician Summary'!$G$7:$BB$372,2,FALSE),"") -> 2 | J10: =(IFERROR(_xlfn.XLOOKUP($G10,'Technician Summary'!G:G,'Technician Summary'!I:I),"")) -> 0 | K10: 1 | L10: =IF(G10="","",COUNTIFS('SMS tNPS'!DE:DE,G10,'SMS tNPS'!HB:HB,"Yes")) -> 2 | M10: =IFERROR(IF(G10="","",COUNTIFS('SMS tNPS'!DE:DE,G10,'SMS tNPS'!HB:HB,"Yes"))+COUNTIFS('SMS tNPS'!DE:DE,G10,'SMS tNPS'!HB:HB,"No"),"") -> 2 | N10: 1 | O10: =IFERROR(VLOOKUP($G10,'Technician Summary'!$G$7:$BK$372,14,FALSE),"") -> 31 | P10: =IFERROR(VLOOKUP($G10,'Technician Summary'!$G$7:$BK$372,15,FALSE),"") -> 0 | Q10: 0 | R10: =IFERROR(VLOOKUP($G10,'Technician Summary'!$G$7:$BK$372,17,FALSE),"") -> 18 | S10: =IFERROR(VLOOKUP($G10,'Technician Summary'!$G$7:$BK$372,18,FALSE),"") -> 0 | T10: 0 | U10: =IFERROR(VLOOKUP($G10,'Technician Summary'!$G$7:$BK$372,20,FALSE),"") -> 13 | V10: =IFERROR(VLOOKUP($G10,'Technician Summary'!$G$7:$BK$372,21,FALSE),"") -> 0 | W10: 0 | X10: =IF($G10="","",SUMIF('SQT Data'!$K:$K,$G10,'SQT Data'!$R:$R)) -> 9 | Y10: =IF($G10="","",SUMIF('SQT Data'!$K:$K,$G10,'SQT Data'!$S:$S)) -> 7 | Z10: 0.7778 | AA10: =IF($G10="","",SUMIF('SQT Data'!$K:$K,$G10,'SQT Data'!$U:$U)) -> 56 | AB10: =IF($G10="","",SUMIF('SQT Data'!$K:$K,$G10,'SQT Data'!$V:$V)) -> 51 | AC10: 0.9107 | AD10: =SUMIF('SQT Data'!#REF!,G10,'SQT Data'!#REF!) ->  | AE10: =IFERROR(SUM(AD10/#REF!),"") ->  | AF10: =IFERROR(VLOOKUP($G10,'Technician Summary'!$G$7:$BK$372,7,FALSE),"") -> 16 | AG10: =IFERROR(VLOOKUP($G10,'Technician Summary'!$G$7:$BK$372,8,FALSE),"") -> 0 | AH10: 1 | AI10: =IFERROR(VLOOKUP($G10,'Technician Summary'!$G$7:$BK$372,34,FALSE),"") -> 13 | AJ10: =IFERROR(VLOOKUP($G10,'Technician Summary'!$G$7:$BK$372,35,FALSE),"") -> 0 | AK10: 1 | AL10: =IFERROR(VLOOKUP($G10,'Technician Summary'!$G$7:$BK$372,37,FALSE),"") -> 31 | AM10: =IFERROR(VLOOKUP($G10,'Technician Summary'!$G$7:$BK$372,38,FALSE),"") -> 27 | AN10: 0.871 | AO10: =COUNTIFS('Drop Validation'!$Q:$Q,$G10,'Drop Validation'!$G:$G,"In Scope") -> 0 | AP10: =COUNTIFS('Drop Validation'!$Q:$Q,$G10,'Drop Validation'!$AB:$AB,"Compliant",'Drop Validation'!$G:$G,"In Scope") -> 0
B11: Home | F11: Lawrence Proctor | G11: 33259 | I11: =IFERROR(VLOOKUP($G11,'Technician Summary'!$G$7:$BB$372,2,FALSE),"") ->  | J11: =(IFERROR(_xlfn.XLOOKUP($G11,'Technician Summary'!G:G,'Technician Summary'!I:I),"")) ->  | L11: =IF(G11="","",COUNTIFS('SMS tNPS'!DE:DE,G11,'SMS tNPS'!HB:HB,"Yes")) -> 0 | M11: =IFERROR(IF(G11="","",COUNTIFS('SMS tNPS'!DE:DE,G11,'SMS tNPS'!HB:HB,"Yes"))+COUNTIFS('SMS tNPS'!DE:DE,G11,'SMS tNPS'!HB:HB,"No"),"") -> 0 | O11: =IFERROR(VLOOKUP($G11,'Technician Summary'!$G$7:$BK$372,14,FALSE),"") ->  | P11: =IFERROR(VLOOKUP($G11,'Technician Summary'!$G$7:$BK$372,15,FALSE),"") ->  | R11: =IFERROR(VLOOKUP($G11,'Technician Summary'!$G$7:$BK$372,17,FALSE),"") ->  | S11: =IFERROR(VLOOKUP($G11,'Technician Summary'!$G$7:$BK$372,18,FALSE),"") ->  | U11: =IFERROR(VLOOKUP($G11,'Technician Summary'!$G$7:$BK$372,20,FALSE),"") ->  | V11: =IFERROR(VLOOKUP($G11,'Technician Summary'!$G$7:$BK$372,21,FALSE),"") ->  | X11: =IF($G11="","",SUMIF('SQT Data'!$K:$K,$G11,'SQT Data'!$R:$R)) -> 0 | Y11: =IF($G11="","",SUMIF('SQT Data'!$K:$K,$G11,'SQT Data'!$S:$S)) -> 0 | AA11: =IF($G11="","",SUMIF('SQT Data'!$K:$K,$G11,'SQT Data'!$U:$U)) -> 0 | AB11: =IF($G11="","",SUMIF('SQT Data'!$K:$K,$G11,'SQT Data'!$V:$V)) -> 0 | AD11: =SUMIF('SQT Data'!#REF!,G11,'SQT Data'!#REF!) ->  | AE11: =IFERROR(SUM(AD11/#REF!),"") ->  | AF11: =IFERROR(VLOOKUP($G11,'Technician Summary'!$G$7:$BK$372,7,FALSE),"") ->  | AG11: =IFERROR(VLOOKUP($G11,'Technician Summary'!$G$7:$BK$372,8,FALSE),"") ->  | AI11: =IFERROR(VLOOKUP($G11,'Technician Summary'!$G$7:$BK$372,34,FALSE),"") ->  | AJ11: =IFERROR(VLOOKUP($G11,'Technician Summary'!$G$7:$BK$372,35,FALSE),"") ->  | AL11: =IFERROR(VLOOKUP($G11,'Technician Summary'!$G$7:$BK$372,37,FALSE),"") ->  | AM11: =IFERROR(VLOOKUP($G11,'Technician Summary'!$G$7:$BK$372,38,FALSE),"") ->  | AO11: =COUNTIFS('Drop Validation'!$Q:$Q,$G11,'Drop Validation'!$G:$G,"In Scope") -> 0 | AP11: =COUNTIFS('Drop Validation'!$Q:$Q,$G11,'Drop Validation'!$AB:$AB,"Compliant",'Drop Validation'!$G:$G,"In Scope") -> 0
F12: David Corbitt | G12: 54054 | I12: =IFERROR(VLOOKUP($G12,'Technician Summary'!$G$7:$BB$372,2,FALSE),"") ->  | J12: =(IFERROR(_xlfn.XLOOKUP($G12,'Technician Summary'!G:G,'Technician Summary'!I:I),"")) ->  | L12: =IF(G12="","",COUNTIFS('SMS tNPS'!DE:DE,G12,'SMS tNPS'!HB:HB,"Yes")) -> 0 | M12: =IFERROR(IF(G12="","",COUNTIFS('SMS tNPS'!DE:DE,G12,'SMS tNPS'!HB:HB,"Yes"))+COUNTIFS('SMS tNPS'!DE:DE,G12,'SMS tNPS'!HB:HB,"No"),"") -> 0 | O12: =IFERROR(VLOOKUP($G12,'Technician Summary'!$G$7:$BK$372,14,FALSE),"") ->  | P12: =IFERROR(VLOOKUP($G12,'Technician Summary'!$G$7:$BK$372,15,FALSE),"") ->  | R12: =IFERROR(VLOOKUP($G12,'Technician Summary'!$G$7:$BK$372,17,FALSE),"") ->  | S12: =IFERROR(VLOOKUP($G12,'Technician Summary'!$G$7:$BK$372,18,FALSE),"") ->  | U12: =IFERROR(VLOOKUP($G12,'Technician Summary'!$G$7:$BK$372,20,FALSE),"") ->  | V12: =IFERROR(VLOOKUP($G12,'Technician Summary'!$G$7:$BK$372,21,FALSE),"") ->  | X12: =IF($G12="","",SUMIF('SQT Data'!$K:$K,$G12,'SQT Data'!$R:$R)) -> 0 | Y12: =IF($G12="","",SUMIF('SQT Data'!$K:$K,$G12,'SQT Data'!$S:$S)) -> 0 | AA12: =IF($G12="","",SUMIF('SQT Data'!$K:$K,$G12,'SQT Data'!$U:$U)) -> 0 | AB12: =IF($G12="","",SUMIF('SQT Data'!$K:$K,$G12,'SQT Data'!$V:$V)) -> 0 | AD12: =SUMIF('SQT Data'!#REF!,G12,'SQT Data'!#REF!) ->  | AE12: =IFERROR(SUM(AD12/#REF!),"") ->  | AF12: =IFERROR(VLOOKUP($G12,'Technician Summary'!$G$7:$BK$372,7,FALSE),"") ->  | AG12: =IFERROR(VLOOKUP($G12,'Technician Summary'!$G$7:$BK$372,8,FALSE),"") ->  | AI12: =IFERROR(VLOOKUP($G12,'Technician Summary'!$G$7:$BK$372,34,FALSE),"") ->  | AJ12: =IFERROR(VLOOKUP($G12,'Technician Summary'!$G$7:$BK$372,35,FALSE),"") ->  | AL12: =IFERROR(VLOOKUP($G12,'Technician Summary'!$G$7:$BK$372,37,FALSE),"") ->  | AM12: =IFERROR(VLOOKUP($G12,'Technician Summary'!$G$7:$BK$372,38,FALSE),"") ->  | AO12: =COUNTIFS('Drop Validation'!$Q:$Q,$G12,'Drop Validation'!$G:$G,"In Scope") -> 0 | AP12: =COUNTIFS('Drop Validation'!$Q:$Q,$G12,'Drop Validation'!$AB:$AB,"Compliant",'Drop Validation'!$G:$G,"In Scope") -> 0
B13: Performance Metrics | F13: Eric Moorehead | G13: 62706 | H13: 8.75 | I13: =IFERROR(VLOOKUP($G13,'Technician Summary'!$G$7:$BB$372,2,FALSE),"") -> 0 | J13: =(IFERROR(_xlfn.XLOOKUP($G13,'Technician Summary'!G:G,'Technician Summary'!I:I),"")) -> 0 | L13: =IF(G13="","",COUNTIFS('SMS tNPS'!DE:DE,G13,'SMS tNPS'!HB:HB,"Yes")) -> 5 | M13: =IFERROR(IF(G13="","",COUNTIFS('SMS tNPS'!DE:DE,G13,'SMS tNPS'!HB:HB,"Yes"))+COUNTIFS('SMS tNPS'!DE:DE,G13,'SMS tNPS'!HB:HB,"No"),"") -> 5 | N13: 1 | O13: =IFERROR(VLOOKUP($G13,'Technician Summary'!$G$7:$BK$372,14,FALSE),"") -> 21 | P13: =IFERROR(VLOOKUP($G13,'Technician Summary'!$G$7:$BK$372,15,FALSE),"") -> 1 | Q13: 0.0476 | R13: =IFERROR(VLOOKUP($G13,'Technician Summary'!$G$7:$BK$372,17,FALSE),"") -> 11 | S13: =IFERROR(VLOOKUP($G13,'Technician Summary'!$G$7:$BK$372,18,FALSE),"") -> 0 | T13: 0 | U13: =IFERROR(VLOOKUP($G13,'Technician Summary'!$G$7:$BK$372,20,FALSE),"") -> 10 | V13: =IFERROR(VLOOKUP($G13,'Technician Summary'!$G$7:$BK$372,21,FALSE),"") -> 1 | W13: 0.1 | X13: =IF($G13="","",SUMIF('SQT Data'!$K:$K,$G13,'SQT Data'!$R:$R)) -> 11 | Y13: =IF($G13="","",SUMIF('SQT Data'!$K:$K,$G13,'SQT Data'!$S:$S)) -> 11 | Z13: 1 | AA13: =IF($G13="","",SUMIF('SQT Data'!$K:$K,$G13,'SQT Data'!$U:$U)) -> 84 | AB13: =IF($G13="","",SUMIF('SQT Data'!$K:$K,$G13,'SQT Data'!$V:$V)) -> 68 | AC13: 0.8095 | AD13: =SUMIF('SQT Data'!#REF!,G13,'SQT Data'!#REF!) ->  | AE13: =IFERROR(SUM(AD13/#REF!),"") ->  | AF13: =IFERROR(VLOOKUP($G13,'Technician Summary'!$G$7:$BK$372,7,FALSE),"") -> 10 | AG13: =IFERROR(VLOOKUP($G13,'Technician Summary'!$G$7:$BK$372,8,FALSE),"") -> 0 | AH13: 1 | AI13: =IFERROR(VLOOKUP($G13,'Technician Summary'!$G$7:$BK$372,34,FALSE),"") -> 10 | AJ13: =IFERROR(VLOOKUP($G13,'Technician Summary'!$G$7:$BK$372,35,FALSE),"") -> 1 | AK13: 0.9 | AL13: =IFERROR(VLOOKUP($G13,'Technician Summary'!$G$7:$BK$372,37,FALSE),"") -> 23 | AM13: =IFERROR(VLOOKUP($G13,'Technician Summary'!$G$7:$BK$372,38,FALSE),"") -> 21 | AN13: 0.913 | AO13: =COUNTIFS('Drop Validation'!$Q:$Q,$G13,'Drop Validation'!$G:$G,"In Scope") -> 0 | AP13: =COUNTIFS('Drop Validation'!$Q:$Q,$G13,'Drop Validation'!$AB:$AB,"Compliant",'Drop Validation'!$G:$G,"In Scope") -> 0
B14: Gainesville | F14: Toni Duckworth | G14: 73789 | I14: =IFERROR(VLOOKUP($G14,'Technician Summary'!$G$7:$BB$372,2,FALSE),"") ->  | J14: =(IFERROR(_xlfn.XLOOKUP($G14,'Technician Summary'!G:G,'Technician Summary'!I:I),"")) ->  | L14: =IF(G14="","",COUNTIFS('SMS tNPS'!DE:DE,G14,'SMS tNPS'!HB:HB,"Yes")) -> 0 | M14: =IFERROR(IF(G14="","",COUNTIFS('SMS tNPS'!DE:DE,G14,'SMS tNPS'!HB:HB,"Yes"))+COUNTIFS('SMS tNPS'!DE:DE,G14,'SMS tNPS'!HB:HB,"No"),"") -> 0 | O14: =IFERROR(VLOOKUP($G14,'Technician Summary'!$G$7:$BK$372,14,FALSE),"") ->  | P14: =IFERROR(VLOOKUP($G14,'Technician Summary'!$G$7:$BK$372,15,FALSE),"") ->  | R14: =IFERROR(VLOOKUP($G14,'Technician Summary'!$G$7:$BK$372,17,FALSE),"") ->  | S14: =IFERROR(VLOOKUP($G14,'Technician Summary'!$G$7:$BK$372,18,FALSE),"") ->  | U14: =IFERROR(VLOOKUP($G14,'Technician Summary'!$G$7:$BK$372,20,FALSE),"") ->  | V14: =IFERROR(VLOOKUP($G14,'Technician Summary'!$G$7:$BK$372,21,FALSE),"") ->  | X14: =IF($G14="","",SUMIF('SQT Data'!$K:$K,$G14,'SQT Data'!$R:$R)) -> 0 | Y14: =IF($G14="","",SUMIF('SQT Data'!$K:$K,$G14,'SQT Data'!$S:$S)) -> 0 | AA14: =IF($G14="","",SUMIF('SQT Data'!$K:$K,$G14,'SQT Data'!$U:$U)) -> 0 | AB14: =IF($G14="","",SUMIF('SQT Data'!$K:$K,$G14,'SQT Data'!$V:$V)) -> 0 | AD14: =SUMIF('SQT Data'!#REF!,G14,'SQT Data'!#REF!) ->  | AE14: =IFERROR(SUM(AD14/#REF!),"") ->  | AF14: =IFERROR(VLOOKUP($G14,'Technician Summary'!$G$7:$BK$372,7,FALSE),"") ->  | AG14: =IFERROR(VLOOKUP($G14,'Technician Summary'!$G$7:$BK$372,8,FALSE),"") ->  | AI14: =IFERROR(VLOOKUP($G14,'Technician Summary'!$G$7:$BK$372,34,FALSE),"") ->  | AJ14: =IFERROR(VLOOKUP($G14,'Technician Summary'!$G$7:$BK$372,35,FALSE),"") ->  | AL14: =IFERROR(VLOOKUP($G14,'Technician Summary'!$G$7:$BK$372,37,FALSE),"") ->  | AM14: =IFERROR(VLOOKUP($G14,'Technician Summary'!$G$7:$BK$372,38,FALSE),"") ->  | AO14: =COUNTIFS('Drop Validation'!$Q:$Q,$G14,'Drop Validation'!$G:$G,"In Scope") -> 0 | AP14: =COUNTIFS('Drop Validation'!$Q:$Q,$G14,'Drop Validation'!$AB:$AB,"Compliant",'Drop Validation'!$G:$G,"In Scope") -> 0
B15: Macon | F15: Craig Laraway | G15: 74202 | I15: =IFERROR(VLOOKUP($G15,'Technician Summary'!$G$7:$BB$372,2,FALSE),"") ->  | J15: =(IFERROR(_xlfn.XLOOKUP($G15,'Technician Summary'!G:G,'Technician Summary'!I:I),"")) ->  | L15: =IF(G15="","",COUNTIFS('SMS tNPS'!DE:DE,G15,'SMS tNPS'!HB:HB,"Yes")) -> 0 | M15: =IFERROR(IF(G15="","",COUNTIFS('SMS tNPS'!DE:DE,G15,'SMS tNPS'!HB:HB,"Yes"))+COUNTIFS('SMS tNPS'!DE:DE,G15,'SMS tNPS'!HB:HB,"No"),"") -> 0 | O15: =IFERROR(VLOOKUP($G15,'Technician Summary'!$G$7:$BK$372,14,FALSE),"") ->  | P15: =IFERROR(VLOOKUP($G15,'Technician Summary'!$G$7:$BK$372,15,FALSE),"") ->  | R15: =IFERROR(VLOOKUP($G15,'Technician Summary'!$G$7:$BK$372,17,FALSE),"") ->  | S15: =IFERROR(VLOOKUP($G15,'Technician Summary'!$G$7:$BK$372,18,FALSE),"") ->  | U15: =IFERROR(VLOOKUP($G15,'Technician Summary'!$G$7:$BK$372,20,FALSE),"") ->  | V15: =IFERROR(VLOOKUP($G15,'Technician Summary'!$G$7:$BK$372,21,FALSE),"") ->  | X15: =IF($G15="","",SUMIF('SQT Data'!$K:$K,$G15,'SQT Data'!$R:$R)) -> 0 | Y15: =IF($G15="","",SUMIF('SQT Data'!$K:$K,$G15,'SQT Data'!$S:$S)) -> 0 | AA15: =IF($G15="","",SUMIF('SQT Data'!$K:$K,$G15,'SQT Data'!$U:$U)) -> 0 | AB15: =IF($G15="","",SUMIF('SQT Data'!$K:$K,$G15,'SQT Data'!$V:$V)) -> 0 | AD15: =SUMIF('SQT Data'!#REF!,G15,'SQT Data'!#REF!) ->  | AE15: =IFERROR(SUM(AD15/#REF!),"") ->  | AF15: =IFERROR(VLOOKUP($G15,'Technician Summary'!$G$7:$BK$372,7,FALSE),"") ->  | AG15: =IFERROR(VLOOKUP($G15,'Technician Summary'!$G$7:$BK$372,8,FALSE),"") ->  | AI15: =IFERROR(VLOOKUP($G15,'Technician Summary'!$G$7:$BK$372,34,FALSE),"") ->  | AJ15: =IFERROR(VLOOKUP($G15,'Technician Summary'!$G$7:$BK$372,35,FALSE),"") ->  | AL15: =IFERROR(VLOOKUP($G15,'Technician Summary'!$G$7:$BK$372,37,FALSE),"") ->  | AM15: =IFERROR(VLOOKUP($G15,'Technician Summary'!$G$7:$BK$372,38,FALSE),"") ->  | AO15: =COUNTIFS('Drop Validation'!$Q:$Q,$G15,'Drop Validation'!$G:$G,"In Scope") -> 0 | AP15: =COUNTIFS('Drop Validation'!$Q:$Q,$G15,'Drop Validation'!$AB:$AB,"Compliant",'Drop Validation'!$G:$G,"In Scope") -> 0
B16: Hampton Roads | F16: Opnodo Evanson | G16: 81924 | H16: 10 | I16: =IFERROR(VLOOKUP($G16,'Technician Summary'!$G$7:$BB$372,2,FALSE),"") -> 6 | J16: =(IFERROR(_xlfn.XLOOKUP($G16,'Technician Summary'!G:G,'Technician Summary'!I:I),"")) -> 0 | K16: 1 | L16: =IF(G16="","",COUNTIFS('SMS tNPS'!DE:DE,G16,'SMS tNPS'!HB:HB,"Yes")) -> 7 | M16: =IFERROR(IF(G16="","",COUNTIFS('SMS tNPS'!DE:DE,G16,'SMS tNPS'!HB:HB,"Yes"))+COUNTIFS('SMS tNPS'!DE:DE,G16,'SMS tNPS'!HB:HB,"No"),"") -> 7 | N16: 1 | O16: =IFERROR(VLOOKUP($G16,'Technician Summary'!$G$7:$BK$372,14,FALSE),"") -> 46 | P16: =IFERROR(VLOOKUP($G16,'Technician Summary'!$G$7:$BK$372,15,FALSE),"") -> 2 | Q16: 0.0435 | R16: =IFERROR(VLOOKUP($G16,'Technician Summary'!$G$7:$BK$372,17,FALSE),"") -> 22 | S16: =IFERROR(VLOOKUP($G16,'Technician Summary'!$G$7:$BK$372,18,FALSE),"") -> 2 | T16: 0.0909 | U16: =IFERROR(VLOOKUP($G16,'Technician Summary'!$G$7:$BK$372,20,FALSE),"") -> 24 | V16: =IFERROR(VLOOKUP($G16,'Technician Summary'!$G$7:$BK$372,21,FALSE),"") -> 0 | W16: 0 | X16: =IF($G16="","",SUMIF('SQT Data'!$K:$K,$G16,'SQT Data'!$R:$R)) -> 17 | Y16: =IF($G16="","",SUMIF('SQT Data'!$K:$K,$G16,'SQT Data'!$S:$S)) -> 17 | Z16: 1 | AA16: =IF($G16="","",SUMIF('SQT Data'!$K:$K,$G16,'SQT Data'!$U:$U)) -> 129 | AB16: =IF($G16="","",SUMIF('SQT Data'!$K:$K,$G16,'SQT Data'!$V:$V)) -> 127 | AC16: 0.9845 | AD16: =SUMIF('SQT Data'!#REF!,G16,'SQT Data'!#REF!) ->  | AE16: =IFERROR(SUM(AD16/#REF!),"") ->  | AF16: =IFERROR(VLOOKUP($G16,'Technician Summary'!$G$7:$BK$372,7,FALSE),"") -> 27 | AG16: =IFERROR(VLOOKUP($G16,'Technician Summary'!$G$7:$BK$372,8,FALSE),"") -> 1 | AH16: 0.963 | AI16: =IFERROR(VLOOKUP($G16,'Technician Summary'!$G$7:$BK$372,34,FALSE),"") -> 20 | AJ16: =IFERROR(VLOOKUP($G16,'Technician Summary'!$G$7:$BK$372,35,FALSE),"") -> 0 | AK16: 1 | AL16: =IFERROR(VLOOKUP($G16,'Technician Summary'!$G$7:$BK$372,37,FALSE),"") -> 48 | AM16: =IFERROR(VLOOKUP($G16,'Technician Summary'!$G$7:$BK$372,38,FALSE),"") -> 46 | AN16: 0.9583 | AO16: =COUNTIFS('Drop Validation'!$Q:$Q,$G16,'Drop Validation'!$G:$G,"In Scope") -> 3 | AP16: =COUNTIFS('Drop Validation'!$Q:$Q,$G16,'Drop Validation'!$AB:$AB,"Compliant",'Drop Validation'!$G:$G,"In Scope") -> 1 | AQ16: 0.3333
B17: Roanoke | F17: Christian Whiting | G17: 84103 | I17: =IFERROR(VLOOKUP($G17,'Technician Summary'!$G$7:$BB$372,2,FALSE),"") ->  | J17: =(IFERROR(_xlfn.XLOOKUP($G17,'Technician Summary'!G:G,'Technician Summary'!I:I),"")) ->  | L17: =IF(G17="","",COUNTIFS('SMS tNPS'!DE:DE,G17,'SMS tNPS'!HB:HB,"Yes")) -> 0 | M17: =IFERROR(IF(G17="","",COUNTIFS('SMS tNPS'!DE:DE,G17,'SMS tNPS'!HB:HB,"Yes"))+COUNTIFS('SMS tNPS'!DE:DE,G17,'SMS tNPS'!HB:HB,"No"),"") -> 0 | O17: =IFERROR(VLOOKUP($G17,'Technician Summary'!$G$7:$BK$372,14,FALSE),"") ->  | P17: =IFERROR(VLOOKUP($G17,'Technician Summary'!$G$7:$BK$372,15,FALSE),"") ->  | R17: =IFERROR(VLOOKUP($G17,'Technician Summary'!$G$7:$BK$372,17,FALSE),"") ->  | S17: =IFERROR(VLOOKUP($G17,'Technician Summary'!$G$7:$BK$372,18,FALSE),"") ->  | U17: =IFERROR(VLOOKUP($G17,'Technician Summary'!$G$7:$BK$372,20,FALSE),"") ->  | V17: =IFERROR(VLOOKUP($G17,'Technician Summary'!$G$7:$BK$372,21,FALSE),"") ->  | X17: =IF($G17="","",SUMIF('SQT Data'!$K:$K,$G17,'SQT Data'!$R:$R)) -> 0 | Y17: =IF($G17="","",SUMIF('SQT Data'!$K:$K,$G17,'SQT Data'!$S:$S)) -> 0 | AA17: =IF($G17="","",SUMIF('SQT Data'!$K:$K,$G17,'SQT Data'!$U:$U)) -> 0 | AB17: =IF($G17="","",SUMIF('SQT Data'!$K:$K,$G17,'SQT Data'!$V:$V)) -> 0 | AD17: =SUMIF('SQT Data'!#REF!,G17,'SQT Data'!#REF!) ->  | AE17: =IFERROR(SUM(AD17/#REF!),"") ->  | AF17: =IFERROR(VLOOKUP($G17,'Technician Summary'!$G$7:$BK$372,7,FALSE),"") ->  | AG17: =IFERROR(VLOOKUP($G17,'Technician Summary'!$G$7:$BK$372,8,FALSE),"") ->  | AI17: =IFERROR(VLOOKUP($G17,'Technician Summary'!$G$7:$BK$372,34,FALSE),"") ->  | AJ17: =IFERROR(VLOOKUP($G17,'Technician Summary'!$G$7:$BK$372,35,FALSE),"") ->  | AL17: =IFERROR(VLOOKUP($G17,'Technician Summary'!$G$7:$BK$372,37,FALSE),"") ->  | AM17: =IFERROR(VLOOKUP($G17,'Technician Summary'!$G$7:$BK$372,38,FALSE),"") ->  | AO17: =COUNTIFS('Drop Validation'!$Q:$Q,$G17,'Drop Validation'!$G:$G,"In Scope") -> 0 | AP17: =COUNTIFS('Drop Validation'!$Q:$Q,$G17,'Drop Validation'!$AB:$AB,"Compliant",'Drop Validation'!$G:$G,"In Scope") -> 0
B18: Gulf Coast | F18: Ryhan Tucker | G18: 92855 | H18: 7.5 | I18: =IFERROR(VLOOKUP($G18,'Technician Summary'!$G$7:$BB$372,2,FALSE),"") -> 2 | J18: =(IFERROR(_xlfn.XLOOKUP($G18,'Technician Summary'!G:G,'Technician Summary'!I:I),"")) -> 0 | K18: 1 | L18: =IF(G18="","",COUNTIFS('SMS tNPS'!DE:DE,G18,'SMS tNPS'!HB:HB,"Yes")) -> 4 | M18: =IFERROR(IF(G18="","",COUNTIFS('SMS tNPS'!DE:DE,G18,'SMS tNPS'!HB:HB,"Yes"))+COUNTIFS('SMS tNPS'!DE:DE,G18,'SMS tNPS'!HB:HB,"No"),"") -> 4 | N18: 1 | O18: =IFERROR(VLOOKUP($G18,'Technician Summary'!$G$7:$BK$372,14,FALSE),"") -> 17 | P18: =IFERROR(VLOOKUP($G18,'Technician Summary'!$G$7:$BK$372,15,FALSE),"") -> 0 | Q18: 0 | R18: =IFERROR(VLOOKUP($G18,'Technician Summary'!$G$7:$BK$372,17,FALSE),"") -> 13 | S18: =IFERROR(VLOOKUP($G18,'Technician Summary'!$G$7:$BK$372,18,FALSE),"") -> 0 | T18: 0 | U18: =IFERROR(VLOOKUP($G18,'Technician Summary'!$G$7:$BK$372,20,FALSE),"") -> 4 | V18: =IFERROR(VLOOKUP($G18,'Technician Summary'!$G$7:$BK$372,21,FALSE),"") -> 0 | W18: 0 | X18: =IF($G18="","",SUMIF('SQT Data'!$K:$K,$G18,'SQT Data'!$R:$R)) -> 4 | Y18: =IF($G18="","",SUMIF('SQT Data'!$K:$K,$G18,'SQT Data'!$S:$S)) -> 3 | Z18: 0.75 | AA18: =IF($G18="","",SUMIF('SQT Data'!$K:$K,$G18,'SQT Data'!$U:$U)) -> 24 | AB18: =IF($G18="","",SUMIF('SQT Data'!$K:$K,$G18,'SQT Data'!$V:$V)) -> 22 | AC18: 0.9167 | AD18: =SUMIF('SQT Data'!#REF!,G18,'SQT Data'!#REF!) ->  | AE18: =IFERROR(SUM(AD18/#REF!),"") ->  | AF18: =IFERROR(VLOOKUP($G18,'Technician Summary'!$G$7:$BK$372,7,FALSE),"") -> 13 | AG18: =IFERROR(VLOOKUP($G18,'Technician Summary'!$G$7:$BK$372,8,FALSE),"") -> 0 | AH18: 1 | AI18: =IFERROR(VLOOKUP($G18,'Technician Summary'!$G$7:$BK$372,34,FALSE),"") -> 10 | AJ18: =IFERROR(VLOOKUP($G18,'Technician Summary'!$G$7:$BK$372,35,FALSE),"") -> 0 | AK18: 1 | AL18: =IFERROR(VLOOKUP($G18,'Technician Summary'!$G$7:$BK$372,37,FALSE),"") -> 18 | AM18: =IFERROR(VLOOKUP($G18,'Technician Summary'!$G$7:$BK$372,38,FALSE),"") -> 15 | AN18: 0.8333 | AO18: =COUNTIFS('Drop Validation'!$Q:$Q,$G18,'Drop Validation'!$G:$G,"In Scope") -> 0 | AP18: =COUNTIFS('Drop Validation'!$Q:$Q,$G18,'Drop Validation'!$AB:$AB,"Compliant",'Drop Validation'!$G:$G,"In Scope") -> 0
B19: Oklahoma City | F19: Juan Rivas | G19: 14380 | H19: 7.5 | I19: =IFERROR(VLOOKUP($G19,'Technician Summary'!$G$7:$BB$372,2,FALSE),"") -> 2 | J19: =(IFERROR(_xlfn.XLOOKUP($G19,'Technician Summary'!G:G,'Technician Summary'!I:I),"")) -> 0 | K19: 1 | L19: =IF(G19="","",COUNTIFS('SMS tNPS'!DE:DE,G19,'SMS tNPS'!HB:HB,"Yes")) -> 4 | M19: =IFERROR(IF(G19="","",COUNTIFS('SMS tNPS'!DE:DE,G19,'SMS tNPS'!HB:HB,"Yes"))+COUNTIFS('SMS tNPS'!DE:DE,G19,'SMS tNPS'!HB:HB,"No"),"") -> 4 | N19: 1 | O19: =IFERROR(VLOOKUP($G19,'Technician Summary'!$G$7:$BK$372,14,FALSE),"") -> 27 | P19: =IFERROR(VLOOKUP($G19,'Technician Summary'!$G$7:$BK$372,15,FALSE),"") -> 3 | Q19: 0.1111 | R19: =IFERROR(VLOOKUP($G19,'Technician Summary'!$G$7:$BK$372,17,FALSE),"") -> 11 | S19: =IFERROR(VLOOKUP($G19,'Technician Summary'!$G$7:$BK$372,18,FALSE),"") -> 2 | T19: 0.1818 | U19: =IFERROR(VLOOKUP($G19,'Technician Summary'!$G$7:$BK$372,20,FALSE),"") -> 16 | V19: =IFERROR(VLOOKUP($G19,'Technician Summary'!$G$7:$BK$372,21,FALSE),"") -> 1 | W19: 0.0625 | X19: =IF($G19="","",SUMIF('SQT Data'!$K:$K,$G19,'SQT Data'!$R:$R)) -> 19 | Y19: =IF($G19="","",SUMIF('SQT Data'!$K:$K,$G19,'SQT Data'!$S:$S)) -> 18 | Z19: 0.9474 | AA19: =IF($G19="","",SUMIF('SQT Data'!$K:$K,$G19,'SQT Data'!$U:$U)) -> 144 | AB19: =IF($G19="","",SUMIF('SQT Data'!$K:$K,$G19,'SQT Data'!$V:$V)) -> 125 | AC19: 0.8681 | AD19: =SUMIF('SQT Data'!#REF!,G19,'SQT Data'!#REF!) ->  | AE19: =IFERROR(SUM(AD19/#REF!),"") ->  | AF19: =IFERROR(VLOOKUP($G19,'Technician Summary'!$G$7:$BK$372,7,FALSE),"") -> 15 | AG19: =IFERROR(VLOOKUP($G19,'Technician Summary'!$G$7:$BK$372,8,FALSE),"") -> 2 | AH19: 0.8667 | AI19: =IFERROR(VLOOKUP($G19,'Technician Summary'!$G$7:$BK$372,34,FALSE),"") -> 11 | AJ19: =IFERROR(VLOOKUP($G19,'Technician Summary'!$G$7:$BK$372,35,FALSE),"") -> 0 | AK19: 1 | AL19: =IFERROR(VLOOKUP($G19,'Technician Summary'!$G$7:$BK$372,37,FALSE),"") -> 29 | AM19: =IFERROR(VLOOKUP($G19,'Technician Summary'!$G$7:$BK$372,38,FALSE),"") -> 27 | AN19: 0.931 | AO19: =COUNTIFS('Drop Validation'!$Q:$Q,$G19,'Drop Validation'!$G:$G,"In Scope") -> 4 | AP19: =COUNTIFS('Drop Validation'!$Q:$Q,$G19,'Drop Validation'!$AB:$AB,"Compliant",'Drop Validation'!$G:$G,"In Scope") -> 0 | AQ19: 0
B20: Tech Rankings | F20: Nathan Downs | G20: 17176 | H20: 8.75 | I20: =IFERROR(VLOOKUP($G20,'Technician Summary'!$G$7:$BB$372,2,FALSE),"") -> 7 | J20: =(IFERROR(_xlfn.XLOOKUP($G20,'Technician Summary'!G:G,'Technician Summary'!I:I),"")) -> 0 | K20: 1 | L20: =IF(G20="","",COUNTIFS('SMS tNPS'!DE:DE,G20,'SMS tNPS'!HB:HB,"Yes")) -> 13 | M20: =IFERROR(IF(G20="","",COUNTIFS('SMS tNPS'!DE:DE,G20,'SMS tNPS'!HB:HB,"Yes"))+COUNTIFS('SMS tNPS'!DE:DE,G20,'SMS tNPS'!HB:HB,"No"),"") -> 13 | N20: 1 | O20: =IFERROR(VLOOKUP($G20,'Technician Summary'!$G$7:$BK$372,14,FALSE),"") -> 40 | P20: =IFERROR(VLOOKUP($G20,'Technician Summary'!$G$7:$BK$372,15,FALSE),"") -> 0 | Q20: 0 | R20: =IFERROR(VLOOKUP($G20,'Technician Summary'!$G$7:$BK$372,17,FALSE),"") -> 20 | S20: =IFERROR(VLOOKUP($G20,'Technician Summary'!$G$7:$BK$372,18,FALSE),"") -> 0 | T20: 0 | U20: =IFERROR(VLOOKUP($G20,'Technician Summary'!$G$7:$BK$372,20,FALSE),"") -> 20 | V20: =IFERROR(VLOOKUP($G20,'Technician Summary'!$G$7:$BK$372,21,FALSE),"") -> 0 | W20: 0 | X20: =IF($G20="","",SUMIF('SQT Data'!$K:$K,$G20,'SQT Data'!$R:$R)) -> 19 | Y20: =IF($G20="","",SUMIF('SQT Data'!$K:$K,$G20,'SQT Data'!$S:$S)) -> 19 | Z20: 1 | AA20: =IF($G20="","",SUMIF('SQT Data'!$K:$K,$G20,'SQT Data'!$U:$U)) -> 149 | AB20: =IF($G20="","",SUMIF('SQT Data'!$K:$K,$G20,'SQT Data'!$V:$V)) -> 109 | AC20: 0.7315 | AD20: =SUMIF('SQT Data'!#REF!,G20,'SQT Data'!#REF!) ->  | AE20: =IFERROR(SUM(AD20/#REF!),"") ->  | AF20: =IFERROR(VLOOKUP($G20,'Technician Summary'!$G$7:$BK$372,7,FALSE),"") -> 29 | AG20: =IFERROR(VLOOKUP($G20,'Technician Summary'!$G$7:$BK$372,8,FALSE),"") -> 0 | AH20: 1 | AI20: =IFERROR(VLOOKUP($G20,'Technician Summary'!$G$7:$BK$372,34,FALSE),"") -> 19 | AJ20: =IFERROR(VLOOKUP($G20,'Technician Summary'!$G$7:$BK$372,35,FALSE),"") -> 1 | AK20: 0.9474 | AL20: =IFERROR(VLOOKUP($G20,'Technician Summary'!$G$7:$BK$372,37,FALSE),"") -> 47 | AM20: =IFERROR(VLOOKUP($G20,'Technician Summary'!$G$7:$BK$372,38,FALSE),"") -> 39 | AN20: 0.8298 | AO20: =COUNTIFS('Drop Validation'!$Q:$Q,$G20,'Drop Validation'!$G:$G,"In Scope") -> 1 | AP20: =COUNTIFS('Drop Validation'!$Q:$Q,$G20,'Drop Validation'!$AB:$AB,"Compliant",'Drop Validation'!$G:$G,"In Scope") -> 1 | AQ20: 1
B21: SMS Rankings | F21: Rafael Gomez Helmeyer | G21: 75471 | H21: 6.25 | I21: =IFERROR(VLOOKUP($G21,'Technician Summary'!$G$7:$BB$372,2,FALSE),"") -> 3 | J21: =(IFERROR(_xlfn.XLOOKUP($G21,'Technician Summary'!G:G,'Technician Summary'!I:I),"")) -> 0 | K21: 1 | L21: =IF(G21="","",COUNTIFS('SMS tNPS'!DE:DE,G21,'SMS tNPS'!HB:HB,"Yes")) -> 7 | M21: =IFERROR(IF(G21="","",COUNTIFS('SMS tNPS'!DE:DE,G21,'SMS tNPS'!HB:HB,"Yes"))+COUNTIFS('SMS tNPS'!DE:DE,G21,'SMS tNPS'!HB:HB,"No"),"") -> 9 | N21: 0.7778 | O21: =IFERROR(VLOOKUP($G21,'Technician Summary'!$G$7:$BK$372,14,FALSE),"") -> 34 | P21: =IFERROR(VLOOKUP($G21,'Technician Summary'!$G$7:$BK$372,15,FALSE),"") -> 0 | Q21: 0 | R21: =IFERROR(VLOOKUP($G21,'Technician Summary'!$G$7:$BK$372,17,FALSE),"") -> 17 | S21: =IFERROR(VLOOKUP($G21,'Technician Summary'!$G$7:$BK$372,18,FALSE),"") -> 0 | T21: 0 | U21: =IFERROR(VLOOKUP($G21,'Technician Summary'!$G$7:$BK$372,20,FALSE),"") -> 17 | V21: =IFERROR(VLOOKUP($G21,'Technician Summary'!$G$7:$BK$372,21,FALSE),"") -> 0 | W21: 0 | X21: =IF($G21="","",SUMIF('SQT Data'!$K:$K,$G21,'SQT Data'!$R:$R)) -> 23 | Y21: =IF($G21="","",SUMIF('SQT Data'!$K:$K,$G21,'SQT Data'!$S:$S)) -> 23 | Z21: 1 | AA21: =IF($G21="","",SUMIF('SQT Data'!$K:$K,$G21,'SQT Data'!$U:$U)) -> 181 | AB21: =IF($G21="","",SUMIF('SQT Data'!$K:$K,$G21,'SQT Data'!$V:$V)) -> 166 | AC21: 0.9171 | AD21: =SUMIF('SQT Data'!#REF!,G21,'SQT Data'!#REF!) ->  | AE21: =IFERROR(SUM(AD21/#REF!),"") ->  | AF21: =IFERROR(VLOOKUP($G21,'Technician Summary'!$G$7:$BK$372,7,FALSE),"") -> 25 | AG21: =IFERROR(VLOOKUP($G21,'Technician Summary'!$G$7:$BK$372,8,FALSE),"") -> 0 | AH21: 1 | AI21: =IFERROR(VLOOKUP($G21,'Technician Summary'!$G$7:$BK$372,34,FALSE),"") -> 17 | AJ21: =IFERROR(VLOOKUP($G21,'Technician Summary'!$G$7:$BK$372,35,FALSE),"") -> 1 | AK21: 0.9412 | AL21: =IFERROR(VLOOKUP($G21,'Technician Summary'!$G$7:$BK$372,37,FALSE),"") -> 47 | AM21: =IFERROR(VLOOKUP($G21,'Technician Summary'!$G$7:$BK$372,38,FALSE),"") -> 34 | AN21: 0.7234 | AO21: =COUNTIFS('Drop Validation'!$Q:$Q,$G21,'Drop Validation'!$G:$G,"In Scope") -> 0 | AP21: =COUNTIFS('Drop Validation'!$Q:$Q,$G21,'Drop Validation'!$AB:$AB,"Compliant",'Drop Validation'!$G:$G,"In Scope") -> 0
B22: SQT Comp Rankings | I22: =IFERROR(VLOOKUP($G22,'Technician Summary'!$G$7:$BB$372,2,FALSE),"") ->  | J22: =(IFERROR(_xlfn.XLOOKUP($G22,'Technician Summary'!G:G,'Technician Summary'!I:I),"")) ->  | L22: =IF(G22="","",COUNTIFS('SMS tNPS'!DE:DE,G22,'SMS tNPS'!HB:HB,"Yes")) ->  | M22: =IFERROR(IF(G22="","",COUNTIFS('SMS tNPS'!DE:DE,G22,'SMS tNPS'!HB:HB,"Yes"))+COUNTIFS('SMS tNPS'!DE:DE,G22,'SMS tNPS'!HB:HB,"No"),"") ->  | O22: =IFERROR(VLOOKUP($G22,'Technician Summary'!$G$7:$BK$372,14,FALSE),"") ->  | P22: =IFERROR(VLOOKUP($G22,'Technician Summary'!$G$7:$BK$372,15,FALSE),"") ->  | R22: =IFERROR(VLOOKUP($G22,'Technician Summary'!$G$7:$BK$372,17,FALSE),"") ->  | S22: =IFERROR(VLOOKUP($G22,'Technician Summary'!$G$7:$BK$372,18,FALSE),"") ->  | U22: =IFERROR(VLOOKUP($G22,'Technician Summary'!$G$7:$BK$372,20,FALSE),"") ->  | V22: =IFERROR(VLOOKUP($G22,'Technician Summary'!$G$7:$BK$372,21,FALSE),"") ->  | X22: =IF($G22="","",SUMIF('SQT Data'!$K:$K,$G22,'SQT Data'!$R:$R)) ->  | Y22: =IF($G22="","",SUMIF('SQT Data'!$K:$K,$G22,'SQT Data'!$S:$S)) ->  | AA22: =IF($G22="","",SUMIF('SQT Data'!$K:$K,$G22,'SQT Data'!$U:$U)) ->  | AB22: =IF($G22="","",SUMIF('SQT Data'!$K:$K,$G22,'SQT Data'!$V:$V)) ->  | AD22: =SUMIF('SQT Data'!#REF!,G22,'SQT Data'!#REF!) ->  | AE22: =IFERROR(SUM(AD22/#REF!),"") ->  | AF22: =IFERROR(VLOOKUP($G22,'Technician Summary'!$G$7:$BK$372,7,FALSE),"") ->  | AG22: =IFERROR(VLOOKUP($G22,'Technician Summary'!$G$7:$BK$372,8,FALSE),"") ->  | AI22: =IFERROR(VLOOKUP($G22,'Technician Summary'!$G$7:$BK$372,34,FALSE),"") ->  | AJ22: =IFERROR(VLOOKUP($G22,'Technician Summary'!$G$7:$BK$372,35,FALSE),"") ->  | AL22: =IFERROR(VLOOKUP($G22,'Technician Summary'!$G$7:$BK$372,37,FALSE),"") ->  | AM22: =IFERROR(VLOOKUP($G22,'Technician Summary'!$G$7:$BK$372,38,FALSE),"") ->  | AO22: =COUNTIFS('Drop Validation'!$Q:$Q,$G22,'Drop Validation'!$G:$G,"In Scope") -> 0 | AP22: =COUNTIFS('Drop Validation'!$Q:$Q,$G22,'Drop Validation'!$AB:$AB,"Compliant",'Drop Validation'!$G:$G,"In Scope") -> 0
B23: SQT Pass Rankings | I23: =IFERROR(VLOOKUP($G23,'Technician Summary'!$G$7:$BB$372,2,FALSE),"") ->  | J23: =(IFERROR(_xlfn.XLOOKUP($G23,'Technician Summary'!G:G,'Technician Summary'!I:I),"")) ->  | L23: =IF(G23="","",COUNTIFS('SMS tNPS'!DE:DE,G23,'SMS tNPS'!HB:HB,"Yes")) ->  | M23: =IFERROR(IF(G23="","",COUNTIFS('SMS tNPS'!DE:DE,G23,'SMS tNPS'!HB:HB,"Yes"))+COUNTIFS('SMS tNPS'!DE:DE,G23,'SMS tNPS'!HB:HB,"No"),"") ->  | O23: =IFERROR(VLOOKUP($G23,'Technician Summary'!$G$7:$BK$372,14,FALSE),"") ->  | P23: =IFERROR(VLOOKUP($G23,'Technician Summary'!$G$7:$BK$372,15,FALSE),"") ->  | R23: =IFERROR(VLOOKUP($G23,'Technician Summary'!$G$7:$BK$372,17,FALSE),"") ->  | S23: =IFERROR(VLOOKUP($G23,'Technician Summary'!$G$7:$BK$372,18,FALSE),"") ->  | U23: =IFERROR(VLOOKUP($G23,'Technician Summary'!$G$7:$BK$372,20,FALSE),"") ->  | V23: =IFERROR(VLOOKUP($G23,'Technician Summary'!$G$7:$BK$372,21,FALSE),"") ->  | X23: =IF($G23="","",SUMIF('SQT Data'!$K:$K,$G23,'SQT Data'!$R:$R)) ->  | Y23: =IF($G23="","",SUMIF('SQT Data'!$K:$K,$G23,'SQT Data'!$S:$S)) ->  | AA23: =IF($G23="","",SUMIF('SQT Data'!$K:$K,$G23,'SQT Data'!$U:$U)) ->  | AB23: =IF($G23="","",SUMIF('SQT Data'!$K:$K,$G23,'SQT Data'!$V:$V)) ->  | AD23: =SUMIF('SQT Data'!#REF!,G23,'SQT Data'!#REF!) ->  | AE23: =IFERROR(SUM(AD23/#REF!),"") ->  | AF23: =IFERROR(VLOOKUP($G23,'Technician Summary'!$G$7:$BK$372,7,FALSE),"") ->  | AG23: =IFERROR(VLOOKUP($G23,'Technician Summary'!$G$7:$BK$372,8,FALSE),"") ->  | AI23: =IFERROR(VLOOKUP($G23,'Technician Summary'!$G$7:$BK$372,34,FALSE),"") ->  | AJ23: =IFERROR(VLOOKUP($G23,'Technician Summary'!$G$7:$BK$372,35,FALSE),"") ->  | AL23: =IFERROR(VLOOKUP($G23,'Technician Summary'!$G$7:$BK$372,37,FALSE),"") ->  | AM23: =IFERROR(VLOOKUP($G23,'Technician Summary'!$G$7:$BK$372,38,FALSE),"") ->  | AO23: =COUNTIFS('Drop Validation'!$Q:$Q,$G23,'Drop Validation'!$G:$G,"In Scope") -> 0 | AP23: =COUNTIFS('Drop Validation'!$Q:$Q,$G23,'Drop Validation'!$AB:$AB,"Compliant",'Drop Validation'!$G:$G,"In Scope") -> 0
B24: Repeat Rankings | I24: =IFERROR(VLOOKUP($G24,'Technician Summary'!$G$7:$BB$372,2,FALSE),"") ->  | J24: =(IFERROR(_xlfn.XLOOKUP($G24,'Technician Summary'!G:G,'Technician Summary'!I:I),"")) ->  | L24: =IF(G24="","",COUNTIFS('SMS tNPS'!DE:DE,G24,'SMS tNPS'!HB:HB,"Yes")) ->  | M24: =IFERROR(IF(G24="","",COUNTIFS('SMS tNPS'!DE:DE,G24,'SMS tNPS'!HB:HB,"Yes"))+COUNTIFS('SMS tNPS'!DE:DE,G24,'SMS tNPS'!HB:HB,"No"),"") ->  | O24: =IFERROR(VLOOKUP($G24,'Technician Summary'!$G$7:$BK$372,14,FALSE),"") ->  | P24: =IFERROR(VLOOKUP($G24,'Technician Summary'!$G$7:$BK$372,15,FALSE),"") ->  | R24: =IFERROR(VLOOKUP($G24,'Technician Summary'!$G$7:$BK$372,17,FALSE),"") ->  | S24: =IFERROR(VLOOKUP($G24,'Technician Summary'!$G$7:$BK$372,18,FALSE),"") ->  | U24: =IFERROR(VLOOKUP($G24,'Technician Summary'!$G$7:$BK$372,20,FALSE),"") ->  | V24: =IFERROR(VLOOKUP($G24,'Technician Summary'!$G$7:$BK$372,21,FALSE),"") ->  | X24: =IF($G24="","",SUMIF('SQT Data'!$K:$K,$G24,'SQT Data'!$R:$R)) ->  | Y24: =IF($G24="","",SUMIF('SQT Data'!$K:$K,$G24,'SQT Data'!$S:$S)) ->  | AA24: =IF($G24="","",SUMIF('SQT Data'!$K:$K,$G24,'SQT Data'!$U:$U)) ->  | AB24: =IF($G24="","",SUMIF('SQT Data'!$K:$K,$G24,'SQT Data'!$V:$V)) ->  | AD24: =SUMIF('SQT Data'!#REF!,G24,'SQT Data'!#REF!) ->  | AE24: =IFERROR(SUM(AD24/#REF!),"") ->  | AF24: =IFERROR(VLOOKUP($G24,'Technician Summary'!$G$7:$BK$372,7,FALSE),"") ->  | AG24: =IFERROR(VLOOKUP($G24,'Technician Summary'!$G$7:$BK$372,8,FALSE),"") ->  | AI24: =IFERROR(VLOOKUP($G24,'Technician Summary'!$G$7:$BK$372,34,FALSE),"") ->  | AJ24: =IFERROR(VLOOKUP($G24,'Technician Summary'!$G$7:$BK$372,35,FALSE),"") ->  | AL24: =IFERROR(VLOOKUP($G24,'Technician Summary'!$G$7:$BK$372,37,FALSE),"") ->  | AM24: =IFERROR(VLOOKUP($G24,'Technician Summary'!$G$7:$BK$372,38,FALSE),"") ->  | AO24: =COUNTIFS('Drop Validation'!$Q:$Q,$G24,'Drop Validation'!$G:$G,"In Scope") -> 0 | AP24: =COUNTIFS('Drop Validation'!$Q:$Q,$G24,'Drop Validation'!$AB:$AB,"Compliant",'Drop Validation'!$G:$G,"In Scope") -> 0
I25: =IFERROR(VLOOKUP($G25,'Technician Summary'!$G$7:$BB$372,2,FALSE),"") ->  | J25: =(IFERROR(_xlfn.XLOOKUP($G25,'Technician Summary'!G:G,'Technician Summary'!I:I),"")) ->  | L25: =IF(G25="","",COUNTIFS('SMS tNPS'!DE:DE,G25,'SMS tNPS'!HB:HB,"Yes")) ->  | M25: =IFERROR(IF(G25="","",COUNTIFS('SMS tNPS'!DE:DE,G25,'SMS tNPS'!HB:HB,"Yes"))+COUNTIFS('SMS tNPS'!DE:DE,G25,'SMS tNPS'!HB:HB,"No"),"") ->  | O25: =IFERROR(VLOOKUP($G25,'Technician Summary'!$G$7:$BK$372,14,FALSE),"") ->  | P25: =IFERROR(VLOOKUP($G25,'Technician Summary'!$G$7:$BK$372,15,FALSE),"") ->  | R25: =IFERROR(VLOOKUP($G25,'Technician Summary'!$G$7:$BK$372,17,FALSE),"") ->  | S25: =IFERROR(VLOOKUP($G25,'Technician Summary'!$G$7:$BK$372,18,FALSE),"") ->  | U25: =IFERROR(VLOOKUP($G25,'Technician Summary'!$G$7:$BK$372,20,FALSE),"") ->  | V25: =IFERROR(VLOOKUP($G25,'Technician Summary'!$G$7:$BK$372,21,FALSE),"") ->  | X25: =IF($G25="","",SUMIF('SQT Data'!$K:$K,$G25,'SQT Data'!$R:$R)) ->  | Y25: =IF($G25="","",SUMIF('SQT Data'!$K:$K,$G25,'SQT Data'!$S:$S)) ->  | AA25: =IF($G25="","",SUMIF('SQT Data'!$K:$K,$G25,'SQT Data'!$U:$U)) ->  | AB25: =IF($G25="","",SUMIF('SQT Data'!$K:$K,$G25,'SQT Data'!$V:$V)) ->  | AD25: =SUMIF('SQT Data'!#REF!,G25,'SQT Data'!#REF!) ->  | AE25: =IFERROR(SUM(AD25/#REF!),"") ->  | AF25: =IFERROR(VLOOKUP($G25,'Technician Summary'!$G$7:$BK$372,7,FALSE),"") ->  | AG25: =IFERROR(VLOOKUP($G25,'Technician Summary'!$G$7:$BK$372,8,FALSE),"") ->  | AI25: =IFERROR(VLOOKUP($G25,'Technician Summary'!$G$7:$BK$372,34,FALSE),"") ->  | AJ25: =IFERROR(VLOOKUP($G25,'Technician Summary'!$G$7:$BK$372,35,FALSE),"") ->  | AL25: =IFERROR(VLOOKUP($G25,'Technician Summary'!$G$7:$BK$372,37,FALSE),"") ->  | AM25: =IFERROR(VLOOKUP($G25,'Technician Summary'!$G$7:$BK$372,38,FALSE),"") ->  | AO25: =COUNTIFS('Drop Validation'!$Q:$Q,$G25,'Drop Validation'!$G:$G,"In Scope") -> 0 | AP25: =COUNTIFS('Drop Validation'!$Q:$Q,$G25,'Drop Validation'!$AB:$AB,"Compliant",'Drop Validation'!$G:$G,"In Scope") -> 0
I26: =IFERROR(VLOOKUP($G26,'Technician Summary'!$G$7:$BB$372,2,FALSE),"") ->  | J26: =(IFERROR(_xlfn.XLOOKUP($G26,'Technician Summary'!G:G,'Technician Summary'!I:I),"")) ->  | L26: =IF(G26="","",COUNTIFS('SMS tNPS'!DE:DE,G26,'SMS tNPS'!HB:HB,"Yes")) ->  | M26: =IFERROR(IF(G26="","",COUNTIFS('SMS tNPS'!DE:DE,G26,'SMS tNPS'!HB:HB,"Yes"))+COUNTIFS('SMS tNPS'!DE:DE,G26,'SMS tNPS'!HB:HB,"No"),"") ->  | O26: =IFERROR(VLOOKUP($G26,'Technician Summary'!$G$7:$BK$372,14,FALSE),"") ->  | P26: =IFERROR(VLOOKUP($G26,'Technician Summary'!$G$7:$BK$372,15,FALSE),"") ->  | R26: =IFERROR(VLOOKUP($G26,'Technician Summary'!$G$7:$BK$372,17,FALSE),"") ->  | S26: =IFERROR(VLOOKUP($G26,'Technician Summary'!$G$7:$BK$372,18,FALSE),"") ->  | U26: =IFERROR(VLOOKUP($G26,'Technician Summary'!$G$7:$BK$372,20,FALSE),"") ->  | V26: =IFERROR(VLOOKUP($G26,'Technician Summary'!$G$7:$BK$372,21,FALSE),"") ->  | X26: =IF($G26="","",SUMIF('SQT Data'!$K:$K,$G26,'SQT Data'!$R:$R)) ->  | Y26: =IF($G26="","",SUMIF('SQT Data'!$K:$K,$G26,'SQT Data'!$S:$S)) ->  | AA26: =IF($G26="","",SUMIF('SQT Data'!$K:$K,$G26,'SQT Data'!$U:$U)) ->  | AB26: =IF($G26="","",SUMIF('SQT Data'!$K:$K,$G26,'SQT Data'!$V:$V)) ->  | AD26: =SUMIF('SQT Data'!#REF!,G26,'SQT Data'!#REF!) ->  | AE26: =IFERROR(SUM(AD26/#REF!),"") ->  | AF26: =IFERROR(VLOOKUP($G26,'Technician Summary'!$G$7:$BK$372,7,FALSE),"") ->  | AG26: =IFERROR(VLOOKUP($G26,'Technician Summary'!$G$7:$BK$372,8,FALSE),"") ->  | AI26: =IFERROR(VLOOKUP($G26,'Technician Summary'!$G$7:$BK$372,34,FALSE),"") ->  | AJ26: =IFERROR(VLOOKUP($G26,'Technician Summary'!$G$7:$BK$372,35,FALSE),"") ->  | AL26: =IFERROR(VLOOKUP($G26,'Technician Summary'!$G$7:$BK$372,37,FALSE),"") ->  | AM26: =IFERROR(VLOOKUP($G26,'Technician Summary'!$G$7:$BK$372,38,FALSE),"") ->  | AO26: =COUNTIFS('Drop Validation'!$Q:$Q,$G26,'Drop Validation'!$G:$G,"In Scope") -> 0 | AP26: =COUNTIFS('Drop Validation'!$Q:$Q,$G26,'Drop Validation'!$AB:$AB,"Compliant",'Drop Validation'!$G:$G,"In Scope") -> 0
B27: Raw Data | I27: =IFERROR(VLOOKUP($G27,'Technician Summary'!$G$7:$BB$372,2,FALSE),"") ->  | J27: =(IFERROR(_xlfn.XLOOKUP($G27,'Technician Summary'!G:G,'Technician Summary'!I:I),"")) ->  | L27: =IF(G27="","",COUNTIFS('SMS tNPS'!DE:DE,G27,'SMS tNPS'!HB:HB,"Yes")) ->  | M27: =IFERROR(IF(G27="","",COUNTIFS('SMS tNPS'!DE:DE,G27,'SMS tNPS'!HB:HB,"Yes"))+COUNTIFS('SMS tNPS'!DE:DE,G27,'SMS tNPS'!HB:HB,"No"),"") ->  | O27: =IFERROR(VLOOKUP($G27,'Technician Summary'!$G$7:$BK$372,14,FALSE),"") ->  | P27: =IFERROR(VLOOKUP($G27,'Technician Summary'!$G$7:$BK$372,15,FALSE),"") ->  | R27: =IFERROR(VLOOKUP($G27,'Technician Summary'!$G$7:$BK$372,17,FALSE),"") ->  | S27: =IFERROR(VLOOKUP($G27,'Technician Summary'!$G$7:$BK$372,18,FALSE),"") ->  | U27: =IFERROR(VLOOKUP($G27,'Technician Summary'!$G$7:$BK$372,20,FALSE),"") ->  | V27: =IFERROR(VLOOKUP($G27,'Technician Summary'!$G$7:$BK$372,21,FALSE),"") ->  | X27: =IF($G27="","",SUMIF('SQT Data'!$K:$K,$G27,'SQT Data'!$R:$R)) ->  | Y27: =IF($G27="","",SUMIF('SQT Data'!$K:$K,$G27,'SQT Data'!$S:$S)) ->  | AA27: =IF($G27="","",SUMIF('SQT Data'!$K:$K,$G27,'SQT Data'!$U:$U)) ->  | AB27: =IF($G27="","",SUMIF('SQT Data'!$K:$K,$G27,'SQT Data'!$V:$V)) ->  | AD27: =SUMIF('SQT Data'!#REF!,G27,'SQT Data'!#REF!) ->  | AE27: =IFERROR(SUM(AD27/#REF!),"") ->  | AF27: =IFERROR(VLOOKUP($G27,'Technician Summary'!$G$7:$BK$372,7,FALSE),"") ->  | AG27: =IFERROR(VLOOKUP($G27,'Technician Summary'!$G$7:$BK$372,8,FALSE),"") ->  | AI27: =IFERROR(VLOOKUP($G27,'Technician Summary'!$G$7:$BK$372,34,FALSE),"") ->  | AJ27: =IFERROR(VLOOKUP($G27,'Technician Summary'!$G$7:$BK$372,35,FALSE),"") ->  | AL27: =IFERROR(VLOOKUP($G27,'Technician Summary'!$G$7:$BK$372,37,FALSE),"") ->  | AM27: =IFERROR(VLOOKUP($G27,'Technician Summary'!$G$7:$BK$372,38,FALSE),"") ->  | AO27: =COUNTIFS('Drop Validation'!$Q:$Q,$G27,'Drop Validation'!$G:$G,"In Scope") -> 0 | AP27: =COUNTIFS('Drop Validation'!$Q:$Q,$G27,'Drop Validation'!$AB:$AB,"Compliant",'Drop Validation'!$G:$G,"In Scope") -> 0
I28: =IFERROR(VLOOKUP($G28,'Technician Summary'!$G$7:$BB$372,2,FALSE),"") ->  | J28: =(IFERROR(_xlfn.XLOOKUP($G28,'Technician Summary'!G:G,'Technician Summary'!I:I),"")) ->  | L28: =IF(G28="","",COUNTIFS('SMS tNPS'!DE:DE,G28,'SMS tNPS'!HB:HB,"Yes")) ->  | M28: =IFERROR(IF(G28="","",COUNTIFS('SMS tNPS'!DE:DE,G28,'SMS tNPS'!HB:HB,"Yes"))+COUNTIFS('SMS tNPS'!DE:DE,G28,'SMS tNPS'!HB:HB,"No"),"") ->  | O28: =IFERROR(VLOOKUP($G28,'Technician Summary'!$G$7:$BK$372,14,FALSE),"") ->  | P28: =IFERROR(VLOOKUP($G28,'Technician Summary'!$G$7:$BK$372,15,FALSE),"") ->  | R28: =IFERROR(VLOOKUP($G28,'Technician Summary'!$G$7:$BK$372,17,FALSE),"") ->  | S28: =IFERROR(VLOOKUP($G28,'Technician Summary'!$G$7:$BK$372,18,FALSE),"") ->  | U28: =IFERROR(VLOOKUP($G28,'Technician Summary'!$G$7:$BK$372,20,FALSE),"") ->  | V28: =IFERROR(VLOOKUP($G28,'Technician Summary'!$G$7:$BK$372,21,FALSE),"") ->  | X28: =IF($G28="","",SUMIF('SQT Data'!$K:$K,$G28,'SQT Data'!$R:$R)) ->  | Y28: =IF($G28="","",SUMIF('SQT Data'!$K:$K,$G28,'SQT Data'!$S:$S)) ->  | AA28: =IF($G28="","",SUMIF('SQT Data'!$K:$K,$G28,'SQT Data'!$U:$U)) ->  | AB28: =IF($G28="","",SUMIF('SQT Data'!$K:$K,$G28,'SQT Data'!$V:$V)) ->  | AD28: =SUMIF('SQT Data'!#REF!,G28,'SQT Data'!#REF!) ->  | AE28: =IFERROR(SUM(AD28/#REF!),"") ->  | AF28: =IFERROR(VLOOKUP($G28,'Technician Summary'!$G$7:$BK$372,7,FALSE),"") ->  | AG28: =IFERROR(VLOOKUP($G28,'Technician Summary'!$G$7:$BK$372,8,FALSE),"") ->  | AI28: =IFERROR(VLOOKUP($G28,'Technician Summary'!$G$7:$BK$372,34,FALSE),"") ->  | AJ28: =IFERROR(VLOOKUP($G28,'Technician Summary'!$G$7:$BK$372,35,FALSE),"") ->  | AL28: =IFERROR(VLOOKUP($G28,'Technician Summary'!$G$7:$BK$372,37,FALSE),"") ->  | AM28: =IFERROR(VLOOKUP($G28,'Technician Summary'!$G$7:$BK$372,38,FALSE),"") ->  | AO28: =COUNTIFS('Drop Validation'!$Q:$Q,$G28,'Drop Validation'!$G:$G,"In Scope") -> 0 | AP28: =COUNTIFS('Drop Validation'!$Q:$Q,$G28,'Drop Validation'!$AB:$AB,"Compliant",'Drop Validation'!$G:$G,"In Scope") -> 0
I29: =IFERROR(VLOOKUP($G29,'Technician Summary'!$G$7:$BB$372,2,FALSE),"") ->  | J29: =(IFERROR(_xlfn.XLOOKUP($G29,'Technician Summary'!G:G,'Technician Summary'!I:I),"")) ->  | L29: =IF(G29="","",COUNTIFS('SMS tNPS'!DE:DE,G29,'SMS tNPS'!HB:HB,"Yes")) ->  | M29: =IFERROR(IF(G29="","",COUNTIFS('SMS tNPS'!DE:DE,G29,'SMS tNPS'!HB:HB,"Yes"))+COUNTIFS('SMS tNPS'!DE:DE,G29,'SMS tNPS'!HB:HB,"No"),"") ->  | O29: =IFERROR(VLOOKUP($G29,'Technician Summary'!$G$7:$BK$372,14,FALSE),"") ->  | P29: =IFERROR(VLOOKUP($G29,'Technician Summary'!$G$7:$BK$372,15,FALSE),"") ->  | R29: =IFERROR(VLOOKUP($G29,'Technician Summary'!$G$7:$BK$372,17,FALSE),"") ->  | S29: =IFERROR(VLOOKUP($G29,'Technician Summary'!$G$7:$BK$372,18,FALSE),"") ->  | U29: =IFERROR(VLOOKUP($G29,'Technician Summary'!$G$7:$BK$372,20,FALSE),"") ->  | V29: =IFERROR(VLOOKUP($G29,'Technician Summary'!$G$7:$BK$372,21,FALSE),"") ->  | X29: =IF($G29="","",SUMIF('SQT Data'!$K:$K,$G29,'SQT Data'!$R:$R)) ->  | Y29: =IF($G29="","",SUMIF('SQT Data'!$K:$K,$G29,'SQT Data'!$S:$S)) ->  | AA29: =IF($G29="","",SUMIF('SQT Data'!$K:$K,$G29,'SQT Data'!$U:$U)) ->  | AB29: =IF($G29="","",SUMIF('SQT Data'!$K:$K,$G29,'SQT Data'!$V:$V)) ->  | AD29: =SUMIF('SQT Data'!#REF!,G29,'SQT Data'!#REF!) ->  | AE29: =IFERROR(SUM(AD29/#REF!),"") ->  | AF29: =IFERROR(VLOOKUP($G29,'Technician Summary'!$G$7:$BK$372,7,FALSE),"") ->  | AG29: =IFERROR(VLOOKUP($G29,'Technician Summary'!$G$7:$BK$372,8,FALSE),"") ->  | AI29: =IFERROR(VLOOKUP($G29,'Technician Summary'!$G$7:$BK$372,34,FALSE),"") ->  | AJ29: =IFERROR(VLOOKUP($G29,'Technician Summary'!$G$7:$BK$372,35,FALSE),"") ->  | AL29: =IFERROR(VLOOKUP($G29,'Technician Summary'!$G$7:$BK$372,37,FALSE),"") ->  | AM29: =IFERROR(VLOOKUP($G29,'Technician Summary'!$G$7:$BK$372,38,FALSE),"") ->  | AO29: =COUNTIFS('Drop Validation'!$Q:$Q,$G29,'Drop Validation'!$G:$G,"In Scope") -> 0 | AP29: =COUNTIFS('Drop Validation'!$Q:$Q,$G29,'Drop Validation'!$AB:$AB,"Compliant",'Drop Validation'!$G:$G,"In Scope") -> 0
I30: =IFERROR(VLOOKUP($G30,'Technician Summary'!$G$7:$BB$372,2,FALSE),"") ->  | J30: =(IFERROR(_xlfn.XLOOKUP($G30,'Technician Summary'!G:G,'Technician Summary'!I:I),"")) ->  | L30: =IF(G30="","",COUNTIFS('SMS tNPS'!DE:DE,G30,'SMS tNPS'!HB:HB,"Yes")) ->  | M30: =IFERROR(IF(G30="","",COUNTIFS('SMS tNPS'!DE:DE,G30,'SMS tNPS'!HB:HB,"Yes"))+COUNTIFS('SMS tNPS'!DE:DE,G30,'SMS tNPS'!HB:HB,"No"),"") ->  | O30: =IFERROR(VLOOKUP($G30,'Technician Summary'!$G$7:$BK$372,14,FALSE),"") ->  | P30: =IFERROR(VLOOKUP($G30,'Technician Summary'!$G$7:$BK$372,15,FALSE),"") ->  | R30: =IFERROR(VLOOKUP($G30,'Technician Summary'!$G$7:$BK$372,17,FALSE),"") ->  | S30: =IFERROR(VLOOKUP($G30,'Technician Summary'!$G$7:$BK$372,18,FALSE),"") ->  | U30: =IFERROR(VLOOKUP($G30,'Technician Summary'!$G$7:$BK$372,20,FALSE),"") ->  | V30: =IFERROR(VLOOKUP($G30,'Technician Summary'!$G$7:$BK$372,21,FALSE),"") ->  | X30: =IF($G30="","",SUMIF('SQT Data'!$K:$K,$G30,'SQT Data'!$R:$R)) ->  | Y30: =IF($G30="","",SUMIF('SQT Data'!$K:$K,$G30,'SQT Data'!$S:$S)) ->  | AA30: =IF($G30="","",SUMIF('SQT Data'!$K:$K,$G30,'SQT Data'!$U:$U)) ->  | AB30: =IF($G30="","",SUMIF('SQT Data'!$K:$K,$G30,'SQT Data'!$V:$V)) ->  | AD30: =SUMIF('SQT Data'!#REF!,G30,'SQT Data'!#REF!) ->  | AE30: =IFERROR(SUM(AD30/#REF!),"") ->  | AF30: =IFERROR(VLOOKUP($G30,'Technician Summary'!$G$7:$BK$372,7,FALSE),"") ->  | AG30: =IFERROR(VLOOKUP($G30,'Technician Summary'!$G$7:$BK$372,8,FALSE),"") ->  | AI30: =IFERROR(VLOOKUP($G30,'Technician Summary'!$G$7:$BK$372,34,FALSE),"") ->  | AJ30: =IFERROR(VLOOKUP($G30,'Technician Summary'!$G$7:$BK$372,35,FALSE),"") ->  | AL30: =IFERROR(VLOOKUP($G30,'Technician Summary'!$G$7:$BK$372,37,FALSE),"") ->  | AM30: =IFERROR(VLOOKUP($G30,'Technician Summary'!$G$7:$BK$372,38,FALSE),"") ->  | AO30: =COUNTIFS('Drop Validation'!$Q:$Q,$G30,'Drop Validation'!$G:$G,"In Scope") -> 0 | AP30: =COUNTIFS('Drop Validation'!$Q:$Q,$G30,'Drop Validation'!$AB:$AB,"Compliant",'Drop Validation'!$G:$G,"In Scope") -> 0
I31: =IFERROR(VLOOKUP($G31,'Technician Summary'!$G$7:$BB$372,2,FALSE),"") ->  | J31: =(IFERROR(_xlfn.XLOOKUP($G31,'Technician Summary'!G:G,'Technician Summary'!I:I),"")) ->  | L31: =IF(G31="","",COUNTIFS('SMS tNPS'!DE:DE,G31,'SMS tNPS'!HB:HB,"Yes")) ->  | M31: =IFERROR(IF(G31="","",COUNTIFS('SMS tNPS'!DE:DE,G31,'SMS tNPS'!HB:HB,"Yes"))+COUNTIFS('SMS tNPS'!DE:DE,G31,'SMS tNPS'!HB:HB,"No"),"") ->  | O31: =IFERROR(VLOOKUP($G31,'Technician Summary'!$G$7:$BK$372,14,FALSE),"") ->  | P31: =IFERROR(VLOOKUP($G31,'Technician Summary'!$G$7:$BK$372,15,FALSE),"") ->  | R31: =IFERROR(VLOOKUP($G31,'Technician Summary'!$G$7:$BK$372,17,FALSE),"") ->  | S31: =IFERROR(VLOOKUP($G31,'Technician Summary'!$G$7:$BK$372,18,FALSE),"") ->  | U31: =IFERROR(VLOOKUP($G31,'Technician Summary'!$G$7:$BK$372,20,FALSE),"") ->  | V31: =IFERROR(VLOOKUP($G31,'Technician Summary'!$G$7:$BK$372,21,FALSE),"") ->  | X31: =IF($G31="","",SUMIF('SQT Data'!$K:$K,$G31,'SQT Data'!$R:$R)) ->  | Y31: =IF($G31="","",SUMIF('SQT Data'!$K:$K,$G31,'SQT Data'!$S:$S)) ->  | AA31: =IF($G31="","",SUMIF('SQT Data'!$K:$K,$G31,'SQT Data'!$U:$U)) ->  | AB31: =IF($G31="","",SUMIF('SQT Data'!$K:$K,$G31,'SQT Data'!$V:$V)) ->  | AD31: =SUMIF('SQT Data'!#REF!,G31,'SQT Data'!#REF!) ->  | AE31: =IFERROR(SUM(AD31/#REF!),"") ->  | AF31: =IFERROR(VLOOKUP($G31,'Technician Summary'!$G$7:$BK$372,7,FALSE),"") ->  | AG31: =IFERROR(VLOOKUP($G31,'Technician Summary'!$G$7:$BK$372,8,FALSE),"") ->  | AI31: =IFERROR(VLOOKUP($G31,'Technician Summary'!$G$7:$BK$372,34,FALSE),"") ->  | AJ31: =IFERROR(VLOOKUP($G31,'Technician Summary'!$G$7:$BK$372,35,FALSE),"") ->  | AL31: =IFERROR(VLOOKUP($G31,'Technician Summary'!$G$7:$BK$372,37,FALSE),"") ->  | AM31: =IFERROR(VLOOKUP($G31,'Technician Summary'!$G$7:$BK$372,38,FALSE),"") ->  | AO31: =COUNTIFS('Drop Validation'!$Q:$Q,$G31,'Drop Validation'!$G:$G,"In Scope") -> 0 | AP31: =COUNTIFS('Drop Validation'!$Q:$Q,$G31,'Drop Validation'!$AB:$AB,"Compliant",'Drop Validation'!$G:$G,"In Scope") -> 0
I32: # NPS WO's | J32: # Failures | K32: NPS | L32: SMS Promoter Count | M32: SMS Count | N32: SMS tNPS | O32: Total Repeatable WO | P32: Total Repeats | Q32: Repeats | R32: Total Repeatable WO | S32: Repeat IN | T32: IN Repeat % | U32: Total Repeatable WO | V32: Repeat TC | W32: Repeat TC % | X32: Jobs | Y32: Test Run | Z32: SQT Compliance | AA32: Parameters Tested | AB32: Parameters Passing | AC32: SQT Pass | AD32: Test Passed | AE32: Ingress Test Pass | AF32: FCR WO | AG32: FCR Failures | AH32: FCR | AI32: Jobs | AJ32: Jobs Late | AK32: OTA | AL32: Jobs | AM32: Completed Jobs | AN32: Completion % | AO32: Total Jobs | AP32: Total Valid | AQ32: Drop Validation
I34: =SUMIF(I7:I31,">0") -> 28 | J34: =SUMIF(J7:J31,">0") -> 3 | K34: =IFERROR(1-((J34*2)/I34),"") -> 0.7857 | L34: =SUM(L7:L31) -> 51 | M34: =SUM(M7:M31) -> 54 | N34: =IFERROR(SUM(L34/M34),"") -> 0.9444 | O34: =SUM(O7:O31) -> 260 | P34: =SUM(P7:P31) -> 6 | Q34: =IFERROR(SUM(P34/O34),"") -> 0.0231 | R34: =SUM(R7:R31) -> 132 | S34: =SUM(S7:S31) -> 4 | T34: =IFERROR(SUM(S34/R34),"") -> 0.0303 | U34: =SUM(U7:U31) -> 128 | V34: =SUM(V7:V31) -> 2 | W34: =IFERROR(SUM(V34/U34),"") -> 0.0156 | X34: =SUMIF(X7:X31,">0") -> 144 | Y34: =SUMIF(Y7:Y31,">0") -> 139 | Z34: =IFERROR(SUM(Y34/X34),"") -> 0.9653 | AA34: =SUM(AA7:AA31) -> 1092 | AB34: =SUM(AB7:AB31) -> 980 | AC34: =IFERROR(SUM(AB34/AA34),"") -> 0.8974 | AD34: =SUM(AD7:AD31) ->  | AE34: =IFERROR(SUM(AD34/#REF!),"") ->  | AF34: =SUM(AF7:AF31) -> 159 | AG34: =SUM(AG7:AG31) -> 3 | AH34: =IFERROR(1-AG34/AF34,"") -> 0.9811 | AI34: =SUM(AI7:AI31) -> 115 | AJ34: =SUM(AJ7:AJ31) -> 6 | AK34: =IFERROR(1-AJ34/AI34,"") -> 0.9478 | AL34: =SUM(AL7:AL31) -> 292 | AM34: =SUM(AM7:AM31) -> 248 | AN34: =IFERROR(AM34/AL34,"") -> 0.8493 | AO34: =SUM(AO7:AO31) -> 8 | AP34: =SUM(AP7:AP31) -> 2 | AQ34: =IFERROR(AP34/AO34,"") -> 0.25

Sheet Macon
A1: rand
F3: Deandre McCants
F5: Tech Name | G5: Tech ID | H5: Score | I5: # NPS WO's | J5: # Failures | K5: NPS | L5: SMS Promoter Count | M5: SMS Count | N5: SMS tNPS | O5: Total Repeatable WO | P5: Total Repeats | Q5: Repeats | R5: Total Repeatable WO | S5: Repeat IN | T5: IN Repeat % | U5: Total Repeatable WO | V5: Repeat TC | W5: Repeat TC % | X5: Jobs | Y5: Test Run | Z5: SQT Compliance | AA5: Parameters Tested | AB5: Parameters Passing | AC5: SQT Pass | AD5: Test Passed | AE5: Ingress Test Pass | AF5: FCR WO | AG5: FCR Failures | AH5: FCR | AI5: Jobs | AJ5: Jobs Late | AK5: OTA | AL5: Jobs | AM5: Completed Jobs | AN5: Completion % | AO5: Total Jobs | AP5: Total Valid | AQ5: Drop Validation
F7: Deandre McCants | G7: 90429 | H7: =IF(Z7="","",IFERROR(IF(K7>=68.26%,1.25,0)+IF(Q7<=5.04%,2.5,0)+IF(Z7>=90%,2.5,0)+IF(AK7>=96%,1.25,0)+IF(N7>=90%,2.5,0),"")) ->  | I7: =IFERROR(VLOOKUP($G7,'Technician Summary'!$G$3:$BB$372,2,FALSE),"") ->  | J7: =(IFERROR(_xlfn.XLOOKUP($G7,'Technician Summary'!G:G,'Technician Summary'!I:I),"")) ->  | K7: =IFERROR(1-((J7*2)/I7),"") ->  | L7: =IF(G7="","",COUNTIFS('SMS tNPS'!DE:DE,G7,'SMS tNPS'!HB:HB,"Yes")) -> 0 | M7: =IFERROR(IF(G7="","",COUNTIFS('SMS tNPS'!DE:DE,G7,'SMS tNPS'!HB:HB,"Yes"))+COUNTIFS('SMS tNPS'!DE:DE,G7,'SMS tNPS'!HB:HB,"No"),"") -> 0 | N7: =IFERROR(SUM(L7/M7),"") ->  | O7: =IFERROR(VLOOKUP($G7,'Technician Summary'!$G$8:$BK$372,14,FALSE),"") ->  | P7: =IFERROR(VLOOKUP($G7,'Technician Summary'!$G$8:$BK$372,15,FALSE),"") ->  | Q7: =IFERROR(SUM(P7/O7),"") ->  | R7: =IFERROR(VLOOKUP($G7,'Technician Summary'!$G$7:$BK$372,17,FALSE),"") ->  | S7: =IFERROR(VLOOKUP($G7,'Technician Summary'!$G$7:$BK$372,18,FALSE),"") ->  | T7: =IFERROR(SUM(S7/R7),"") ->  | U7: =IFERROR(VLOOKUP($G7,'Technician Summary'!$G$7:$BK$372,20,FALSE),"") ->  | V7: =IFERROR(VLOOKUP($G7,'Technician Summary'!$G$7:$BK$372,21,FALSE),"") ->  | W7: =IFERROR(SUM(V7/U7),"") ->  | X7: =IF($G7="","",SUMIF('SQT Data'!$K:$K,$G7,'SQT Data'!$R:$R)) -> 0 | Y7: =IF($G7="","",SUMIF('SQT Data'!$K:$K,$G7,'SQT Data'!$S:$S)) -> 0 | Z7: =IFERROR(SUM(Y7/X7),"") ->  | AA7: =IF($G7="","",SUMIF('SQT Data'!$K:$K,$G7,'SQT Data'!$U:$U)) -> 0 | AB7: =IF($G7="","",SUMIF('SQT Data'!$K:$K,$G7,'SQT Data'!$V:$V)) -> 0 | AC7: =IFERROR(SUM(AB7/AA7),"") ->  | AE7: =IFERROR(SUM(AD7/#REF!),"") ->  | AF7: =IFERROR(VLOOKUP($G7,'Technician Summary'!$G$8:$BK$372,7,FALSE),"") ->  | AG7: =IFERROR(VLOOKUP($G7,'Technician Summary'!$G$8:$BK$372,8,FALSE),"") ->  | AH7: =IFERROR(1-AG7/AF7,"") ->  | AI7: =IFERROR(VLOOKUP($G7,'Technician Summary'!$G$8:$BK$372,34,FALSE),"") ->  | AJ7: =IFERROR(VLOOKUP($G7,'Technician Summary'!$G$8:$BK$372,35,FALSE),"") ->  | AK7: =IFERROR(1-AJ7/AI7,"") ->  | AL7: =IFERROR(VLOOKUP($G7,'Technician Summary'!$G$8:$BK$372,37,FALSE),"") ->  | AM7: =IFERROR(VLOOKUP($G7,'Technician Summary'!$G$8:$BK$372,38,FALSE),"") ->  | AN7: =IFERROR(AM7/AL7,"") ->  | AO7: =COUNTIFS('Drop Validation'!$Q:$Q,$G7,'Drop Validation'!$G:$G,"In Scope") -> 0 | AP7: =COUNTIFS('Drop Validation'!$Q:$Q,$G7,'Drop Validation'!$AB:$AB,"Compliant",'Drop Validation'!$G:$G,"In Scope") -> 0 | AQ7: =IFERROR(AP7/AO7,"") -> 
F8: Trey Minter | G8: 41668 | H8: 8.75 | I8: =IFERROR(VLOOKUP($G8,'Technician Summary'!$G$3:$BB$372,2,FALSE),"") -> 0 | J8: =(IFERROR(_xlfn.XLOOKUP($G8,'Technician Summary'!G:G,'Technician Summary'!I:I),"")) -> 0 | K8: =IFERROR(1-((J8*2)/I8),"") ->  | L8: =IF(G8="","",COUNTIFS('SMS tNPS'!DE:DE,G8,'SMS tNPS'!HB:HB,"Yes")) -> 7 | M8: =IFERROR(IF(G8="","",COUNTIFS('SMS tNPS'!DE:DE,G8,'SMS tNPS'!HB:HB,"Yes"))+COUNTIFS('SMS tNPS'!DE:DE,G8,'SMS tNPS'!HB:HB,"No"),"") -> 7 | N8: =IFERROR(SUM(L8/M8),"") -> 1 | O8: =IFERROR(VLOOKUP($G8,'Technician Summary'!$G$8:$BK$372,14,FALSE),"") -> 24 | P8: =IFERROR(VLOOKUP($G8,'Technician Summary'!$G$8:$BK$372,15,FALSE),"") -> 1 | Q8: =IFERROR(SUM(P8/O8),"") -> 0.0417 | R8: =IFERROR(VLOOKUP($G8,'Technician Summary'!$G$7:$BK$372,17,FALSE),"") -> 14 | S8: =IFERROR(VLOOKUP($G8,'Technician Summary'!$G$7:$BK$372,18,FALSE),"") -> 1 | T8: =IFERROR(SUM(S8/R8),"") -> 0.0714 | U8: =IFERROR(VLOOKUP($G8,'Technician Summary'!$G$7:$BK$372,20,FALSE),"") -> 10 | V8: =IFERROR(VLOOKUP($G8,'Technician Summary'!$G$7:$BK$372,21,FALSE),"") -> 0 | W8: =IFERROR(SUM(V8/U8),"") -> 0 | X8: =IF($G8="","",SUMIF('SQT Data'!$K:$K,$G8,'SQT Data'!$R:$R)) -> 16 | Y8: =IF($G8="","",SUMIF('SQT Data'!$K:$K,$G8,'SQT Data'!$S:$S)) -> 16 | Z8: =IFERROR(SUM(Y8/X8),"") -> 1 | AA8: =IF($G8="","",SUMIF('SQT Data'!$K:$K,$G8,'SQT Data'!$U:$U)) -> 128 | AB8: =IF($G8="","",SUMIF('SQT Data'!$K:$K,$G8,'SQT Data'!$V:$V)) -> 97 | AC8: =IFERROR(SUM(AB8/AA8),"") -> 0.7578 | AE8: =IFERROR(SUM(AD8/#REF!),"") ->  | AF8: =IFERROR(VLOOKUP($G8,'Technician Summary'!$G$8:$BK$372,7,FALSE),"") -> 12 | AG8: =IFERROR(VLOOKUP($G8,'Technician Summary'!$G$8:$BK$372,8,FALSE),"") -> 1 | AH8: =IFERROR(1-AG8/AF8,"") -> 0.9167 | AI8: =IFERROR(VLOOKUP($G8,'Technician Summary'!$G$8:$BK$372,34,FALSE),"") -> 14 | AJ8: =IFERROR(VLOOKUP($G8,'Technician Summary'!$G$8:$BK$372,35,FALSE),"") -> 1 | AK8: =IFERROR(1-AJ8/AI8,"") -> 0.9286 | AL8: =IFERROR(VLOOKUP($G8,'Technician Summary'!$G$8:$BK$372,37,FALSE),"") -> 30 | AM8: =IFERROR(VLOOKUP($G8,'Technician Summary'!$G$8:$BK$372,38,FALSE),"") -> 24 | AN8: =IFERROR(AM8/AL8,"") -> 0.8 | AO8: =COUNTIFS('Drop Validation'!$Q:$Q,$G8,'Drop Validation'!$G:$G,"In Scope") -> 0 | AP8: =COUNTIFS('Drop Validation'!$Q:$Q,$G8,'Drop Validation'!$AB:$AB,"Compliant",'Drop Validation'!$G:$G,"In Scope") -> 0 | AQ8: =IFERROR(AP8/AO8,"") -> 
F9: Courtney Mann | G9: 74521 | H9: 10 | I9: =IFERROR(VLOOKUP($G9,'Technician Summary'!$G$3:$BB$372,2,FALSE),"") -> 0 | J9: =(IFERROR(_xlfn.XLOOKUP($G9,'Technician Summary'!G:G,'Technician Summary'!I:I),"")) -> 0 | L9: =IF(G9="","",COUNTIFS('SMS tNPS'!DE:DE,G9,'SMS tNPS'!HB:HB,"Yes")) -> 9 | M9: =IFERROR(IF(G9="","",COUNTIFS('SMS tNPS'!DE:DE,G9,'SMS tNPS'!HB:HB,"Yes"))+COUNTIFS('SMS tNPS'!DE:DE,G9,'SMS tNPS'!HB:HB,"No"),"") -> 10 | N9: 0.9 | O9: =IFERROR(VLOOKUP($G9,'Technician Summary'!$G$8:$BK$372,14,FALSE),"") -> 36 | P9: =IFERROR(VLOOKUP($G9,'Technician Summary'!$G$8:$BK$372,15,FALSE),"") -> 1 | Q9: 0.0278 | R9: =IFERROR(VLOOKUP($G9,'Technician Summary'!$G$7:$BK$372,17,FALSE),"") -> 18 | S9: =IFERROR(VLOOKUP($G9,'Technician Summary'!$G$7:$BK$372,18,FALSE),"") -> 1 | T9: 0.0556 | U9: =IFERROR(VLOOKUP($G9,'Technician Summary'!$G$7:$BK$372,20,FALSE),"") -> 18 | V9: =IFERROR(VLOOKUP($G9,'Technician Summary'!$G$7:$BK$372,21,FALSE),"") -> 0 | W9: 0 | X9: =IF($G9="","",SUMIF('SQT Data'!$K:$K,$G9,'SQT Data'!$R:$R)) -> 12 | Y9: =IF($G9="","",SUMIF('SQT Data'!$K:$K,$G9,'SQT Data'!$S:$S)) -> 11 | Z9: 0.9167 | AA9: =IF($G9="","",SUMIF('SQT Data'!$K:$K,$G9,'SQT Data'!$U:$U)) -> 88 | AB9: =IF($G9="","",SUMIF('SQT Data'!$K:$K,$G9,'SQT Data'!$V:$V)) -> 80 | AC9: 0.9091 | AE9: =IFERROR(SUM(AD9/#REF!),"") ->  | AF9: =IFERROR(VLOOKUP($G9,'Technician Summary'!$G$8:$BK$372,7,FALSE),"") -> 19 | AG9: =IFERROR(VLOOKUP($G9,'Technician Summary'!$G$8:$BK$372,8,FALSE),"") -> 1 | AH9: 0.9474 | AI9: =IFERROR(VLOOKUP($G9,'Technician Summary'!$G$8:$BK$372,34,FALSE),"") -> 17 | AJ9: =IFERROR(VLOOKUP($G9,'Technician Summary'!$G$8:$BK$372,35,FALSE),"") -> 0 | AK9: 1 | AL9: =IFERROR(VLOOKUP($G9,'Technician Summary'!$G$8:$BK$372,37,FALSE),"") -> 40 | AM9: =IFERROR(VLOOKUP($G9,'Technician Summary'!$G$8:$BK$372,38,FALSE),"") -> 36 | AN9: 0.9 | AO9: =COUNTIFS('Drop Validation'!$Q:$Q,$G9,'Drop Validation'!$G:$G,"In Scope") -> 2 | AP9: =COUNTIFS('Drop Validation'!$Q:$Q,$G9,'Drop Validation'!$AB:$AB,"Compliant",'Drop Validation'!$G:$G,"In Scope") -> 0 | AQ9: 0
F10: Deandre McCants | G10: 47454 | I10: =IFERROR(VLOOKUP($G10,'Technician Summary'!$G$3:$BB$372,2,FALSE),"") ->  | J10: =(IFERROR(_xlfn.XLOOKUP($G10,'Technician Summary'!G:G,'Technician Summary'!I:I),"")) ->  | L10: =IF(G10="","",COUNTIFS('SMS tNPS'!DE:DE,G10,'SMS tNPS'!HB:HB,"Yes")) -> 0 | M10: =IFERROR(IF(G10="","",COUNTIFS('SMS tNPS'!DE:DE,G10,'SMS tNPS'!HB:HB,"Yes"))+COUNTIFS('SMS tNPS'!DE:DE,G10,'SMS tNPS'!HB:HB,"No"),"") -> 0 | O10: =IFERROR(VLOOKUP($G10,'Technician Summary'!$G$8:$BK$372,14,FALSE),"") ->  | P10: =IFERROR(VLOOKUP($G10,'Technician Summary'!$G$8:$BK$372,15,FALSE),"") ->  | R10: =IFERROR(VLOOKUP($G10,'Technician Summary'!$G$7:$BK$372,17,FALSE),"") ->  | S10: =IFERROR(VLOOKUP($G10,'Technician Summary'!$G$7:$BK$372,18,FALSE),"") ->  | U10: =IFERROR(VLOOKUP($G10,'Technician Summary'!$G$7:$BK$372,20,FALSE),"") ->  | V10: =IFERROR(VLOOKUP($G10,'Technician Summary'!$G$7:$BK$372,21,FALSE),"") ->  | X10: =IF($G10="","",SUMIF('SQT Data'!$K:$K,$G10,'SQT Data'!$R:$R)) -> 0 | Y10: =IF($G10="","",SUMIF('SQT Data'!$K:$K,$G10,'SQT Data'!$S:$S)) -> 0 | AA10: =IF($G10="","",SUMIF('SQT Data'!$K:$K,$G10,'SQT Data'!$U:$U)) -> 0 | AB10: =IF($G10="","",SUMIF('SQT Data'!$K:$K,$G10,'SQT Data'!$V:$V)) -> 0 | AE10: =IFERROR(SUM(AD10/#REF!),"") ->  | AF10: =IFERROR(VLOOKUP($G10,'Technician Summary'!$G$8:$BK$372,7,FALSE),"") ->  | AG10: =IFERROR(VLOOKUP($G10,'Technician Summary'!$G$8:$BK$372,8,FALSE),"") ->  | AI10: =IFERROR(VLOOKUP($G10,'Technician Summary'!$G$8:$BK$372,34,FALSE),"") ->  | AJ10: =IFERROR(VLOOKUP($G10,'Technician Summary'!$G$8:$BK$372,35,FALSE),"") ->  | AL10: =IFERROR(VLOOKUP($G10,'Technician Summary'!$G$8:$BK$372,37,FALSE),"") ->  | AM10: =IFERROR(VLOOKUP($G10,'Technician Summary'!$G$8:$BK$372,38,FALSE),"") ->  | AO10: =COUNTIFS('Drop Validation'!$Q:$Q,$G10,'Drop Validation'!$G:$G,"In Scope") -> 0 | AP10: =COUNTIFS('Drop Validation'!$Q:$Q,$G10,'Drop Validation'!$AB:$AB,"Compliant",'Drop Validation'!$G:$G,"In Scope") -> 0
B11: Home | F11: Rashad Code | G11: 81303 | H11: 2.5 | I11: =IFERROR(VLOOKUP($G11,'Technician Summary'!$G$3:$BB$372,2,FALSE),"") -> 2 | J11: =(IFERROR(_xlfn.XLOOKUP($G11,'Technician Summary'!G:G,'Technician Summary'!I:I),"")) -> 0 | K11: 1 | L11: =IF(G11="","",COUNTIFS('SMS tNPS'!DE:DE,G11,'SMS tNPS'!HB:HB,"Yes")) -> 7 | M11: =IFERROR(IF(G11="","",COUNTIFS('SMS tNPS'!DE:DE,G11,'SMS tNPS'!HB:HB,"Yes"))+COUNTIFS('SMS tNPS'!DE:DE,G11,'SMS tNPS'!HB:HB,"No"),"") -> 9 | N11: 0.7778 | O11: =IFERROR(VLOOKUP($G11,'Technician Summary'!$G$8:$BK$372,14,FALSE),"") -> 42 | P11: =IFERROR(VLOOKUP($G11,'Technician Summary'!$G$8:$BK$372,15,FALSE),"") -> 4 | Q11: 0.0952 | R11: =IFERROR(VLOOKUP($G11,'Technician Summary'!$G$7:$BK$372,17,FALSE),"") -> 16 | S11: =IFERROR(VLOOKUP($G11,'Technician Summary'!$G$7:$BK$372,18,FALSE),"") -> 1 | T11: 0.0625 | U11: =IFERROR(VLOOKUP($G11,'Technician Summary'!$G$7:$BK$372,20,FALSE),"") -> 26 | V11: =IFERROR(VLOOKUP($G11,'Technician Summary'!$G$7:$BK$372,21,FALSE),"") -> 3 | W11: 0.1154 | X11: =IF($G11="","",SUMIF('SQT Data'!$K:$K,$G11,'SQT Data'!$R:$R)) -> 26 | Y11: =IF($G11="","",SUMIF('SQT Data'!$K:$K,$G11,'SQT Data'!$S:$S)) -> 23 | Z11: 0.8846 | AA11: =IF($G11="","",SUMIF('SQT Data'!$K:$K,$G11,'SQT Data'!$U:$U)) -> 181 | AB11: =IF($G11="","",SUMIF('SQT Data'!$K:$K,$G11,'SQT Data'!$V:$V)) -> 171 | AC11: 0.9448 | AE11: =IFERROR(SUM(AD11/#REF!),"") ->  | AF11: =IFERROR(VLOOKUP($G11,'Technician Summary'!$G$8:$BK$372,7,FALSE),"") -> 20 | AG11: =IFERROR(VLOOKUP($G11,'Technician Summary'!$G$8:$BK$372,8,FALSE),"") -> 1 | AH11: 0.95 | AI11: =IFERROR(VLOOKUP($G11,'Technician Summary'!$G$8:$BK$372,34,FALSE),"") -> 15 | AJ11: =IFERROR(VLOOKUP($G11,'Technician Summary'!$G$8:$BK$372,35,FALSE),"") -> 0 | AK11: 1 | AL11: =IFERROR(VLOOKUP($G11,'Technician Summary'!$G$8:$BK$372,37,FALSE),"") -> 54 | AM11: =IFERROR(VLOOKUP($G11,'Technician Summary'!$G$8:$BK$372,38,FALSE),"") -> 42 | AN11: 0.7778 | AO11: =COUNTIFS('Drop Validation'!$Q:$Q,$G11,'Drop Validation'!$G:$G,"In Scope") -> 6 | AP11: =COUNTIFS('Drop Validation'!$Q:$Q,$G11,'Drop Validation'!$AB:$AB,"Compliant",'Drop Validation'!$G:$G,"In Scope") -> 4 | AQ11: 0.6667
F12: Keary Jones | G12: 39168 | I12: =IFERROR(VLOOKUP($G12,'Technician Summary'!$G$3:$BB$372,2,FALSE),"") ->  | J12: =(IFERROR(_xlfn.XLOOKUP($G12,'Technician Summary'!G:G,'Technician Summary'!I:I),"")) ->  | L12: =IF(G12="","",COUNTIFS('SMS tNPS'!DE:DE,G12,'SMS tNPS'!HB:HB,"Yes")) -> 0 | M12: =IFERROR(IF(G12="","",COUNTIFS('SMS tNPS'!DE:DE,G12,'SMS tNPS'!HB:HB,"Yes"))+COUNTIFS('SMS tNPS'!DE:DE,G12,'SMS tNPS'!HB:HB,"No"),"") -> 0 | O12: =IFERROR(VLOOKUP($G12,'Technician Summary'!$G$8:$BK$372,14,FALSE),"") ->  | P12: =IFERROR(VLOOKUP($G12,'Technician Summary'!$G$8:$BK$372,15,FALSE),"") ->  | R12: =IFERROR(VLOOKUP($G12,'Technician Summary'!$G$7:$BK$372,17,FALSE),"") ->  | S12: =IFERROR(VLOOKUP($G12,'Technician Summary'!$G$7:$BK$372,18,FALSE),"") ->  | U12: =IFERROR(VLOOKUP($G12,'Technician Summary'!$G$7:$BK$372,20,FALSE),"") ->  | V12: =IFERROR(VLOOKUP($G12,'Technician Summary'!$G$7:$BK$372,21,FALSE),"") ->  | X12: =IF($G12="","",SUMIF('SQT Data'!$K:$K,$G12,'SQT Data'!$R:$R)) -> 0 | Y12: =IF($G12="","",SUMIF('SQT Data'!$K:$K,$G12,'SQT Data'!$S:$S)) -> 0 | AA12: =IF($G12="","",SUMIF('SQT Data'!$K:$K,$G12,'SQT Data'!$U:$U)) -> 0 | AB12: =IF($G12="","",SUMIF('SQT Data'!$K:$K,$G12,'SQT Data'!$V:$V)) -> 0 | AE12: =IFERROR(SUM(AD12/#REF!),"") ->  | AF12: =IFERROR(VLOOKUP($G12,'Technician Summary'!$G$8:$BK$372,7,FALSE),"") ->  | AG12: =IFERROR(VLOOKUP($G12,'Technician Summary'!$G$8:$BK$372,8,FALSE),"") ->  | AI12: =IFERROR(VLOOKUP($G12,'Technician Summary'!$G$8:$BK$372,34,FALSE),"") ->  | AJ12: =IFERROR(VLOOKUP($G12,'Technician Summary'!$G$8:$BK$372,35,FALSE),"") ->  | AL12: =IFERROR(VLOOKUP($G12,'Technician Summary'!$G$8:$BK$372,37,FALSE),"") ->  | AM12: =IFERROR(VLOOKUP($G12,'Technician Summary'!$G$8:$BK$372,38,FALSE),"") ->  | AO12: =COUNTIFS('Drop Validation'!$Q:$Q,$G12,'Drop Validation'!$G:$G,"In Scope") -> 0 | AP12: =COUNTIFS('Drop Validation'!$Q:$Q,$G12,'Drop Validation'!$AB:$AB,"Compliant",'Drop Validation'!$G:$G,"In Scope") -> 0
B13: Performance Metrics | F13: Rakeem Smith | G13: 56900 | H13: 8.75 | I13: =IFERROR(VLOOKUP($G13,'Technician Summary'!$G$3:$BB$372,2,FALSE),"") -> 0 | J13: =(IFERROR(_xlfn.XLOOKUP($G13,'Technician Summary'!G:G,'Technician Summary'!I:I),"")) -> 0 | L13: =IF(G13="","",COUNTIFS('SMS tNPS'!DE:DE,G13,'SMS tNPS'!HB:HB,"Yes")) -> 3 | M13: =IFERROR(IF(G13="","",COUNTIFS('SMS tNPS'!DE:DE,G13,'SMS tNPS'!HB:HB,"Yes"))+COUNTIFS('SMS tNPS'!DE:DE,G13,'SMS tNPS'!HB:HB,"No"),"") -> 3 | N13: 1 | O13: =IFERROR(VLOOKUP($G13,'Technician Summary'!$G$8:$BK$372,14,FALSE),"") -> 19 | P13: =IFERROR(VLOOKUP($G13,'Technician Summary'!$G$8:$BK$372,15,FALSE),"") -> 0 | Q13: 0 | R13: =IFERROR(VLOOKUP($G13,'Technician Summary'!$G$7:$BK$372,17,FALSE),"") -> 8 | S13: =IFERROR(VLOOKUP($G13,'Technician Summary'!$G$7:$BK$372,18,FALSE),"") -> 0 | T13: 0 | U13: =IFERROR(VLOOKUP($G13,'Technician Summary'!$G$7:$BK$372,20,FALSE),"") -> 11 | V13: =IFERROR(VLOOKUP($G13,'Technician Summary'!$G$7:$BK$372,21,FALSE),"") -> 0 | W13: 0 | X13: =IF($G13="","",SUMIF('SQT Data'!$K:$K,$G13,'SQT Data'!$R:$R)) -> 13 | Y13: =IF($G13="","",SUMIF('SQT Data'!$K:$K,$G13,'SQT Data'!$S:$S)) -> 12 | Z13: 0.9231 | AA13: =IF($G13="","",SUMIF('SQT Data'!$K:$K,$G13,'SQT Data'!$U:$U)) -> 96 | AB13: =IF($G13="","",SUMIF('SQT Data'!$K:$K,$G13,'SQT Data'!$V:$V)) -> 85 | AC13: 0.8854 | AE13: =IFERROR(SUM(AD13/#REF!),"") ->  | AF13: =IFERROR(VLOOKUP($G13,'Technician Summary'!$G$8:$BK$372,7,FALSE),"") -> 9 | AG13: =IFERROR(VLOOKUP($G13,'Technician Summary'!$G$8:$BK$372,8,FALSE),"") -> 0 | AH13: 1 | AI13: =IFERROR(VLOOKUP($G13,'Technician Summary'!$G$8:$BK$372,34,FALSE),"") -> 8 | AJ13: =IFERROR(VLOOKUP($G13,'Technician Summary'!$G$8:$BK$372,35,FALSE),"") -> 1 | AK13: 0.875 | AL13: =IFERROR(VLOOKUP($G13,'Technician Summary'!$G$8:$BK$372,37,FALSE),"") -> 22 | AM13: =IFERROR(VLOOKUP($G13,'Technician Summary'!$G$8:$BK$372,38,FALSE),"") -> 19 | AN13: 0.8636 | AO13: =COUNTIFS('Drop Validation'!$Q:$Q,$G13,'Drop Validation'!$G:$G,"In Scope") -> 0 | AP13: =COUNTIFS('Drop Validation'!$Q:$Q,$G13,'Drop Validation'!$AB:$AB,"Compliant",'Drop Validation'!$G:$G,"In Scope") -> 0
B14: Gainesville | I14: =IFERROR(VLOOKUP($G14,'Technician Summary'!$G$3:$BB$372,2,FALSE),"") ->  | J14: =(IFERROR(_xlfn.XLOOKUP($G14,'Technician Summary'!G:G,'Technician Summary'!I:I),"")) ->  | L14: =IF(G14="","",COUNTIFS('SMS tNPS'!DE:DE,G14,'SMS tNPS'!HB:HB,"Yes")) ->  | M14: =IFERROR(IF(G14="","",COUNTIFS('SMS tNPS'!DE:DE,G14,'SMS tNPS'!HB:HB,"Yes"))+COUNTIFS('SMS tNPS'!DE:DE,G14,'SMS tNPS'!HB:HB,"No"),"") ->  | O14: =IFERROR(VLOOKUP($G14,'Technician Summary'!$G$8:$BK$372,14,FALSE),"") ->  | P14: =IFERROR(VLOOKUP($G14,'Technician Summary'!$G$8:$BK$372,15,FALSE),"") ->  | R14: =IFERROR(VLOOKUP($G14,'Technician Summary'!$G$7:$BK$372,17,FALSE),"") ->  | S14: =IFERROR(VLOOKUP($G14,'Technician Summary'!$G$7:$BK$372,18,FALSE),"") ->  | U14: =IFERROR(VLOOKUP($G14,'Technician Summary'!$G$7:$BK$372,20,FALSE),"") ->  | V14: =IFERROR(VLOOKUP($G14,'Technician Summary'!$G$7:$BK$372,21,FALSE),"") ->  | X14: =IF($G14="","",SUMIF('SQT Data'!$K:$K,$G14,'SQT Data'!$R:$R)) ->  | Y14: =IF($G14="","",SUMIF('SQT Data'!$K:$K,$G14,'SQT Data'!$S:$S)) ->  | AA14: =IF($G14="","",SUMIF('SQT Data'!$K:$K,$G14,'SQT Data'!$U:$U)) ->  | AB14: =IF($G14="","",SUMIF('SQT Data'!$K:$K,$G14,'SQT Data'!$V:$V)) ->  | AE14: =IFERROR(SUM(AD14/#REF!),"") ->  | AF14: =IFERROR(VLOOKUP($G14,'Technician Summary'!$G$8:$BK$372,7,FALSE),"") ->  | AG14: =IFERROR(VLOOKUP($G14,'Technician Summary'!$G$8:$BK$372,8,FALSE),"") ->  | AI14: =IFERROR(VLOOKUP($G14,'Technician Summary'!$G$8:$BK$372,34,FALSE),"") ->  | AJ14: =IFERROR(VLOOKUP($G14,'Technician Summary'!$G$8:$BK$372,35,FALSE),"") ->  | AL14: =IFERROR(VLOOKUP($G14,'Technician Summary'!$G$8:$BK$372,37,FALSE),"") ->  | AM14: =IFERROR(VLOOKUP($G14,'Technician Summary'!$G$8:$BK$372,38,FALSE),"") ->  | AO14: =COUNTIFS('Drop Validation'!$Q:$Q,$G14,'Drop Validation'!$G:$G,"In Scope") -> 0 | AP14: =COUNTIFS('Drop Validation'!$Q:$Q,$G14,'Drop Validation'!$AB:$AB,"Compliant",'Drop Validation'!$G:$G,"In Scope") -> 0
B15: Macon | I15: =IFERROR(VLOOKUP($G15,'Technician Summary'!$G$3:$BB$372,2,FALSE),"") ->  | J15: =(IFERROR(_xlfn.XLOOKUP($G15,'Technician Summary'!G:G,'Technician Summary'!I:I),"")) ->  | L15: =IF(G15="","",COUNTIFS('SMS tNPS'!DE:DE,G15,'SMS tNPS'!HB:HB,"Yes")) ->  | M15: =IFERROR(IF(G15="","",COUNTIFS('SMS tNPS'!DE:DE,G15,'SMS tNPS'!HB:HB,"Yes"))+COUNTIFS('SMS tNPS'!DE:DE,G15,'SMS tNPS'!HB:HB,"No"),"") ->  | O15: =IFERROR(VLOOKUP($G15,'Technician Summary'!$G$8:$BK$372,14,FALSE),"") ->  | P15: =IFERROR(VLOOKUP($G15,'Technician Summary'!$G$8:$BK$372,15,FALSE),"") ->  | R15: =IFERROR(VLOOKUP($G15,'Technician Summary'!$G$7:$BK$372,17,FALSE),"") ->  | S15: =IFERROR(VLOOKUP($G15,'Technician Summary'!$G$7:$BK$372,18,FALSE),"") ->  | U15: =IFERROR(VLOOKUP($G15,'Technician Summary'!$G$7:$BK$372,20,FALSE),"") ->  | V15: =IFERROR(VLOOKUP($G15,'Technician Summary'!$G$7:$BK$372,21,FALSE),"") ->  | X15: =IF($G15="","",SUMIF('SQT Data'!$K:$K,$G15,'SQT Data'!$R:$R)) ->  | Y15: =IF($G15="","",SUMIF('SQT Data'!$K:$K,$G15,'SQT Data'!$S:$S)) ->  | AA15: =IF($G15="","",SUMIF('SQT Data'!$K:$K,$G15,'SQT Data'!$U:$U)) ->  | AB15: =IF($G15="","",SUMIF('SQT Data'!$K:$K,$G15,'SQT Data'!$V:$V)) ->  | AE15: =IFERROR(SUM(AD15/#REF!),"") ->  | AF15: =IFERROR(VLOOKUP($G15,'Technician Summary'!$G$8:$BK$372,7,FALSE),"") ->  | AG15: =IFERROR(VLOOKUP($G15,'Technician Summary'!$G$8:$BK$372,8,FALSE),"") ->  | AI15: =IFERROR(VLOOKUP($G15,'Technician Summary'!$G$8:$BK$372,34,FALSE),"") ->  | AJ15: =IFERROR(VLOOKUP($G15,'Technician Summary'!$G$8:$BK$372,35,FALSE),"") ->  | AL15: =IFERROR(VLOOKUP($G15,'Technician Summary'!$G$8:$BK$372,37,FALSE),"") ->  | AM15: =IFERROR(VLOOKUP($G15,'Technician Summary'!$G$8:$BK$372,38,FALSE),"") ->  | AO15: =COUNTIFS('Drop Validation'!$Q:$Q,$G15,'Drop Validation'!$G:$G,"In Scope") -> 0 | AP15: =COUNTIFS('Drop Validation'!$Q:$Q,$G15,'Drop Validation'!$AB:$AB,"Compliant",'Drop Validation'!$G:$G,"In Scope") -> 0
B16: Hampton Roads | I16: =IFERROR(VLOOKUP($G16,'Technician Summary'!$G$3:$BB$372,2,FALSE),"") ->  | J16: =(IFERROR(_xlfn.XLOOKUP($G16,'Technician Summary'!G:G,'Technician Summary'!I:I),"")) ->  | L16: =IF(G16="","",COUNTIFS('SMS tNPS'!DE:DE,G16,'SMS tNPS'!HB:HB,"Yes")) ->  | M16: =IFERROR(IF(G16="","",COUNTIFS('SMS tNPS'!DE:DE,G16,'SMS tNPS'!HB:HB,"Yes"))+COUNTIFS('SMS tNPS'!DE:DE,G16,'SMS tNPS'!HB:HB,"No"),"") ->  | O16: =IFERROR(VLOOKUP($G16,'Technician Summary'!$G$8:$BK$372,14,FALSE),"") ->  | P16: =IFERROR(VLOOKUP($G16,'Technician Summary'!$G$8:$BK$372,15,FALSE),"") ->  | R16: =IFERROR(VLOOKUP($G16,'Technician Summary'!$G$7:$BK$372,17,FALSE),"") ->  | S16: =IFERROR(VLOOKUP($G16,'Technician Summary'!$G$7:$BK$372,18,FALSE),"") ->  | U16: =IFERROR(VLOOKUP($G16,'Technician Summary'!$G$7:$BK$372,20,FALSE),"") ->  | V16: =IFERROR(VLOOKUP($G16,'Technician Summary'!$G$7:$BK$372,21,FALSE),"") ->  | X16: =IF($G16="","",SUMIF('SQT Data'!$K:$K,$G16,'SQT Data'!$R:$R)) ->  | Y16: =IF($G16="","",SUMIF('SQT Data'!$K:$K,$G16,'SQT Data'!$S:$S)) ->  | AA16: =IF($G16="","",SUMIF('SQT Data'!$K:$K,$G16,'SQT Data'!$U:$U)) ->  | AB16: =IF($G16="","",SUMIF('SQT Data'!$K:$K,$G16,'SQT Data'!$V:$V)) ->  | AE16: =IFERROR(SUM(AD16/#REF!),"") ->  | AF16: =IFERROR(VLOOKUP($G16,'Technician Summary'!$G$8:$BK$372,7,FALSE),"") ->  | AG16: =IFERROR(VLOOKUP($G16,'Technician Summary'!$G$8:$BK$372,8,FALSE),"") ->  | AI16: =IFERROR(VLOOKUP($G16,'Technician Summary'!$G$8:$BK$372,34,FALSE),"") ->  | AJ16: =IFERROR(VLOOKUP($G16,'Technician Summary'!$G$8:$BK$372,35,FALSE),"") ->  | AL16: =IFERROR(VLOOKUP($G16,'Technician Summary'!$G$8:$BK$372,37,FALSE),"") ->  | AM16: =IFERROR(VLOOKUP($G16,'Technician Summary'!$G$8:$BK$372,38,FALSE),"") ->  | AO16: =COUNTIFS('Drop Validation'!$Q:$Q,$G16,'Drop Validation'!$G:$G,"In Scope") -> 0 | AP16: =COUNTIFS('Drop Validation'!$Q:$Q,$G16,'Drop Validation'!$AB:$AB,"Compliant",'Drop Validation'!$G:$G,"In Scope") -> 0
B17: Roanoke | I17: =IFERROR(VLOOKUP($G17,'Technician Summary'!$G$3:$BB$372,2,FALSE),"") ->  | J17: =(IFERROR(_xlfn.XLOOKUP($G17,'Technician Summary'!G:G,'Technician Summary'!I:I),"")) ->  | L17: =IF(G17="","",COUNTIFS('SMS tNPS'!DE:DE,G17,'SMS tNPS'!HB:HB,"Yes")) ->  | M17: =IFERROR(IF(G17="","",COUNTIFS('SMS tNPS'!DE:DE,G17,'SMS tNPS'!HB:HB,"Yes"))+COUNTIFS('SMS tNPS'!DE:DE,G17,'SMS tNPS'!HB:HB,"No"),"") ->  | O17: =IFERROR(VLOOKUP($G17,'Technician Summary'!$G$8:$BK$372,14,FALSE),"") ->  | P17: =IFERROR(VLOOKUP($G17,'Technician Summary'!$G$8:$BK$372,15,FALSE),"") ->  | R17: =IFERROR(VLOOKUP($G17,'Technician Summary'!$G$7:$BK$372,17,FALSE),"") ->  | S17: =IFERROR(VLOOKUP($G17,'Technician Summary'!$G$7:$BK$372,18,FALSE),"") ->  | U17: =IFERROR(VLOOKUP($G17,'Technician Summary'!$G$7:$BK$372,20,FALSE),"") ->  | V17: =IFERROR(VLOOKUP($G17,'Technician Summary'!$G$7:$BK$372,21,FALSE),"") ->  | X17: =IF($G17="","",SUMIF('SQT Data'!$K:$K,$G17,'SQT Data'!$R:$R)) ->  | Y17: =IF($G17="","",SUMIF('SQT Data'!$K:$K,$G17,'SQT Data'!$S:$S)) ->  | AA17: =IF($G17="","",SUMIF('SQT Data'!$K:$K,$G17,'SQT Data'!$U:$U)) ->  | AB17: =IF($G17="","",SUMIF('SQT Data'!$K:$K,$G17,'SQT Data'!$V:$V)) ->  | AE17: =IFERROR(SUM(AD17/#REF!),"") ->  | AF17: =IFERROR(VLOOKUP($G17,'Technician Summary'!$G$8:$BK$372,7,FALSE),"") ->  | AG17: =IFERROR(VLOOKUP($G17,'Technician Summary'!$G$8:$BK$372,8,FALSE),"") ->  | AI17: =IFERROR(VLOOKUP($G17,'Technician Summary'!$G$8:$BK$372,34,FALSE),"") ->  | AJ17: =IFERROR(VLOOKUP($G17,'Technician Summary'!$G$8:$BK$372,35,FALSE),"") ->  | AL17: =IFERROR(VLOOKUP($G17,'Technician Summary'!$G$8:$BK$372,37,FALSE),"") ->  | AM17: =IFERROR(VLOOKUP($G17,'Technician Summary'!$G$8:$BK$372,38,FALSE),"") ->  | AO17: =COUNTIFS('Drop Validation'!$Q:$Q,$G17,'Drop Validation'!$G:$G,"In Scope") -> 0 | AP17: =COUNTIFS('Drop Validation'!$Q:$Q,$G17,'Drop Validation'!$AB:$AB,"Compliant",'Drop Validation'!$G:$G,"In Scope") -> 0
B18: Gulf Coast | I18: =IFERROR(VLOOKUP($G18,'Technician Summary'!$G$3:$BB$372,2,FALSE),"") ->  | J18: =(IFERROR(_xlfn.XLOOKUP($G18,'Technician Summary'!G:G,'Technician Summary'!I:I),"")) ->  | L18: =IF(G18="","",COUNTIFS('SMS tNPS'!DE:DE,G18,'SMS tNPS'!HB:HB,"Yes")) ->  | M18: =IFERROR(IF(G18="","",COUNTIFS('SMS tNPS'!DE:DE,G18,'SMS tNPS'!HB:HB,"Yes"))+COUNTIFS('SMS tNPS'!DE:DE,G18,'SMS tNPS'!HB:HB,"No"),"") ->  | O18: =IFERROR(VLOOKUP($G18,'Technician Summary'!$G$8:$BK$372,14,FALSE),"") ->  | P18: =IFERROR(VLOOKUP($G18,'Technician Summary'!$G$8:$BK$372,15,FALSE),"") ->  | R18: =IFERROR(VLOOKUP($G18,'Technician Summary'!$G$7:$BK$372,17,FALSE),"") ->  | S18: =IFERROR(VLOOKUP($G18,'Technician Summary'!$G$7:$BK$372,18,FALSE),"") ->  | U18: =IFERROR(VLOOKUP($G18,'Technician Summary'!$G$7:$BK$372,20,FALSE),"") ->  | V18: =IFERROR(VLOOKUP($G18,'Technician Summary'!$G$7:$BK$372,21,FALSE),"") ->  | X18: =IF($G18="","",SUMIF('SQT Data'!$K:$K,$G18,'SQT Data'!$R:$R)) ->  | Y18: =IF($G18="","",SUMIF('SQT Data'!$K:$K,$G18,'SQT Data'!$S:$S)) ->  | AA18: =IF($G18="","",SUMIF('SQT Data'!$K:$K,$G18,'SQT Data'!$U:$U)) ->  | AB18: =IF($G18="","",SUMIF('SQT Data'!$K:$K,$G18,'SQT Data'!$V:$V)) ->  | AE18: =IFERROR(SUM(AD18/#REF!),"") ->  | AF18: =IFERROR(VLOOKUP($G18,'Technician Summary'!$G$8:$BK$372,7,FALSE),"") ->  | AG18: =IFERROR(VLOOKUP($G18,'Technician Summary'!$G$8:$BK$372,8,FALSE),"") ->  | AI18: =IFERROR(VLOOKUP($G18,'Technician Summary'!$G$8:$BK$372,34,FALSE),"") ->  | AJ18: =IFERROR(VLOOKUP($G18,'Technician Summary'!$G$8:$BK$372,35,FALSE),"") ->  | AL18: =IFERROR(VLOOKUP($G18,'Technician Summary'!$G$8:$BK$372,37,FALSE),"") ->  | AM18: =IFERROR(VLOOKUP($G18,'Technician Summary'!$G$8:$BK$372,38,FALSE),"") ->  | AO18: =COUNTIFS('Drop Validation'!$Q:$Q,$G18,'Drop Validation'!$G:$G,"In Scope") -> 0 | AP18: =COUNTIFS('Drop Validation'!$Q:$Q,$G18,'Drop Validation'!$AB:$AB,"Compliant",'Drop Validation'!$G:$G,"In Scope") -> 0
B19: Oklahoma City | I19: =IFERROR(VLOOKUP($G19,'Technician Summary'!$G$3:$BB$372,2,FALSE),"") ->  | J19: =(IFERROR(_xlfn.XLOOKUP($G19,'Technician Summary'!G:G,'Technician Summary'!I:I),"")) ->  | L19: =IF(G19="","",COUNTIFS('SMS tNPS'!DE:DE,G19,'SMS tNPS'!HB:HB,"Yes")) ->  | M19: =IFERROR(IF(G19="","",COUNTIFS('SMS tNPS'!DE:DE,G19,'SMS tNPS'!HB:HB,"Yes"))+COUNTIFS('SMS tNPS'!DE:DE,G19,'SMS tNPS'!HB:HB,"No"),"") ->  | O19: =IFERROR(VLOOKUP($G19,'Technician Summary'!$G$8:$BK$372,14,FALSE),"") ->  | P19: =IFERROR(VLOOKUP($G19,'Technician Summary'!$G$8:$BK$372,15,FALSE),"") ->  | R19: =IFERROR(VLOOKUP($G19,'Technician Summary'!$G$7:$BK$372,17,FALSE),"") ->  | S19: =IFERROR(VLOOKUP($G19,'Technician Summary'!$G$7:$BK$372,18,FALSE),"") ->  | U19: =IFERROR(VLOOKUP($G19,'Technician Summary'!$G$7:$BK$372,20,FALSE),"") ->  | V19: =IFERROR(VLOOKUP($G19,'Technician Summary'!$G$7:$BK$372,21,FALSE),"") ->  | X19: =IF($G19="","",SUMIF('SQT Data'!$K:$K,$G19,'SQT Data'!$R:$R)) ->  | Y19: =IF($G19="","",SUMIF('SQT Data'!$K:$K,$G19,'SQT Data'!$S:$S)) ->  | AA19: =IF($G19="","",SUMIF('SQT Data'!$K:$K,$G19,'SQT Data'!$U:$U)) ->  | AB19: =IF($G19="","",SUMIF('SQT Data'!$K:$K,$G19,'SQT Data'!$V:$V)) ->  | AE19: =IFERROR(SUM(AD19/#REF!),"") ->  | AF19: =IFERROR(VLOOKUP($G19,'Technician Summary'!$G$8:$BK$372,7,FALSE),"") ->  | AG19: =IFERROR(VLOOKUP($G19,'Technician Summary'!$G$8:$BK$372,8,FALSE),"") ->  | AI19: =IFERROR(VLOOKUP($G19,'Technician Summary'!$G$8:$BK$372,34,FALSE),"") ->  | AJ19: =IFERROR(VLOOKUP($G19,'Technician Summary'!$G$8:$BK$372,35,FALSE),"") ->  | AL19: =IFERROR(VLOOKUP($G19,'Technician Summary'!$G$8:$BK$372,37,FALSE),"") ->  | AM19: =IFERROR(VLOOKUP($G19,'Technician Summary'!$G$8:$BK$372,38,FALSE),"") ->  | AO19: =COUNTIFS('Drop Validation'!$Q:$Q,$G19,'Drop Validation'!$G:$G,"In Scope") -> 0 | AP19: =COUNTIFS('Drop Validation'!$Q:$Q,$G19,'Drop Validation'!$AB:$AB,"Compliant",'Drop Validation'!$G:$G,"In Scope") -> 0
B20: Tech Rankings | I20: =IFERROR(VLOOKUP($G20,'Technician Summary'!$G$3:$BB$372,2,FALSE),"") ->  | J20: =(IFERROR(_xlfn.XLOOKUP($G20,'Technician Summary'!G:G,'Technician Summary'!I:I),"")) ->  | L20: =IF(G20="","",COUNTIFS('SMS tNPS'!DE:DE,G20,'SMS tNPS'!HB:HB,"Yes")) ->  | M20: =IFERROR(IF(G20="","",COUNTIFS('SMS tNPS'!DE:DE,G20,'SMS tNPS'!HB:HB,"Yes"))+COUNTIFS('SMS tNPS'!DE:DE,G20,'SMS tNPS'!HB:HB,"No"),"") ->  | O20: =IFERROR(VLOOKUP($G20,'Technician Summary'!$G$8:$BK$372,14,FALSE),"") ->  | P20: =IFERROR(VLOOKUP($G20,'Technician Summary'!$G$8:$BK$372,15,FALSE),"") ->  | R20: =IFERROR(VLOOKUP($G20,'Technician Summary'!$G$7:$BK$372,17,FALSE),"") ->  | S20: =IFERROR(VLOOKUP($G20,'Technician Summary'!$G$7:$BK$372,18,FALSE),"") ->  | U20: =IFERROR(VLOOKUP($G20,'Technician Summary'!$G$7:$BK$372,20,FALSE),"") ->  | V20: =IFERROR(VLOOKUP($G20,'Technician Summary'!$G$7:$BK$372,21,FALSE),"") ->  | X20: =IF($G20="","",SUMIF('SQT Data'!$K:$K,$G20,'SQT Data'!$R:$R)) ->  | Y20: =IF($G20="","",SUMIF('SQT Data'!$K:$K,$G20,'SQT Data'!$S:$S)) ->  | AA20: =IF($G20="","",SUMIF('SQT Data'!$K:$K,$G20,'SQT Data'!$U:$U)) ->  | AB20: =IF($G20="","",SUMIF('SQT Data'!$K:$K,$G20,'SQT Data'!$V:$V)) ->  | AE20: =IFERROR(SUM(AD20/#REF!),"") ->  | AF20: =IFERROR(VLOOKUP($G20,'Technician Summary'!$G$8:$BK$372,7,FALSE),"") ->  | AG20: =IFERROR(VLOOKUP($G20,'Technician Summary'!$G$8:$BK$372,8,FALSE),"") ->  | AI20: =IFERROR(VLOOKUP($G20,'Technician Summary'!$G$8:$BK$372,34,FALSE),"") ->  | AJ20: =IFERROR(VLOOKUP($G20,'Technician Summary'!$G$8:$BK$372,35,FALSE),"") ->  | AL20: =IFERROR(VLOOKUP($G20,'Technician Summary'!$G$8:$BK$372,37,FALSE),"") ->  | AM20: =IFERROR(VLOOKUP($G20,'Technician Summary'!$G$8:$BK$372,38,FALSE),"") ->  | AO20: =COUNTIFS('Drop Validation'!$Q:$Q,$G20,'Drop Validation'!$G:$G,"In Scope") -> 0 | AP20: =COUNTIFS('Drop Validation'!$Q:$Q,$G20,'Drop Validation'!$AB:$AB,"Compliant",'Drop Validation'!$G:$G,"In Scope") -> 0
B21: SMS Rankings | I21: =IFERROR(VLOOKUP($G21,'Technician Summary'!$G$3:$BB$372,2,FALSE),"") ->  | J21: =(IFERROR(_xlfn.XLOOKUP($G21,'Technician Summary'!G:G,'Technician Summary'!I:I),"")) ->  | L21: =IF(G21="","",COUNTIFS('SMS tNPS'!DE:DE,G21,'SMS tNPS'!HB:HB,"Yes")) ->  | M21: =IFERROR(IF(G21="","",COUNTIFS('SMS tNPS'!DE:DE,G21,'SMS tNPS'!HB:HB,"Yes"))+COUNTIFS('SMS tNPS'!DE:DE,G21,'SMS tNPS'!HB:HB,"No"),"") ->  | O21: =IFERROR(VLOOKUP($G21,'Technician Summary'!$G$8:$BK$372,14,FALSE),"") ->  | P21: =IFERROR(VLOOKUP($G21,'Technician Summary'!$G$8:$BK$372,15,FALSE),"") ->  | R21: =IFERROR(VLOOKUP($G21,'Technician Summary'!$G$7:$BK$372,17,FALSE),"") ->  | S21: =IFERROR(VLOOKUP($G21,'Technician Summary'!$G$7:$BK$372,18,FALSE),"") ->  | U21: =IFERROR(VLOOKUP($G21,'Technician Summary'!$G$7:$BK$372,20,FALSE),"") ->  | V21: =IFERROR(VLOOKUP($G21,'Technician Summary'!$G$7:$BK$372,21,FALSE),"") ->  | X21: =IF($G21="","",SUMIF('SQT Data'!$K:$K,$G21,'SQT Data'!$R:$R)) ->  | Y21: =IF($G21="","",SUMIF('SQT Data'!$K:$K,$G21,'SQT Data'!$S:$S)) ->  | AA21: =IF($G21="","",SUMIF('SQT Data'!$K:$K,$G21,'SQT Data'!$U:$U)) ->  | AB21: =IF($G21="","",SUMIF('SQT Data'!$K:$K,$G21,'SQT Data'!$V:$V)) ->  | AE21: =IFERROR(SUM(AD21/#REF!),"") ->  | AF21: =IFERROR(VLOOKUP($G21,'Technician Summary'!$G$8:$BK$372,7,FALSE),"") ->  | AG21: =IFERROR(VLOOKUP($G21,'Technician Summary'!$G$8:$BK$372,8,FALSE),"") ->  | AI21: =IFERROR(VLOOKUP($G21,'Technician Summary'!$G$8:$BK$372,34,FALSE),"") ->  | AJ21: =IFERROR(VLOOKUP($G21,'Technician Summary'!$G$8:$BK$372,35,FALSE),"") ->  | AL21: =IFERROR(VLOOKUP($G21,'Technician Summary'!$G$8:$BK$372,37,FALSE),"") ->  | AM21: =IFERROR(VLOOKUP($G21,'Technician Summary'!$G$8:$BK$372,38,FALSE),"") ->  | AO21: =COUNTIFS('Drop Validation'!$Q:$Q,$G21,'Drop Validation'!$G:$G,"In Scope") -> 0 | AP21: =COUNTIFS('Drop Validation'!$Q:$Q,$G21,'Drop Validation'!$AB:$AB,"Compliant",'Drop Validation'!$G:$G,"In Scope") -> 0
B22: SQT Comp Rankings | I22: =IFERROR(VLOOKUP($G22,'Technician Summary'!$G$3:$BB$372,2,FALSE),"") ->  | J22: =(IFERROR(_xlfn.XLOOKUP($G22,'Technician Summary'!G:G,'Technician Summary'!I:I),"")) ->  | L22: =IF(G22="","",COUNTIFS('SMS tNPS'!DE:DE,G22,'SMS tNPS'!HB:HB,"Yes")) ->  | M22: =IFERROR(IF(G22="","",COUNTIFS('SMS tNPS'!DE:DE,G22,'SMS tNPS'!HB:HB,"Yes"))+COUNTIFS('SMS tNPS'!DE:DE,G22,'SMS tNPS'!HB:HB,"No"),"") ->  | O22: =IFERROR(VLOOKUP($G22,'Technician Summary'!$G$8:$BK$372,14,FALSE),"") ->  | P22: =IFERROR(VLOOKUP($G22,'Technician Summary'!$G$8:$BK$372,15,FALSE),"") ->  | R22: =IFERROR(VLOOKUP($G22,'Technician Summary'!$G$7:$BK$372,17,FALSE),"") ->  | S22: =IFERROR(VLOOKUP($G22,'Technician Summary'!$G$7:$BK$372,18,FALSE),"") ->  | U22: =IFERROR(VLOOKUP($G22,'Technician Summary'!$G$7:$BK$372,20,FALSE),"") ->  | V22: =IFERROR(VLOOKUP($G22,'Technician Summary'!$G$7:$BK$372,21,FALSE),"") ->  | X22: =IF($G22="","",SUMIF('SQT Data'!$K:$K,$G22,'SQT Data'!$R:$R)) ->  | Y22: =IF($G22="","",SUMIF('SQT Data'!$K:$K,$G22,'SQT Data'!$S:$S)) ->  | AA22: =IF($G22="","",SUMIF('SQT Data'!$K:$K,$G22,'SQT Data'!$U:$U)) ->  | AB22: =IF($G22="","",SUMIF('SQT Data'!$K:$K,$G22,'SQT Data'!$V:$V)) ->  | AE22: =IFERROR(SUM(AD22/#REF!),"") ->  | AF22: =IFERROR(VLOOKUP($G22,'Technician Summary'!$G$8:$BK$372,7,FALSE),"") ->  | AG22: =IFERROR(VLOOKUP($G22,'Technician Summary'!$G$8:$BK$372,8,FALSE),"") ->  | AI22: =IFERROR(VLOOKUP($G22,'Technician Summary'!$G$8:$BK$372,34,FALSE),"") ->  | AJ22: =IFERROR(VLOOKUP($G22,'Technician Summary'!$G$8:$BK$372,35,FALSE),"") ->  | AL22: =IFERROR(VLOOKUP($G22,'Technician Summary'!$G$8:$BK$372,37,FALSE),"") ->  | AM22: =IFERROR(VLOOKUP($G22,'Technician Summary'!$G$8:$BK$372,38,FALSE),"") ->  | AO22: =COUNTIFS('Drop Validation'!$Q:$Q,$G22,'Drop Validation'!$G:$G,"In Scope") -> 0 | AP22: =COUNTIFS('Drop Validation'!$Q:$Q,$G22,'Drop Validation'!$AB:$AB,"Compliant",'Drop Validation'!$G:$G,"In Scope") -> 0
B23: SQT Pass Rankings | I23: =IFERROR(VLOOKUP($G23,'Technician Summary'!$G$3:$BB$372,2,FALSE),"") ->  | J23: =(IFERROR(_xlfn.XLOOKUP($G23,'Technician Summary'!G:G,'Technician Summary'!I:I),"")) ->  | L23: =IF(G23="","",COUNTIFS('SMS tNPS'!DE:DE,G23,'SMS tNPS'!HB:HB,"Yes")) ->  | M23: =IFERROR(IF(G23="","",COUNTIFS('SMS tNPS'!DE:DE,G23,'SMS tNPS'!HB:HB,"Yes"))+COUNTIFS('SMS tNPS'!DE:DE,G23,'SMS tNPS'!HB:HB,"No"),"") ->  | O23: =IFERROR(VLOOKUP($G23,'Technician Summary'!$G$8:$BK$372,14,FALSE),"") ->  | P23: =IFERROR(VLOOKUP($G23,'Technician Summary'!$G$8:$BK$372,15,FALSE),"") ->  | R23: =IFERROR(VLOOKUP($G23,'Technician Summary'!$G$7:$BK$372,17,FALSE),"") ->  | S23: =IFERROR(VLOOKUP($G23,'Technician Summary'!$G$7:$BK$372,18,FALSE),"") ->  | U23: =IFERROR(VLOOKUP($G23,'Technician Summary'!$G$7:$BK$372,20,FALSE),"") ->  | V23: =IFERROR(VLOOKUP($G23,'Technician Summary'!$G$7:$BK$372,21,FALSE),"") ->  | X23: =IF($G23="","",SUMIF('SQT Data'!$K:$K,$G23,'SQT Data'!$R:$R)) ->  | Y23: =IF($G23="","",SUMIF('SQT Data'!$K:$K,$G23,'SQT Data'!$S:$S)) ->  | AA23: =IF($G23="","",SUMIF('SQT Data'!$K:$K,$G23,'SQT Data'!$U:$U)) ->  | AB23: =IF($G23="","",SUMIF('SQT Data'!$K:$K,$G23,'SQT Data'!$V:$V)) ->  | AE23: =IFERROR(SUM(AD23/#REF!),"") ->  | AF23: =IFERROR(VLOOKUP($G23,'Technician Summary'!$G$8:$BK$372,7,FALSE),"") ->  | AG23: =IFERROR(VLOOKUP($G23,'Technician Summary'!$G$8:$BK$372,8,FALSE),"") ->  | AI23: =IFERROR(VLOOKUP($G23,'Technician Summary'!$G$8:$BK$372,34,FALSE),"") ->  | AJ23: =IFERROR(VLOOKUP($G23,'Technician Summary'!$G$8:$BK$372,35,FALSE),"") ->  | AL23: =IFERROR(VLOOKUP($G23,'Technician Summary'!$G$8:$BK$372,37,FALSE),"") ->  | AM23: =IFERROR(VLOOKUP($G23,'Technician Summary'!$G$8:$BK$372,38,FALSE),"") ->  | AO23: =COUNTIFS('Drop Validation'!$Q:$Q,$G23,'Drop Validation'!$G:$G,"In Scope") -> 0 | AP23: =COUNTIFS('Drop Validation'!$Q:$Q,$G23,'Drop Validation'!$AB:$AB,"Compliant",'Drop Validation'!$G:$G,"In Scope") -> 0
B24: Repeat Rankings | I24: =IFERROR(VLOOKUP($G24,'Technician Summary'!$G$3:$BB$372,2,FALSE),"") ->  | J24: =(IFERROR(_xlfn.XLOOKUP($G24,'Technician Summary'!G:G,'Technician Summary'!I:I),"")) ->  | L24: =IF(G24="","",COUNTIFS('SMS tNPS'!DE:DE,G24,'SMS tNPS'!HB:HB,"Yes")) ->  | M24: =IFERROR(IF(G24="","",COUNTIFS('SMS tNPS'!DE:DE,G24,'SMS tNPS'!HB:HB,"Yes"))+COUNTIFS('SMS tNPS'!DE:DE,G24,'SMS tNPS'!HB:HB,"No"),"") ->  | O24: =IFERROR(VLOOKUP($G24,'Technician Summary'!$G$8:$BK$372,14,FALSE),"") ->  | P24: =IFERROR(VLOOKUP($G24,'Technician Summary'!$G$8:$BK$372,15,FALSE),"") ->  | R24: =IFERROR(VLOOKUP($G24,'Technician Summary'!$G$7:$BK$372,17,FALSE),"") ->  | S24: =IFERROR(VLOOKUP($G24,'Technician Summary'!$G$7:$BK$372,18,FALSE),"") ->  | U24: =IFERROR(VLOOKUP($G24,'Technician Summary'!$G$7:$BK$372,20,FALSE),"") ->  | V24: =IFERROR(VLOOKUP($G24,'Technician Summary'!$G$7:$BK$372,21,FALSE),"") ->  | X24: =IF($G24="","",SUMIF('SQT Data'!$K:$K,$G24,'SQT Data'!$R:$R)) ->  | Y24: =IF($G24="","",SUMIF('SQT Data'!$K:$K,$G24,'SQT Data'!$S:$S)) ->  | AA24: =IF($G24="","",SUMIF('SQT Data'!$K:$K,$G24,'SQT Data'!$U:$U)) ->  | AB24: =IF($G24="","",SUMIF('SQT Data'!$K:$K,$G24,'SQT Data'!$V:$V)) ->  | AE24: =IFERROR(SUM(AD24/#REF!),"") ->  | AF24: =IFERROR(VLOOKUP($G24,'Technician Summary'!$G$8:$BK$372,7,FALSE),"") ->  | AG24: =IFERROR(VLOOKUP($G24,'Technician Summary'!$G$8:$BK$372,8,FALSE),"") ->  | AI24: =IFERROR(VLOOKUP($G24,'Technician Summary'!$G$8:$BK$372,34,FALSE),"") ->  | AJ24: =IFERROR(VLOOKUP($G24,'Technician Summary'!$G$8:$BK$372,35,FALSE),"") ->  | AL24: =IFERROR(VLOOKUP($G24,'Technician Summary'!$G$8:$BK$372,37,FALSE),"") ->  | AM24: =IFERROR(VLOOKUP($G24,'Technician Summary'!$G$8:$BK$372,38,FALSE),"") ->  | AO24: =COUNTIFS('Drop Validation'!$Q:$Q,$G24,'Drop Validation'!$G:$G,"In Scope") -> 0 | AP24: =COUNTIFS('Drop Validation'!$Q:$Q,$G24,'Drop Validation'!$AB:$AB,"Compliant",'Drop Validation'!$G:$G,"In Scope") -> 0
I25: =IFERROR(VLOOKUP($G25,'Technician Summary'!$G$3:$BB$372,2,FALSE),"") ->  | J25: =(IFERROR(_xlfn.XLOOKUP($G25,'Technician Summary'!G:G,'Technician Summary'!I:I),"")) ->  | L25: =IF(G25="","",COUNTIFS('SMS tNPS'!DE:DE,G25,'SMS tNPS'!HB:HB,"Yes")) ->  | M25: =IFERROR(IF(G25="","",COUNTIFS('SMS tNPS'!DE:DE,G25,'SMS tNPS'!HB:HB,"Yes"))+COUNTIFS('SMS tNPS'!DE:DE,G25,'SMS tNPS'!HB:HB,"No"),"") ->  | O25: =IFERROR(VLOOKUP($G25,'Technician Summary'!$G$8:$BK$372,14,FALSE),"") ->  | P25: =IFERROR(VLOOKUP($G25,'Technician Summary'!$G$8:$BK$372,15,FALSE),"") ->  | R25: =IFERROR(VLOOKUP($G25,'Technician Summary'!$G$7:$BK$372,17,FALSE),"") ->  | S25: =IFERROR(VLOOKUP($G25,'Technician Summary'!$G$7:$BK$372,18,FALSE),"") ->  | U25: =IFERROR(VLOOKUP($G25,'Technician Summary'!$G$7:$BK$372,20,FALSE),"") ->  | V25: =IFERROR(VLOOKUP($G25,'Technician Summary'!$G$7:$BK$372,21,FALSE),"") ->  | X25: =IF($G25="","",SUMIF('SQT Data'!$K:$K,$G25,'SQT Data'!$R:$R)) ->  | Y25: =IF($G25="","",SUMIF('SQT Data'!$K:$K,$G25,'SQT Data'!$S:$S)) ->  | AA25: =IF($G25="","",SUMIF('SQT Data'!$K:$K,$G25,'SQT Data'!$U:$U)) ->  | AB25: =IF($G25="","",SUMIF('SQT Data'!$K:$K,$G25,'SQT Data'!$V:$V)) ->  | AE25: =IFERROR(SUM(AD25/#REF!),"") ->  | AF25: =IFERROR(VLOOKUP($G25,'Technician Summary'!$G$8:$BK$372,7,FALSE),"") ->  | AG25: =IFERROR(VLOOKUP($G25,'Technician Summary'!$G$8:$BK$372,8,FALSE),"") ->  | AI25: =IFERROR(VLOOKUP($G25,'Technician Summary'!$G$8:$BK$372,34,FALSE),"") ->  | AJ25: =IFERROR(VLOOKUP($G25,'Technician Summary'!$G$8:$BK$372,35,FALSE),"") ->  | AL25: =IFERROR(VLOOKUP($G25,'Technician Summary'!$G$8:$BK$372,37,FALSE),"") ->  | AM25: =IFERROR(VLOOKUP($G25,'Technician Summary'!$G$8:$BK$372,38,FALSE),"") ->  | AO25: =COUNTIFS('Drop Validation'!$Q:$Q,$G25,'Drop Validation'!$G:$G,"In Scope") -> 0 | AP25: =COUNTIFS('Drop Validation'!$Q:$Q,$G25,'Drop Validation'!$AB:$AB,"Compliant",'Drop Validation'!$G:$G,"In Scope") -> 0
I26: =IFERROR(VLOOKUP($G26,'Technician Summary'!$G$3:$BB$372,2,FALSE),"") ->  | J26: =(IFERROR(_xlfn.XLOOKUP($G26,'Technician Summary'!G:G,'Technician Summary'!I:I),"")) ->  | L26: =IF(G26="","",COUNTIFS('SMS tNPS'!DE:DE,G26,'SMS tNPS'!HB:HB,"Yes")) ->  | M26: =IFERROR(IF(G26="","",COUNTIFS('SMS tNPS'!DE:DE,G26,'SMS tNPS'!HB:HB,"Yes"))+COUNTIFS('SMS tNPS'!DE:DE,G26,'SMS tNPS'!HB:HB,"No"),"") ->  | O26: =IFERROR(VLOOKUP($G26,'Technician Summary'!$G$8:$BK$372,14,FALSE),"") ->  | P26: =IFERROR(VLOOKUP($G26,'Technician Summary'!$G$8:$BK$372,15,FALSE),"") ->  | R26: =IFERROR(VLOOKUP($G26,'Technician Summary'!$G$7:$BK$372,17,FALSE),"") ->  | S26: =IFERROR(VLOOKUP($G26,'Technician Summary'!$G$7:$BK$372,18,FALSE),"") ->  | U26: =IFERROR(VLOOKUP($G26,'Technician Summary'!$G$7:$BK$372,20,FALSE),"") ->  | V26: =IFERROR(VLOOKUP($G26,'Technician Summary'!$G$7:$BK$372,21,FALSE),"") ->  | X26: =IF($G26="","",SUMIF('SQT Data'!$K:$K,$G26,'SQT Data'!$R:$R)) ->  | Y26: =IF($G26="","",SUMIF('SQT Data'!$K:$K,$G26,'SQT Data'!$S:$S)) ->  | AA26: =IF($G26="","",SUMIF('SQT Data'!$K:$K,$G26,'SQT Data'!$U:$U)) ->  | AB26: =IF($G26="","",SUMIF('SQT Data'!$K:$K,$G26,'SQT Data'!$V:$V)) ->  | AE26: =IFERROR(SUM(AD26/#REF!),"") ->  | AF26: =IFERROR(VLOOKUP($G26,'Technician Summary'!$G$8:$BK$372,7,FALSE),"") ->  | AG26: =IFERROR(VLOOKUP($G26,'Technician Summary'!$G$8:$BK$372,8,FALSE),"") ->  | AI26: =IFERROR(VLOOKUP($G26,'Technician Summary'!$G$8:$BK$372,34,FALSE),"") ->  | AJ26: =IFERROR(VLOOKUP($G26,'Technician Summary'!$G$8:$BK$372,35,FALSE),"") ->  | AL26: =IFERROR(VLOOKUP($G26,'Technician Summary'!$G$8:$BK$372,37,FALSE),"") ->  | AM26: =IFERROR(VLOOKUP($G26,'Technician Summary'!$G$8:$BK$372,38,FALSE),"") ->  | AO26: =COUNTIFS('Drop Validation'!$Q:$Q,$G26,'Drop Validation'!$G:$G,"In Scope") -> 0 | AP26: =COUNTIFS('Drop Validation'!$Q:$Q,$G26,'Drop Validation'!$AB:$AB,"Compliant",'Drop Validation'!$G:$G,"In Scope") -> 0
B27: Raw Data | I27: =IFERROR(VLOOKUP($G27,'Technician Summary'!$G$3:$BB$372,2,FALSE),"") ->  | J27: =(IFERROR(_xlfn.XLOOKUP($G27,'Technician Summary'!G:G,'Technician Summary'!I:I),"")) ->  | L27: =IF(G27="","",COUNTIFS('SMS tNPS'!DE:DE,G27,'SMS tNPS'!HB:HB,"Yes")) ->  | M27: =IFERROR(IF(G27="","",COUNTIFS('SMS tNPS'!DE:DE,G27,'SMS tNPS'!HB:HB,"Yes"))+COUNTIFS('SMS tNPS'!DE:DE,G27,'SMS tNPS'!HB:HB,"No"),"") ->  | O27: =IFERROR(VLOOKUP($G27,'Technician Summary'!$G$8:$BK$372,14,FALSE),"") ->  | P27: =IFERROR(VLOOKUP($G27,'Technician Summary'!$G$8:$BK$372,15,FALSE),"") ->  | R27: =IFERROR(VLOOKUP($G27,'Technician Summary'!$G$7:$BK$372,17,FALSE),"") ->  | S27: =IFERROR(VLOOKUP($G27,'Technician Summary'!$G$7:$BK$372,18,FALSE),"") ->  | U27: =IFERROR(VLOOKUP($G27,'Technician Summary'!$G$7:$BK$372,20,FALSE),"") ->  | V27: =IFERROR(VLOOKUP($G27,'Technician Summary'!$G$7:$BK$372,21,FALSE),"") ->  | X27: =IF($G27="","",SUMIF('SQT Data'!$K:$K,$G27,'SQT Data'!$R:$R)) ->  | Y27: =IF($G27="","",SUMIF('SQT Data'!$K:$K,$G27,'SQT Data'!$S:$S)) ->  | AA27: =IF($G27="","",SUMIF('SQT Data'!$K:$K,$G27,'SQT Data'!$U:$U)) ->  | AB27: =IF($G27="","",SUMIF('SQT Data'!$K:$K,$G27,'SQT Data'!$V:$V)) ->  | AE27: =IFERROR(SUM(AD27/#REF!),"") ->  | AF27: =IFERROR(VLOOKUP($G27,'Technician Summary'!$G$8:$BK$372,7,FALSE),"") ->  | AG27: =IFERROR(VLOOKUP($G27,'Technician Summary'!$G$8:$BK$372,8,FALSE),"") ->  | AI27: =IFERROR(VLOOKUP($G27,'Technician Summary'!$G$8:$BK$372,34,FALSE),"") ->  | AJ27: =IFERROR(VLOOKUP($G27,'Technician Summary'!$G$8:$BK$372,35,FALSE),"") ->  | AL27: =IFERROR(VLOOKUP($G27,'Technician Summary'!$G$8:$BK$372,37,FALSE),"") ->  | AM27: =IFERROR(VLOOKUP($G27,'Technician Summary'!$G$8:$BK$372,38,FALSE),"") ->  | AO27: =COUNTIFS('Drop Validation'!$Q:$Q,$G27,'Drop Validation'!$G:$G,"In Scope") -> 0 | AP27: =COUNTIFS('Drop Validation'!$Q:$Q,$G27,'Drop Validation'!$AB:$AB,"Compliant",'Drop Validation'!$G:$G,"In Scope") -> 0
I28: =IFERROR(VLOOKUP($G28,'Technician Summary'!$G$3:$BB$372,2,FALSE),"") ->  | J28: =(IFERROR(_xlfn.XLOOKUP($G28,'Technician Summary'!G:G,'Technician Summary'!I:I),"")) ->  | L28: =IF(G28="","",COUNTIFS('SMS tNPS'!DE:DE,G28,'SMS tNPS'!HB:HB,"Yes")) ->  | M28: =IFERROR(IF(G28="","",COUNTIFS('SMS tNPS'!DE:DE,G28,'SMS tNPS'!HB:HB,"Yes"))+COUNTIFS('SMS tNPS'!DE:DE,G28,'SMS tNPS'!HB:HB,"No"),"") ->  | O28: =IFERROR(VLOOKUP($G28,'Technician Summary'!$G$8:$BK$372,14,FALSE),"") ->  | P28: =IFERROR(VLOOKUP($G28,'Technician Summary'!$G$8:$BK$372,15,FALSE),"") ->  | R28: =IFERROR(VLOOKUP($G28,'Technician Summary'!$G$7:$BK$372,17,FALSE),"") ->  | S28: =IFERROR(VLOOKUP($G28,'Technician Summary'!$G$7:$BK$372,18,FALSE),"") ->  | U28: =IFERROR(VLOOKUP($G28,'Technician Summary'!$G$7:$BK$372,20,FALSE),"") ->  | V28: =IFERROR(VLOOKUP($G28,'Technician Summary'!$G$7:$BK$372,21,FALSE),"") ->  | X28: =IF($G28="","",SUMIF('SQT Data'!$K:$K,$G28,'SQT Data'!$R:$R)) ->  | Y28: =IF($G28="","",SUMIF('SQT Data'!$K:$K,$G28,'SQT Data'!$S:$S)) ->  | AA28: =IF($G28="","",SUMIF('SQT Data'!$K:$K,$G28,'SQT Data'!$U:$U)) ->  | AB28: =IF($G28="","",SUMIF('SQT Data'!$K:$K,$G28,'SQT Data'!$V:$V)) ->  | AE28: =IFERROR(SUM(AD28/#REF!),"") ->  | AF28: =IFERROR(VLOOKUP($G28,'Technician Summary'!$G$8:$BK$372,7,FALSE),"") ->  | AG28: =IFERROR(VLOOKUP($G28,'Technician Summary'!$G$8:$BK$372,8,FALSE),"") ->  | AI28: =IFERROR(VLOOKUP($G28,'Technician Summary'!$G$8:$BK$372,34,FALSE),"") ->  | AJ28: =IFERROR(VLOOKUP($G28,'Technician Summary'!$G$8:$BK$372,35,FALSE),"") ->  | AL28: =IFERROR(VLOOKUP($G28,'Technician Summary'!$G$8:$BK$372,37,FALSE),"") ->  | AM28: =IFERROR(VLOOKUP($G28,'Technician Summary'!$G$8:$BK$372,38,FALSE),"") ->  | AO28: =COUNTIFS('Drop Validation'!$Q:$Q,$G28,'Drop Validation'!$G:$G,"In Scope") -> 0 | AP28: =COUNTIFS('Drop Validation'!$Q:$Q,$G28,'Drop Validation'!$AB:$AB,"Compliant",'Drop Validation'!$G:$G,"In Scope") -> 0
I29: =IFERROR(VLOOKUP($G29,'Technician Summary'!$G$3:$BB$372,2,FALSE),"") ->  | J29: =(IFERROR(_xlfn.XLOOKUP($G29,'Technician Summary'!G:G,'Technician Summary'!I:I),"")) ->  | L29: =IF(G29="","",COUNTIFS('SMS tNPS'!DE:DE,G29,'SMS tNPS'!HB:HB,"Yes")) ->  | M29: =IFERROR(IF(G29="","",COUNTIFS('SMS tNPS'!DE:DE,G29,'SMS tNPS'!HB:HB,"Yes"))+COUNTIFS('SMS tNPS'!DE:DE,G29,'SMS tNPS'!HB:HB,"No"),"") ->  | O29: =IFERROR(VLOOKUP($G29,'Technician Summary'!$G$8:$BK$372,14,FALSE),"") ->  | P29: =IFERROR(VLOOKUP($G29,'Technician Summary'!$G$8:$BK$372,15,FALSE),"") ->  | R29: =IFERROR(VLOOKUP($G29,'Technician Summary'!$G$7:$BK$372,17,FALSE),"") ->  | S29: =IFERROR(VLOOKUP($G29,'Technician Summary'!$G$7:$BK$372,18,FALSE),"") ->  | U29: =IFERROR(VLOOKUP($G29,'Technician Summary'!$G$7:$BK$372,20,FALSE),"") ->  | V29: =IFERROR(VLOOKUP($G29,'Technician Summary'!$G$7:$BK$372,21,FALSE),"") ->  | X29: =IF($G29="","",SUMIF('SQT Data'!$K:$K,$G29,'SQT Data'!$R:$R)) ->  | Y29: =IF($G29="","",SUMIF('SQT Data'!$K:$K,$G29,'SQT Data'!$S:$S)) ->  | AA29: =IF($G29="","",SUMIF('SQT Data'!$K:$K,$G29,'SQT Data'!$U:$U)) ->  | AB29: =IF($G29="","",SUMIF('SQT Data'!$K:$K,$G29,'SQT Data'!$V:$V)) ->  | AE29: =IFERROR(SUM(AD29/#REF!),"") ->  | AF29: =IFERROR(VLOOKUP($G29,'Technician Summary'!$G$8:$BK$372,7,FALSE),"") ->  | AG29: =IFERROR(VLOOKUP($G29,'Technician Summary'!$G$8:$BK$372,8,FALSE),"") ->  | AI29: =IFERROR(VLOOKUP($G29,'Technician Summary'!$G$8:$BK$372,34,FALSE),"") ->  | AJ29: =IFERROR(VLOOKUP($G29,'Technician Summary'!$G$8:$BK$372,35,FALSE),"") ->  | AL29: =IFERROR(VLOOKUP($G29,'Technician Summary'!$G$8:$BK$372,37,FALSE),"") ->  | AM29: =IFERROR(VLOOKUP($G29,'Technician Summary'!$G$8:$BK$372,38,FALSE),"") ->  | AO29: =COUNTIFS('Drop Validation'!$Q:$Q,$G29,'Drop Validation'!$G:$G,"In Scope") -> 0 | AP29: =COUNTIFS('Drop Validation'!$Q:$Q,$G29,'Drop Validation'!$AB:$AB,"Compliant",'Drop Validation'!$G:$G,"In Scope") -> 0
I30: =IFERROR(VLOOKUP($G30,'Technician Summary'!$G$3:$BB$372,2,FALSE),"") ->  | J30: =(IFERROR(_xlfn.XLOOKUP($G30,'Technician Summary'!G:G,'Technician Summary'!I:I),"")) ->  | L30: =IF(G30="","",COUNTIFS('SMS tNPS'!DE:DE,G30,'SMS tNPS'!HB:HB,"Yes")) ->  | M30: =IFERROR(IF(G30="","",COUNTIFS('SMS tNPS'!DE:DE,G30,'SMS tNPS'!HB:HB,"Yes"))+COUNTIFS('SMS tNPS'!DE:DE,G30,'SMS tNPS'!HB:HB,"No"),"") ->  | O30: =IFERROR(VLOOKUP($G30,'Technician Summary'!$G$8:$BK$372,14,FALSE),"") ->  | P30: =IFERROR(VLOOKUP($G30,'Technician Summary'!$G$8:$BK$372,15,FALSE),"") ->  | R30: =IFERROR(VLOOKUP($G30,'Technician Summary'!$G$7:$BK$372,17,FALSE),"") ->  | S30: =IFERROR(VLOOKUP($G30,'Technician Summary'!$G$7:$BK$372,18,FALSE),"") ->  | U30: =IFERROR(VLOOKUP($G30,'Technician Summary'!$G$7:$BK$372,20,FALSE),"") ->  | V30: =IFERROR(VLOOKUP($G30,'Technician Summary'!$G$7:$BK$372,21,FALSE),"") ->  | X30: =IF($G30="","",SUMIF('SQT Data'!$K:$K,$G30,'SQT Data'!$R:$R)) ->  | Y30: =IF($G30="","",SUMIF('SQT Data'!$K:$K,$G30,'SQT Data'!$S:$S)) ->  | AA30: =IF($G30="","",SUMIF('SQT Data'!$K:$K,$G30,'SQT Data'!$U:$U)) ->  | AB30: =IF($G30="","",SUMIF('SQT Data'!$K:$K,$G30,'SQT Data'!$V:$V)) ->  | AE30: =IFERROR(SUM(AD30/#REF!),"") ->  | AF30: =IFERROR(VLOOKUP($G30,'Technician Summary'!$G$8:$BK$372,7,FALSE),"") ->  | AG30: =IFERROR(VLOOKUP($G30,'Technician Summary'!$G$8:$BK$372,8,FALSE),"") ->  | AI30: =IFERROR(VLOOKUP($G30,'Technician Summary'!$G$8:$BK$372,34,FALSE),"") ->  | AJ30: =IFERROR(VLOOKUP($G30,'Technician Summary'!$G$8:$BK$372,35,FALSE),"") ->  | AL30: =IFERROR(VLOOKUP($G30,'Technician Summary'!$G$8:$BK$372,37,FALSE),"") ->  | AM30: =IFERROR(VLOOKUP($G30,'Technician Summary'!$G$8:$BK$372,38,FALSE),"") ->  | AO30: =COUNTIFS('Drop Validation'!$Q:$Q,$G30,'Drop Validation'!$G:$G,"In Scope") -> 0 | AP30: =COUNTIFS('Drop Validation'!$Q:$Q,$G30,'Drop Validation'!$AB:$AB,"Compliant",'Drop Validation'!$G:$G,"In Scope") -> 0
I31: =IFERROR(VLOOKUP($G31,'Technician Summary'!$G$3:$BB$372,2,FALSE),"") ->  | J31: =(IFERROR(_xlfn.XLOOKUP($G31,'Technician Summary'!G:G,'Technician Summary'!I:I),"")) ->  | L31: =IF(G31="","",COUNTIFS('SMS tNPS'!DE:DE,G31,'SMS tNPS'!HB:HB,"Yes")) ->  | M31: =IFERROR(IF(G31="","",COUNTIFS('SMS tNPS'!DE:DE,G31,'SMS tNPS'!HB:HB,"Yes"))+COUNTIFS('SMS tNPS'!DE:DE,G31,'SMS tNPS'!HB:HB,"No"),"") ->  | O31: =IFERROR(VLOOKUP($G31,'Technician Summary'!$G$8:$BK$372,14,FALSE),"") ->  | P31: =IFERROR(VLOOKUP($G31,'Technician Summary'!$G$8:$BK$372,15,FALSE),"") ->  | R31: =IFERROR(VLOOKUP($G31,'Technician Summary'!$G$7:$BK$372,17,FALSE),"") ->  | S31: =IFERROR(VLOOKUP($G31,'Technician Summary'!$G$7:$BK$372,18,FALSE),"") ->  | U31: =IFERROR(VLOOKUP($G31,'Technician Summary'!$G$7:$BK$372,20,FALSE),"") ->  | V31: =IFERROR(VLOOKUP($G31,'Technician Summary'!$G$7:$BK$372,21,FALSE),"") ->  | X31: =IF($G31="","",SUMIF('SQT Data'!$K:$K,$G31,'SQT Data'!$R:$R)) ->  | Y31: =IF($G31="","",SUMIF('SQT Data'!$K:$K,$G31,'SQT Data'!$S:$S)) ->  | AA31: =IF($G31="","",SUMIF('SQT Data'!$K:$K,$G31,'SQT Data'!$U:$U)) ->  | AB31: =IF($G31="","",SUMIF('SQT Data'!$K:$K,$G31,'SQT Data'!$V:$V)) ->  | AE31: =IFERROR(SUM(AD31/#REF!),"") ->  | AF31: =IFERROR(VLOOKUP($G31,'Technician Summary'!$G$8:$BK$372,7,FALSE),"") ->  | AG31: =IFERROR(VLOOKUP($G31,'Technician Summary'!$G$8:$BK$372,8,FALSE),"") ->  | AI31: =IFERROR(VLOOKUP($G31,'Technician Summary'!$G$8:$BK$372,34,FALSE),"") ->  | AJ31: =IFERROR(VLOOKUP($G31,'Technician Summary'!$G$8:$BK$372,35,FALSE),"") ->  | AL31: =IFERROR(VLOOKUP($G31,'Technician Summary'!$G$8:$BK$372,37,FALSE),"") ->  | AM31: =IFERROR(VLOOKUP($G31,'Technician Summary'!$G$8:$BK$372,38,FALSE),"") ->  | AO31: =COUNTIFS('Drop Validation'!$Q:$Q,$G31,'Drop Validation'!$G:$G,"In Scope") -> 0 | AP31: =COUNTIFS('Drop Validation'!$Q:$Q,$G31,'Drop Validation'!$AB:$AB,"Compliant",'Drop Validation'!$G:$G,"In Scope") -> 0
I32: # NPS WO's | J32: # Failures | K32: NPS | L32: SMS Promoter Count | M32: SMS Count | N32: SMS tNPS | O32: Total Repeatable WO | P32: Total Repeats | Q32: Repeats | R32: Total Repeatable WO | S32: Repeat IN | T32: IN Repeat % | U32: Total Repeatable WO | V32: Repeat TC | W32: Repeat TC % | X32: Jobs | Y32: Test Run | Z32: SQT Compliance | AA32: Parameters Tested | AB32: Parameters Passing | AC32: SQT Pass | AD32: Test Passed | AE32: Ingress Test Pass | AF32: FCR WO | AG32: FCR Failures | AH32: FCR | AI32: Jobs | AJ32: Jobs Late | AK32: OTA | AL32: Jobs | AM32: Completed Jobs | AN32: Completion % | AO32: Total Jobs | AP32: Total Valid | AQ32: Drop Validation
I34: =SUMIF(I7:I31,">0") -> 2 | J34: =SUMIF(J7:J31,">0") -> 0 | K34: =IFERROR(1-((J34*2)/I34),"") -> 1 | L34: =SUM(L7:L31) -> 26 | M34: =SUM(M7:M31) -> 29 | N34: =IFERROR(SUM(L34/M34),"") -> 0.8966 | O34: =SUM(O7:O31) -> 121 | P34: =SUM(P7:P31) -> 6 | Q34: =IFERROR(SUM(P34/O34),"") -> 0.0496 | R34: =SUM(R7:R31) -> 56 | S34: =SUM(S7:S31) -> 3 | T34: =IFERROR(SUM(S34/R34),"") -> 0.0536 | U34: =SUM(U7:U31) -> 65 | V34: =SUM(V7:V31) -> 3 | W34: =IFERROR(SUM(V34/U34),"") -> 0.0462 | X34: =SUMIF(X7:X31,">0") -> 67 | Y34: =SUMIF(Y7:Y31,">0") -> 62 | Z34: =IFERROR(SUM(Y34/X34),"") -> 0.9254 | AA34: =SUM(AA7:AA31) -> 493 | AB34: =SUM(AB7:AB31) -> 433 | AC34: =IFERROR(SUM(AB34/AA34),"") -> 0.8783 | AD34: =SUM(AD7:AD31) -> 0 | AE34: =IFERROR(SUM(AD34/#REF!),"") ->  | AF34: =SUM(AF7:AF31) -> 60 | AG34: =SUM(AG7:AG31) -> 3 | AH34: =IFERROR(1-AG34/AF34,"") -> 0.95 | AI34: =SUM(AI7:AI31) -> 54 | AJ34: =SUM(AJ7:AJ31) -> 2 | AK34: =IFERROR(1-AJ34/AI34,"") -> 0.963 | AL34: =SUM(AL7:AL31) -> 146 | AM34: =SUM(AM7:AM31) -> 121 | AN34: =IFERROR(AM34/AL34,"") -> 0.8288 | AO34: =SUM(AO7:AO31) -> 8 | AP34: =SUM(AP7:AP31) -> 4 | AQ34: =IFERROR(AP34/AO34,"") -> 0.5
F37: Robert Yerby
F39: Tech Name | G39: Tech ID | H39: Score | I39: # NPS WO's | J39: # Failures | K39: NPS | L39: SMS Promoter Count | M39: SMS Count | N39: SMS tNPS | O39: Total Repeatable WO | P39: Total Repeats | Q39: Repeats | R39: Total Repeatable WO | S39: Repeat IN | T39: IN Repeat % | U39: Total Repeatable WO | V39: Repeat TC | W39: Repeat TC % | X39: Jobs | Y39: Test Run | Z39: SQT Compliance | AA39: Parameters Tested | AB39: Parameters Passing | AC39: SQT Pass | AD39: Test Passed | AE39: Ingress Test Pass | AF39: FCR WO | AG39: FCR Failures | AH39: FCR | AI39: Jobs | AJ39: Jobs Late | AK39: OTA | AL39: Jobs | AM39: Completed Jobs | AN39: Completion % | AO39: Total Jobs | AP39: Total Valid | AQ39: Drop Validation
F41: Robert Yerby | G41: 25399 | H41: =IF(Z41="","",IFERROR(IF(K41>=68.26%,1.25,0)+IF(Q41<=5.04%,2.5,0)+IF(Z41>=90%,2.5,0)+IF(AK41>=96%,1.25,0)+IF(N41>=90%,2.5,0),"")) ->  | I41: =IFERROR(VLOOKUP($G41,'Technician Summary'!$G$3:$BB$372,2,FALSE),"") -> 2 | J41: =(IFERROR(_xlfn.XLOOKUP($G41,'Technician Summary'!G:G,'Technician Summary'!I:I),"")) -> 0 | K41: =IFERROR(1-((J41*2)/I41),"") -> 1 | L41: =IF(G41="","",COUNTIFS('SMS tNPS'!DE:DE,G41,'SMS tNPS'!HB:HB,"Yes")) -> 2 | M41: =IFERROR(IF(G41="","",COUNTIFS('SMS tNPS'!DE:DE,G41,'SMS tNPS'!HB:HB,"Yes"))+COUNTIFS('SMS tNPS'!DE:DE,G41,'SMS tNPS'!HB:HB,"No"),"") -> 2 | N41: =IFERROR(SUM(L41/M41),"") -> 1 | O41: =IFERROR(VLOOKUP($G41,'Technician Summary'!$G$8:$BK$372,14,FALSE),"") -> 8 | P41: =IFERROR(VLOOKUP($G41,'Technician Summary'!$G$8:$BK$372,15,FALSE),"") -> 0 | Q41: =IFERROR(SUM(P41/O41),"") -> 0 | R41: =IFERROR(VLOOKUP($G41,'Technician Summary'!$G$7:$BK$372,17,FALSE),"") -> 7 | S41: =IFERROR(VLOOKUP($G41,'Technician Summary'!$G$7:$BK$372,18,FALSE),"") -> 0 | T41: =IFERROR(SUM(S41/R41),"") -> 0 | U41: =IFERROR(VLOOKUP($G41,'Technician Summary'!$G$7:$BK$372,20,FALSE),"") -> 1 | V41: =IFERROR(VLOOKUP($G41,'Technician Summary'!$G$7:$BK$372,21,FALSE),"") -> 0 | W41: =IFERROR(SUM(V41/U41),"") -> 0 | X41: =IF($G41="","",SUMIF('SQT Data'!$K:$K,$G41,'SQT Data'!$R:$R)) -> 0 | Y41: =IF($G41="","",SUMIF('SQT Data'!$K:$K,$G41,'SQT Data'!$S:$S)) -> 0 | Z41: =IFERROR(SUM(Y41/X41),"") ->  | AA41: =IF($G41="","",SUMIF('SQT Data'!$K:$K,$G41,'SQT Data'!$U:$U)) -> 0 | AB41: =IF($G41="","",SUMIF('SQT Data'!$K:$K,$G41,'SQT Data'!$V:$V)) -> 0 | AC41: =IFERROR(SUM(AB41/AA41),"") ->  | AE41: =IFERROR(SUM(AD41/#REF!),"") ->  | AF41: =IFERROR(VLOOKUP($G41,'Technician Summary'!$G$8:$BK$372,7,FALSE),"") -> 8 | AG41: =IFERROR(VLOOKUP($G41,'Technician Summary'!$G$8:$BK$372,8,FALSE),"") -> 0 | AH41: =IFERROR(1-AG41/AF41,"") -> 1 | AI41: =IFERROR(VLOOKUP($G41,'Technician Summary'!$G$8:$BK$372,34,FALSE),"") -> 7 | AJ41: =IFERROR(VLOOKUP($G41,'Technician Summary'!$G$8:$BK$372,35,FALSE),"") -> 0 | AK41: =IFERROR(1-AJ41/AI41,"") -> 1 | AL41: =IFERROR(VLOOKUP($G41,'Technician Summary'!$G$8:$BK$372,37,FALSE),"") -> 9 | AM41: =IFERROR(VLOOKUP($G41,'Technician Summary'!$G$8:$BK$372,38,FALSE),"") -> 8 | AN41: =IFERROR(AM41/AL41,"") -> 0.8889 | AO41: =COUNTIFS('Drop Validation'!$Q:$Q,$G41,'Drop Validation'!$G:$G,"In Scope") -> 0 | AP41: =COUNTIFS('Drop Validation'!$Q:$Q,$G41,'Drop Validation'!$AB:$AB,"Compliant",'Drop Validation'!$G:$G,"In Scope") -> 0 | AQ41: =IFERROR(AP41/AO41,"") -> 
F42: Deshawn Richburg | G42: 92058 | H42: 10 | I42: =IFERROR(VLOOKUP($G42,'Technician Summary'!$G$3:$BB$372,2,FALSE),"") -> 2 | J42: =(IFERROR(_xlfn.XLOOKUP($G42,'Technician Summary'!G:G,'Technician Summary'!I:I),"")) -> 0 | K42: =IFERROR(1-((J42*2)/I42),"") -> 1 | L42: =IF(G42="","",COUNTIFS('SMS tNPS'!DE:DE,G42,'SMS tNPS'!HB:HB,"Yes")) -> 8 | M42: =IFERROR(IF(G42="","",COUNTIFS('SMS tNPS'!DE:DE,G42,'SMS tNPS'!HB:HB,"Yes"))+COUNTIFS('SMS tNPS'!DE:DE,G42,'SMS tNPS'!HB:HB,"No"),"") -> 8 | N42: =IFERROR(SUM(L42/M42),"") -> 1 | O42: =IFERROR(VLOOKUP($G42,'Technician Summary'!$G$8:$BK$372,14,FALSE),"") -> 43 | P42: =IFERROR(VLOOKUP($G42,'Technician Summary'!$G$8:$BK$372,15,FALSE),"") -> 2 | Q42: =IFERROR(SUM(P42/O42),"") -> 0.0465 | R42: =IFERROR(VLOOKUP($G42,'Technician Summary'!$G$7:$BK$372,17,FALSE),"") -> 17 | S42: =IFERROR(VLOOKUP($G42,'Technician Summary'!$G$7:$BK$372,18,FALSE),"") -> 1 | T42: =IFERROR(SUM(S42/R42),"") -> 0.0588 | U42: =IFERROR(VLOOKUP($G42,'Technician Summary'!$G$7:$BK$372,20,FALSE),"") -> 26 | V42: =IFERROR(VLOOKUP($G42,'Technician Summary'!$G$7:$BK$372,21,FALSE),"") -> 1 | W42: =IFERROR(SUM(V42/U42),"") -> 0.0385 | X42: =IF($G42="","",SUMIF('SQT Data'!$K:$K,$G42,'SQT Data'!$R:$R)) -> 11 | Y42: =IF($G42="","",SUMIF('SQT Data'!$K:$K,$G42,'SQT Data'!$S:$S)) -> 11 | Z42: =IFERROR(SUM(Y42/X42),"") -> 1 | AA42: =IF($G42="","",SUMIF('SQT Data'!$K:$K,$G42,'SQT Data'!$U:$U)) -> 88 | AB42: =IF($G42="","",SUMIF('SQT Data'!$K:$K,$G42,'SQT Data'!$V:$V)) -> 79 | AC42: =IFERROR(SUM(AB42/AA42),"") -> 0.8977 | AE42: =IFERROR(SUM(AD42/#REF!),"") ->  | AF42: =IFERROR(VLOOKUP($G42,'Technician Summary'!$G$8:$BK$372,7,FALSE),"") -> 28 | AG42: =IFERROR(VLOOKUP($G42,'Technician Summary'!$G$8:$BK$372,8,FALSE),"") -> 1 | AH42: =IFERROR(1-AG42/AF42,"") -> 0.9643 | AI42: =IFERROR(VLOOKUP($G42,'Technician Summary'!$G$8:$BK$372,34,FALSE),"") -> 16 | AJ42: =IFERROR(VLOOKUP($G42,'Technician Summary'!$G$8:$BK$372,35,FALSE),"") -> 0 | AK42: =IFERROR(1-AJ42/AI42,"") -> 1 | AL42: =IFERROR(VLOOKUP($G42,'Technician Summary'!$G$8:$BK$372,37,FALSE),"") -> 50 | AM42: =IFERROR(VLOOKUP($G42,'Technician Summary'!$G$8:$BK$372,38,FALSE),"") -> 42 | AN42: =IFERROR(AM42/AL42,"") -> 0.84 | AO42: =COUNTIFS('Drop Validation'!$Q:$Q,$G42,'Drop Validation'!$G:$G,"In Scope") -> 0 | AP42: =COUNTIFS('Drop Validation'!$Q:$Q,$G42,'Drop Validation'!$AB:$AB,"Compliant",'Drop Validation'!$G:$G,"In Scope") -> 0 | AQ42: =IFERROR(AP42/AO42,"") -> 
F43: Dalton Bass | G43: 80926 | H43: 7.5 | I43: =IFERROR(VLOOKUP($G43,'Technician Summary'!$G$3:$BB$372,2,FALSE),"") -> 1 | J43: =(IFERROR(_xlfn.XLOOKUP($G43,'Technician Summary'!G:G,'Technician Summary'!I:I),"")) -> 0 | K43: 1 | L43: =IF(G43="","",COUNTIFS('SMS tNPS'!DE:DE,G43,'SMS tNPS'!HB:HB,"Yes")) -> 6 | M43: =IFERROR(IF(G43="","",COUNTIFS('SMS tNPS'!DE:DE,G43,'SMS tNPS'!HB:HB,"Yes"))+COUNTIFS('SMS tNPS'!DE:DE,G43,'SMS tNPS'!HB:HB,"No"),"") -> 8 | N43: 0.75 | O43: =IFERROR(VLOOKUP($G43,'Technician Summary'!$G$8:$BK$372,14,FALSE),"") -> 31 | P43: =IFERROR(VLOOKUP($G43,'Technician Summary'!$G$8:$BK$372,15,FALSE),"") -> 1 | Q43: 0.0323 | R43: =IFERROR(VLOOKUP($G43,'Technician Summary'!$G$7:$BK$372,17,FALSE),"") -> 16 | S43: =IFERROR(VLOOKUP($G43,'Technician Summary'!$G$7:$BK$372,18,FALSE),"") -> 0 | T43: 0 | U43: =IFERROR(VLOOKUP($G43,'Technician Summary'!$G$7:$BK$372,20,FALSE),"") -> 15 | V43: =IFERROR(VLOOKUP($G43,'Technician Summary'!$G$7:$BK$372,21,FALSE),"") -> 1 | W43: 0.0667 | X43: =IF($G43="","",SUMIF('SQT Data'!$K:$K,$G43,'SQT Data'!$R:$R)) -> 4 | Y43: =IF($G43="","",SUMIF('SQT Data'!$K:$K,$G43,'SQT Data'!$S:$S)) -> 4 | Z43: 1 | AA43: =IF($G43="","",SUMIF('SQT Data'!$K:$K,$G43,'SQT Data'!$U:$U)) -> 32 | AB43: =IF($G43="","",SUMIF('SQT Data'!$K:$K,$G43,'SQT Data'!$V:$V)) -> 30 | AC43: 0.9375 | AE43: =IFERROR(SUM(AD43/#REF!),"") ->  | AF43: =IFERROR(VLOOKUP($G43,'Technician Summary'!$G$8:$BK$372,7,FALSE),"") -> 20 | AG43: =IFERROR(VLOOKUP($G43,'Technician Summary'!$G$8:$BK$372,8,FALSE),"") -> 1 | AH43: 0.95 | AI43: =IFERROR(VLOOKUP($G43,'Technician Summary'!$G$8:$BK$372,34,FALSE),"") -> 16 | AJ43: =IFERROR(VLOOKUP($G43,'Technician Summary'!$G$8:$BK$372,35,FALSE),"") -> 0 | AK43: 1 | AL43: =IFERROR(VLOOKUP($G43,'Technician Summary'!$G$8:$BK$372,37,FALSE),"") -> 35 | AM43: =IFERROR(VLOOKUP($G43,'Technician Summary'!$G$8:$BK$372,38,FALSE),"") -> 31 | AN43: 0.8857 | AO43: =COUNTIFS('Drop Validation'!$Q:$Q,$G43,'Drop Validation'!$G:$G,"In Scope") -> 0 | AP43: =COUNTIFS('Drop Validation'!$Q:$Q,$G43,'Drop Validation'!$AB:$AB,"Compliant",'Drop Validation'!$G:$G,"In Scope") -> 0
F44: Charles Howard | G44: 48783 | H44: 10 | I44: =IFERROR(VLOOKUP($G44,'Technician Summary'!$G$3:$BB$372,2,FALSE),"") -> 1 | J44: =(IFERROR(_xlfn.XLOOKUP($G44,'Technician Summary'!G:G,'Technician Summary'!I:I),"")) -> 0 | K44: 1 | L44: =IF(G44="","",COUNTIFS('SMS tNPS'!DE:DE,G44,'SMS tNPS'!HB:HB,"Yes")) -> 3 | M44: =IFERROR(IF(G44="","",COUNTIFS('SMS tNPS'!DE:DE,G44,'SMS tNPS'!HB:HB,"Yes"))+COUNTIFS('SMS tNPS'!DE:DE,G44,'SMS tNPS'!HB:HB,"No"),"") -> 3 | N44: 1 | O44: =IFERROR(VLOOKUP($G44,'Technician Summary'!$G$8:$BK$372,14,FALSE),"") -> 37 | P44: =IFERROR(VLOOKUP($G44,'Technician Summary'!$G$8:$BK$372,15,FALSE),"") -> 1 | Q44: 0.027 | R44: =IFERROR(VLOOKUP($G44,'Technician Summary'!$G$7:$BK$372,17,FALSE),"") -> 20 | S44: =IFERROR(VLOOKUP($G44,'Technician Summary'!$G$7:$BK$372,18,FALSE),"") -> 1 | T44: 0.05 | U44: =IFERROR(VLOOKUP($G44,'Technician Summary'!$G$7:$BK$372,20,FALSE),"") -> 17 | V44: =IFERROR(VLOOKUP($G44,'Technician Summary'!$G$7:$BK$372,21,FALSE),"") -> 0 | W44: 0 | X44: =IF($G44="","",SUMIF('SQT Data'!$K:$K,$G44,'SQT Data'!$R:$R)) -> 3 | Y44: =IF($G44="","",SUMIF('SQT Data'!$K:$K,$G44,'SQT Data'!$S:$S)) -> 3 | Z44: 1 | AA44: =IF($G44="","",SUMIF('SQT Data'!$K:$K,$G44,'SQT Data'!$U:$U)) -> 24 | AB44: =IF($G44="","",SUMIF('SQT Data'!$K:$K,$G44,'SQT Data'!$V:$V)) -> 20 | AC44: 0.8333 | AE44: =IFERROR(SUM(AD44/#REF!),"") ->  | AF44: =IFERROR(VLOOKUP($G44,'Technician Summary'!$G$8:$BK$372,7,FALSE),"") -> 25 | AG44: =IFERROR(VLOOKUP($G44,'Technician Summary'!$G$8:$BK$372,8,FALSE),"") -> 1 | AH44: 0.96 | AI44: =IFERROR(VLOOKUP($G44,'Technician Summary'!$G$8:$BK$372,34,FALSE),"") -> 18 | AJ44: =IFERROR(VLOOKUP($G44,'Technician Summary'!$G$8:$BK$372,35,FALSE),"") -> 0 | AK44: 1 | AL44: =IFERROR(VLOOKUP($G44,'Technician Summary'!$G$8:$BK$372,37,FALSE),"") -> 43 | AM44: =IFERROR(VLOOKUP($G44,'Technician Summary'!$G$8:$BK$372,38,FALSE),"") -> 37 | AN44: 0.8605 | AO44: =COUNTIFS('Drop Validation'!$Q:$Q,$G44,'Drop Validation'!$G:$G,"In Scope") -> 0 | AP44: =COUNTIFS('Drop Validation'!$Q:$Q,$G44,'Drop Validation'!$AB:$AB,"Compliant",'Drop Validation'!$G:$G,"In Scope") -> 0
F45: Angela Yerby | G45: 60229 | I45: =IFERROR(VLOOKUP($G45,'Technician Summary'!$G$3:$BB$372,2,FALSE),"") -> 1 | J45: =(IFERROR(_xlfn.XLOOKUP($G45,'Technician Summary'!G:G,'Technician Summary'!I:I),"")) -> 0 | K45: 1 | L45: =IF(G45="","",COUNTIFS('SMS tNPS'!DE:DE,G45,'SMS tNPS'!HB:HB,"Yes")) -> 0 | M45: =IFERROR(IF(G45="","",COUNTIFS('SMS tNPS'!DE:DE,G45,'SMS tNPS'!HB:HB,"Yes"))+COUNTIFS('SMS tNPS'!DE:DE,G45,'SMS tNPS'!HB:HB,"No"),"") -> 0 | O45: =IFERROR(VLOOKUP($G45,'Technician Summary'!$G$8:$BK$372,14,FALSE),"") -> 26 | P45: =IFERROR(VLOOKUP($G45,'Technician Summary'!$G$8:$BK$372,15,FALSE),"") -> 0 | Q45: 0 | R45: =IFERROR(VLOOKUP($G45,'Technician Summary'!$G$7:$BK$372,17,FALSE),"") -> 16 | S45: =IFERROR(VLOOKUP($G45,'Technician Summary'!$G$7:$BK$372,18,FALSE),"") -> 0 | T45: 0 | U45: =IFERROR(VLOOKUP($G45,'Technician Summary'!$G$7:$BK$372,20,FALSE),"") -> 10 | V45: =IFERROR(VLOOKUP($G45,'Technician Summary'!$G$7:$BK$372,21,FALSE),"") -> 0 | W45: 0 | X45: =IF($G45="","",SUMIF('SQT Data'!$K:$K,$G45,'SQT Data'!$R:$R)) -> 0 | Y45: =IF($G45="","",SUMIF('SQT Data'!$K:$K,$G45,'SQT Data'!$S:$S)) -> 0 | AA45: =IF($G45="","",SUMIF('SQT Data'!$K:$K,$G45,'SQT Data'!$U:$U)) -> 0 | AB45: =IF($G45="","",SUMIF('SQT Data'!$K:$K,$G45,'SQT Data'!$V:$V)) -> 0 | AE45: =IFERROR(SUM(AD45/#REF!),"") ->  | AF45: =IFERROR(VLOOKUP($G45,'Technician Summary'!$G$8:$BK$372,7,FALSE),"") -> 16 | AG45: =IFERROR(VLOOKUP($G45,'Technician Summary'!$G$8:$BK$372,8,FALSE),"") -> 0 | AH45: 1 | AI45: =IFERROR(VLOOKUP($G45,'Technician Summary'!$G$8:$BK$372,34,FALSE),"") -> 16 | AJ45: =IFERROR(VLOOKUP($G45,'Technician Summary'!$G$8:$BK$372,35,FALSE),"") -> 0 | AK45: 1 | AL45: =IFERROR(VLOOKUP($G45,'Technician Summary'!$G$8:$BK$372,37,FALSE),"") -> 31 | AM45: =IFERROR(VLOOKUP($G45,'Technician Summary'!$G$8:$BK$372,38,FALSE),"") -> 26 | AN45: 0.8387 | AO45: =COUNTIFS('Drop Validation'!$Q:$Q,$G45,'Drop Validation'!$G:$G,"In Scope") -> 0 | AP45: =COUNTIFS('Drop Validation'!$Q:$Q,$G45,'Drop Validation'!$AB:$AB,"Compliant",'Drop Validation'!$G:$G,"In Scope") -> 0
F46: Jamir Chambers | G46: 2558 | H46: 3.75 | I46: =IFERROR(VLOOKUP($G46,'Technician Summary'!$G$3:$BB$372,2,FALSE),"") -> 0 | J46: =(IFERROR(_xlfn.XLOOKUP($G46,'Technician Summary'!G:G,'Technician Summary'!I:I),"")) -> 0 | L46: =IF(G46="","",COUNTIFS('SMS tNPS'!DE:DE,G46,'SMS tNPS'!HB:HB,"Yes")) -> 4 | M46: =IFERROR(IF(G46="","",COUNTIFS('SMS tNPS'!DE:DE,G46,'SMS tNPS'!HB:HB,"Yes"))+COUNTIFS('SMS tNPS'!DE:DE,G46,'SMS tNPS'!HB:HB,"No"),"") -> 6 | N46: 0.6667 | O46: =IFERROR(VLOOKUP($G46,'Technician Summary'!$G$8:$BK$372,14,FALSE),"") -> 30 | P46: =IFERROR(VLOOKUP($G46,'Technician Summary'!$G$8:$BK$372,15,FALSE),"") -> 3 | Q46: 0.1 | R46: =IFERROR(VLOOKUP($G46,'Technician Summary'!$G$7:$BK$372,17,FALSE),"") -> 13 | S46: =IFERROR(VLOOKUP($G46,'Technician Summary'!$G$7:$BK$372,18,FALSE),"") -> 0 | T46: 0 | U46: =IFERROR(VLOOKUP($G46,'Technician Summary'!$G$7:$BK$372,20,FALSE),"") -> 17 | V46: =IFERROR(VLOOKUP($G46,'Technician Summary'!$G$7:$BK$372,21,FALSE),"") -> 3 | W46: 0.1765 | X46: =IF($G46="","",SUMIF('SQT Data'!$K:$K,$G46,'SQT Data'!$R:$R)) -> 18 | Y46: =IF($G46="","",SUMIF('SQT Data'!$K:$K,$G46,'SQT Data'!$S:$S)) -> 17 | Z46: 0.9444 | AA46: =IF($G46="","",SUMIF('SQT Data'!$K:$K,$G46,'SQT Data'!$U:$U)) -> 133 | AB46: =IF($G46="","",SUMIF('SQT Data'!$K:$K,$G46,'SQT Data'!$V:$V)) -> 117 | AC46: 0.8797 | AE46: =IFERROR(SUM(AD46/#REF!),"") ->  | AF46: =IFERROR(VLOOKUP($G46,'Technician Summary'!$G$8:$BK$372,7,FALSE),"") -> 18 | AG46: =IFERROR(VLOOKUP($G46,'Technician Summary'!$G$8:$BK$372,8,FALSE),"") -> 1 | AH46: 0.9444 | AI46: =IFERROR(VLOOKUP($G46,'Technician Summary'!$G$8:$BK$372,34,FALSE),"") -> 13 | AJ46: =IFERROR(VLOOKUP($G46,'Technician Summary'!$G$8:$BK$372,35,FALSE),"") -> 1 | AK46: 0.9231 | AL46: =IFERROR(VLOOKUP($G46,'Technician Summary'!$G$8:$BK$372,37,FALSE),"") -> 38 | AM46: =IFERROR(VLOOKUP($G46,'Technician Summary'!$G$8:$BK$372,38,FALSE),"") -> 30 | AN46: 0.7895 | AO46: =COUNTIFS('Drop Validation'!$Q:$Q,$G46,'Drop Validation'!$G:$G,"In Scope") -> 0 | AP46: =COUNTIFS('Drop Validation'!$Q:$Q,$G46,'Drop Validation'!$AB:$AB,"Compliant",'Drop Validation'!$G:$G,"In Scope") -> 0
F47: Maurisha Watson | G47: 10362 | H47: 10 | I47: =IFERROR(VLOOKUP($G47,'Technician Summary'!$G$3:$BB$372,2,FALSE),"") -> 3 | J47: =(IFERROR(_xlfn.XLOOKUP($G47,'Technician Summary'!G:G,'Technician Summary'!I:I),"")) -> 0 | K47: 1 | L47: =IF(G47="","",COUNTIFS('SMS tNPS'!DE:DE,G47,'SMS tNPS'!HB:HB,"Yes")) -> 9 | M47: =IFERROR(IF(G47="","",COUNTIFS('SMS tNPS'!DE:DE,G47,'SMS tNPS'!HB:HB,"Yes"))+COUNTIFS('SMS tNPS'!DE:DE,G47,'SMS tNPS'!HB:HB,"No"),"") -> 10 | N47: 0.9 | O47: =IFERROR(VLOOKUP($G47,'Technician Summary'!$G$8:$BK$372,14,FALSE),"") -> 46 | P47: =IFERROR(VLOOKUP($G47,'Technician Summary'!$G$8:$BK$372,15,FALSE),"") -> 2 | Q47: 0.0435 | R47: =IFERROR(VLOOKUP($G47,'Technician Summary'!$G$7:$BK$372,17,FALSE),"") -> 17 | S47: =IFERROR(VLOOKUP($G47,'Technician Summary'!$G$7:$BK$372,18,FALSE),"") -> 0 | T47: 0 | U47: =IFERROR(VLOOKUP($G47,'Technician Summary'!$G$7:$BK$372,20,FALSE),"") -> 29 | V47: =IFERROR(VLOOKUP($G47,'Technician Summary'!$G$7:$BK$372,21,FALSE),"") -> 2 | W47: 0.069 | X47: =IF($G47="","",SUMIF('SQT Data'!$K:$K,$G47,'SQT Data'!$R:$R)) -> 28 | Y47: =IF($G47="","",SUMIF('SQT Data'!$K:$K,$G47,'SQT Data'!$S:$S)) -> 27 | Z47: 0.9643 | AA47: =IF($G47="","",SUMIF('SQT Data'!$K:$K,$G47,'SQT Data'!$U:$U)) -> 213 | AB47: =IF($G47="","",SUMIF('SQT Data'!$K:$K,$G47,'SQT Data'!$V:$V)) -> 205 | AC47: 0.9624 | AE47: =IFERROR(SUM(AD47/#REF!),"") ->  | AF47: =IFERROR(VLOOKUP($G47,'Technician Summary'!$G$8:$BK$372,7,FALSE),"") -> 22 | AG47: =IFERROR(VLOOKUP($G47,'Technician Summary'!$G$8:$BK$372,8,FALSE),"") -> 0 | AH47: 1 | AI47: =IFERROR(VLOOKUP($G47,'Technician Summary'!$G$8:$BK$372,34,FALSE),"") -> 16 | AJ47: =IFERROR(VLOOKUP($G47,'Technician Summary'!$G$8:$BK$372,35,FALSE),"") -> 0 | AK47: 1 | AL47: =IFERROR(VLOOKUP($G47,'Technician Summary'!$G$8:$BK$372,37,FALSE),"") -> 55 | AM47: =IFERROR(VLOOKUP($G47,'Technician Summary'!$G$8:$BK$372,38,FALSE),"") -> 45 | AN47: 0.8182 | AO47: =COUNTIFS('Drop Validation'!$Q:$Q,$G47,'Drop Validation'!$G:$G,"In Scope") -> 6 | AP47: =COUNTIFS('Drop Validation'!$Q:$Q,$G47,'Drop Validation'!$AB:$AB,"Compliant",'Drop Validation'!$G:$G,"In Scope") -> 6 | AQ47: 1
F48: Tyrese Johnson | G48: 70088 | H48: 8.75 | I48: =IFERROR(VLOOKUP($G48,'Technician Summary'!$G$3:$BB$372,2,FALSE),"") -> 2 | J48: =(IFERROR(_xlfn.XLOOKUP($G48,'Technician Summary'!G:G,'Technician Summary'!I:I),"")) -> 1 | K48: 0 | L48: =IF(G48="","",COUNTIFS('SMS tNPS'!DE:DE,G48,'SMS tNPS'!HB:HB,"Yes")) -> 12 | M48: =IFERROR(IF(G48="","",COUNTIFS('SMS tNPS'!DE:DE,G48,'SMS tNPS'!HB:HB,"Yes"))+COUNTIFS('SMS tNPS'!DE:DE,G48,'SMS tNPS'!HB:HB,"No"),"") -> 13 | N48: 0.9231 | O48: =IFERROR(VLOOKUP($G48,'Technician Summary'!$G$8:$BK$372,14,FALSE),"") -> 48 | P48: =IFERROR(VLOOKUP($G48,'Technician Summary'!$G$8:$BK$372,15,FALSE),"") -> 2 | Q48: 0.0417 | R48: =IFERROR(VLOOKUP($G48,'Technician Summary'!$G$7:$BK$372,17,FALSE),"") -> 22 | S48: =IFERROR(VLOOKUP($G48,'Technician Summary'!$G$7:$BK$372,18,FALSE),"") -> 1 | T48: 0.0455 | U48: =IFERROR(VLOOKUP($G48,'Technician Summary'!$G$7:$BK$372,20,FALSE),"") -> 26 | V48: =IFERROR(VLOOKUP($G48,'Technician Summary'!$G$7:$BK$372,21,FALSE),"") -> 1 | W48: 0.0385 | X48: =IF($G48="","",SUMIF('SQT Data'!$K:$K,$G48,'SQT Data'!$R:$R)) -> 28 | Y48: =IF($G48="","",SUMIF('SQT Data'!$K:$K,$G48,'SQT Data'!$S:$S)) -> 28 | Z48: 1 | AA48: =IF($G48="","",SUMIF('SQT Data'!$K:$K,$G48,'SQT Data'!$U:$U)) -> 224 | AB48: =IF($G48="","",SUMIF('SQT Data'!$K:$K,$G48,'SQT Data'!$V:$V)) -> 211 | AC48: 0.942 | AE48: =IFERROR(SUM(AD48/#REF!),"") ->  | AF48: =IFERROR(VLOOKUP($G48,'Technician Summary'!$G$8:$BK$372,7,FALSE),"") -> 32 | AG48: =IFERROR(VLOOKUP($G48,'Technician Summary'!$G$8:$BK$372,8,FALSE),"") -> 2 | AH48: 0.9375 | AI48: =IFERROR(VLOOKUP($G48,'Technician Summary'!$G$8:$BK$372,34,FALSE),"") -> 21 | AJ48: =IFERROR(VLOOKUP($G48,'Technician Summary'!$G$8:$BK$372,35,FALSE),"") -> 0 | AK48: 1 | AL48: =IFERROR(VLOOKUP($G48,'Technician Summary'!$G$8:$BK$372,37,FALSE),"") -> 56 | AM48: =IFERROR(VLOOKUP($G48,'Technician Summary'!$G$8:$BK$372,38,FALSE),"") -> 47 | AN48: 0.8393 | AO48: =COUNTIFS('Drop Validation'!$Q:$Q,$G48,'Drop Validation'!$G:$G,"In Scope") -> 0 | AP48: =COUNTIFS('Drop Validation'!$Q:$Q,$G48,'Drop Validation'!$AB:$AB,"Compliant",'Drop Validation'!$G:$G,"In Scope") -> 0
F49: Bev DeLorme | G49: 75156 | I49: =IFERROR(VLOOKUP($G49,'Technician Summary'!$G$3:$BB$372,2,FALSE),"") -> 1 | J49: =(IFERROR(_xlfn.XLOOKUP($G49,'Technician Summary'!G:G,'Technician Summary'!I:I),"")) -> 0 | K49: 1 | L49: =IF(G49="","",COUNTIFS('SMS tNPS'!DE:DE,G49,'SMS tNPS'!HB:HB,"Yes")) -> 2 | M49: =IFERROR(IF(G49="","",COUNTIFS('SMS tNPS'!DE:DE,G49,'SMS tNPS'!HB:HB,"Yes"))+COUNTIFS('SMS tNPS'!DE:DE,G49,'SMS tNPS'!HB:HB,"No"),"") -> 4 | N49: 0.5 | O49: =IFERROR(VLOOKUP($G49,'Technician Summary'!$G$8:$BK$372,14,FALSE),"") -> 13 | P49: =IFERROR(VLOOKUP($G49,'Technician Summary'!$G$8:$BK$372,15,FALSE),"") -> 1 | Q49: 0.0769 | R49: =IFERROR(VLOOKUP($G49,'Technician Summary'!$G$7:$BK$372,17,FALSE),"") -> 11 | S49: =IFERROR(VLOOKUP($G49,'Technician Summary'!$G$7:$BK$372,18,FALSE),"") -> 1 | T49: 0.0909 | U49: =IFERROR(VLOOKUP($G49,'Technician Summary'!$G$7:$BK$372,20,FALSE),"") -> 2 | V49: =IFERROR(VLOOKUP($G49,'Technician Summary'!$G$7:$BK$372,21,FALSE),"") -> 0 | W49: 0 | X49: =IF($G49="","",SUMIF('SQT Data'!$K:$K,$G49,'SQT Data'!$R:$R)) -> 0 | Y49: =IF($G49="","",SUMIF('SQT Data'!$K:$K,$G49,'SQT Data'!$S:$S)) -> 0 | AA49: =IF($G49="","",SUMIF('SQT Data'!$K:$K,$G49,'SQT Data'!$U:$U)) -> 0 | AB49: =IF($G49="","",SUMIF('SQT Data'!$K:$K,$G49,'SQT Data'!$V:$V)) -> 0 | AE49: =IFERROR(SUM(AD49/#REF!),"") ->  | AF49: =IFERROR(VLOOKUP($G49,'Technician Summary'!$G$8:$BK$372,7,FALSE),"") -> 12 | AG49: =IFERROR(VLOOKUP($G49,'Technician Summary'!$G$8:$BK$372,8,FALSE),"") -> 1 | AH49: 0.9167 | AI49: =IFERROR(VLOOKUP($G49,'Technician Summary'!$G$8:$BK$372,34,FALSE),"") -> 11 | AJ49: =IFERROR(VLOOKUP($G49,'Technician Summary'!$G$8:$BK$372,35,FALSE),"") -> 1 | AK49: 0.9091 | AL49: =IFERROR(VLOOKUP($G49,'Technician Summary'!$G$8:$BK$372,37,FALSE),"") -> 15 | AM49: =IFERROR(VLOOKUP($G49,'Technician Summary'!$G$8:$BK$372,38,FALSE),"") -> 13 | AN49: 0.8667 | AO49: =COUNTIFS('Drop Validation'!$Q:$Q,$G49,'Drop Validation'!$G:$G,"In Scope") -> 0 | AP49: =COUNTIFS('Drop Validation'!$Q:$Q,$G49,'Drop Validation'!$AB:$AB,"Compliant",'Drop Validation'!$G:$G,"In Scope") -> 0
F50: Dustin Stover | G50: 24690 | H50: 2.5 | I50: =IFERROR(VLOOKUP($G50,'Technician Summary'!$G$3:$BB$372,2,FALSE),"") -> 2 | J50: =(IFERROR(_xlfn.XLOOKUP($G50,'Technician Summary'!G:G,'Technician Summary'!I:I),"")) -> 1 | K50: 0 | L50: =IF(G50="","",COUNTIFS('SMS tNPS'!DE:DE,G50,'SMS tNPS'!HB:HB,"Yes")) -> 9 | M50: =IFERROR(IF(G50="","",COUNTIFS('SMS tNPS'!DE:DE,G50,'SMS tNPS'!HB:HB,"Yes"))+COUNTIFS('SMS tNPS'!DE:DE,G50,'SMS tNPS'!HB:HB,"No"),"") -> 11 | N50: 0.8182 | O50: =IFERROR(VLOOKUP($G50,'Technician Summary'!$G$8:$BK$372,14,FALSE),"") -> 57 | P50: =IFERROR(VLOOKUP($G50,'Technician Summary'!$G$8:$BK$372,15,FALSE),"") -> 3 | Q50: 0.0526 | R50: =IFERROR(VLOOKUP($G50,'Technician Summary'!$G$7:$BK$372,17,FALSE),"") -> 30 | S50: =IFERROR(VLOOKUP($G50,'Technician Summary'!$G$7:$BK$372,18,FALSE),"") -> 0 | T50: 0 | U50: =IFERROR(VLOOKUP($G50,'Technician Summary'!$G$7:$BK$372,20,FALSE),"") -> 27 | V50: =IFERROR(VLOOKUP($G50,'Technician Summary'!$G$7:$BK$372,21,FALSE),"") -> 3 | W50: 0.1111 | X50: =IF($G50="","",SUMIF('SQT Data'!$K:$K,$G50,'SQT Data'!$R:$R)) -> 31 | Y50: =IF($G50="","",SUMIF('SQT Data'!$K:$K,$G50,'SQT Data'!$S:$S)) -> 30 | Z50: 0.9677 | AA50: =IF($G50="","",SUMIF('SQT Data'!$K:$K,$G50,'SQT Data'!$U:$U)) -> 240 | AB50: =IF($G50="","",SUMIF('SQT Data'!$K:$K,$G50,'SQT Data'!$V:$V)) -> 222 | AC50: 0.925 | AE50: =IFERROR(SUM(AD50/#REF!),"") ->  | AF50: =IFERROR(VLOOKUP($G50,'Technician Summary'!$G$8:$BK$372,7,FALSE),"") -> 33 | AG50: =IFERROR(VLOOKUP($G50,'Technician Summary'!$G$8:$BK$372,8,FALSE),"") -> 1 | AH50: 0.9697 | AI50: =IFERROR(VLOOKUP($G50,'Technician Summary'!$G$8:$BK$372,34,FALSE),"") -> 30 | AJ50: =IFERROR(VLOOKUP($G50,'Technician Summary'!$G$8:$BK$372,35,FALSE),"") -> 3 | AK50: 0.9 | AL50: =IFERROR(VLOOKUP($G50,'Technician Summary'!$G$8:$BK$372,37,FALSE),"") -> 58 | AM50: =IFERROR(VLOOKUP($G50,'Technician Summary'!$G$8:$BK$372,38,FALSE),"") -> 56 | AN50: 0.9655 | AO50: =COUNTIFS('Drop Validation'!$Q:$Q,$G50,'Drop Validation'!$G:$G,"In Scope") -> 1 | AP50: =COUNTIFS('Drop Validation'!$Q:$Q,$G50,'Drop Validation'!$AB:$AB,"Compliant",'Drop Validation'!$G:$G,"In Scope") -> 0 | AQ50: 0
F51: Luis Galan | G51: 86915 | H51: 8.75 | I51: =IFERROR(VLOOKUP($G51,'Technician Summary'!$G$3:$BB$372,2,FALSE),"") -> 0 | J51: =(IFERROR(_xlfn.XLOOKUP($G51,'Technician Summary'!G:G,'Technician Summary'!I:I),"")) -> 0 | L51: =IF(G51="","",COUNTIFS('SMS tNPS'!DE:DE,G51,'SMS tNPS'!HB:HB,"Yes")) -> 2 | M51: =IFERROR(IF(G51="","",COUNTIFS('SMS tNPS'!DE:DE,G51,'SMS tNPS'!HB:HB,"Yes"))+COUNTIFS('SMS tNPS'!DE:DE,G51,'SMS tNPS'!HB:HB,"No"),"") -> 2 | N51: 1 | O51: =IFERROR(VLOOKUP($G51,'Technician Summary'!$G$8:$BK$372,14,FALSE),"") -> 25 | P51: =IFERROR(VLOOKUP($G51,'Technician Summary'!$G$8:$BK$372,15,FALSE),"") -> 0 | Q51: 0 | R51: =IFERROR(VLOOKUP($G51,'Technician Summary'!$G$7:$BK$372,17,FALSE),"") -> 7 | S51: =IFERROR(VLOOKUP($G51,'Technician Summary'!$G$7:$BK$372,18,FALSE),"") -> 0 | T51: 0 | U51: =IFERROR(VLOOKUP($G51,'Technician Summary'!$G$7:$BK$372,20,FALSE),"") -> 18 | V51: =IFERROR(VLOOKUP($G51,'Technician Summary'!$G$7:$BK$372,21,FALSE),"") -> 0 | W51: 0 | X51: =IF($G51="","",SUMIF('SQT Data'!$K:$K,$G51,'SQT Data'!$R:$R)) -> 11 | Y51: =IF($G51="","",SUMIF('SQT Data'!$K:$K,$G51,'SQT Data'!$S:$S)) -> 11 | Z51: 1 | AA51: =IF($G51="","",SUMIF('SQT Data'!$K:$K,$G51,'SQT Data'!$U:$U)) -> 88 | AB51: =IF($G51="","",SUMIF('SQT Data'!$K:$K,$G51,'SQT Data'!$V:$V)) -> 84 | AC51: 0.9545 | AE51: =IFERROR(SUM(AD51/#REF!),"") ->  | AF51: =IFERROR(VLOOKUP($G51,'Technician Summary'!$G$8:$BK$372,7,FALSE),"") -> 12 | AG51: =IFERROR(VLOOKUP($G51,'Technician Summary'!$G$8:$BK$372,8,FALSE),"") -> 0 | AH51: 1 | AI51: =IFERROR(VLOOKUP($G51,'Technician Summary'!$G$8:$BK$372,34,FALSE),"") -> 7 | AJ51: =IFERROR(VLOOKUP($G51,'Technician Summary'!$G$8:$BK$372,35,FALSE),"") -> 2 | AK51: 0.7143 | AL51: =IFERROR(VLOOKUP($G51,'Technician Summary'!$G$8:$BK$372,37,FALSE),"") -> 33 | AM51: =IFERROR(VLOOKUP($G51,'Technician Summary'!$G$8:$BK$372,38,FALSE),"") -> 25 | AN51: 0.7576 | AO51: =COUNTIFS('Drop Validation'!$Q:$Q,$G51,'Drop Validation'!$G:$G,"In Scope") -> 2 | AP51: =COUNTIFS('Drop Validation'!$Q:$Q,$G51,'Drop Validation'!$AB:$AB,"Compliant",'Drop Validation'!$G:$G,"In Scope") -> 2 | AQ51: 1
I52: =IFERROR(VLOOKUP($G52,'Technician Summary'!$G$3:$BB$372,2,FALSE),"") ->  | J52: =(IFERROR(_xlfn.XLOOKUP($G52,'Technician Summary'!G:G,'Technician Summary'!I:I),"")) -> 0 | L52: =IF(G52="","",COUNTIFS('SMS tNPS'!DE:DE,G52,'SMS tNPS'!HB:HB,"Yes")) ->  | M52: =IFERROR(IF(G52="","",COUNTIFS('SMS tNPS'!DE:DE,G52,'SMS tNPS'!HB:HB,"Yes"))+COUNTIFS('SMS tNPS'!DE:DE,G52,'SMS tNPS'!HB:HB,"No"),"") ->  | O52: =IFERROR(VLOOKUP($G52,'Technician Summary'!$G$8:$BK$372,14,FALSE),"") ->  | P52: =IFERROR(VLOOKUP($G52,'Technician Summary'!$G$8:$BK$372,15,FALSE),"") ->  | R52: =IFERROR(VLOOKUP($G52,'Technician Summary'!$G$7:$BK$372,17,FALSE),"") ->  | S52: =IFERROR(VLOOKUP($G52,'Technician Summary'!$G$7:$BK$372,18,FALSE),"") ->  | U52: =IFERROR(VLOOKUP($G52,'Technician Summary'!$G$7:$BK$372,20,FALSE),"") ->  | V52: =IFERROR(VLOOKUP($G52,'Technician Summary'!$G$7:$BK$372,21,FALSE),"") ->  | X52: =IF($G52="","",SUMIF('SQT Data'!$K:$K,$G52,'SQT Data'!$R:$R)) ->  | Y52: =IF($G52="","",SUMIF('SQT Data'!$K:$K,$G52,'SQT Data'!$S:$S)) ->  | AA52: =IF($G52="","",SUMIF('SQT Data'!$K:$K,$G52,'SQT Data'!$U:$U)) ->  | AB52: =IF($G52="","",SUMIF('SQT Data'!$K:$K,$G52,'SQT Data'!$V:$V)) ->  | AE52: =IFERROR(SUM(AD52/#REF!),"") ->  | AF52: =IFERROR(VLOOKUP($G52,'Technician Summary'!$G$8:$BK$372,7,FALSE),"") ->  | AG52: =IFERROR(VLOOKUP($G52,'Technician Summary'!$G$8:$BK$372,8,FALSE),"") ->  | AI52: =IFERROR(VLOOKUP($G52,'Technician Summary'!$G$8:$BK$372,34,FALSE),"") ->  | AJ52: =IFERROR(VLOOKUP($G52,'Technician Summary'!$G$8:$BK$372,35,FALSE),"") ->  | AL52: =IFERROR(VLOOKUP($G52,'Technician Summary'!$G$8:$BK$372,37,FALSE),"") ->  | AM52: =IFERROR(VLOOKUP($G52,'Technician Summary'!$G$8:$BK$372,38,FALSE),"") ->  | AO52: =COUNTIFS('Drop Validation'!$Q:$Q,$G52,'Drop Validation'!$G:$G,"In Scope") -> 0 | AP52: =COUNTIFS('Drop Validation'!$Q:$Q,$G52,'Drop Validation'!$AB:$AB,"Compliant",'Drop Validation'!$G:$G,"In Scope") -> 0
I53: =IFERROR(VLOOKUP($G53,'Technician Summary'!$G$3:$BB$372,2,FALSE),"") ->  | J53: =(IFERROR(_xlfn.XLOOKUP($G53,'Technician Summary'!G:G,'Technician Summary'!I:I),"")) -> 0 | L53: =IF(G53="","",COUNTIFS('SMS tNPS'!DE:DE,G53,'SMS tNPS'!HB:HB,"Yes")) ->  | M53: =IFERROR(IF(G53="","",COUNTIFS('SMS tNPS'!DE:DE,G53,'SMS tNPS'!HB:HB,"Yes"))+COUNTIFS('SMS tNPS'!DE:DE,G53,'SMS tNPS'!HB:HB,"No"),"") ->  | O53: =IFERROR(VLOOKUP($G53,'Technician Summary'!$G$8:$BK$372,14,FALSE),"") ->  | P53: =IFERROR(VLOOKUP($G53,'Technician Summary'!$G$8:$BK$372,15,FALSE),"") ->  | R53: =IFERROR(VLOOKUP($G53,'Technician Summary'!$G$7:$BK$372,17,FALSE),"") ->  | S53: =IFERROR(VLOOKUP($G53,'Technician Summary'!$G$7:$BK$372,18,FALSE),"") ->  | U53: =IFERROR(VLOOKUP($G53,'Technician Summary'!$G$7:$BK$372,20,FALSE),"") ->  | V53: =IFERROR(VLOOKUP($G53,'Technician Summary'!$G$7:$BK$372,21,FALSE),"") ->  | X53: =IF($G53="","",SUMIF('SQT Data'!$K:$K,$G53,'SQT Data'!$R:$R)) ->  | Y53: =IF($G53="","",SUMIF('SQT Data'!$K:$K,$G53,'SQT Data'!$S:$S)) ->  | AA53: =IF($G53="","",SUMIF('SQT Data'!$K:$K,$G53,'SQT Data'!$U:$U)) ->  | AB53: =IF($G53="","",SUMIF('SQT Data'!$K:$K,$G53,'SQT Data'!$V:$V)) ->  | AE53: =IFERROR(SUM(AD53/#REF!),"") ->  | AF53: =IFERROR(VLOOKUP($G53,'Technician Summary'!$G$8:$BK$372,7,FALSE),"") ->  | AG53: =IFERROR(VLOOKUP($G53,'Technician Summary'!$G$8:$BK$372,8,FALSE),"") ->  | AI53: =IFERROR(VLOOKUP($G53,'Technician Summary'!$G$8:$BK$372,34,FALSE),"") ->  | AJ53: =IFERROR(VLOOKUP($G53,'Technician Summary'!$G$8:$BK$372,35,FALSE),"") ->  | AL53: =IFERROR(VLOOKUP($G53,'Technician Summary'!$G$8:$BK$372,37,FALSE),"") ->  | AM53: =IFERROR(VLOOKUP($G53,'Technician Summary'!$G$8:$BK$372,38,FALSE),"") ->  | AO53: =COUNTIFS('Drop Validation'!$Q:$Q,$G53,'Drop Validation'!$G:$G,"In Scope") -> 0 | AP53: =COUNTIFS('Drop Validation'!$Q:$Q,$G53,'Drop Validation'!$AB:$AB,"Compliant",'Drop Validation'!$G:$G,"In Scope") -> 0
I54: =IFERROR(VLOOKUP($G54,'Technician Summary'!$G$3:$BB$372,2,FALSE),"") ->  | J54: =(IFERROR(_xlfn.XLOOKUP($G54,'Technician Summary'!G:G,'Technician Summary'!I:I),"")) -> 0 | L54: =IF(G54="","",COUNTIFS('SMS tNPS'!DE:DE,G54,'SMS tNPS'!HB:HB,"Yes")) ->  | M54: =IFERROR(IF(G54="","",COUNTIFS('SMS tNPS'!DE:DE,G54,'SMS tNPS'!HB:HB,"Yes"))+COUNTIFS('SMS tNPS'!DE:DE,G54,'SMS tNPS'!HB:HB,"No"),"") ->  | O54: =IFERROR(VLOOKUP($G54,'Technician Summary'!$G$8:$BK$372,14,FALSE),"") ->  | P54: =IFERROR(VLOOKUP($G54,'Technician Summary'!$G$8:$BK$372,15,FALSE),"") ->  | R54: =IFERROR(VLOOKUP($G54,'Technician Summary'!$G$7:$BK$372,17,FALSE),"") ->  | S54: =IFERROR(VLOOKUP($G54,'Technician Summary'!$G$7:$BK$372,18,FALSE),"") ->  | U54: =IFERROR(VLOOKUP($G54,'Technician Summary'!$G$7:$BK$372,20,FALSE),"") ->  | V54: =IFERROR(VLOOKUP($G54,'Technician Summary'!$G$7:$BK$372,21,FALSE),"") ->  | X54: =IF($G54="","",SUMIF('SQT Data'!$K:$K,$G54,'SQT Data'!$R:$R)) ->  | Y54: =IF($G54="","",SUMIF('SQT Data'!$K:$K,$G54,'SQT Data'!$S:$S)) ->  | AA54: =IF($G54="","",SUMIF('SQT Data'!$K:$K,$G54,'SQT Data'!$U:$U)) ->  | AB54: =IF($G54="","",SUMIF('SQT Data'!$K:$K,$G54,'SQT Data'!$V:$V)) ->  | AE54: =IFERROR(SUM(AD54/#REF!),"") ->  | AF54: =IFERROR(VLOOKUP($G54,'Technician Summary'!$G$8:$BK$372,7,FALSE),"") ->  | AG54: =IFERROR(VLOOKUP($G54,'Technician Summary'!$G$8:$BK$372,8,FALSE),"") ->  | AI54: =IFERROR(VLOOKUP($G54,'Technician Summary'!$G$8:$BK$372,34,FALSE),"") ->  | AJ54: =IFERROR(VLOOKUP($G54,'Technician Summary'!$G$8:$BK$372,35,FALSE),"") ->  | AL54: =IFERROR(VLOOKUP($G54,'Technician Summary'!$G$8:$BK$372,37,FALSE),"") ->  | AM54: =IFERROR(VLOOKUP($G54,'Technician Summary'!$G$8:$BK$372,38,FALSE),"") ->  | AO54: =COUNTIFS('Drop Validation'!$Q:$Q,$G54,'Drop Validation'!$G:$G,"In Scope") -> 0 | AP54: =COUNTIFS('Drop Validation'!$Q:$Q,$G54,'Drop Validation'!$AB:$AB,"Compliant",'Drop Validation'!$G:$G,"In Scope") -> 0
I55: =IFERROR(VLOOKUP($G55,'Technician Summary'!$G$3:$BB$372,2,FALSE),"") ->  | J55: =(IFERROR(_xlfn.XLOOKUP($G55,'Technician Summary'!G:G,'Technician Summary'!I:I),"")) -> 0 | L55: =IF(G55="","",COUNTIFS('SMS tNPS'!DE:DE,G55,'SMS tNPS'!HB:HB,"Yes")) ->  | M55: =IFERROR(IF(G55="","",COUNTIFS('SMS tNPS'!DE:DE,G55,'SMS tNPS'!HB:HB,"Yes"))+COUNTIFS('SMS tNPS'!DE:DE,G55,'SMS tNPS'!HB:HB,"No"),"") ->  | O55: =IFERROR(VLOOKUP($G55,'Technician Summary'!$G$8:$BK$372,14,FALSE),"") ->  | P55: =IFERROR(VLOOKUP($G55,'Technician Summary'!$G$8:$BK$372,15,FALSE),"") ->  | R55: =IFERROR(VLOOKUP($G55,'Technician Summary'!$G$7:$BK$372,17,FALSE),"") ->  | S55: =IFERROR(VLOOKUP($G55,'Technician Summary'!$G$7:$BK$372,18,FALSE),"") ->  | U55: =IFERROR(VLOOKUP($G55,'Technician Summary'!$G$7:$BK$372,20,FALSE),"") ->  | V55: =IFERROR(VLOOKUP($G55,'Technician Summary'!$G$7:$BK$372,21,FALSE),"") ->  | X55: =IF($G55="","",SUMIF('SQT Data'!$K:$K,$G55,'SQT Data'!$R:$R)) ->  | Y55: =IF($G55="","",SUMIF('SQT Data'!$K:$K,$G55,'SQT Data'!$S:$S)) ->  | AA55: =IF($G55="","",SUMIF('SQT Data'!$K:$K,$G55,'SQT Data'!$U:$U)) ->  | AB55: =IF($G55="","",SUMIF('SQT Data'!$K:$K,$G55,'SQT Data'!$V:$V)) ->  | AE55: =IFERROR(SUM(AD55/#REF!),"") ->  | AF55: =IFERROR(VLOOKUP($G55,'Technician Summary'!$G$8:$BK$372,7,FALSE),"") ->  | AG55: =IFERROR(VLOOKUP($G55,'Technician Summary'!$G$8:$BK$372,8,FALSE),"") ->  | AI55: =IFERROR(VLOOKUP($G55,'Technician Summary'!$G$8:$BK$372,34,FALSE),"") ->  | AJ55: =IFERROR(VLOOKUP($G55,'Technician Summary'!$G$8:$BK$372,35,FALSE),"") ->  | AL55: =IFERROR(VLOOKUP($G55,'Technician Summary'!$G$8:$BK$372,37,FALSE),"") ->  | AM55: =IFERROR(VLOOKUP($G55,'Technician Summary'!$G$8:$BK$372,38,FALSE),"") ->  | AO55: =COUNTIFS('Drop Validation'!$Q:$Q,$G55,'Drop Validation'!$G:$G,"In Scope") -> 0 | AP55: =COUNTIFS('Drop Validation'!$Q:$Q,$G55,'Drop Validation'!$AB:$AB,"Compliant",'Drop Validation'!$G:$G,"In Scope") -> 0
I56: =IFERROR(VLOOKUP($G56,'Technician Summary'!$G$3:$BB$372,2,FALSE),"") ->  | J56: =(IFERROR(_xlfn.XLOOKUP($G56,'Technician Summary'!G:G,'Technician Summary'!I:I),"")) -> 0 | L56: =IF(G56="","",COUNTIFS('SMS tNPS'!DE:DE,G56,'SMS tNPS'!HB:HB,"Yes")) ->  | M56: =IFERROR(IF(G56="","",COUNTIFS('SMS tNPS'!DE:DE,G56,'SMS tNPS'!HB:HB,"Yes"))+COUNTIFS('SMS tNPS'!DE:DE,G56,'SMS tNPS'!HB:HB,"No"),"") ->  | O56: =IFERROR(VLOOKUP($G56,'Technician Summary'!$G$8:$BK$372,14,FALSE),"") ->  | P56: =IFERROR(VLOOKUP($G56,'Technician Summary'!$G$8:$BK$372,15,FALSE),"") ->  | R56: =IFERROR(VLOOKUP($G56,'Technician Summary'!$G$7:$BK$372,17,FALSE),"") ->  | S56: =IFERROR(VLOOKUP($G56,'Technician Summary'!$G$7:$BK$372,18,FALSE),"") ->  | U56: =IFERROR(VLOOKUP($G56,'Technician Summary'!$G$7:$BK$372,20,FALSE),"") ->  | V56: =IFERROR(VLOOKUP($G56,'Technician Summary'!$G$7:$BK$372,21,FALSE),"") ->  | X56: =IF($G56="","",SUMIF('SQT Data'!$K:$K,$G56,'SQT Data'!$R:$R)) ->  | Y56: =IF($G56="","",SUMIF('SQT Data'!$K:$K,$G56,'SQT Data'!$S:$S)) ->  | AA56: =IF($G56="","",SUMIF('SQT Data'!$K:$K,$G56,'SQT Data'!$U:$U)) ->  | AB56: =IF($G56="","",SUMIF('SQT Data'!$K:$K,$G56,'SQT Data'!$V:$V)) ->  | AE56: =IFERROR(SUM(AD56/#REF!),"") ->  | AF56: =IFERROR(VLOOKUP($G56,'Technician Summary'!$G$8:$BK$372,7,FALSE),"") ->  | AG56: =IFERROR(VLOOKUP($G56,'Technician Summary'!$G$8:$BK$372,8,FALSE),"") ->  | AI56: =IFERROR(VLOOKUP($G56,'Technician Summary'!$G$8:$BK$372,34,FALSE),"") ->  | AJ56: =IFERROR(VLOOKUP($G56,'Technician Summary'!$G$8:$BK$372,35,FALSE),"") ->  | AL56: =IFERROR(VLOOKUP($G56,'Technician Summary'!$G$8:$BK$372,37,FALSE),"") ->  | AM56: =IFERROR(VLOOKUP($G56,'Technician Summary'!$G$8:$BK$372,38,FALSE),"") ->  | AO56: =COUNTIFS('Drop Validation'!$Q:$Q,$G56,'Drop Validation'!$G:$G,"In Scope") -> 0 | AP56: =COUNTIFS('Drop Validation'!$Q:$Q,$G56,'Drop Validation'!$AB:$AB,"Compliant",'Drop Validation'!$G:$G,"In Scope") -> 0
I57: =IFERROR(VLOOKUP($G57,'Technician Summary'!$G$3:$BB$372,2,FALSE),"") ->  | J57: =(IFERROR(_xlfn.XLOOKUP($G57,'Technician Summary'!G:G,'Technician Summary'!I:I),"")) -> 0 | L57: =IF(G57="","",COUNTIFS('SMS tNPS'!DE:DE,G57,'SMS tNPS'!HB:HB,"Yes")) ->  | M57: =IFERROR(IF(G57="","",COUNTIFS('SMS tNPS'!DE:DE,G57,'SMS tNPS'!HB:HB,"Yes"))+COUNTIFS('SMS tNPS'!DE:DE,G57,'SMS tNPS'!HB:HB,"No"),"") ->  | O57: =IFERROR(VLOOKUP($G57,'Technician Summary'!$G$8:$BK$372,14,FALSE),"") ->  | P57: =IFERROR(VLOOKUP($G57,'Technician Summary'!$G$8:$BK$372,15,FALSE),"") ->  | R57: =IFERROR(VLOOKUP($G57,'Technician Summary'!$G$7:$BK$372,17,FALSE),"") ->  | S57: =IFERROR(VLOOKUP($G57,'Technician Summary'!$G$7:$BK$372,18,FALSE),"") ->  | U57: =IFERROR(VLOOKUP($G57,'Technician Summary'!$G$7:$BK$372,20,FALSE),"") ->  | V57: =IFERROR(VLOOKUP($G57,'Technician Summary'!$G$7:$BK$372,21,FALSE),"") ->  | X57: =IF($G57="","",SUMIF('SQT Data'!$K:$K,$G57,'SQT Data'!$R:$R)) ->  | Y57: =IF($G57="","",SUMIF('SQT Data'!$K:$K,$G57,'SQT Data'!$S:$S)) ->  | AA57: =IF($G57="","",SUMIF('SQT Data'!$K:$K,$G57,'SQT Data'!$U:$U)) ->  | AB57: =IF($G57="","",SUMIF('SQT Data'!$K:$K,$G57,'SQT Data'!$V:$V)) ->  | AE57: =IFERROR(SUM(AD57/#REF!),"") ->  | AF57: =IFERROR(VLOOKUP($G57,'Technician Summary'!$G$8:$BK$372,7,FALSE),"") ->  | AG57: =IFERROR(VLOOKUP($G57,'Technician Summary'!$G$8:$BK$372,8,FALSE),"") ->  | AI57: =IFERROR(VLOOKUP($G57,'Technician Summary'!$G$8:$BK$372,34,FALSE),"") ->  | AJ57: =IFERROR(VLOOKUP($G57,'Technician Summary'!$G$8:$BK$372,35,FALSE),"") ->  | AL57: =IFERROR(VLOOKUP($G57,'Technician Summary'!$G$8:$BK$372,37,FALSE),"") ->  | AM57: =IFERROR(VLOOKUP($G57,'Technician Summary'!$G$8:$BK$372,38,FALSE),"") ->  | AO57: =COUNTIFS('Drop Validation'!$Q:$Q,$G57,'Drop Validation'!$G:$G,"In Scope") -> 0 | AP57: =COUNTIFS('Drop Validation'!$Q:$Q,$G57,'Drop Validation'!$AB:$AB,"Compliant",'Drop Validation'!$G:$G,"In Scope") -> 0
I58: =IFERROR(VLOOKUP($G58,'Technician Summary'!$G$3:$BB$372,2,FALSE),"") ->  | J58: =(IFERROR(_xlfn.XLOOKUP($G58,'Technician Summary'!G:G,'Technician Summary'!I:I),"")) -> 0 | L58: =IF(G58="","",COUNTIFS('SMS tNPS'!DE:DE,G58,'SMS tNPS'!HB:HB,"Yes")) ->  | M58: =IFERROR(IF(G58="","",COUNTIFS('SMS tNPS'!DE:DE,G58,'SMS tNPS'!HB:HB,"Yes"))+COUNTIFS('SMS tNPS'!DE:DE,G58,'SMS tNPS'!HB:HB,"No"),"") ->  | O58: =IFERROR(VLOOKUP($G58,'Technician Summary'!$G$8:$BK$372,14,FALSE),"") ->  | P58: =IFERROR(VLOOKUP($G58,'Technician Summary'!$G$8:$BK$372,15,FALSE),"") ->  | R58: =IFERROR(VLOOKUP($G58,'Technician Summary'!$G$7:$BK$372,17,FALSE),"") ->  | S58: =IFERROR(VLOOKUP($G58,'Technician Summary'!$G$7:$BK$372,18,FALSE),"") ->  | U58: =IFERROR(VLOOKUP($G58,'Technician Summary'!$G$7:$BK$372,20,FALSE),"") ->  | V58: =IFERROR(VLOOKUP($G58,'Technician Summary'!$G$7:$BK$372,21,FALSE),"") ->  | X58: =IF($G58="","",SUMIF('SQT Data'!$K:$K,$G58,'SQT Data'!$R:$R)) ->  | Y58: =IF($G58="","",SUMIF('SQT Data'!$K:$K,$G58,'SQT Data'!$S:$S)) ->  | AA58: =IF($G58="","",SUMIF('SQT Data'!$K:$K,$G58,'SQT Data'!$U:$U)) ->  | AB58: =IF($G58="","",SUMIF('SQT Data'!$K:$K,$G58,'SQT Data'!$V:$V)) ->  | AE58: =IFERROR(SUM(AD58/#REF!),"") ->  | AF58: =IFERROR(VLOOKUP($G58,'Technician Summary'!$G$8:$BK$372,7,FALSE),"") ->  | AG58: =IFERROR(VLOOKUP($G58,'Technician Summary'!$G$8:$BK$372,8,FALSE),"") ->  | AI58: =IFERROR(VLOOKUP($G58,'Technician Summary'!$G$8:$BK$372,34,FALSE),"") ->  | AJ58: =IFERROR(VLOOKUP($G58,'Technician Summary'!$G$8:$BK$372,35,FALSE),"") ->  | AL58: =IFERROR(VLOOKUP($G58,'Technician Summary'!$G$8:$BK$372,37,FALSE),"") ->  | AM58: =IFERROR(VLOOKUP($G58,'Technician Summary'!$G$8:$BK$372,38,FALSE),"") ->  | AO58: =COUNTIFS('Drop Validation'!$Q:$Q,$G58,'Drop Validation'!$G:$G,"In Scope") -> 0 | AP58: =COUNTIFS('Drop Validation'!$Q:$Q,$G58,'Drop Validation'!$AB:$AB,"Compliant",'Drop Validation'!$G:$G,"In Scope") -> 0
I59: =IFERROR(VLOOKUP($G59,'Technician Summary'!$G$3:$BB$372,2,FALSE),"") ->  | J59: =(IFERROR(_xlfn.XLOOKUP($G59,'Technician Summary'!G:G,'Technician Summary'!I:I),"")) -> 0 | L59: =IF(G59="","",COUNTIFS('SMS tNPS'!DE:DE,G59,'SMS tNPS'!HB:HB,"Yes")) ->  | M59: =IFERROR(IF(G59="","",COUNTIFS('SMS tNPS'!DE:DE,G59,'SMS tNPS'!HB:HB,"Yes"))+COUNTIFS('SMS tNPS'!DE:DE,G59,'SMS tNPS'!HB:HB,"No"),"") ->  | O59: =IFERROR(VLOOKUP($G59,'Technician Summary'!$G$8:$BK$372,14,FALSE),"") ->  | P59: =IFERROR(VLOOKUP($G59,'Technician Summary'!$G$8:$BK$372,15,FALSE),"") ->  | R59: =IFERROR(VLOOKUP($G59,'Technician Summary'!$G$7:$BK$372,17,FALSE),"") ->  | S59: =IFERROR(VLOOKUP($G59,'Technician Summary'!$G$7:$BK$372,18,FALSE),"") ->  | U59: =IFERROR(VLOOKUP($G59,'Technician Summary'!$G$7:$BK$372,20,FALSE),"") ->  | V59: =IFERROR(VLOOKUP($G59,'Technician Summary'!$G$7:$BK$372,21,FALSE),"") ->  | X59: =IF($G59="","",SUMIF('SQT Data'!$K:$K,$G59,'SQT Data'!$R:$R)) ->  | Y59: =IF($G59="","",SUMIF('SQT Data'!$K:$K,$G59,'SQT Data'!$S:$S)) ->  | AA59: =IF($G59="","",SUMIF('SQT Data'!$K:$K,$G59,'SQT Data'!$U:$U)) ->  | AB59: =IF($G59="","",SUMIF('SQT Data'!$K:$K,$G59,'SQT Data'!$V:$V)) ->  | AE59: =IFERROR(SUM(AD59/#REF!),"") ->  | AF59: =IFERROR(VLOOKUP($G59,'Technician Summary'!$G$8:$BK$372,7,FALSE),"") ->  | AG59: =IFERROR(VLOOKUP($G59,'Technician Summary'!$G$8:$BK$372,8,FALSE),"") ->  | AI59: =IFERROR(VLOOKUP($G59,'Technician Summary'!$G$8:$BK$372,34,FALSE),"") ->  | AJ59: =IFERROR(VLOOKUP($G59,'Technician Summary'!$G$8:$BK$372,35,FALSE),"") ->  | AL59: =IFERROR(VLOOKUP($G59,'Technician Summary'!$G$8:$BK$372,37,FALSE),"") ->  | AM59: =IFERROR(VLOOKUP($G59,'Technician Summary'!$G$8:$BK$372,38,FALSE),"") ->  | AO59: =COUNTIFS('Drop Validation'!$Q:$Q,$G59,'Drop Validation'!$G:$G,"In Scope") -> 0 | AP59: =COUNTIFS('Drop Validation'!$Q:$Q,$G59,'Drop Validation'!$AB:$AB,"Compliant",'Drop Validation'!$G:$G,"In Scope") -> 0
I60: =IFERROR(VLOOKUP($G60,'Technician Summary'!$G$3:$BB$372,2,FALSE),"") ->  | J60: =(IFERROR(_xlfn.XLOOKUP($G60,'Technician Summary'!G:G,'Technician Summary'!I:I),"")) -> 0 | L60: =IF(G60="","",COUNTIFS('SMS tNPS'!DE:DE,G60,'SMS tNPS'!HB:HB,"Yes")) ->  | M60: =IFERROR(IF(G60="","",COUNTIFS('SMS tNPS'!DE:DE,G60,'SMS tNPS'!HB:HB,"Yes"))+COUNTIFS('SMS tNPS'!DE:DE,G60,'SMS tNPS'!HB:HB,"No"),"") ->  | O60: =IFERROR(VLOOKUP($G60,'Technician Summary'!$G$8:$BK$372,14,FALSE),"") ->  | P60: =IFERROR(VLOOKUP($G60,'Technician Summary'!$G$8:$BK$372,15,FALSE),"") ->  | R60: =IFERROR(VLOOKUP($G60,'Technician Summary'!$G$7:$BK$372,17,FALSE),"") ->  | S60: =IFERROR(VLOOKUP($G60,'Technician Summary'!$G$7:$BK$372,18,FALSE),"") ->  | U60: =IFERROR(VLOOKUP($G60,'Technician Summary'!$G$7:$BK$372,20,FALSE),"") ->  | V60: =IFERROR(VLOOKUP($G60,'Technician Summary'!$G$7:$BK$372,21,FALSE),"") ->  | X60: =IF($G60="","",SUMIF('SQT Data'!$K:$K,$G60,'SQT Data'!$R:$R)) ->  | Y60: =IF($G60="","",SUMIF('SQT Data'!$K:$K,$G60,'SQT Data'!$S:$S)) ->  | AA60: =IF($G60="","",SUMIF('SQT Data'!$K:$K,$G60,'SQT Data'!$U:$U)) ->  | AB60: =IF($G60="","",SUMIF('SQT Data'!$K:$K,$G60,'SQT Data'!$V:$V)) ->  | AE60: =IFERROR(SUM(AD60/#REF!),"") ->  | AF60: =IFERROR(VLOOKUP($G60,'Technician Summary'!$G$8:$BK$372,7,FALSE),"") ->  | AG60: =IFERROR(VLOOKUP($G60,'Technician Summary'!$G$8:$BK$372,8,FALSE),"") ->  | AI60: =IFERROR(VLOOKUP($G60,'Technician Summary'!$G$8:$BK$372,34,FALSE),"") ->  | AJ60: =IFERROR(VLOOKUP($G60,'Technician Summary'!$G$8:$BK$372,35,FALSE),"") ->  | AL60: =IFERROR(VLOOKUP($G60,'Technician Summary'!$G$8:$BK$372,37,FALSE),"") ->  | AM60: =IFERROR(VLOOKUP($G60,'Technician Summary'!$G$8:$BK$372,38,FALSE),"") ->  | AO60: =COUNTIFS('Drop Validation'!$Q:$Q,$G60,'Drop Validation'!$G:$G,"In Scope") -> 0 | AP60: =COUNTIFS('Drop Validation'!$Q:$Q,$G60,'Drop Validation'!$AB:$AB,"Compliant",'Drop Validation'!$G:$G,"In Scope") -> 0
I61: =IFERROR(VLOOKUP($G61,'Technician Summary'!$G$3:$BB$372,2,FALSE),"") ->  | J61: =(IFERROR(_xlfn.XLOOKUP($G61,'Technician Summary'!G:G,'Technician Summary'!I:I),"")) -> 0 | L61: =IF(G61="","",COUNTIFS('SMS tNPS'!DE:DE,G61,'SMS tNPS'!HB:HB,"Yes")) ->  | M61: =IFERROR(IF(G61="","",COUNTIFS('SMS tNPS'!DE:DE,G61,'SMS tNPS'!HB:HB,"Yes"))+COUNTIFS('SMS tNPS'!DE:DE,G61,'SMS tNPS'!HB:HB,"No"),"") ->  | O61: =IFERROR(VLOOKUP($G61,'Technician Summary'!$G$8:$BK$372,14,FALSE),"") ->  | P61: =IFERROR(VLOOKUP($G61,'Technician Summary'!$G$8:$BK$372,15,FALSE),"") ->  | R61: =IFERROR(VLOOKUP($G61,'Technician Summary'!$G$7:$BK$372,17,FALSE),"") ->  | S61: =IFERROR(VLOOKUP($G61,'Technician Summary'!$G$7:$BK$372,18,FALSE),"") ->  | U61: =IFERROR(VLOOKUP($G61,'Technician Summary'!$G$7:$BK$372,20,FALSE),"") ->  | V61: =IFERROR(VLOOKUP($G61,'Technician Summary'!$G$7:$BK$372,21,FALSE),"") ->  | X61: =IF($G61="","",SUMIF('SQT Data'!$K:$K,$G61,'SQT Data'!$R:$R)) ->  | Y61: =IF($G61="","",SUMIF('SQT Data'!$K:$K,$G61,'SQT Data'!$S:$S)) ->  | AA61: =IF($G61="","",SUMIF('SQT Data'!$K:$K,$G61,'SQT Data'!$U:$U)) ->  | AB61: =IF($G61="","",SUMIF('SQT Data'!$K:$K,$G61,'SQT Data'!$V:$V)) ->  | AE61: =IFERROR(SUM(AD61/#REF!),"") ->  | AF61: =IFERROR(VLOOKUP($G61,'Technician Summary'!$G$8:$BK$372,7,FALSE),"") ->  | AG61: =IFERROR(VLOOKUP($G61,'Technician Summary'!$G$8:$BK$372,8,FALSE),"") ->  | AI61: =IFERROR(VLOOKUP($G61,'Technician Summary'!$G$8:$BK$372,34,FALSE),"") ->  | AJ61: =IFERROR(VLOOKUP($G61,'Technician Summary'!$G$8:$BK$372,35,FALSE),"") ->  | AL61: =IFERROR(VLOOKUP($G61,'Technician Summary'!$G$8:$BK$372,37,FALSE),"") ->  | AM61: =IFERROR(VLOOKUP($G61,'Technician Summary'!$G$8:$BK$372,38,FALSE),"") ->  | AO61: =COUNTIFS('Drop Validation'!$Q:$Q,$G61,'Drop Validation'!$G:$G,"In Scope") -> 0 | AP61: =COUNTIFS('Drop Validation'!$Q:$Q,$G61,'Drop Validation'!$AB:$AB,"Compliant",'Drop Validation'!$G:$G,"In Scope") -> 0
I62: =IFERROR(VLOOKUP($G62,'Technician Summary'!$G$3:$BB$372,2,FALSE),"") ->  | J62: =(IFERROR(_xlfn.XLOOKUP($G62,'Technician Summary'!G:G,'Technician Summary'!I:I),"")) -> 0 | L62: =IF(G62="","",COUNTIFS('SMS tNPS'!DE:DE,G62,'SMS tNPS'!HB:HB,"Yes")) ->  | M62: =IFERROR(IF(G62="","",COUNTIFS('SMS tNPS'!DE:DE,G62,'SMS tNPS'!HB:HB,"Yes"))+COUNTIFS('SMS tNPS'!DE:DE,G62,'SMS tNPS'!HB:HB,"No"),"") ->  | O62: =IFERROR(VLOOKUP($G62,'Technician Summary'!$G$8:$BK$372,14,FALSE),"") ->  | P62: =IFERROR(VLOOKUP($G62,'Technician Summary'!$G$8:$BK$372,15,FALSE),"") ->  | R62: =IFERROR(VLOOKUP($G62,'Technician Summary'!$G$7:$BK$372,17,FALSE),"") ->  | S62: =IFERROR(VLOOKUP($G62,'Technician Summary'!$G$7:$BK$372,18,FALSE),"") ->  | U62: =IFERROR(VLOOKUP($G62,'Technician Summary'!$G$7:$BK$372,20,FALSE),"") ->  | V62: =IFERROR(VLOOKUP($G62,'Technician Summary'!$G$7:$BK$372,21,FALSE),"") ->  | X62: =IF($G62="","",SUMIF('SQT Data'!$K:$K,$G62,'SQT Data'!$R:$R)) ->  | Y62: =IF($G62="","",SUMIF('SQT Data'!$K:$K,$G62,'SQT Data'!$S:$S)) ->  | AA62: =IF($G62="","",SUMIF('SQT Data'!$K:$K,$G62,'SQT Data'!$U:$U)) ->  | AB62: =IF($G62="","",SUMIF('SQT Data'!$K:$K,$G62,'SQT Data'!$V:$V)) ->  | AE62: =IFERROR(SUM(AD62/#REF!),"") ->  | AF62: =IFERROR(VLOOKUP($G62,'Technician Summary'!$G$8:$BK$372,7,FALSE),"") ->  | AG62: =IFERROR(VLOOKUP($G62,'Technician Summary'!$G$8:$BK$372,8,FALSE),"") ->  | AI62: =IFERROR(VLOOKUP($G62,'Technician Summary'!$G$8:$BK$372,34,FALSE),"") ->  | AJ62: =IFERROR(VLOOKUP($G62,'Technician Summary'!$G$8:$BK$372,35,FALSE),"") ->  | AL62: =IFERROR(VLOOKUP($G62,'Technician Summary'!$G$8:$BK$372,37,FALSE),"") ->  | AM62: =IFERROR(VLOOKUP($G62,'Technician Summary'!$G$8:$BK$372,38,FALSE),"") ->  | AO62: =COUNTIFS('Drop Validation'!$Q:$Q,$G62,'Drop Validation'!$G:$G,"In Scope") -> 0 | AP62: =COUNTIFS('Drop Validation'!$Q:$Q,$G62,'Drop Validation'!$AB:$AB,"Compliant",'Drop Validation'!$G:$G,"In Scope") -> 0
I63: =IFERROR(VLOOKUP($G63,'Technician Summary'!$G$3:$BB$372,2,FALSE),"") ->  | J63: =(IFERROR(_xlfn.XLOOKUP($G63,'Technician Summary'!G:G,'Technician Summary'!I:I),"")) -> 0 | L63: =IF(G63="","",COUNTIFS('SMS tNPS'!DE:DE,G63,'SMS tNPS'!HB:HB,"Yes")) ->  | M63: =IFERROR(IF(G63="","",COUNTIFS('SMS tNPS'!DE:DE,G63,'SMS tNPS'!HB:HB,"Yes"))+COUNTIFS('SMS tNPS'!DE:DE,G63,'SMS tNPS'!HB:HB,"No"),"") ->  | O63: =IFERROR(VLOOKUP($G63,'Technician Summary'!$G$8:$BK$372,14,FALSE),"") ->  | P63: =IFERROR(VLOOKUP($G63,'Technician Summary'!$G$8:$BK$372,15,FALSE),"") ->  | R63: =IFERROR(VLOOKUP($G63,'Technician Summary'!$G$7:$BK$372,17,FALSE),"") ->  | S63: =IFERROR(VLOOKUP($G63,'Technician Summary'!$G$7:$BK$372,18,FALSE),"") ->  | U63: =IFERROR(VLOOKUP($G63,'Technician Summary'!$G$7:$BK$372,20,FALSE),"") ->  | V63: =IFERROR(VLOOKUP($G63,'Technician Summary'!$G$7:$BK$372,21,FALSE),"") ->  | X63: =IF($G63="","",SUMIF('SQT Data'!$K:$K,$G63,'SQT Data'!$R:$R)) ->  | Y63: =IF($G63="","",SUMIF('SQT Data'!$K:$K,$G63,'SQT Data'!$S:$S)) ->  | AA63: =IF($G63="","",SUMIF('SQT Data'!$K:$K,$G63,'SQT Data'!$U:$U)) ->  | AB63: =IF($G63="","",SUMIF('SQT Data'!$K:$K,$G63,'SQT Data'!$V:$V)) ->  | AE63: =IFERROR(SUM(AD63/#REF!),"") ->  | AF63: =IFERROR(VLOOKUP($G63,'Technician Summary'!$G$8:$BK$372,7,FALSE),"") ->  | AG63: =IFERROR(VLOOKUP($G63,'Technician Summary'!$G$8:$BK$372,8,FALSE),"") ->  | AI63: =IFERROR(VLOOKUP($G63,'Technician Summary'!$G$8:$BK$372,34,FALSE),"") ->  | AJ63: =IFERROR(VLOOKUP($G63,'Technician Summary'!$G$8:$BK$372,35,FALSE),"") ->  | AL63: =IFERROR(VLOOKUP($G63,'Technician Summary'!$G$8:$BK$372,37,FALSE),"") ->  | AM63: =IFERROR(VLOOKUP($G63,'Technician Summary'!$G$8:$BK$372,38,FALSE),"") ->  | AO63: =COUNTIFS('Drop Validation'!$Q:$Q,$G63,'Drop Validation'!$G:$G,"In Scope") -> 0 | AP63: =COUNTIFS('Drop Validation'!$Q:$Q,$G63,'Drop Validation'!$AB:$AB,"Compliant",'Drop Validation'!$G:$G,"In Scope") -> 0
I64: =IFERROR(VLOOKUP($G64,'Technician Summary'!$G$3:$BB$372,2,FALSE),"") ->  | J64: =(IFERROR(_xlfn.XLOOKUP($G64,'Technician Summary'!G:G,'Technician Summary'!I:I),"")) -> 0 | L64: =IF(G64="","",COUNTIFS('SMS tNPS'!DE:DE,G64,'SMS tNPS'!HB:HB,"Yes")) ->  | M64: =IFERROR(IF(G64="","",COUNTIFS('SMS tNPS'!DE:DE,G64,'SMS tNPS'!HB:HB,"Yes"))+COUNTIFS('SMS tNPS'!DE:DE,G64,'SMS tNPS'!HB:HB,"No"),"") ->  | O64: =IFERROR(VLOOKUP($G64,'Technician Summary'!$G$8:$BK$372,14,FALSE),"") ->  | P64: =IFERROR(VLOOKUP($G64,'Technician Summary'!$G$8:$BK$372,15,FALSE),"") ->  | R64: =IFERROR(VLOOKUP($G64,'Technician Summary'!$G$7:$BK$372,17,FALSE),"") ->  | S64: =IFERROR(VLOOKUP($G64,'Technician Summary'!$G$7:$BK$372,18,FALSE),"") ->  | U64: =IFERROR(VLOOKUP($G64,'Technician Summary'!$G$7:$BK$372,20,FALSE),"") ->  | V64: =IFERROR(VLOOKUP($G64,'Technician Summary'!$G$7:$BK$372,21,FALSE),"") ->  | X64: =IF($G64="","",SUMIF('SQT Data'!$K:$K,$G64,'SQT Data'!$R:$R)) ->  | Y64: =IF($G64="","",SUMIF('SQT Data'!$K:$K,$G64,'SQT Data'!$S:$S)) ->  | AA64: =IF($G64="","",SUMIF('SQT Data'!$K:$K,$G64,'SQT Data'!$U:$U)) ->  | AB64: =IF($G64="","",SUMIF('SQT Data'!$K:$K,$G64,'SQT Data'!$V:$V)) ->  | AE64: =IFERROR(SUM(AD64/#REF!),"") ->  | AF64: =IFERROR(VLOOKUP($G64,'Technician Summary'!$G$8:$BK$372,7,FALSE),"") ->  | AG64: =IFERROR(VLOOKUP($G64,'Technician Summary'!$G$8:$BK$372,8,FALSE),"") ->  | AI64: =IFERROR(VLOOKUP($G64,'Technician Summary'!$G$8:$BK$372,34,FALSE),"") ->  | AJ64: =IFERROR(VLOOKUP($G64,'Technician Summary'!$G$8:$BK$372,35,FALSE),"") ->  | AL64: =IFERROR(VLOOKUP($G64,'Technician Summary'!$G$8:$BK$372,37,FALSE),"") ->  | AM64: =IFERROR(VLOOKUP($G64,'Technician Summary'!$G$8:$BK$372,38,FALSE),"") ->  | AO64: =COUNTIFS('Drop Validation'!$Q:$Q,$G64,'Drop Validation'!$G:$G,"In Scope") -> 0 | AP64: =COUNTIFS('Drop Validation'!$Q:$Q,$G64,'Drop Validation'!$AB:$AB,"Compliant",'Drop Validation'!$G:$G,"In Scope") -> 0
I65: =IFERROR(VLOOKUP($G65,'Technician Summary'!$G$3:$BB$372,2,FALSE),"") ->  | J65: =(IFERROR(_xlfn.XLOOKUP($G65,'Technician Summary'!G:G,'Technician Summary'!I:I),"")) -> 0 | L65: =IF(G65="","",COUNTIFS('SMS tNPS'!DE:DE,G65,'SMS tNPS'!HB:HB,"Yes")) ->  | M65: =IFERROR(IF(G65="","",COUNTIFS('SMS tNPS'!DE:DE,G65,'SMS tNPS'!HB:HB,"Yes"))+COUNTIFS('SMS tNPS'!DE:DE,G65,'SMS tNPS'!HB:HB,"No"),"") ->  | O65: =IFERROR(VLOOKUP($G65,'Technician Summary'!$G$8:$BK$372,14,FALSE),"") ->  | P65: =IFERROR(VLOOKUP($G65,'Technician Summary'!$G$8:$BK$372,15,FALSE),"") ->  | R65: =IFERROR(VLOOKUP($G65,'Technician Summary'!$G$7:$BK$372,17,FALSE),"") ->  | S65: =IFERROR(VLOOKUP($G65,'Technician Summary'!$G$7:$BK$372,18,FALSE),"") ->  | U65: =IFERROR(VLOOKUP($G65,'Technician Summary'!$G$7:$BK$372,20,FALSE),"") ->  | V65: =IFERROR(VLOOKUP($G65,'Technician Summary'!$G$7:$BK$372,21,FALSE),"") ->  | X65: =IF($G65="","",SUMIF('SQT Data'!$K:$K,$G65,'SQT Data'!$R:$R)) ->  | Y65: =IF($G65="","",SUMIF('SQT Data'!$K:$K,$G65,'SQT Data'!$S:$S)) ->  | AA65: =IF($G65="","",SUMIF('SQT Data'!$K:$K,$G65,'SQT Data'!$U:$U)) ->  | AB65: =IF($G65="","",SUMIF('SQT Data'!$K:$K,$G65,'SQT Data'!$V:$V)) ->  | AE65: =IFERROR(SUM(AD65/#REF!),"") ->  | AF65: =IFERROR(VLOOKUP($G65,'Technician Summary'!$G$8:$BK$372,7,FALSE),"") ->  | AG65: =IFERROR(VLOOKUP($G65,'Technician Summary'!$G$8:$BK$372,8,FALSE),"") ->  | AI65: =IFERROR(VLOOKUP($G65,'Technician Summary'!$G$8:$BK$372,34,FALSE),"") ->  | AJ65: =IFERROR(VLOOKUP($G65,'Technician Summary'!$G$8:$BK$372,35,FALSE),"") ->  | AL65: =IFERROR(VLOOKUP($G65,'Technician Summary'!$G$8:$BK$372,37,FALSE),"") ->  | AM65: =IFERROR(VLOOKUP($G65,'Technician Summary'!$G$8:$BK$372,38,FALSE),"") ->  | AO65: =COUNTIFS('Drop Validation'!$Q:$Q,$G65,'Drop Validation'!$G:$G,"In Scope") -> 0 | AP65: =COUNTIFS('Drop Validation'!$Q:$Q,$G65,'Drop Validation'!$AB:$AB,"Compliant",'Drop Validation'!$G:$G,"In Scope") -> 0
I66: # NPS WO's | J66: # Failures | K66: NPS | L66: SMS Promoter Count | M66: SMS Count | N66: SMS tNPS | O66: Total Repeatable WO | P66: Total Repeats | Q66: Repeats | R66: Total Repeatable WO | S66: Repeat IN | T66: IN Repeat % | U66: Total Repeatable WO | V66: Repeat TC | W66: Repeat TC % | X66: Jobs | Y66: Test Run | Z66: SQT Compliance | AA66: Parameters Tested | AB66: Parameters Passing | AC66: SQT Pass | AD66: Test Passed | AE66: Ingress Test Pass | AF66: FCR WO | AG66: FCR Failures | AH66: FCR | AI66: Jobs | AJ66: Jobs Late | AK66: OTA | AL66: Jobs | AM66: Completed Jobs | AN66: Completion % | AO66: Total Jobs | AP66: Total Valid | AQ66: Drop Validation
I68: =SUMIF(I41:I65,">0") -> 15 | J68: =SUMIF(J41:J65,">0") -> 2 | K68: =IFERROR(1-(J68/I68),"") -> 0.8667 | L68: =SUM(L41:L65) -> 57 | M68: =SUM(M41:M65) -> 67 | N68: =IFERROR(SUM(L68/M68),"") -> 0.8507 | O68: =SUM(O41:O65) -> 364 | P68: =SUM(P41:P65) -> 15 | Q68: =IFERROR(SUM(P68/O68),"") -> 0.0412 | R68: =SUM(R41:R65) -> 176 | S68: =SUM(S41:S65) -> 4 | T68: =IFERROR(SUM(S68/R68),"") -> 0.0227 | U68: =SUM(U41:U65) -> 188 | V68: =SUM(V41:V65) -> 11 | W68: =IFERROR(SUM(V68/U68),"") -> 0.0585 | X68: =SUMIF(X41:X65,">0") -> 134 | Y68: =SUMIF(Y41:Y65,">0") -> 131 | Z68: =IFERROR(SUM(Y68/X68),"") -> 0.9776 | AA68: =SUM(AA41:AA65) -> 1042 | AB68: =SUM(AB41:AB65) -> 968 | AC68: =IFERROR(SUM(AB68/AA68),"") -> 0.929 | AD68: =SUM(AD41:AD65) -> 0 | AE68: =IFERROR(SUM(AD68/#REF!),"") ->  | AF68: =SUM(AF41:AF65) -> 226 | AG68: =SUM(AG41:AG65) -> 8 | AH68: =IFERROR(1-AG68/AF68,"") -> 0.9646 | AI68: =SUM(AI41:AI65) -> 171 | AJ68: =SUM(AJ41:AJ65) -> 7 | AK68: =IFERROR(1-AJ68/AI68,"") -> 0.9591 | AL68: =SUM(AL41:AL65) -> 423 | AM68: =SUM(AM41:AM65) -> 360 | AN68: =IFERROR(AM68/AL68,"") -> 0.8511 | AO68: =SUM(AO41:AO65) -> 9 | AP68: =SUM(AP41:AP65) -> 8 | AQ68: =IFERROR(AP68/AO68,"") -> 0.8889

Sheet New Orleans
F3: Aisha Alexander
F5: Tech Name | G5: Tech ID | H5: Score | I5: # NPS WO's | J5: # Failures | K5: NPS | L5: SMS Promoter Count | M5: SMS Count | N5: SMS tNPS | O5: Total Repeatable WO | P5: Total Repeats | Q5: Repeats | R5: Total Repeatable WO | S5: Repeat IN | T5: IN Repeat % | U5: Total Repeatable WO | V5: Repeat TC | W5: Repeat TC % | X5: Jobs | Y5: Test Run | Z5: SQT Compliance | AA5: Parameters Tested | AB5: Parameters Passing | AC5: SQT Pass | AD5: Test Passed | AE5: Ingress Test Pass | AF5: FCR WO | AG5: FCR Failures | AH5: FCR | AI5: Jobs | AJ5: Jobs Late | AK5: OTA | AL5: Jobs | AM5: Completed Jobs | AN5: Completion % | AO5: Total Jobs | AP5: Total Valid | AQ5: Drop Validation
F7: Kevin Mcelee | G7: 74634 | H7: =IF(Z7="","",IFERROR(IF(K7>=68.26%,1.25,0)+IF(Q7<=5.04%,2.5,0)+IF(Z7>=90%,2.5,0)+IF(AK7>=96%,1.25,0)+IF(N7>=90%,2.5,0),"")) ->  | I7: =IFERROR(VLOOKUP($G7,'Technician Summary'!$G$7:$BB$372,2,FALSE),"") ->  | J7: =IFERROR(VLOOKUP($G7,'Technician Summary'!$G$7:$BN$372,60,FALSE),"") ->  | K7: =IFERROR(1-(J7/I7),"") ->  | L7: =IF(G7="","",COUNTIFS('SMS tNPS'!DE:DE,G7,'SMS tNPS'!HB:HB,"Yes")) -> 0 | M7: =IFERROR(IF(G7="","",COUNTIFS('SMS tNPS'!DE:DE,G7,'SMS tNPS'!HB:HB,"Yes"))+COUNTIFS('SMS tNPS'!DE:DE,G7,'SMS tNPS'!HB:HB,"No"),"") -> 0 | N7: =IFERROR(SUM(L7/M7),"") ->  | O7: =IFERROR(VLOOKUP($G7,'Technician Summary'!$G$7:$BK$372,14,FALSE),"") ->  | P7: =IFERROR(VLOOKUP($G7,'Technician Summary'!$G$7:$BK$372,15,FALSE),"") ->  | Q7: =IFERROR(SUM(P7/O7),"") ->  | R7: =IFERROR(VLOOKUP($G7,'Technician Summary'!$G$7:$BK$372,17,FALSE),"") ->  | S7: =IFERROR(VLOOKUP($G7,'Technician Summary'!$G$7:$BK$372,18,FALSE),"") ->  | T7: =IFERROR(SUM(S7/R7),"") ->  | U7: =IFERROR(VLOOKUP($G7,'Technician Summary'!$G$7:$BK$372,20,FALSE),"") ->  | V7: =IFERROR(VLOOKUP($G7,'Technician Summary'!$G$7:$BK$372,21,FALSE),"") ->  | W7: =IFERROR(SUM(V7/U7),"") ->  | X7: =IF($G7="","",SUMIF('SQT Data'!$K:$K,$G7,'SQT Data'!$R:$R)) -> 0 | Y7: =IF($G7="","",SUMIF('SQT Data'!$K:$K,$G7,'SQT Data'!$S:$S)) -> 0 | Z7: =IFERROR(SUM(Y7/X7),"") ->  | AA7: =IF($G7="","",SUMIF('SQT Data'!$K:$K,$G7,'SQT Data'!$U:$U)) -> 0 | AB7: =IF($G7="","",SUMIF('SQT Data'!$K:$K,$G7,'SQT Data'!$V:$V)) -> 0 | AC7: =IFERROR(SUM(AB7/AA7),"") ->  | AE7: =IFERROR(SUM(AD7/#REF!),"") ->  | AF7: =IFERROR(VLOOKUP($G7,'Technician Summary'!$G$7:$BK$372,7,FALSE),"") ->  | AG7: =IFERROR(VLOOKUP($G7,'Technician Summary'!$G$7:$BK$372,8,FALSE),"") ->  | AH7: =IFERROR(1-AG7/AF7,"") ->  | AI7: =IFERROR(VLOOKUP($G7,'Technician Summary'!$G$7:$BK$372,34,FALSE),"") ->  | AJ7: =IFERROR(VLOOKUP($G7,'Technician Summary'!$G$7:$BK$372,35,FALSE),"") ->  | AK7: =IFERROR(1-AJ7/AI7,"") ->  | AL7: =IFERROR(VLOOKUP($G7,'Technician Summary'!$G$7:$BK$372,37,FALSE),"") ->  | AM7: =IFERROR(VLOOKUP($G7,'Technician Summary'!$G$7:$BK$372,38,FALSE),"") ->  | AN7: =IFERROR(AM7/AL7,"") ->  | AO7: =COUNTIFS('Drop Validation'!$Q:$Q,$G7,'Drop Validation'!$G:$G,"In Scope") -> 0 | AP7: =COUNTIFS('Drop Validation'!$Q:$Q,$G7,'Drop Validation'!$AB:$AB,"Compliant",'Drop Validation'!$G:$G,"In Scope") -> 0 | AQ7: =IFERROR(AP7/AO7,"") -> 
F8: Qaasim Abdul-Razzaq | G8: 56837 | I8: =IFERROR(VLOOKUP($G8,'Technician Summary'!$G$7:$BB$372,2,FALSE),"") ->  | J8: =IFERROR(VLOOKUP($G8,'Technician Summary'!$G$7:$BN$372,60,FALSE),"") ->  | K8: =IFERROR(1-(J8/I8),"") ->  | L8: =IF(G8="","",COUNTIFS('SMS tNPS'!DE:DE,G8,'SMS tNPS'!HB:HB,"Yes")) -> 0 | M8: =IFERROR(IF(G8="","",COUNTIFS('SMS tNPS'!DE:DE,G8,'SMS tNPS'!HB:HB,"Yes"))+COUNTIFS('SMS tNPS'!DE:DE,G8,'SMS tNPS'!HB:HB,"No"),"") -> 0 | N8: =IFERROR(SUM(L8/M8),"") ->  | O8: =IFERROR(VLOOKUP($G8,'Technician Summary'!$G$7:$BK$372,14,FALSE),"") ->  | P8: =IFERROR(VLOOKUP($G8,'Technician Summary'!$G$7:$BK$372,15,FALSE),"") ->  | Q8: =IFERROR(SUM(P8/O8),"") ->  | R8: =IFERROR(VLOOKUP($G8,'Technician Summary'!$G$7:$BK$372,17,FALSE),"") ->  | S8: =IFERROR(VLOOKUP($G8,'Technician Summary'!$G$7:$BK$372,18,FALSE),"") ->  | T8: =IFERROR(SUM(S8/R8),"") ->  | U8: =IFERROR(VLOOKUP($G8,'Technician Summary'!$G$7:$BK$372,20,FALSE),"") ->  | V8: =IFERROR(VLOOKUP($G8,'Technician Summary'!$G$7:$BK$372,21,FALSE),"") ->  | W8: =IFERROR(SUM(V8/U8),"") ->  | X8: =IF($G8="","",SUMIF('SQT Data'!$K:$K,$G8,'SQT Data'!$R:$R)) -> 0 | Y8: =IF($G8="","",SUMIF('SQT Data'!$K:$K,$G8,'SQT Data'!$S:$S)) -> 0 | Z8: =IFERROR(SUM(Y8/X8),"") ->  | AA8: =IF($G8="","",SUMIF('SQT Data'!$K:$K,$G8,'SQT Data'!$U:$U)) -> 0 | AB8: =IF($G8="","",SUMIF('SQT Data'!$K:$K,$G8,'SQT Data'!$V:$V)) -> 0 | AC8: =IFERROR(SUM(AB8/AA8),"") ->  | AE8: =IFERROR(SUM(AD8/#REF!),"") ->  | AF8: =IFERROR(VLOOKUP($G8,'Technician Summary'!$G$7:$BK$372,7,FALSE),"") ->  | AG8: =IFERROR(VLOOKUP($G8,'Technician Summary'!$G$7:$BK$372,8,FALSE),"") ->  | AH8: =IFERROR(1-AG8/AF8,"") ->  | AI8: =IFERROR(VLOOKUP($G8,'Technician Summary'!$G$7:$BK$372,34,FALSE),"") ->  | AJ8: =IFERROR(VLOOKUP($G8,'Technician Summary'!$G$7:$BK$372,35,FALSE),"") ->  | AK8: =IFERROR(1-AJ8/AI8,"") ->  | AL8: =IFERROR(VLOOKUP($G8,'Technician Summary'!$G$7:$BK$372,37,FALSE),"") ->  | AM8: =IFERROR(VLOOKUP($G8,'Technician Summary'!$G$7:$BK$372,38,FALSE),"") ->  | AN8: =IFERROR(AM8/AL8,"") ->  | AO8: =COUNTIFS('Drop Validation'!$Q:$Q,$G8,'Drop Validation'!$G:$G,"In Scope") -> 0 | AP8: =COUNTIFS('Drop Validation'!$Q:$Q,$G8,'Drop Validation'!$AB:$AB,"Compliant",'Drop Validation'!$G:$G,"In Scope") -> 0 | AQ8: =IFERROR(AP8/AO8,"") -> 
F9: Deantwin Page | G9: 6098 | I9: =IFERROR(VLOOKUP($G9,'Technician Summary'!$G$7:$BB$372,2,FALSE),"") ->  | J9: =IFERROR(VLOOKUP($G9,'Technician Summary'!$G$7:$BN$372,60,FALSE),"") ->  | L9: =IF(G9="","",COUNTIFS('SMS tNPS'!DE:DE,G9,'SMS tNPS'!HB:HB,"Yes")) -> 0 | M9: =IFERROR(IF(G9="","",COUNTIFS('SMS tNPS'!DE:DE,G9,'SMS tNPS'!HB:HB,"Yes"))+COUNTIFS('SMS tNPS'!DE:DE,G9,'SMS tNPS'!HB:HB,"No"),"") -> 0 | O9: =IFERROR(VLOOKUP($G9,'Technician Summary'!$G$7:$BK$372,14,FALSE),"") ->  | P9: =IFERROR(VLOOKUP($G9,'Technician Summary'!$G$7:$BK$372,15,FALSE),"") ->  | R9: =IFERROR(VLOOKUP($G9,'Technician Summary'!$G$7:$BK$372,17,FALSE),"") ->  | S9: =IFERROR(VLOOKUP($G9,'Technician Summary'!$G$7:$BK$372,18,FALSE),"") ->  | U9: =IFERROR(VLOOKUP($G9,'Technician Summary'!$G$7:$BK$372,20,FALSE),"") ->  | V9: =IFERROR(VLOOKUP($G9,'Technician Summary'!$G$7:$BK$372,21,FALSE),"") ->  | X9: =IF($G9="","",SUMIF('SQT Data'!$K:$K,$G9,'SQT Data'!$R:$R)) -> 0 | Y9: =IF($G9="","",SUMIF('SQT Data'!$K:$K,$G9,'SQT Data'!$S:$S)) -> 0 | AA9: =IF($G9="","",SUMIF('SQT Data'!$K:$K,$G9,'SQT Data'!$U:$U)) -> 0 | AB9: =IF($G9="","",SUMIF('SQT Data'!$K:$K,$G9,'SQT Data'!$V:$V)) -> 0 | AE9: =IFERROR(SUM(AD9/#REF!),"") ->  | AF9: =IFERROR(VLOOKUP($G9,'Technician Summary'!$G$7:$BK$372,7,FALSE),"") ->  | AG9: =IFERROR(VLOOKUP($G9,'Technician Summary'!$G$7:$BK$372,8,FALSE),"") ->  | AI9: =IFERROR(VLOOKUP($G9,'Technician Summary'!$G$7:$BK$372,34,FALSE),"") ->  | AJ9: =IFERROR(VLOOKUP($G9,'Technician Summary'!$G$7:$BK$372,35,FALSE),"") ->  | AL9: =IFERROR(VLOOKUP($G9,'Technician Summary'!$G$7:$BK$372,37,FALSE),"") ->  | AM9: =IFERROR(VLOOKUP($G9,'Technician Summary'!$G$7:$BK$372,38,FALSE),"") ->  | AO9: =COUNTIFS('Drop Validation'!$Q:$Q,$G9,'Drop Validation'!$G:$G,"In Scope") -> 0 | AP9: =COUNTIFS('Drop Validation'!$Q:$Q,$G9,'Drop Validation'!$AB:$AB,"Compliant",'Drop Validation'!$G:$G,"In Scope") -> 0
F10: Lucius Jackson | G10: 84884 | I10: =IFERROR(VLOOKUP($G10,'Technician Summary'!$G$7:$BB$372,2,FALSE),"") ->  | J10: =IFERROR(VLOOKUP($G10,'Technician Summary'!$G$7:$BN$372,60,FALSE),"") ->  | L10: =IF(G10="","",COUNTIFS('SMS tNPS'!DE:DE,G10,'SMS tNPS'!HB:HB,"Yes")) -> 0 | M10: =IFERROR(IF(G10="","",COUNTIFS('SMS tNPS'!DE:DE,G10,'SMS tNPS'!HB:HB,"Yes"))+COUNTIFS('SMS tNPS'!DE:DE,G10,'SMS tNPS'!HB:HB,"No"),"") -> 0 | O10: =IFERROR(VLOOKUP($G10,'Technician Summary'!$G$7:$BK$372,14,FALSE),"") ->  | P10: =IFERROR(VLOOKUP($G10,'Technician Summary'!$G$7:$BK$372,15,FALSE),"") ->  | R10: =IFERROR(VLOOKUP($G10,'Technician Summary'!$G$7:$BK$372,17,FALSE),"") ->  | S10: =IFERROR(VLOOKUP($G10,'Technician Summary'!$G$7:$BK$372,18,FALSE),"") ->  | U10: =IFERROR(VLOOKUP($G10,'Technician Summary'!$G$7:$BK$372,20,FALSE),"") ->  | V10: =IFERROR(VLOOKUP($G10,'Technician Summary'!$G$7:$BK$372,21,FALSE),"") ->  | X10: =IF($G10="","",SUMIF('SQT Data'!$K:$K,$G10,'SQT Data'!$R:$R)) -> 0 | Y10: =IF($G10="","",SUMIF('SQT Data'!$K:$K,$G10,'SQT Data'!$S:$S)) -> 0 | AA10: =IF($G10="","",SUMIF('SQT Data'!$K:$K,$G10,'SQT Data'!$U:$U)) -> 0 | AB10: =IF($G10="","",SUMIF('SQT Data'!$K:$K,$G10,'SQT Data'!$V:$V)) -> 0 | AE10: =IFERROR(SUM(AD10/#REF!),"") ->  | AF10: =IFERROR(VLOOKUP($G10,'Technician Summary'!$G$7:$BK$372,7,FALSE),"") ->  | AG10: =IFERROR(VLOOKUP($G10,'Technician Summary'!$G$7:$BK$372,8,FALSE),"") ->  | AI10: =IFERROR(VLOOKUP($G10,'Technician Summary'!$G$7:$BK$372,34,FALSE),"") ->  | AJ10: =IFERROR(VLOOKUP($G10,'Technician Summary'!$G$7:$BK$372,35,FALSE),"") ->  | AL10: =IFERROR(VLOOKUP($G10,'Technician Summary'!$G$7:$BK$372,37,FALSE),"") ->  | AM10: =IFERROR(VLOOKUP($G10,'Technician Summary'!$G$7:$BK$372,38,FALSE),"") ->  | AO10: =COUNTIFS('Drop Validation'!$Q:$Q,$G10,'Drop Validation'!$G:$G,"In Scope") -> 0 | AP10: =COUNTIFS('Drop Validation'!$Q:$Q,$G10,'Drop Validation'!$AB:$AB,"Compliant",'Drop Validation'!$G:$G,"In Scope") -> 0
B11: Home | F11: Terrance Duncan | G11: 92039 | I11: =IFERROR(VLOOKUP($G11,'Technician Summary'!$G$7:$BB$372,2,FALSE),"") ->  | J11: =IFERROR(VLOOKUP($G11,'Technician Summary'!$G$7:$BN$372,60,FALSE),"") ->  | L11: =IF(G11="","",COUNTIFS('SMS tNPS'!DE:DE,G11,'SMS tNPS'!HB:HB,"Yes")) -> 0 | M11: =IFERROR(IF(G11="","",COUNTIFS('SMS tNPS'!DE:DE,G11,'SMS tNPS'!HB:HB,"Yes"))+COUNTIFS('SMS tNPS'!DE:DE,G11,'SMS tNPS'!HB:HB,"No"),"") -> 0 | O11: =IFERROR(VLOOKUP($G11,'Technician Summary'!$G$7:$BK$372,14,FALSE),"") ->  | P11: =IFERROR(VLOOKUP($G11,'Technician Summary'!$G$7:$BK$372,15,FALSE),"") ->  | R11: =IFERROR(VLOOKUP($G11,'Technician Summary'!$G$7:$BK$372,17,FALSE),"") ->  | S11: =IFERROR(VLOOKUP($G11,'Technician Summary'!$G$7:$BK$372,18,FALSE),"") ->  | U11: =IFERROR(VLOOKUP($G11,'Technician Summary'!$G$7:$BK$372,20,FALSE),"") ->  | V11: =IFERROR(VLOOKUP($G11,'Technician Summary'!$G$7:$BK$372,21,FALSE),"") ->  | X11: =IF($G11="","",SUMIF('SQT Data'!$K:$K,$G11,'SQT Data'!$R:$R)) -> 0 | Y11: =IF($G11="","",SUMIF('SQT Data'!$K:$K,$G11,'SQT Data'!$S:$S)) -> 0 | AA11: =IF($G11="","",SUMIF('SQT Data'!$K:$K,$G11,'SQT Data'!$U:$U)) -> 0 | AB11: =IF($G11="","",SUMIF('SQT Data'!$K:$K,$G11,'SQT Data'!$V:$V)) -> 0 | AE11: =IFERROR(SUM(AD11/#REF!),"") ->  | AF11: =IFERROR(VLOOKUP($G11,'Technician Summary'!$G$7:$BK$372,7,FALSE),"") ->  | AG11: =IFERROR(VLOOKUP($G11,'Technician Summary'!$G$7:$BK$372,8,FALSE),"") ->  | AI11: =IFERROR(VLOOKUP($G11,'Technician Summary'!$G$7:$BK$372,34,FALSE),"") ->  | AJ11: =IFERROR(VLOOKUP($G11,'Technician Summary'!$G$7:$BK$372,35,FALSE),"") ->  | AL11: =IFERROR(VLOOKUP($G11,'Technician Summary'!$G$7:$BK$372,37,FALSE),"") ->  | AM11: =IFERROR(VLOOKUP($G11,'Technician Summary'!$G$7:$BK$372,38,FALSE),"") ->  | AO11: =COUNTIFS('Drop Validation'!$Q:$Q,$G11,'Drop Validation'!$G:$G,"In Scope") -> 0 | AP11: =COUNTIFS('Drop Validation'!$Q:$Q,$G11,'Drop Validation'!$AB:$AB,"Compliant",'Drop Validation'!$G:$G,"In Scope") -> 0
F12: Marat Haroyan | G12: 75297 | I12: =IFERROR(VLOOKUP($G12,'Technician Summary'!$G$7:$BB$372,2,FALSE),"") ->  | J12: =IFERROR(VLOOKUP($G12,'Technician Summary'!$G$7:$BN$372,60,FALSE),"") ->  | L12: =IF(G12="","",COUNTIFS('SMS tNPS'!DE:DE,G12,'SMS tNPS'!HB:HB,"Yes")) -> 0 | M12: =IFERROR(IF(G12="","",COUNTIFS('SMS tNPS'!DE:DE,G12,'SMS tNPS'!HB:HB,"Yes"))+COUNTIFS('SMS tNPS'!DE:DE,G12,'SMS tNPS'!HB:HB,"No"),"") -> 0 | O12: =IFERROR(VLOOKUP($G12,'Technician Summary'!$G$7:$BK$372,14,FALSE),"") ->  | P12: =IFERROR(VLOOKUP($G12,'Technician Summary'!$G$7:$BK$372,15,FALSE),"") ->  | R12: =IFERROR(VLOOKUP($G12,'Technician Summary'!$G$7:$BK$372,17,FALSE),"") ->  | S12: =IFERROR(VLOOKUP($G12,'Technician Summary'!$G$7:$BK$372,18,FALSE),"") ->  | U12: =IFERROR(VLOOKUP($G12,'Technician Summary'!$G$7:$BK$372,20,FALSE),"") ->  | V12: =IFERROR(VLOOKUP($G12,'Technician Summary'!$G$7:$BK$372,21,FALSE),"") ->  | X12: =IF($G12="","",SUMIF('SQT Data'!$K:$K,$G12,'SQT Data'!$R:$R)) -> 0 | Y12: =IF($G12="","",SUMIF('SQT Data'!$K:$K,$G12,'SQT Data'!$S:$S)) -> 0 | AA12: =IF($G12="","",SUMIF('SQT Data'!$K:$K,$G12,'SQT Data'!$U:$U)) -> 0 | AB12: =IF($G12="","",SUMIF('SQT Data'!$K:$K,$G12,'SQT Data'!$V:$V)) -> 0 | AE12: =IFERROR(SUM(AD12/#REF!),"") ->  | AF12: =IFERROR(VLOOKUP($G12,'Technician Summary'!$G$7:$BK$372,7,FALSE),"") ->  | AG12: =IFERROR(VLOOKUP($G12,'Technician Summary'!$G$7:$BK$372,8,FALSE),"") ->  | AI12: =IFERROR(VLOOKUP($G12,'Technician Summary'!$G$7:$BK$372,34,FALSE),"") ->  | AJ12: =IFERROR(VLOOKUP($G12,'Technician Summary'!$G$7:$BK$372,35,FALSE),"") ->  | AL12: =IFERROR(VLOOKUP($G12,'Technician Summary'!$G$7:$BK$372,37,FALSE),"") ->  | AM12: =IFERROR(VLOOKUP($G12,'Technician Summary'!$G$7:$BK$372,38,FALSE),"") ->  | AO12: =COUNTIFS('Drop Validation'!$Q:$Q,$G12,'Drop Validation'!$G:$G,"In Scope") -> 0 | AP12: =COUNTIFS('Drop Validation'!$Q:$Q,$G12,'Drop Validation'!$AB:$AB,"Compliant",'Drop Validation'!$G:$G,"In Scope") -> 0
B13: Performance Metrics | I13: =IFERROR(VLOOKUP($G13,'Technician Summary'!$G$7:$BB$372,2,FALSE),"") ->  | J13: =IFERROR(VLOOKUP($G13,'Technician Summary'!$G$7:$BN$372,60,FALSE),"") ->  | L13: =IF(G13="","",COUNTIFS('SMS tNPS'!DE:DE,G13,'SMS tNPS'!HB:HB,"Yes")) ->  | M13: =IFERROR(IF(G13="","",COUNTIFS('SMS tNPS'!DE:DE,G13,'SMS tNPS'!HB:HB,"Yes"))+COUNTIFS('SMS tNPS'!DE:DE,G13,'SMS tNPS'!HB:HB,"No"),"") ->  | O13: =IFERROR(VLOOKUP($G13,'Technician Summary'!$G$7:$BK$372,14,FALSE),"") ->  | P13: =IFERROR(VLOOKUP($G13,'Technician Summary'!$G$7:$BK$372,15,FALSE),"") ->  | R13: =IFERROR(VLOOKUP($G13,'Technician Summary'!$G$7:$BK$372,17,FALSE),"") ->  | S13: =IFERROR(VLOOKUP($G13,'Technician Summary'!$G$7:$BK$372,18,FALSE),"") ->  | U13: =IFERROR(VLOOKUP($G13,'Technician Summary'!$G$7:$BK$372,20,FALSE),"") ->  | V13: =IFERROR(VLOOKUP($G13,'Technician Summary'!$G$7:$BK$372,21,FALSE),"") ->  | X13: =IF($G13="","",SUMIF('SQT Data'!$K:$K,$G13,'SQT Data'!$R:$R)) ->  | Y13: =IF($G13="","",SUMIF('SQT Data'!$K:$K,$G13,'SQT Data'!$S:$S)) ->  | AA13: =IF($G13="","",SUMIF('SQT Data'!$K:$K,$G13,'SQT Data'!$U:$U)) ->  | AB13: =IF($G13="","",SUMIF('SQT Data'!$K:$K,$G13,'SQT Data'!$V:$V)) ->  | AE13: =IFERROR(SUM(AD13/#REF!),"") ->  | AF13: =IFERROR(VLOOKUP($G13,'Technician Summary'!$G$7:$BK$372,7,FALSE),"") ->  | AG13: =IFERROR(VLOOKUP($G13,'Technician Summary'!$G$7:$BK$372,8,FALSE),"") ->  | AI13: =IFERROR(VLOOKUP($G13,'Technician Summary'!$G$7:$BK$372,34,FALSE),"") ->  | AJ13: =IFERROR(VLOOKUP($G13,'Technician Summary'!$G$7:$BK$372,35,FALSE),"") ->  | AL13: =IFERROR(VLOOKUP($G13,'Technician Summary'!$G$7:$BK$372,37,FALSE),"") ->  | AM13: =IFERROR(VLOOKUP($G13,'Technician Summary'!$G$7:$BK$372,38,FALSE),"") ->  | AO13: =COUNTIFS('Drop Validation'!$Q:$Q,$G13,'Drop Validation'!$G:$G,"In Scope") -> 0 | AP13: =COUNTIFS('Drop Validation'!$Q:$Q,$G13,'Drop Validation'!$AB:$AB,"Compliant",'Drop Validation'!$G:$G,"In Scope") -> 0
B14: Gainesville | I14: =IFERROR(VLOOKUP($G14,'Technician Summary'!$G$7:$BB$372,2,FALSE),"") ->  | J14: =IFERROR(VLOOKUP($G14,'Technician Summary'!$G$7:$BN$372,60,FALSE),"") ->  | L14: =IF(G14="","",COUNTIFS('SMS tNPS'!DE:DE,G14,'SMS tNPS'!HB:HB,"Yes")) ->  | M14: =IFERROR(IF(G14="","",COUNTIFS('SMS tNPS'!DE:DE,G14,'SMS tNPS'!HB:HB,"Yes"))+COUNTIFS('SMS tNPS'!DE:DE,G14,'SMS tNPS'!HB:HB,"No"),"") ->  | O14: =IFERROR(VLOOKUP($G14,'Technician Summary'!$G$7:$BK$372,14,FALSE),"") ->  | P14: =IFERROR(VLOOKUP($G14,'Technician Summary'!$G$7:$BK$372,15,FALSE),"") ->  | R14: =IFERROR(VLOOKUP($G14,'Technician Summary'!$G$7:$BK$372,17,FALSE),"") ->  | S14: =IFERROR(VLOOKUP($G14,'Technician Summary'!$G$7:$BK$372,18,FALSE),"") ->  | U14: =IFERROR(VLOOKUP($G14,'Technician Summary'!$G$7:$BK$372,20,FALSE),"") ->  | V14: =IFERROR(VLOOKUP($G14,'Technician Summary'!$G$7:$BK$372,21,FALSE),"") ->  | X14: =IF($G14="","",SUMIF('SQT Data'!$K:$K,$G14,'SQT Data'!$R:$R)) ->  | Y14: =IF($G14="","",SUMIF('SQT Data'!$K:$K,$G14,'SQT Data'!$S:$S)) ->  | AA14: =IF($G14="","",SUMIF('SQT Data'!$K:$K,$G14,'SQT Data'!$U:$U)) ->  | AB14: =IF($G14="","",SUMIF('SQT Data'!$K:$K,$G14,'SQT Data'!$V:$V)) ->  | AE14: =IFERROR(SUM(AD14/#REF!),"") ->  | AF14: =IFERROR(VLOOKUP($G14,'Technician Summary'!$G$7:$BK$372,7,FALSE),"") ->  | AG14: =IFERROR(VLOOKUP($G14,'Technician Summary'!$G$7:$BK$372,8,FALSE),"") ->  | AI14: =IFERROR(VLOOKUP($G14,'Technician Summary'!$G$7:$BK$372,34,FALSE),"") ->  | AJ14: =IFERROR(VLOOKUP($G14,'Technician Summary'!$G$7:$BK$372,35,FALSE),"") ->  | AL14: =IFERROR(VLOOKUP($G14,'Technician Summary'!$G$7:$BK$372,37,FALSE),"") ->  | AM14: =IFERROR(VLOOKUP($G14,'Technician Summary'!$G$7:$BK$372,38,FALSE),"") ->  | AO14: =COUNTIFS('Drop Validation'!$Q:$Q,$G14,'Drop Validation'!$G:$G,"In Scope") -> 0 | AP14: =COUNTIFS('Drop Validation'!$Q:$Q,$G14,'Drop Validation'!$AB:$AB,"Compliant",'Drop Validation'!$G:$G,"In Scope") -> 0
B15: Macon | I15: =IFERROR(VLOOKUP($G15,'Technician Summary'!$G$7:$BB$372,2,FALSE),"") ->  | J15: =IFERROR(VLOOKUP($G15,'Technician Summary'!$G$7:$BN$372,60,FALSE),"") ->  | L15: =IF(G15="","",COUNTIFS('SMS tNPS'!DE:DE,G15,'SMS tNPS'!HB:HB,"Yes")) ->  | M15: =IFERROR(IF(G15="","",COUNTIFS('SMS tNPS'!DE:DE,G15,'SMS tNPS'!HB:HB,"Yes"))+COUNTIFS('SMS tNPS'!DE:DE,G15,'SMS tNPS'!HB:HB,"No"),"") ->  | O15: =IFERROR(VLOOKUP($G15,'Technician Summary'!$G$7:$BK$372,14,FALSE),"") ->  | P15: =IFERROR(VLOOKUP($G15,'Technician Summary'!$G$7:$BK$372,15,FALSE),"") ->  | R15: =IFERROR(VLOOKUP($G15,'Technician Summary'!$G$7:$BK$372,17,FALSE),"") ->  | S15: =IFERROR(VLOOKUP($G15,'Technician Summary'!$G$7:$BK$372,18,FALSE),"") ->  | U15: =IFERROR(VLOOKUP($G15,'Technician Summary'!$G$7:$BK$372,20,FALSE),"") ->  | V15: =IFERROR(VLOOKUP($G15,'Technician Summary'!$G$7:$BK$372,21,FALSE),"") ->  | X15: =IF($G15="","",SUMIF('SQT Data'!$K:$K,$G15,'SQT Data'!$R:$R)) ->  | Y15: =IF($G15="","",SUMIF('SQT Data'!$K:$K,$G15,'SQT Data'!$S:$S)) ->  | AA15: =IF($G15="","",SUMIF('SQT Data'!$K:$K,$G15,'SQT Data'!$U:$U)) ->  | AB15: =IF($G15="","",SUMIF('SQT Data'!$K:$K,$G15,'SQT Data'!$V:$V)) ->  | AE15: =IFERROR(SUM(AD15/#REF!),"") ->  | AF15: =IFERROR(VLOOKUP($G15,'Technician Summary'!$G$7:$BK$372,7,FALSE),"") ->  | AG15: =IFERROR(VLOOKUP($G15,'Technician Summary'!$G$7:$BK$372,8,FALSE),"") ->  | AI15: =IFERROR(VLOOKUP($G15,'Technician Summary'!$G$7:$BK$372,34,FALSE),"") ->  | AJ15: =IFERROR(VLOOKUP($G15,'Technician Summary'!$G$7:$BK$372,35,FALSE),"") ->  | AL15: =IFERROR(VLOOKUP($G15,'Technician Summary'!$G$7:$BK$372,37,FALSE),"") ->  | AM15: =IFERROR(VLOOKUP($G15,'Technician Summary'!$G$7:$BK$372,38,FALSE),"") ->  | AO15: =COUNTIFS('Drop Validation'!$Q:$Q,$G15,'Drop Validation'!$G:$G,"In Scope") -> 0 | AP15: =COUNTIFS('Drop Validation'!$Q:$Q,$G15,'Drop Validation'!$AB:$AB,"Compliant",'Drop Validation'!$G:$G,"In Scope") -> 0
B16: New Orleans | I16: =IFERROR(VLOOKUP($G16,'Technician Summary'!$G$7:$BB$372,2,FALSE),"") ->  | J16: =IFERROR(VLOOKUP($G16,'Technician Summary'!$G$7:$BN$372,60,FALSE),"") ->  | L16: =IF(G16="","",COUNTIFS('SMS tNPS'!DE:DE,G16,'SMS tNPS'!HB:HB,"Yes")) ->  | M16: =IFERROR(IF(G16="","",COUNTIFS('SMS tNPS'!DE:DE,G16,'SMS tNPS'!HB:HB,"Yes"))+COUNTIFS('SMS tNPS'!DE:DE,G16,'SMS tNPS'!HB:HB,"No"),"") ->  | O16: =IFERROR(VLOOKUP($G16,'Technician Summary'!$G$7:$BK$372,14,FALSE),"") ->  | P16: =IFERROR(VLOOKUP($G16,'Technician Summary'!$G$7:$BK$372,15,FALSE),"") ->  | R16: =IFERROR(VLOOKUP($G16,'Technician Summary'!$G$7:$BK$372,17,FALSE),"") ->  | S16: =IFERROR(VLOOKUP($G16,'Technician Summary'!$G$7:$BK$372,18,FALSE),"") ->  | U16: =IFERROR(VLOOKUP($G16,'Technician Summary'!$G$7:$BK$372,20,FALSE),"") ->  | V16: =IFERROR(VLOOKUP($G16,'Technician Summary'!$G$7:$BK$372,21,FALSE),"") ->  | X16: =IF($G16="","",SUMIF('SQT Data'!$K:$K,$G16,'SQT Data'!$R:$R)) ->  | Y16: =IF($G16="","",SUMIF('SQT Data'!$K:$K,$G16,'SQT Data'!$S:$S)) ->  | AA16: =IF($G16="","",SUMIF('SQT Data'!$K:$K,$G16,'SQT Data'!$U:$U)) ->  | AB16: =IF($G16="","",SUMIF('SQT Data'!$K:$K,$G16,'SQT Data'!$V:$V)) ->  | AE16: =IFERROR(SUM(AD16/#REF!),"") ->  | AF16: =IFERROR(VLOOKUP($G16,'Technician Summary'!$G$7:$BK$372,7,FALSE),"") ->  | AG16: =IFERROR(VLOOKUP($G16,'Technician Summary'!$G$7:$BK$372,8,FALSE),"") ->  | AI16: =IFERROR(VLOOKUP($G16,'Technician Summary'!$G$7:$BK$372,34,FALSE),"") ->  | AJ16: =IFERROR(VLOOKUP($G16,'Technician Summary'!$G$7:$BK$372,35,FALSE),"") ->  | AL16: =IFERROR(VLOOKUP($G16,'Technician Summary'!$G$7:$BK$372,37,FALSE),"") ->  | AM16: =IFERROR(VLOOKUP($G16,'Technician Summary'!$G$7:$BK$372,38,FALSE),"") ->  | AO16: =COUNTIFS('Drop Validation'!$Q:$Q,$G16,'Drop Validation'!$G:$G,"In Scope") -> 0 | AP16: =COUNTIFS('Drop Validation'!$Q:$Q,$G16,'Drop Validation'!$AB:$AB,"Compliant",'Drop Validation'!$G:$G,"In Scope") -> 0
B17: Hampton Roads | I17: =IFERROR(VLOOKUP($G17,'Technician Summary'!$G$7:$BB$372,2,FALSE),"") ->  | J17: =IFERROR(VLOOKUP($G17,'Technician Summary'!$G$7:$BN$372,60,FALSE),"") ->  | L17: =IF(G17="","",COUNTIFS('SMS tNPS'!DE:DE,G17,'SMS tNPS'!HB:HB,"Yes")) ->  | M17: =IFERROR(IF(G17="","",COUNTIFS('SMS tNPS'!DE:DE,G17,'SMS tNPS'!HB:HB,"Yes"))+COUNTIFS('SMS tNPS'!DE:DE,G17,'SMS tNPS'!HB:HB,"No"),"") ->  | O17: =IFERROR(VLOOKUP($G17,'Technician Summary'!$G$7:$BK$372,14,FALSE),"") ->  | P17: =IFERROR(VLOOKUP($G17,'Technician Summary'!$G$7:$BK$372,15,FALSE),"") ->  | R17: =IFERROR(VLOOKUP($G17,'Technician Summary'!$G$7:$BK$372,17,FALSE),"") ->  | S17: =IFERROR(VLOOKUP($G17,'Technician Summary'!$G$7:$BK$372,18,FALSE),"") ->  | U17: =IFERROR(VLOOKUP($G17,'Technician Summary'!$G$7:$BK$372,20,FALSE),"") ->  | V17: =IFERROR(VLOOKUP($G17,'Technician Summary'!$G$7:$BK$372,21,FALSE),"") ->  | X17: =IF($G17="","",SUMIF('SQT Data'!$K:$K,$G17,'SQT Data'!$R:$R)) ->  | Y17: =IF($G17="","",SUMIF('SQT Data'!$K:$K,$G17,'SQT Data'!$S:$S)) ->  | AA17: =IF($G17="","",SUMIF('SQT Data'!$K:$K,$G17,'SQT Data'!$U:$U)) ->  | AB17: =IF($G17="","",SUMIF('SQT Data'!$K:$K,$G17,'SQT Data'!$V:$V)) ->  | AE17: =IFERROR(SUM(AD17/#REF!),"") ->  | AF17: =IFERROR(VLOOKUP($G17,'Technician Summary'!$G$7:$BK$372,7,FALSE),"") ->  | AG17: =IFERROR(VLOOKUP($G17,'Technician Summary'!$G$7:$BK$372,8,FALSE),"") ->  | AI17: =IFERROR(VLOOKUP($G17,'Technician Summary'!$G$7:$BK$372,34,FALSE),"") ->  | AJ17: =IFERROR(VLOOKUP($G17,'Technician Summary'!$G$7:$BK$372,35,FALSE),"") ->  | AL17: =IFERROR(VLOOKUP($G17,'Technician Summary'!$G$7:$BK$372,37,FALSE),"") ->  | AM17: =IFERROR(VLOOKUP($G17,'Technician Summary'!$G$7:$BK$372,38,FALSE),"") ->  | AO17: =COUNTIFS('Drop Validation'!$Q:$Q,$G17,'Drop Validation'!$G:$G,"In Scope") -> 0 | AP17: =COUNTIFS('Drop Validation'!$Q:$Q,$G17,'Drop Validation'!$AB:$AB,"Compliant",'Drop Validation'!$G:$G,"In Scope") -> 0
B18: Baton Rouge | I18: =IFERROR(VLOOKUP($G18,'Technician Summary'!$G$7:$BB$372,2,FALSE),"") ->  | J18: =IFERROR(VLOOKUP($G18,'Technician Summary'!$G$7:$BN$372,60,FALSE),"") ->  | L18: =IF(G18="","",COUNTIFS('SMS tNPS'!DE:DE,G18,'SMS tNPS'!HB:HB,"Yes")) ->  | M18: =IFERROR(IF(G18="","",COUNTIFS('SMS tNPS'!DE:DE,G18,'SMS tNPS'!HB:HB,"Yes"))+COUNTIFS('SMS tNPS'!DE:DE,G18,'SMS tNPS'!HB:HB,"No"),"") ->  | O18: =IFERROR(VLOOKUP($G18,'Technician Summary'!$G$7:$BK$372,14,FALSE),"") ->  | P18: =IFERROR(VLOOKUP($G18,'Technician Summary'!$G$7:$BK$372,15,FALSE),"") ->  | R18: =IFERROR(VLOOKUP($G18,'Technician Summary'!$G$7:$BK$372,17,FALSE),"") ->  | S18: =IFERROR(VLOOKUP($G18,'Technician Summary'!$G$7:$BK$372,18,FALSE),"") ->  | U18: =IFERROR(VLOOKUP($G18,'Technician Summary'!$G$7:$BK$372,20,FALSE),"") ->  | V18: =IFERROR(VLOOKUP($G18,'Technician Summary'!$G$7:$BK$372,21,FALSE),"") ->  | X18: =IF($G18="","",SUMIF('SQT Data'!$K:$K,$G18,'SQT Data'!$R:$R)) ->  | Y18: =IF($G18="","",SUMIF('SQT Data'!$K:$K,$G18,'SQT Data'!$S:$S)) ->  | AA18: =IF($G18="","",SUMIF('SQT Data'!$K:$K,$G18,'SQT Data'!$U:$U)) ->  | AB18: =IF($G18="","",SUMIF('SQT Data'!$K:$K,$G18,'SQT Data'!$V:$V)) ->  | AE18: =IFERROR(SUM(AD18/#REF!),"") ->  | AF18: =IFERROR(VLOOKUP($G18,'Technician Summary'!$G$7:$BK$372,7,FALSE),"") ->  | AG18: =IFERROR(VLOOKUP($G18,'Technician Summary'!$G$7:$BK$372,8,FALSE),"") ->  | AI18: =IFERROR(VLOOKUP($G18,'Technician Summary'!$G$7:$BK$372,34,FALSE),"") ->  | AJ18: =IFERROR(VLOOKUP($G18,'Technician Summary'!$G$7:$BK$372,35,FALSE),"") ->  | AL18: =IFERROR(VLOOKUP($G18,'Technician Summary'!$G$7:$BK$372,37,FALSE),"") ->  | AM18: =IFERROR(VLOOKUP($G18,'Technician Summary'!$G$7:$BK$372,38,FALSE),"") ->  | AO18: =COUNTIFS('Drop Validation'!$Q:$Q,$G18,'Drop Validation'!$G:$G,"In Scope") -> 0 | AP18: =COUNTIFS('Drop Validation'!$Q:$Q,$G18,'Drop Validation'!$AB:$AB,"Compliant",'Drop Validation'!$G:$G,"In Scope") -> 0
B19: Roanoke | I19: =IFERROR(VLOOKUP($G19,'Technician Summary'!$G$7:$BB$372,2,FALSE),"") ->  | J19: =IFERROR(VLOOKUP($G19,'Technician Summary'!$G$7:$BN$372,60,FALSE),"") ->  | L19: =IF(G19="","",COUNTIFS('SMS tNPS'!DE:DE,G19,'SMS tNPS'!HB:HB,"Yes")) ->  | M19: =IFERROR(IF(G19="","",COUNTIFS('SMS tNPS'!DE:DE,G19,'SMS tNPS'!HB:HB,"Yes"))+COUNTIFS('SMS tNPS'!DE:DE,G19,'SMS tNPS'!HB:HB,"No"),"") ->  | O19: =IFERROR(VLOOKUP($G19,'Technician Summary'!$G$7:$BK$372,14,FALSE),"") ->  | P19: =IFERROR(VLOOKUP($G19,'Technician Summary'!$G$7:$BK$372,15,FALSE),"") ->  | R19: =IFERROR(VLOOKUP($G19,'Technician Summary'!$G$7:$BK$372,17,FALSE),"") ->  | S19: =IFERROR(VLOOKUP($G19,'Technician Summary'!$G$7:$BK$372,18,FALSE),"") ->  | U19: =IFERROR(VLOOKUP($G19,'Technician Summary'!$G$7:$BK$372,20,FALSE),"") ->  | V19: =IFERROR(VLOOKUP($G19,'Technician Summary'!$G$7:$BK$372,21,FALSE),"") ->  | X19: =IF($G19="","",SUMIF('SQT Data'!$K:$K,$G19,'SQT Data'!$R:$R)) ->  | Y19: =IF($G19="","",SUMIF('SQT Data'!$K:$K,$G19,'SQT Data'!$S:$S)) ->  | AA19: =IF($G19="","",SUMIF('SQT Data'!$K:$K,$G19,'SQT Data'!$U:$U)) ->  | AB19: =IF($G19="","",SUMIF('SQT Data'!$K:$K,$G19,'SQT Data'!$V:$V)) ->  | AE19: =IFERROR(SUM(AD19/#REF!),"") ->  | AF19: =IFERROR(VLOOKUP($G19,'Technician Summary'!$G$7:$BK$372,7,FALSE),"") ->  | AG19: =IFERROR(VLOOKUP($G19,'Technician Summary'!$G$7:$BK$372,8,FALSE),"") ->  | AI19: =IFERROR(VLOOKUP($G19,'Technician Summary'!$G$7:$BK$372,34,FALSE),"") ->  | AJ19: =IFERROR(VLOOKUP($G19,'Technician Summary'!$G$7:$BK$372,35,FALSE),"") ->  | AL19: =IFERROR(VLOOKUP($G19,'Technician Summary'!$G$7:$BK$372,37,FALSE),"") ->  | AM19: =IFERROR(VLOOKUP($G19,'Technician Summary'!$G$7:$BK$372,38,FALSE),"") ->  | AO19: =COUNTIFS('Drop Validation'!$Q:$Q,$G19,'Drop Validation'!$G:$G,"In Scope") -> 0 | AP19: =COUNTIFS('Drop Validation'!$Q:$Q,$G19,'Drop Validation'!$AB:$AB,"Compliant",'Drop Validation'!$G:$G,"In Scope") -> 0
B20: Gulf Coast | I20: =IFERROR(VLOOKUP($G20,'Technician Summary'!$G$7:$BB$372,2,FALSE),"") ->  | J20: =IFERROR(VLOOKUP($G20,'Technician Summary'!$G$7:$BN$372,60,FALSE),"") ->  | L20: =IF(G20="","",COUNTIFS('SMS tNPS'!DE:DE,G20,'SMS tNPS'!HB:HB,"Yes")) ->  | M20: =IFERROR(IF(G20="","",COUNTIFS('SMS tNPS'!DE:DE,G20,'SMS tNPS'!HB:HB,"Yes"))+COUNTIFS('SMS tNPS'!DE:DE,G20,'SMS tNPS'!HB:HB,"No"),"") ->  | O20: =IFERROR(VLOOKUP($G20,'Technician Summary'!$G$7:$BK$372,14,FALSE),"") ->  | P20: =IFERROR(VLOOKUP($G20,'Technician Summary'!$G$7:$BK$372,15,FALSE),"") ->  | R20: =IFERROR(VLOOKUP($G20,'Technician Summary'!$G$7:$BK$372,17,FALSE),"") ->  | S20: =IFERROR(VLOOKUP($G20,'Technician Summary'!$G$7:$BK$372,18,FALSE),"") ->  | U20: =IFERROR(VLOOKUP($G20,'Technician Summary'!$G$7:$BK$372,20,FALSE),"") ->  | V20: =IFERROR(VLOOKUP($G20,'Technician Summary'!$G$7:$BK$372,21,FALSE),"") ->  | X20: =IF($G20="","",SUMIF('SQT Data'!$K:$K,$G20,'SQT Data'!$R:$R)) ->  | Y20: =IF($G20="","",SUMIF('SQT Data'!$K:$K,$G20,'SQT Data'!$S:$S)) ->  | AA20: =IF($G20="","",SUMIF('SQT Data'!$K:$K,$G20,'SQT Data'!$U:$U)) ->  | AB20: =IF($G20="","",SUMIF('SQT Data'!$K:$K,$G20,'SQT Data'!$V:$V)) ->  | AE20: =IFERROR(SUM(AD20/#REF!),"") ->  | AF20: =IFERROR(VLOOKUP($G20,'Technician Summary'!$G$7:$BK$372,7,FALSE),"") ->  | AG20: =IFERROR(VLOOKUP($G20,'Technician Summary'!$G$7:$BK$372,8,FALSE),"") ->  | AI20: =IFERROR(VLOOKUP($G20,'Technician Summary'!$G$7:$BK$372,34,FALSE),"") ->  | AJ20: =IFERROR(VLOOKUP($G20,'Technician Summary'!$G$7:$BK$372,35,FALSE),"") ->  | AL20: =IFERROR(VLOOKUP($G20,'Technician Summary'!$G$7:$BK$372,37,FALSE),"") ->  | AM20: =IFERROR(VLOOKUP($G20,'Technician Summary'!$G$7:$BK$372,38,FALSE),"") ->  | AO20: =COUNTIFS('Drop Validation'!$Q:$Q,$G20,'Drop Validation'!$G:$G,"In Scope") -> 0 | AP20: =COUNTIFS('Drop Validation'!$Q:$Q,$G20,'Drop Validation'!$AB:$AB,"Compliant",'Drop Validation'!$G:$G,"In Scope") -> 0
B21: Oklahoma City | I21: =IFERROR(VLOOKUP($G21,'Technician Summary'!$G$7:$BB$372,2,FALSE),"") ->  | J21: =IFERROR(VLOOKUP($G21,'Technician Summary'!$G$7:$BN$372,60,FALSE),"") ->  | L21: =IF(G21="","",COUNTIFS('SMS tNPS'!DE:DE,G21,'SMS tNPS'!HB:HB,"Yes")) ->  | M21: =IFERROR(IF(G21="","",COUNTIFS('SMS tNPS'!DE:DE,G21,'SMS tNPS'!HB:HB,"Yes"))+COUNTIFS('SMS tNPS'!DE:DE,G21,'SMS tNPS'!HB:HB,"No"),"") ->  | O21: =IFERROR(VLOOKUP($G21,'Technician Summary'!$G$7:$BK$372,14,FALSE),"") ->  | P21: =IFERROR(VLOOKUP($G21,'Technician Summary'!$G$7:$BK$372,15,FALSE),"") ->  | R21: =IFERROR(VLOOKUP($G21,'Technician Summary'!$G$7:$BK$372,17,FALSE),"") ->  | S21: =IFERROR(VLOOKUP($G21,'Technician Summary'!$G$7:$BK$372,18,FALSE),"") ->  | U21: =IFERROR(VLOOKUP($G21,'Technician Summary'!$G$7:$BK$372,20,FALSE),"") ->  | V21: =IFERROR(VLOOKUP($G21,'Technician Summary'!$G$7:$BK$372,21,FALSE),"") ->  | X21: =IF($G21="","",SUMIF('SQT Data'!$K:$K,$G21,'SQT Data'!$R:$R)) ->  | Y21: =IF($G21="","",SUMIF('SQT Data'!$K:$K,$G21,'SQT Data'!$S:$S)) ->  | AA21: =IF($G21="","",SUMIF('SQT Data'!$K:$K,$G21,'SQT Data'!$U:$U)) ->  | AB21: =IF($G21="","",SUMIF('SQT Data'!$K:$K,$G21,'SQT Data'!$V:$V)) ->  | AE21: =IFERROR(SUM(AD21/#REF!),"") ->  | AF21: =IFERROR(VLOOKUP($G21,'Technician Summary'!$G$7:$BK$372,7,FALSE),"") ->  | AG21: =IFERROR(VLOOKUP($G21,'Technician Summary'!$G$7:$BK$372,8,FALSE),"") ->  | AI21: =IFERROR(VLOOKUP($G21,'Technician Summary'!$G$7:$BK$372,34,FALSE),"") ->  | AJ21: =IFERROR(VLOOKUP($G21,'Technician Summary'!$G$7:$BK$372,35,FALSE),"") ->  | AL21: =IFERROR(VLOOKUP($G21,'Technician Summary'!$G$7:$BK$372,37,FALSE),"") ->  | AM21: =IFERROR(VLOOKUP($G21,'Technician Summary'!$G$7:$BK$372,38,FALSE),"") ->  | AO21: =COUNTIFS('Drop Validation'!$Q:$Q,$G21,'Drop Validation'!$G:$G,"In Scope") -> 0 | AP21: =COUNTIFS('Drop Validation'!$Q:$Q,$G21,'Drop Validation'!$AB:$AB,"Compliant",'Drop Validation'!$G:$G,"In Scope") -> 0
B22: Tech Rankings | I22: =IFERROR(VLOOKUP($G22,'Technician Summary'!$G$7:$BB$372,2,FALSE),"") ->  | J22: =IFERROR(VLOOKUP($G22,'Technician Summary'!$G$7:$BN$372,60,FALSE),"") ->  | L22: =IF(G22="","",COUNTIFS('SMS tNPS'!DE:DE,G22,'SMS tNPS'!HB:HB,"Yes")) ->  | M22: =IFERROR(IF(G22="","",COUNTIFS('SMS tNPS'!DE:DE,G22,'SMS tNPS'!HB:HB,"Yes"))+COUNTIFS('SMS tNPS'!DE:DE,G22,'SMS tNPS'!HB:HB,"No"),"") ->  | O22: =IFERROR(VLOOKUP($G22,'Technician Summary'!$G$7:$BK$372,14,FALSE),"") ->  | P22: =IFERROR(VLOOKUP($G22,'Technician Summary'!$G$7:$BK$372,15,FALSE),"") ->  | R22: =IFERROR(VLOOKUP($G22,'Technician Summary'!$G$7:$BK$372,17,FALSE),"") ->  | S22: =IFERROR(VLOOKUP($G22,'Technician Summary'!$G$7:$BK$372,18,FALSE),"") ->  | U22: =IFERROR(VLOOKUP($G22,'Technician Summary'!$G$7:$BK$372,20,FALSE),"") ->  | V22: =IFERROR(VLOOKUP($G22,'Technician Summary'!$G$7:$BK$372,21,FALSE),"") ->  | X22: =IF($G22="","",SUMIF('SQT Data'!$K:$K,$G22,'SQT Data'!$R:$R)) ->  | Y22: =IF($G22="","",SUMIF('SQT Data'!$K:$K,$G22,'SQT Data'!$S:$S)) ->  | AA22: =IF($G22="","",SUMIF('SQT Data'!$K:$K,$G22,'SQT Data'!$U:$U)) ->  | AB22: =IF($G22="","",SUMIF('SQT Data'!$K:$K,$G22,'SQT Data'!$V:$V)) ->  | AE22: =IFERROR(SUM(AD22/#REF!),"") ->  | AF22: =IFERROR(VLOOKUP($G22,'Technician Summary'!$G$7:$BK$372,7,FALSE),"") ->  | AG22: =IFERROR(VLOOKUP($G22,'Technician Summary'!$G$7:$BK$372,8,FALSE),"") ->  | AI22: =IFERROR(VLOOKUP($G22,'Technician Summary'!$G$7:$BK$372,34,FALSE),"") ->  | AJ22: =IFERROR(VLOOKUP($G22,'Technician Summary'!$G$7:$BK$372,35,FALSE),"") ->  | AL22: =IFERROR(VLOOKUP($G22,'Technician Summary'!$G$7:$BK$372,37,FALSE),"") ->  | AM22: =IFERROR(VLOOKUP($G22,'Technician Summary'!$G$7:$BK$372,38,FALSE),"") ->  | AO22: =COUNTIFS('Drop Validation'!$Q:$Q,$G22,'Drop Validation'!$G:$G,"In Scope") -> 0 | AP22: =COUNTIFS('Drop Validation'!$Q:$Q,$G22,'Drop Validation'!$AB:$AB,"Compliant",'Drop Validation'!$G:$G,"In Scope") -> 0
B23: SMS Rankings | I23: =IFERROR(VLOOKUP($G23,'Technician Summary'!$G$7:$BB$372,2,FALSE),"") ->  | J23: =IFERROR(VLOOKUP($G23,'Technician Summary'!$G$7:$BN$372,60,FALSE),"") ->  | L23: =IF(G23="","",COUNTIFS('SMS tNPS'!DE:DE,G23,'SMS tNPS'!HB:HB,"Yes")) ->  | M23: =IFERROR(IF(G23="","",COUNTIFS('SMS tNPS'!DE:DE,G23,'SMS tNPS'!HB:HB,"Yes"))+COUNTIFS('SMS tNPS'!DE:DE,G23,'SMS tNPS'!HB:HB,"No"),"") ->  | O23: =IFERROR(VLOOKUP($G23,'Technician Summary'!$G$7:$BK$372,14,FALSE),"") ->  | P23: =IFERROR(VLOOKUP($G23,'Technician Summary'!$G$7:$BK$372,15,FALSE),"") ->  | R23: =IFERROR(VLOOKUP($G23,'Technician Summary'!$G$7:$BK$372,17,FALSE),"") ->  | S23: =IFERROR(VLOOKUP($G23,'Technician Summary'!$G$7:$BK$372,18,FALSE),"") ->  | U23: =IFERROR(VLOOKUP($G23,'Technician Summary'!$G$7:$BK$372,20,FALSE),"") ->  | V23: =IFERROR(VLOOKUP($G23,'Technician Summary'!$G$7:$BK$372,21,FALSE),"") ->  | X23: =IF($G23="","",SUMIF('SQT Data'!$K:$K,$G23,'SQT Data'!$R:$R)) ->  | Y23: =IF($G23="","",SUMIF('SQT Data'!$K:$K,$G23,'SQT Data'!$S:$S)) ->  | AA23: =IF($G23="","",SUMIF('SQT Data'!$K:$K,$G23,'SQT Data'!$U:$U)) ->  | AB23: =IF($G23="","",SUMIF('SQT Data'!$K:$K,$G23,'SQT Data'!$V:$V)) ->  | AE23: =IFERROR(SUM(AD23/#REF!),"") ->  | AF23: =IFERROR(VLOOKUP($G23,'Technician Summary'!$G$7:$BK$372,7,FALSE),"") ->  | AG23: =IFERROR(VLOOKUP($G23,'Technician Summary'!$G$7:$BK$372,8,FALSE),"") ->  | AI23: =IFERROR(VLOOKUP($G23,'Technician Summary'!$G$7:$BK$372,34,FALSE),"") ->  | AJ23: =IFERROR(VLOOKUP($G23,'Technician Summary'!$G$7:$BK$372,35,FALSE),"") ->  | AL23: =IFERROR(VLOOKUP($G23,'Technician Summary'!$G$7:$BK$372,37,FALSE),"") ->  | AM23: =IFERROR(VLOOKUP($G23,'Technician Summary'!$G$7:$BK$372,38,FALSE),"") ->  | AO23: =COUNTIFS('Drop Validation'!$Q:$Q,$G23,'Drop Validation'!$G:$G,"In Scope") -> 0 | AP23: =COUNTIFS('Drop Validation'!$Q:$Q,$G23,'Drop Validation'!$AB:$AB,"Compliant",'Drop Validation'!$G:$G,"In Scope") -> 0
B24: SQT Rankings | I24: =IFERROR(VLOOKUP($G24,'Technician Summary'!$G$7:$BB$372,2,FALSE),"") ->  | J24: =IFERROR(VLOOKUP($G24,'Technician Summary'!$G$7:$BN$372,60,FALSE),"") ->  | L24: =IF(G24="","",COUNTIFS('SMS tNPS'!DE:DE,G24,'SMS tNPS'!HB:HB,"Yes")) ->  | M24: =IFERROR(IF(G24="","",COUNTIFS('SMS tNPS'!DE:DE,G24,'SMS tNPS'!HB:HB,"Yes"))+COUNTIFS('SMS tNPS'!DE:DE,G24,'SMS tNPS'!HB:HB,"No"),"") ->  | O24: =IFERROR(VLOOKUP($G24,'Technician Summary'!$G$7:$BK$372,14,FALSE),"") ->  | P24: =IFERROR(VLOOKUP($G24,'Technician Summary'!$G$7:$BK$372,15,FALSE),"") ->  | R24: =IFERROR(VLOOKUP($G24,'Technician Summary'!$G$7:$BK$372,17,FALSE),"") ->  | S24: =IFERROR(VLOOKUP($G24,'Technician Summary'!$G$7:$BK$372,18,FALSE),"") ->  | U24: =IFERROR(VLOOKUP($G24,'Technician Summary'!$G$7:$BK$372,20,FALSE),"") ->  | V24: =IFERROR(VLOOKUP($G24,'Technician Summary'!$G$7:$BK$372,21,FALSE),"") ->  | X24: =IF($G24="","",SUMIF('SQT Data'!$K:$K,$G24,'SQT Data'!$R:$R)) ->  | Y24: =IF($G24="","",SUMIF('SQT Data'!$K:$K,$G24,'SQT Data'!$S:$S)) ->  | AA24: =IF($G24="","",SUMIF('SQT Data'!$K:$K,$G24,'SQT Data'!$U:$U)) ->  | AB24: =IF($G24="","",SUMIF('SQT Data'!$K:$K,$G24,'SQT Data'!$V:$V)) ->  | AE24: =IFERROR(SUM(AD24/#REF!),"") ->  | AF24: =IFERROR(VLOOKUP($G24,'Technician Summary'!$G$7:$BK$372,7,FALSE),"") ->  | AG24: =IFERROR(VLOOKUP($G24,'Technician Summary'!$G$7:$BK$372,8,FALSE),"") ->  | AI24: =IFERROR(VLOOKUP($G24,'Technician Summary'!$G$7:$BK$372,34,FALSE),"") ->  | AJ24: =IFERROR(VLOOKUP($G24,'Technician Summary'!$G$7:$BK$372,35,FALSE),"") ->  | AL24: =IFERROR(VLOOKUP($G24,'Technician Summary'!$G$7:$BK$372,37,FALSE),"") ->  | AM24: =IFERROR(VLOOKUP($G24,'Technician Summary'!$G$7:$BK$372,38,FALSE),"") ->  | AO24: =COUNTIFS('Drop Validation'!$Q:$Q,$G24,'Drop Validation'!$G:$G,"In Scope") -> 0 | AP24: =COUNTIFS('Drop Validation'!$Q:$Q,$G24,'Drop Validation'!$AB:$AB,"Compliant",'Drop Validation'!$G:$G,"In Scope") -> 0
B25: Repeat Rankings | I25: =IFERROR(VLOOKUP($G25,'Technician Summary'!$G$7:$BB$372,2,FALSE),"") ->  | J25: =IFERROR(VLOOKUP($G25,'Technician Summary'!$G$7:$BN$372,60,FALSE),"") ->  | L25: =IF(G25="","",COUNTIFS('SMS tNPS'!DE:DE,G25,'SMS tNPS'!HB:HB,"Yes")) ->  | M25: =IFERROR(IF(G25="","",COUNTIFS('SMS tNPS'!DE:DE,G25,'SMS tNPS'!HB:HB,"Yes"))+COUNTIFS('SMS tNPS'!DE:DE,G25,'SMS tNPS'!HB:HB,"No"),"") ->  | O25: =IFERROR(VLOOKUP($G25,'Technician Summary'!$G$7:$BK$372,14,FALSE),"") ->  | P25: =IFERROR(VLOOKUP($G25,'Technician Summary'!$G$7:$BK$372,15,FALSE),"") ->  | R25: =IFERROR(VLOOKUP($G25,'Technician Summary'!$G$7:$BK$372,17,FALSE),"") ->  | S25: =IFERROR(VLOOKUP($G25,'Technician Summary'!$G$7:$BK$372,18,FALSE),"") ->  | U25: =IFERROR(VLOOKUP($G25,'Technician Summary'!$G$7:$BK$372,20,FALSE),"") ->  | V25: =IFERROR(VLOOKUP($G25,'Technician Summary'!$G$7:$BK$372,21,FALSE),"") ->  | X25: =IF($G25="","",SUMIF('SQT Data'!$K:$K,$G25,'SQT Data'!$R:$R)) ->  | Y25: =IF($G25="","",SUMIF('SQT Data'!$K:$K,$G25,'SQT Data'!$S:$S)) ->  | AA25: =IF($G25="","",SUMIF('SQT Data'!$K:$K,$G25,'SQT Data'!$U:$U)) ->  | AB25: =IF($G25="","",SUMIF('SQT Data'!$K:$K,$G25,'SQT Data'!$V:$V)) ->  | AE25: =IFERROR(SUM(AD25/#REF!),"") ->  | AF25: =IFERROR(VLOOKUP($G25,'Technician Summary'!$G$7:$BK$372,7,FALSE),"") ->  | AG25: =IFERROR(VLOOKUP($G25,'Technician Summary'!$G$7:$BK$372,8,FALSE),"") ->  | AI25: =IFERROR(VLOOKUP($G25,'Technician Summary'!$G$7:$BK$372,34,FALSE),"") ->  | AJ25: =IFERROR(VLOOKUP($G25,'Technician Summary'!$G$7:$BK$372,35,FALSE),"") ->  | AL25: =IFERROR(VLOOKUP($G25,'Technician Summary'!$G$7:$BK$372,37,FALSE),"") ->  | AM25: =IFERROR(VLOOKUP($G25,'Technician Summary'!$G$7:$BK$372,38,FALSE),"") ->  | AO25: =COUNTIFS('Drop Validation'!$Q:$Q,$G25,'Drop Validation'!$G:$G,"In Scope") -> 0 | AP25: =COUNTIFS('Drop Validation'!$Q:$Q,$G25,'Drop Validation'!$AB:$AB,"Compliant",'Drop Validation'!$G:$G,"In Scope") -> 0
I26: =IFERROR(VLOOKUP($G26,'Technician Summary'!$G$7:$BB$372,2,FALSE),"") ->  | J26: =IFERROR(VLOOKUP($G26,'Technician Summary'!$G$7:$BN$372,60,FALSE),"") ->  | L26: =IF(G26="","",COUNTIFS('SMS tNPS'!DE:DE,G26,'SMS tNPS'!HB:HB,"Yes")) ->  | M26: =IFERROR(IF(G26="","",COUNTIFS('SMS tNPS'!DE:DE,G26,'SMS tNPS'!HB:HB,"Yes"))+COUNTIFS('SMS tNPS'!DE:DE,G26,'SMS tNPS'!HB:HB,"No"),"") ->  | O26: =IFERROR(VLOOKUP($G26,'Technician Summary'!$G$7:$BK$372,14,FALSE),"") ->  | P26: =IFERROR(VLOOKUP($G26,'Technician Summary'!$G$7:$BK$372,15,FALSE),"") ->  | R26: =IFERROR(VLOOKUP($G26,'Technician Summary'!$G$7:$BK$372,17,FALSE),"") ->  | S26: =IFERROR(VLOOKUP($G26,'Technician Summary'!$G$7:$BK$372,18,FALSE),"") ->  | U26: =IFERROR(VLOOKUP($G26,'Technician Summary'!$G$7:$BK$372,20,FALSE),"") ->  | V26: =IFERROR(VLOOKUP($G26,'Technician Summary'!$G$7:$BK$372,21,FALSE),"") ->  | X26: =IF($G26="","",SUMIF('SQT Data'!$K:$K,$G26,'SQT Data'!$R:$R)) ->  | Y26: =IF($G26="","",SUMIF('SQT Data'!$K:$K,$G26,'SQT Data'!$S:$S)) ->  | AA26: =IF($G26="","",SUMIF('SQT Data'!$K:$K,$G26,'SQT Data'!$U:$U)) ->  | AB26: =IF($G26="","",SUMIF('SQT Data'!$K:$K,$G26,'SQT Data'!$V:$V)) ->  | AE26: =IFERROR(SUM(AD26/#REF!),"") ->  | AF26: =IFERROR(VLOOKUP($G26,'Technician Summary'!$G$7:$BK$372,7,FALSE),"") ->  | AG26: =IFERROR(VLOOKUP($G26,'Technician Summary'!$G$7:$BK$372,8,FALSE),"") ->  | AI26: =IFERROR(VLOOKUP($G26,'Technician Summary'!$G$7:$BK$372,34,FALSE),"") ->  | AJ26: =IFERROR(VLOOKUP($G26,'Technician Summary'!$G$7:$BK$372,35,FALSE),"") ->  | AL26: =IFERROR(VLOOKUP($G26,'Technician Summary'!$G$7:$BK$372,37,FALSE),"") ->  | AM26: =IFERROR(VLOOKUP($G26,'Technician Summary'!$G$7:$BK$372,38,FALSE),"") ->  | AO26: =COUNTIFS('Drop Validation'!$Q:$Q,$G26,'Drop Validation'!$G:$G,"In Scope") -> 0 | AP26: =COUNTIFS('Drop Validation'!$Q:$Q,$G26,'Drop Validation'!$AB:$AB,"Compliant",'Drop Validation'!$G:$G,"In Scope") -> 0
B27: Raw Data | I27: =IFERROR(VLOOKUP($G27,'Technician Summary'!$G$7:$BB$372,2,FALSE),"") ->  | J27: =IFERROR(VLOOKUP($G27,'Technician Summary'!$G$7:$BN$372,60,FALSE),"") ->  | L27: =IF(G27="","",COUNTIFS('SMS tNPS'!DE:DE,G27,'SMS tNPS'!HB:HB,"Yes")) ->  | M27: =IFERROR(IF(G27="","",COUNTIFS('SMS tNPS'!DE:DE,G27,'SMS tNPS'!HB:HB,"Yes"))+COUNTIFS('SMS tNPS'!DE:DE,G27,'SMS tNPS'!HB:HB,"No"),"") ->  | O27: =IFERROR(VLOOKUP($G27,'Technician Summary'!$G$7:$BK$372,14,FALSE),"") ->  | P27: =IFERROR(VLOOKUP($G27,'Technician Summary'!$G$7:$BK$372,15,FALSE),"") ->  | R27: =IFERROR(VLOOKUP($G27,'Technician Summary'!$G$7:$BK$372,17,FALSE),"") ->  | S27: =IFERROR(VLOOKUP($G27,'Technician Summary'!$G$7:$BK$372,18,FALSE),"") ->  | U27: =IFERROR(VLOOKUP($G27,'Technician Summary'!$G$7:$BK$372,20,FALSE),"") ->  | V27: =IFERROR(VLOOKUP($G27,'Technician Summary'!$G$7:$BK$372,21,FALSE),"") ->  | X27: =IF($G27="","",SUMIF('SQT Data'!$K:$K,$G27,'SQT Data'!$R:$R)) ->  | Y27: =IF($G27="","",SUMIF('SQT Data'!$K:$K,$G27,'SQT Data'!$S:$S)) ->  | AA27: =IF($G27="","",SUMIF('SQT Data'!$K:$K,$G27,'SQT Data'!$U:$U)) ->  | AB27: =IF($G27="","",SUMIF('SQT Data'!$K:$K,$G27,'SQT Data'!$V:$V)) ->  | AE27: =IFERROR(SUM(AD27/#REF!),"") ->  | AF27: =IFERROR(VLOOKUP($G27,'Technician Summary'!$G$7:$BK$372,7,FALSE),"") ->  | AG27: =IFERROR(VLOOKUP($G27,'Technician Summary'!$G$7:$BK$372,8,FALSE),"") ->  | AI27: =IFERROR(VLOOKUP($G27,'Technician Summary'!$G$7:$BK$372,34,FALSE),"") ->  | AJ27: =IFERROR(VLOOKUP($G27,'Technician Summary'!$G$7:$BK$372,35,FALSE),"") ->  | AL27: =IFERROR(VLOOKUP($G27,'Technician Summary'!$G$7:$BK$372,37,FALSE),"") ->  | AM27: =IFERROR(VLOOKUP($G27,'Technician Summary'!$G$7:$BK$372,38,FALSE),"") ->  | AO27: =COUNTIFS('Drop Validation'!$Q:$Q,$G27,'Drop Validation'!$G:$G,"In Scope") -> 0 | AP27: =COUNTIFS('Drop Validation'!$Q:$Q,$G27,'Drop Validation'!$AB:$AB,"Compliant",'Drop Validation'!$G:$G,"In Scope") -> 0
I28: =IFERROR(VLOOKUP($G28,'Technician Summary'!$G$7:$BB$372,2,FALSE),"") ->  | J28: =IFERROR(VLOOKUP($G28,'Technician Summary'!$G$7:$BN$372,60,FALSE),"") ->  | L28: =IF(G28="","",COUNTIFS('SMS tNPS'!DE:DE,G28,'SMS tNPS'!HB:HB,"Yes")) ->  | M28: =IFERROR(IF(G28="","",COUNTIFS('SMS tNPS'!DE:DE,G28,'SMS tNPS'!HB:HB,"Yes"))+COUNTIFS('SMS tNPS'!DE:DE,G28,'SMS tNPS'!HB:HB,"No"),"") ->  | O28: =IFERROR(VLOOKUP($G28,'Technician Summary'!$G$7:$BK$372,14,FALSE),"") ->  | P28: =IFERROR(VLOOKUP($G28,'Technician Summary'!$G$7:$BK$372,15,FALSE),"") ->  | R28: =IFERROR(VLOOKUP($G28,'Technician Summary'!$G$7:$BK$372,17,FALSE),"") ->  | S28: =IFERROR(VLOOKUP($G28,'Technician Summary'!$G$7:$BK$372,18,FALSE),"") ->  | U28: =IFERROR(VLOOKUP($G28,'Technician Summary'!$G$7:$BK$372,20,FALSE),"") ->  | V28: =IFERROR(VLOOKUP($G28,'Technician Summary'!$G$7:$BK$372,21,FALSE),"") ->  | X28: =IF($G28="","",SUMIF('SQT Data'!$K:$K,$G28,'SQT Data'!$R:$R)) ->  | Y28: =IF($G28="","",SUMIF('SQT Data'!$K:$K,$G28,'SQT Data'!$S:$S)) ->  | AA28: =IF($G28="","",SUMIF('SQT Data'!$K:$K,$G28,'SQT Data'!$U:$U)) ->  | AB28: =IF($G28="","",SUMIF('SQT Data'!$K:$K,$G28,'SQT Data'!$V:$V)) ->  | AE28: =IFERROR(SUM(AD28/#REF!),"") ->  | AF28: =IFERROR(VLOOKUP($G28,'Technician Summary'!$G$7:$BK$372,7,FALSE),"") ->  | AG28: =IFERROR(VLOOKUP($G28,'Technician Summary'!$G$7:$BK$372,8,FALSE),"") ->  | AI28: =IFERROR(VLOOKUP($G28,'Technician Summary'!$G$7:$BK$372,34,FALSE),"") ->  | AJ28: =IFERROR(VLOOKUP($G28,'Technician Summary'!$G$7:$BK$372,35,FALSE),"") ->  | AL28: =IFERROR(VLOOKUP($G28,'Technician Summary'!$G$7:$BK$372,37,FALSE),"") ->  | AM28: =IFERROR(VLOOKUP($G28,'Technician Summary'!$G$7:$BK$372,38,FALSE),"") ->  | AO28: =COUNTIFS('Drop Validation'!$Q:$Q,$G28,'Drop Validation'!$G:$G,"In Scope") -> 0 | AP28: =COUNTIFS('Drop Validation'!$Q:$Q,$G28,'Drop Validation'!$AB:$AB,"Compliant",'Drop Validation'!$G:$G,"In Scope") -> 0
I29: =IFERROR(VLOOKUP($G29,'Technician Summary'!$G$7:$BB$372,2,FALSE),"") ->  | J29: =IFERROR(VLOOKUP($G29,'Technician Summary'!$G$7:$BN$372,60,FALSE),"") ->  | L29: =IF(G29="","",COUNTIFS('SMS tNPS'!DE:DE,G29,'SMS tNPS'!HB:HB,"Yes")) ->  | M29: =IFERROR(IF(G29="","",COUNTIFS('SMS tNPS'!DE:DE,G29,'SMS tNPS'!HB:HB,"Yes"))+COUNTIFS('SMS tNPS'!DE:DE,G29,'SMS tNPS'!HB:HB,"No"),"") ->  | O29: =IFERROR(VLOOKUP($G29,'Technician Summary'!$G$7:$BK$372,14,FALSE),"") ->  | P29: =IFERROR(VLOOKUP($G29,'Technician Summary'!$G$7:$BK$372,15,FALSE),"") ->  | R29: =IFERROR(VLOOKUP($G29,'Technician Summary'!$G$7:$BK$372,17,FALSE),"") ->  | S29: =IFERROR(VLOOKUP($G29,'Technician Summary'!$G$7:$BK$372,18,FALSE),"") ->  | U29: =IFERROR(VLOOKUP($G29,'Technician Summary'!$G$7:$BK$372,20,FALSE),"") ->  | V29: =IFERROR(VLOOKUP($G29,'Technician Summary'!$G$7:$BK$372,21,FALSE),"") ->  | X29: =IF($G29="","",SUMIF('SQT Data'!$K:$K,$G29,'SQT Data'!$R:$R)) ->  | Y29: =IF($G29="","",SUMIF('SQT Data'!$K:$K,$G29,'SQT Data'!$S:$S)) ->  | AA29: =IF($G29="","",SUMIF('SQT Data'!$K:$K,$G29,'SQT Data'!$U:$U)) ->  | AB29: =IF($G29="","",SUMIF('SQT Data'!$K:$K,$G29,'SQT Data'!$V:$V)) ->  | AE29: =IFERROR(SUM(AD29/#REF!),"") ->  | AF29: =IFERROR(VLOOKUP($G29,'Technician Summary'!$G$7:$BK$372,7,FALSE),"") ->  | AG29: =IFERROR(VLOOKUP($G29,'Technician Summary'!$G$7:$BK$372,8,FALSE),"") ->  | AI29: =IFERROR(VLOOKUP($G29,'Technician Summary'!$G$7:$BK$372,34,FALSE),"") ->  | AJ29: =IFERROR(VLOOKUP($G29,'Technician Summary'!$G$7:$BK$372,35,FALSE),"") ->  | AL29: =IFERROR(VLOOKUP($G29,'Technician Summary'!$G$7:$BK$372,37,FALSE),"") ->  | AM29: =IFERROR(VLOOKUP($G29,'Technician Summary'!$G$7:$BK$372,38,FALSE),"") ->  | AO29: =COUNTIFS('Drop Validation'!$Q:$Q,$G29,'Drop Validation'!$G:$G,"In Scope") -> 0 | AP29: =COUNTIFS('Drop Validation'!$Q:$Q,$G29,'Drop Validation'!$AB:$AB,"Compliant",'Drop Validation'!$G:$G,"In Scope") -> 0
I30: =IFERROR(VLOOKUP($G30,'Technician Summary'!$G$7:$BB$372,2,FALSE),"") ->  | J30: =IFERROR(VLOOKUP($G30,'Technician Summary'!$G$7:$BN$372,60,FALSE),"") ->  | L30: =IF(G30="","",COUNTIFS('SMS tNPS'!DE:DE,G30,'SMS tNPS'!HB:HB,"Yes")) ->  | M30: =IFERROR(IF(G30="","",COUNTIFS('SMS tNPS'!DE:DE,G30,'SMS tNPS'!HB:HB,"Yes"))+COUNTIFS('SMS tNPS'!DE:DE,G30,'SMS tNPS'!HB:HB,"No"),"") ->  | O30: =IFERROR(VLOOKUP($G30,'Technician Summary'!$G$7:$BK$372,14,FALSE),"") ->  | P30: =IFERROR(VLOOKUP($G30,'Technician Summary'!$G$7:$BK$372,15,FALSE),"") ->  | R30: =IFERROR(VLOOKUP($G30,'Technician Summary'!$G$7:$BK$372,17,FALSE),"") ->  | S30: =IFERROR(VLOOKUP($G30,'Technician Summary'!$G$7:$BK$372,18,FALSE),"") ->  | U30: =IFERROR(VLOOKUP($G30,'Technician Summary'!$G$7:$BK$372,20,FALSE),"") ->  | V30: =IFERROR(VLOOKUP($G30,'Technician Summary'!$G$7:$BK$372,21,FALSE),"") ->  | X30: =IF($G30="","",SUMIF('SQT Data'!$K:$K,$G30,'SQT Data'!$R:$R)) ->  | Y30: =IF($G30="","",SUMIF('SQT Data'!$K:$K,$G30,'SQT Data'!$S:$S)) ->  | AA30: =IF($G30="","",SUMIF('SQT Data'!$K:$K,$G30,'SQT Data'!$U:$U)) ->  | AB30: =IF($G30="","",SUMIF('SQT Data'!$K:$K,$G30,'SQT Data'!$V:$V)) ->  | AE30: =IFERROR(SUM(AD30/#REF!),"") ->  | AF30: =IFERROR(VLOOKUP($G30,'Technician Summary'!$G$7:$BK$372,7,FALSE),"") ->  | AG30: =IFERROR(VLOOKUP($G30,'Technician Summary'!$G$7:$BK$372,8,FALSE),"") ->  | AI30: =IFERROR(VLOOKUP($G30,'Technician Summary'!$G$7:$BK$372,34,FALSE),"") ->  | AJ30: =IFERROR(VLOOKUP($G30,'Technician Summary'!$G$7:$BK$372,35,FALSE),"") ->  | AL30: =IFERROR(VLOOKUP($G30,'Technician Summary'!$G$7:$BK$372,37,FALSE),"") ->  | AM30: =IFERROR(VLOOKUP($G30,'Technician Summary'!$G$7:$BK$372,38,FALSE),"") ->  | AO30: =COUNTIFS('Drop Validation'!$Q:$Q,$G30,'Drop Validation'!$G:$G,"In Scope") -> 0 | AP30: =COUNTIFS('Drop Validation'!$Q:$Q,$G30,'Drop Validation'!$AB:$AB,"Compliant",'Drop Validation'!$G:$G,"In Scope") -> 0
I31: =IFERROR(VLOOKUP($G31,'Technician Summary'!$G$7:$BB$372,2,FALSE),"") ->  | J31: =IFERROR(VLOOKUP($G31,'Technician Summary'!$G$7:$BN$372,60,FALSE),"") ->  | L31: =IF(G31="","",COUNTIFS('SMS tNPS'!DE:DE,G31,'SMS tNPS'!HB:HB,"Yes")) ->  | M31: =IFERROR(IF(G31="","",COUNTIFS('SMS tNPS'!DE:DE,G31,'SMS tNPS'!HB:HB,"Yes"))+COUNTIFS('SMS tNPS'!DE:DE,G31,'SMS tNPS'!HB:HB,"No"),"") ->  | O31: =IFERROR(VLOOKUP($G31,'Technician Summary'!$G$7:$BK$372,14,FALSE),"") ->  | P31: =IFERROR(VLOOKUP($G31,'Technician Summary'!$G$7:$BK$372,15,FALSE),"") ->  | R31: =IFERROR(VLOOKUP($G31,'Technician Summary'!$G$7:$BK$372,17,FALSE),"") ->  | S31: =IFERROR(VLOOKUP($G31,'Technician Summary'!$G$7:$BK$372,18,FALSE),"") ->  | U31: =IFERROR(VLOOKUP($G31,'Technician Summary'!$G$7:$BK$372,20,FALSE),"") ->  | V31: =IFERROR(VLOOKUP($G31,'Technician Summary'!$G$7:$BK$372,21,FALSE),"") ->  | X31: =IF($G31="","",SUMIF('SQT Data'!$K:$K,$G31,'SQT Data'!$R:$R)) ->  | Y31: =IF($G31="","",SUMIF('SQT Data'!$K:$K,$G31,'SQT Data'!$S:$S)) ->  | AA31: =IF($G31="","",SUMIF('SQT Data'!$K:$K,$G31,'SQT Data'!$U:$U)) ->  | AB31: =IF($G31="","",SUMIF('SQT Data'!$K:$K,$G31,'SQT Data'!$V:$V)) ->  | AE31: =IFERROR(SUM(AD31/#REF!),"") ->  | AF31: =IFERROR(VLOOKUP($G31,'Technician Summary'!$G$7:$BK$372,7,FALSE),"") ->  | AG31: =IFERROR(VLOOKUP($G31,'Technician Summary'!$G$7:$BK$372,8,FALSE),"") ->  | AI31: =IFERROR(VLOOKUP($G31,'Technician Summary'!$G$7:$BK$372,34,FALSE),"") ->  | AJ31: =IFERROR(VLOOKUP($G31,'Technician Summary'!$G$7:$BK$372,35,FALSE),"") ->  | AL31: =IFERROR(VLOOKUP($G31,'Technician Summary'!$G$7:$BK$372,37,FALSE),"") ->  | AM31: =IFERROR(VLOOKUP($G31,'Technician Summary'!$G$7:$BK$372,38,FALSE),"") ->  | AO31: =COUNTIFS('Drop Validation'!$Q:$Q,$G31,'Drop Validation'!$G:$G,"In Scope") -> 0 | AP31: =COUNTIFS('Drop Validation'!$Q:$Q,$G31,'Drop Validation'!$AB:$AB,"Compliant",'Drop Validation'!$G:$G,"In Scope") -> 0 | AQ31: =IFERROR(AP31/AO31,"") -> 
I32: # NPS WO's | J32: # Failures | K32: NPS | L32: SMS Promoter Count | M32: SMS Count | N32: SMS tNPS | O32: Total Repeatable WO | P32: Total Repeats | Q32: Repeats | R32: Total Repeatable WO | S32: Repeat IN | T32: IN Repeat % | U32: Total Repeatable WO | V32: Repeat TC | W32: Repeat TC % | X32: Jobs | Y32: Test Run | Z32: SQT Compliance | AA32: Parameters Tested | AB32: Parameters Passing | AC32: SQT Pass | AD32: Test Passed | AE32: Ingress Test Pass | AF32: FCR WO | AG32: FCR Failures | AH32: FCR | AI32: Jobs | AJ32: Jobs Late | AK32: OTA | AL32: Jobs | AM32: Completed Jobs | AN32: Completion % | AO32: Total Jobs | AP32: Total Valid | AQ32: Drop Validation
I33: =SUMIF(I7:I31,">0") -> 0 | J33: =SUMIF(J7:J31,">0") -> 0
K34: =IFERROR(1-(J33/I33),"") ->  | L34: =SUM(L7:L31) -> 0 | M34: =SUM(M7:M31) -> 0 | N34: =IFERROR(SUM(L34/M34),"") ->  | O34: =SUM(O7:O31) -> 0 | P34: =SUM(P7:P31) -> 0 | Q34: =IFERROR(SUM(P34/O34),"") ->  | R34: =SUM(R7:R31) -> 0 | S34: =SUM(S7:S31) -> 0 | T34: =IFERROR(SUM(S34/R34),"") ->  | U34: =SUM(U7:U31) -> 0 | V34: =SUM(V7:V31) -> 0 | W34: =IFERROR(SUM(V34/U34),"") ->  | X34: =SUMIF(X7:X31,">0") -> 0 | Y34: =SUMIF(Y7:Y31,">0") -> 0 | Z34: =IFERROR(SUM(Y34/X34),"") ->  | AA34: =SUM(AA7:AA31) -> 0 | AB34: =SUM(AB7:AB31) -> 0 | AC34: =IFERROR(SUM(AB34/AA34),"") ->  | AD34: =SUM(AD7:AD31) -> 0 | AE34: =IFERROR(SUM(AD34/#REF!),"") ->  | AF34: =SUM(AF7:AF31) -> 0 | AG34: =SUM(AG7:AG31) -> 0 | AH34: =IFERROR(1-AG34/AF34,"") ->  | AI34: =SUM(AI7:AI31) -> 0 | AJ34: =SUM(AJ7:AJ31) -> 0 | AK34: =IFERROR(1-AJ34/AI34,"") ->  | AL34: =SUM(AL7:AL31) -> 0 | AM34: =SUM(AM7:AM31) -> 0 | AN34: =IFERROR(AM34/AL34,"") ->  | AO34: =SUM(AO7:AO31) -> 0 | AP34: =SUM(AP7:AP31) -> 0 | AQ34: =IFERROR(AP34/AO34,"") -> 

Sheet Gulf Coast
F3: Tim Judy
F5: Tech Name | G5: Tech ID | H5: Score | I5: # NPS WO's | J5: # Failures | K5: NPS | L5: SMS Promoter Count | M5: SMS Count | N5: SMS tNPS | O5: Total Repeatable WO | P5: Total Repeats | Q5: Repeats | R5: Total Repeatable WO | S5: Repeat IN | T5: IN Repeat % | U5: Total Repeatable WO | V5: Repeat TC | W5: Repeat TC % | X5: Jobs | Y5: Test Run | Z5: SQT Compliance | AA5: Parameters Tested | AB5: Parameters Passing | AC5: SQT Pass | AD5: Test Passed | AE5: Ingress Test Pass | AF5: FCR WO | AG5: FCR Failures | AH5: FCR | AI5: Jobs | AJ5: Jobs Late | AK5: OTA | AL5: Jobs | AM5: Completed Jobs | AN5: Completion % | AO5: Total Jobs | AP5: Total Valid | AQ5: Drop Validation
F7: Tim Judy | G7: 11070 | H7: =IF(Z7="","",IFERROR(IF(K7>=68.26%,1.25,0)+IF(Q7<=5.04%,2.5,0)+IF(Z7>=90%,2.5,0)+IF(AK7>=96%,1.25,0)+IF(N7>=90%,2.5,0),"")) ->  | I7: =IFERROR(VLOOKUP($G7,'Technician Summary'!$G$7:$BB$372,2,FALSE),"") ->  | J7: =(IFERROR(_xlfn.XLOOKUP($G7,'Technician Summary'!G:G,'Technician Summary'!I:I),"")) ->  | K7: =IFERROR(1-((J7*2)/I7),"") ->  | L7: =IF(G7="","",COUNTIFS('SMS tNPS'!DE:DE,G7,'SMS tNPS'!HB:HB,"Yes")) -> 0 | M7: =IFERROR(IF(G7="","",COUNTIFS('SMS tNPS'!DE:DE,G7,'SMS tNPS'!HB:HB,"Yes"))+COUNTIFS('SMS tNPS'!DE:DE,G7,'SMS tNPS'!HB:HB,"No"),"") -> 0 | N7: =IFERROR(SUM(L7/M7),"") ->  | O7: =IFERROR(VLOOKUP($G7,'Technician Summary'!$G$7:$BK$372,14,FALSE),"") ->  | P7: =IFERROR(VLOOKUP($G7,'Technician Summary'!$G$7:$BK$372,15,FALSE),"") ->  | Q7: =IFERROR(SUM(P7/O7),"") ->  | R7: =IFERROR(VLOOKUP($G7,'Technician Summary'!$G$7:$BK$372,17,FALSE),"") ->  | S7: =IFERROR(VLOOKUP($G7,'Technician Summary'!$G$7:$BK$372,18,FALSE),"") ->  | T7: =IFERROR(SUM(S7/R7),"") ->  | U7: =IFERROR(VLOOKUP($G7,'Technician Summary'!$G$7:$BK$372,20,FALSE),"") ->  | V7: =IFERROR(VLOOKUP($G7,'Technician Summary'!$G$7:$BK$372,21,FALSE),"") ->  | W7: =IFERROR(SUM(V7/U7),"") ->  | X7: =IF($G7="","",SUMIF('SQT Data'!$K:$K,$G7,'SQT Data'!$R:$R)) -> 0 | Y7: =IF($G7="","",SUMIF('SQT Data'!$K:$K,$G7,'SQT Data'!$S:$S)) -> 0 | Z7: =IFERROR(SUM(Y7/X7),"") ->  | AA7: =IF($G7="","",SUMIF('SQT Data'!$K:$K,$G7,'SQT Data'!$U:$U)) -> 0 | AB7: =IF($G7="","",SUMIF('SQT Data'!$K:$K,$G7,'SQT Data'!$V:$V)) -> 0 | AC7: =IFERROR(SUM(AB7/AA7),"") ->  | AE7: =IFERROR(SUM(AD7/#REF!),"") ->  | AF7: =IFERROR(VLOOKUP($G7,'Technician Summary'!$G$7:$BK$372,7,FALSE),"") ->  | AG7: =IFERROR(VLOOKUP($G7,'Technician Summary'!$G$7:$BK$372,8,FALSE),"") ->  | AH7: =IFERROR(1-AG7/AF7,"") ->  | AI7: =IFERROR(VLOOKUP($G7,'Technician Summary'!$G$7:$BK$372,34,FALSE),"") ->  | AJ7: =IFERROR(VLOOKUP($G7,'Technician Summary'!$G$7:$BK$372,35,FALSE),"") ->  | AK7: =IFERROR(1-AJ7/AI7,"") ->  | AL7: =IFERROR(VLOOKUP($G7,'Technician Summary'!$G$7:$BK$372,37,FALSE),"") ->  | AM7: =IFERROR(VLOOKUP($G7,'Technician Summary'!$G$7:$BK$372,38,FALSE),"") ->  | AN7: =IFERROR(AM7/AL7,"") ->  | AO7: =COUNTIFS('Drop Validation'!$Q:$Q,$G7,'Drop Validation'!$G:$G,"In Scope") -> 0 | AP7: =COUNTIFS('Drop Validation'!$Q:$Q,$G7,'Drop Validation'!$AB:$AB,"Compliant",'Drop Validation'!$G:$G,"In Scope") -> 0 | AQ7: =IFERROR(#REF!/#REF!,"") -> 
F8: Marcus Jones | G8: 11418 | H8: 6.25 | I8: =IFERROR(VLOOKUP($G8,'Technician Summary'!$G$7:$BB$372,2,FALSE),"") -> 1 | J8: =(IFERROR(_xlfn.XLOOKUP($G8,'Technician Summary'!G:G,'Technician Summary'!I:I),"")) -> 0 | K8: =IFERROR(1-((J8*2)/I8),"") -> 1 | L8: =IF(G8="","",COUNTIFS('SMS tNPS'!DE:DE,G8,'SMS tNPS'!HB:HB,"Yes")) -> 2 | M8: =IFERROR(IF(G8="","",COUNTIFS('SMS tNPS'!DE:DE,G8,'SMS tNPS'!HB:HB,"Yes"))+COUNTIFS('SMS tNPS'!DE:DE,G8,'SMS tNPS'!HB:HB,"No"),"") -> 3 | N8: =IFERROR(SUM(L8/M8),"") -> 0.6667 | O8: =IFERROR(VLOOKUP($G8,'Technician Summary'!$G$7:$BK$372,14,FALSE),"") -> 50 | P8: =IFERROR(VLOOKUP($G8,'Technician Summary'!$G$7:$BK$372,15,FALSE),"") -> 2 | Q8: =IFERROR(SUM(P8/O8),"") -> 0.04 | R8: =IFERROR(VLOOKUP($G8,'Technician Summary'!$G$7:$BK$372,17,FALSE),"") -> 15 | S8: =IFERROR(VLOOKUP($G8,'Technician Summary'!$G$7:$BK$372,18,FALSE),"") -> 1 | T8: =IFERROR(SUM(S8/R8),"") -> 0.0667 | U8: =IFERROR(VLOOKUP($G8,'Technician Summary'!$G$7:$BK$372,20,FALSE),"") -> 35 | V8: =IFERROR(VLOOKUP($G8,'Technician Summary'!$G$7:$BK$372,21,FALSE),"") -> 1 | W8: =IFERROR(SUM(V8/U8),"") -> 0.0286 | X8: =IF($G8="","",SUMIF('SQT Data'!$K:$K,$G8,'SQT Data'!$R:$R)) -> 22 | Y8: =IF($G8="","",SUMIF('SQT Data'!$K:$K,$G8,'SQT Data'!$S:$S)) -> 22 | Z8: =IFERROR(SUM(Y8/X8),"") -> 1 | AA8: =IF($G8="","",SUMIF('SQT Data'!$K:$K,$G8,'SQT Data'!$U:$U)) -> 176 | AB8: =IF($G8="","",SUMIF('SQT Data'!$K:$K,$G8,'SQT Data'!$V:$V)) -> 153 | AC8: =IFERROR(SUM(AB8/AA8),"") -> 0.8693 | AE8: =IFERROR(SUM(AD8/#REF!),"") ->  | AF8: =IFERROR(VLOOKUP($G8,'Technician Summary'!$G$7:$BK$372,7,FALSE),"") -> 33 | AG8: =IFERROR(VLOOKUP($G8,'Technician Summary'!$G$7:$BK$372,8,FALSE),"") -> 1 | AH8: =IFERROR(1-AG8/AF8,"") -> 0.9697 | AI8: =IFERROR(VLOOKUP($G8,'Technician Summary'!$G$7:$BK$372,34,FALSE),"") -> 14 | AJ8: =IFERROR(VLOOKUP($G8,'Technician Summary'!$G$7:$BK$372,35,FALSE),"") -> 1 | AK8: =IFERROR(1-AJ8/AI8,"") -> 0.9286 | AL8: =IFERROR(VLOOKUP($G8,'Technician Summary'!$G$7:$BK$372,37,FALSE),"") -> 49 | AM8: =IFERROR(VLOOKUP($G8,'Technician Summary'!$G$7:$BK$372,38,FALSE),"") -> 47 | AN8: =IFERROR(AM8/AL8,"") -> 0.9592 | AO8: =COUNTIFS('Drop Validation'!$Q:$Q,$G8,'Drop Validation'!$G:$G,"In Scope") -> 0 | AP8: =COUNTIFS('Drop Validation'!$Q:$Q,$G8,'Drop Validation'!$AB:$AB,"Compliant",'Drop Validation'!$G:$G,"In Scope") -> 0 | AQ8: =IFERROR(AP8/AO8,"") -> 
F9: Rayil Rodriguez | G9: 84104 | H9: 8.75 | I9: =IFERROR(VLOOKUP($G9,'Technician Summary'!$G$7:$BB$372,2,FALSE),"") -> 3 | J9: =(IFERROR(_xlfn.XLOOKUP($G9,'Technician Summary'!G:G,'Technician Summary'!I:I),"")) -> 0 | K9: 1 | L9: =IF(G9="","",COUNTIFS('SMS tNPS'!DE:DE,G9,'SMS tNPS'!HB:HB,"Yes")) -> 7 | M9: =IFERROR(IF(G9="","",COUNTIFS('SMS tNPS'!DE:DE,G9,'SMS tNPS'!HB:HB,"Yes"))+COUNTIFS('SMS tNPS'!DE:DE,G9,'SMS tNPS'!HB:HB,"No"),"") -> 7 | N9: 1 | O9: =IFERROR(VLOOKUP($G9,'Technician Summary'!$G$7:$BK$372,14,FALSE),"") -> 45 | P9: =IFERROR(VLOOKUP($G9,'Technician Summary'!$G$7:$BK$372,15,FALSE),"") -> 2 | Q9: 0.0444 | R9: =IFERROR(VLOOKUP($G9,'Technician Summary'!$G$7:$BK$372,17,FALSE),"") -> 19 | S9: =IFERROR(VLOOKUP($G9,'Technician Summary'!$G$7:$BK$372,18,FALSE),"") -> 1 | T9: 0.0526 | U9: =IFERROR(VLOOKUP($G9,'Technician Summary'!$G$7:$BK$372,20,FALSE),"") -> 26 | V9: =IFERROR(VLOOKUP($G9,'Technician Summary'!$G$7:$BK$372,21,FALSE),"") -> 1 | W9: 0.0385 | X9: =IF($G9="","",SUMIF('SQT Data'!$K:$K,$G9,'SQT Data'!$R:$R)) -> 25 | Y9: =IF($G9="","",SUMIF('SQT Data'!$K:$K,$G9,'SQT Data'!$S:$S)) -> 25 | Z9: 1 | AA9: =IF($G9="","",SUMIF('SQT Data'!$K:$K,$G9,'SQT Data'!$U:$U)) -> 200 | AB9: =IF($G9="","",SUMIF('SQT Data'!$K:$K,$G9,'SQT Data'!$V:$V)) -> 184 | AC9: 0.92 | AE9: =IFERROR(SUM(AD9/#REF!),"") ->  | AF9: =IFERROR(VLOOKUP($G9,'Technician Summary'!$G$7:$BK$372,7,FALSE),"") -> 27 | AG9: =IFERROR(VLOOKUP($G9,'Technician Summary'!$G$7:$BK$372,8,FALSE),"") -> 2 | AH9: 0.9259 | AI9: =IFERROR(VLOOKUP($G9,'Technician Summary'!$G$7:$BK$372,34,FALSE),"") -> 16 | AJ9: =IFERROR(VLOOKUP($G9,'Technician Summary'!$G$7:$BK$372,35,FALSE),"") -> 1 | AK9: 0.9375 | AL9: =IFERROR(VLOOKUP($G9,'Technician Summary'!$G$7:$BK$372,37,FALSE),"") -> 47 | AM9: =IFERROR(VLOOKUP($G9,'Technician Summary'!$G$7:$BK$372,38,FALSE),"") -> 44 | AN9: 0.9362 | AO9: =COUNTIFS('Drop Validation'!$Q:$Q,$G9,'Drop Validation'!$G:$G,"In Scope") -> 0 | AP9: =COUNTIFS('Drop Validation'!$Q:$Q,$G9,'Drop Validation'!$AB:$AB,"Compliant",'Drop Validation'!$G:$G,"In Scope") -> 0
F10: Brian Swanson | G10: 56775 | H10: 7.5 | I10: =IFERROR(VLOOKUP($G10,'Technician Summary'!$G$7:$BB$372,2,FALSE),"") -> 3 | J10: =(IFERROR(_xlfn.XLOOKUP($G10,'Technician Summary'!G:G,'Technician Summary'!I:I),"")) -> 0 | K10: 1 | L10: =IF(G10="","",COUNTIFS('SMS tNPS'!DE:DE,G10,'SMS tNPS'!HB:HB,"Yes")) -> 13 | M10: =IFERROR(IF(G10="","",COUNTIFS('SMS tNPS'!DE:DE,G10,'SMS tNPS'!HB:HB,"Yes"))+COUNTIFS('SMS tNPS'!DE:DE,G10,'SMS tNPS'!HB:HB,"No"),"") -> 14 | N10: 0.9286 | O10: =IFERROR(VLOOKUP($G10,'Technician Summary'!$G$7:$BK$372,14,FALSE),"") -> 51 | P10: =IFERROR(VLOOKUP($G10,'Technician Summary'!$G$7:$BK$372,15,FALSE),"") -> 4 | Q10: 0.0784 | R10: =IFERROR(VLOOKUP($G10,'Technician Summary'!$G$7:$BK$372,17,FALSE),"") -> 18 | S10: =IFERROR(VLOOKUP($G10,'Technician Summary'!$G$7:$BK$372,18,FALSE),"") -> 2 | T10: 0.1111 | U10: =IFERROR(VLOOKUP($G10,'Technician Summary'!$G$7:$BK$372,20,FALSE),"") -> 33 | V10: =IFERROR(VLOOKUP($G10,'Technician Summary'!$G$7:$BK$372,21,FALSE),"") -> 2 | W10: 0.0606 | X10: =IF($G10="","",SUMIF('SQT Data'!$K:$K,$G10,'SQT Data'!$R:$R)) -> 36 | Y10: =IF($G10="","",SUMIF('SQT Data'!$K:$K,$G10,'SQT Data'!$S:$S)) -> 36 | Z10: 1 | AA10: =IF($G10="","",SUMIF('SQT Data'!$K:$K,$G10,'SQT Data'!$U:$U)) -> 288 | AB10: =IF($G10="","",SUMIF('SQT Data'!$K:$K,$G10,'SQT Data'!$V:$V)) -> 219 | AC10: 0.7604 | AE10: =IFERROR(SUM(AD10/#REF!),"") ->  | AF10: =IFERROR(VLOOKUP($G10,'Technician Summary'!$G$7:$BK$372,7,FALSE),"") -> 27 | AG10: =IFERROR(VLOOKUP($G10,'Technician Summary'!$G$7:$BK$372,8,FALSE),"") -> 3 | AH10: 0.8889 | AI10: =IFERROR(VLOOKUP($G10,'Technician Summary'!$G$7:$BK$372,34,FALSE),"") -> 17 | AJ10: =IFERROR(VLOOKUP($G10,'Technician Summary'!$G$7:$BK$372,35,FALSE),"") -> 0 | AK10: 1 | AL10: =IFERROR(VLOOKUP($G10,'Technician Summary'!$G$7:$BK$372,37,FALSE),"") -> 57 | AM10: =IFERROR(VLOOKUP($G10,'Technician Summary'!$G$7:$BK$372,38,FALSE),"") -> 50 | AN10: 0.8772 | AO10: =COUNTIFS('Drop Validation'!$Q:$Q,$G10,'Drop Validation'!$G:$G,"In Scope") -> 0 | AP10: =COUNTIFS('Drop Validation'!$Q:$Q,$G10,'Drop Validation'!$AB:$AB,"Compliant",'Drop Validation'!$G:$G,"In Scope") -> 0
B11: Home | F11: Everton Poole | G11: 11506 | H11: 7.5 | I11: =IFERROR(VLOOKUP($G11,'Technician Summary'!$G$7:$BB$372,2,FALSE),"") -> 3 | J11: =(IFERROR(_xlfn.XLOOKUP($G11,'Technician Summary'!G:G,'Technician Summary'!I:I),"")) -> 0 | K11: 1 | L11: =IF(G11="","",COUNTIFS('SMS tNPS'!DE:DE,G11,'SMS tNPS'!HB:HB,"Yes")) -> 9 | M11: =IFERROR(IF(G11="","",COUNTIFS('SMS tNPS'!DE:DE,G11,'SMS tNPS'!HB:HB,"Yes"))+COUNTIFS('SMS tNPS'!DE:DE,G11,'SMS tNPS'!HB:HB,"No"),"") -> 12 | N11: 0.75 | O11: =IFERROR(VLOOKUP($G11,'Technician Summary'!$G$7:$BK$372,14,FALSE),"") -> 37 | P11: =IFERROR(VLOOKUP($G11,'Technician Summary'!$G$7:$BK$372,15,FALSE),"") -> 0 | Q11: 0 | R11: =IFERROR(VLOOKUP($G11,'Technician Summary'!$G$7:$BK$372,17,FALSE),"") -> 17 | S11: =IFERROR(VLOOKUP($G11,'Technician Summary'!$G$7:$BK$372,18,FALSE),"") -> 0 | T11: 0 | U11: =IFERROR(VLOOKUP($G11,'Technician Summary'!$G$7:$BK$372,20,FALSE),"") -> 20 | V11: =IFERROR(VLOOKUP($G11,'Technician Summary'!$G$7:$BK$372,21,FALSE),"") -> 0 | W11: 0 | X11: =IF($G11="","",SUMIF('SQT Data'!$K:$K,$G11,'SQT Data'!$R:$R)) -> 15 | Y11: =IF($G11="","",SUMIF('SQT Data'!$K:$K,$G11,'SQT Data'!$S:$S)) -> 15 | Z11: 1 | AA11: =IF($G11="","",SUMIF('SQT Data'!$K:$K,$G11,'SQT Data'!$U:$U)) -> 120 | AB11: =IF($G11="","",SUMIF('SQT Data'!$K:$K,$G11,'SQT Data'!$V:$V)) -> 98 | AC11: 0.8167 | AE11: =IFERROR(SUM(AD11/#REF!),"") ->  | AF11: =IFERROR(VLOOKUP($G11,'Technician Summary'!$G$7:$BK$372,7,FALSE),"") -> 15 | AG11: =IFERROR(VLOOKUP($G11,'Technician Summary'!$G$7:$BK$372,8,FALSE),"") -> 0 | AH11: 1 | AI11: =IFERROR(VLOOKUP($G11,'Technician Summary'!$G$7:$BK$372,34,FALSE),"") -> 12 | AJ11: =IFERROR(VLOOKUP($G11,'Technician Summary'!$G$7:$BK$372,35,FALSE),"") -> 0 | AK11: 1 | AL11: =IFERROR(VLOOKUP($G11,'Technician Summary'!$G$7:$BK$372,37,FALSE),"") -> 37 | AM11: =IFERROR(VLOOKUP($G11,'Technician Summary'!$G$7:$BK$372,38,FALSE),"") -> 32 | AN11: 0.8649 | AO11: =COUNTIFS('Drop Validation'!$Q:$Q,$G11,'Drop Validation'!$G:$G,"In Scope") -> 0 | AP11: =COUNTIFS('Drop Validation'!$Q:$Q,$G11,'Drop Validation'!$AB:$AB,"Compliant",'Drop Validation'!$G:$G,"In Scope") -> 0
F12: Brenton Austin | G12: 42146 | H12: 6.25 | I12: =IFERROR(VLOOKUP($G12,'Technician Summary'!$G$7:$BB$372,2,FALSE),"") -> 1 | J12: =(IFERROR(_xlfn.XLOOKUP($G12,'Technician Summary'!G:G,'Technician Summary'!I:I),"")) -> 0 | K12: 1 | L12: =IF(G12="","",COUNTIFS('SMS tNPS'!DE:DE,G12,'SMS tNPS'!HB:HB,"Yes")) -> 10 | M12: =IFERROR(IF(G12="","",COUNTIFS('SMS tNPS'!DE:DE,G12,'SMS tNPS'!HB:HB,"Yes"))+COUNTIFS('SMS tNPS'!DE:DE,G12,'SMS tNPS'!HB:HB,"No"),"") -> 11 | N12: 0.9091 | O12: =IFERROR(VLOOKUP($G12,'Technician Summary'!$G$7:$BK$372,14,FALSE),"") -> 39 | P12: =IFERROR(VLOOKUP($G12,'Technician Summary'!$G$7:$BK$372,15,FALSE),"") -> 0 | Q12: 0 | R12: =IFERROR(VLOOKUP($G12,'Technician Summary'!$G$7:$BK$372,17,FALSE),"") -> 24 | S12: =IFERROR(VLOOKUP($G12,'Technician Summary'!$G$7:$BK$372,18,FALSE),"") -> 0 | T12: 0 | U12: =IFERROR(VLOOKUP($G12,'Technician Summary'!$G$7:$BK$372,20,FALSE),"") -> 15 | V12: =IFERROR(VLOOKUP($G12,'Technician Summary'!$G$7:$BK$372,21,FALSE),"") -> 0 | W12: 0 | X12: =IF($G12="","",SUMIF('SQT Data'!$K:$K,$G12,'SQT Data'!$R:$R)) -> 19 | Y12: =IF($G12="","",SUMIF('SQT Data'!$K:$K,$G12,'SQT Data'!$S:$S)) -> 17 | Z12: 0.8947 | AA12: =IF($G12="","",SUMIF('SQT Data'!$K:$K,$G12,'SQT Data'!$U:$U)) -> 136 | AB12: =IF($G12="","",SUMIF('SQT Data'!$K:$K,$G12,'SQT Data'!$V:$V)) -> 129 | AC12: 0.9485 | AE12: =IFERROR(SUM(AD12/#REF!),"") ->  | AF12: =IFERROR(VLOOKUP($G12,'Technician Summary'!$G$7:$BK$372,7,FALSE),"") -> 22 | AG12: =IFERROR(VLOOKUP($G12,'Technician Summary'!$G$7:$BK$372,8,FALSE),"") -> 0 | AH12: 1 | AI12: =IFERROR(VLOOKUP($G12,'Technician Summary'!$G$7:$BK$372,34,FALSE),"") -> 22 | AJ12: =IFERROR(VLOOKUP($G12,'Technician Summary'!$G$7:$BK$372,35,FALSE),"") -> 1 | AK12: 0.9545 | AL12: =IFERROR(VLOOKUP($G12,'Technician Summary'!$G$7:$BK$372,37,FALSE),"") -> 42 | AM12: =IFERROR(VLOOKUP($G12,'Technician Summary'!$G$7:$BK$372,38,FALSE),"") -> 37 | AN12: 0.881 | AO12: =COUNTIFS('Drop Validation'!$Q:$Q,$G12,'Drop Validation'!$G:$G,"In Scope") -> 1 | AP12: =COUNTIFS('Drop Validation'!$Q:$Q,$G12,'Drop Validation'!$AB:$AB,"Compliant",'Drop Validation'!$G:$G,"In Scope") -> 1 | AQ12: 1
B13: Performance Metrics | F13: James Welch | G13: 52589 | I13: =IFERROR(VLOOKUP($G13,'Technician Summary'!$G$7:$BB$372,2,FALSE),"") -> 0 | J13: =(IFERROR(_xlfn.XLOOKUP($G13,'Technician Summary'!G:G,'Technician Summary'!I:I),"")) -> 0 | L13: =IF(G13="","",COUNTIFS('SMS tNPS'!DE:DE,G13,'SMS tNPS'!HB:HB,"Yes")) -> 0 | M13: =IFERROR(IF(G13="","",COUNTIFS('SMS tNPS'!DE:DE,G13,'SMS tNPS'!HB:HB,"Yes"))+COUNTIFS('SMS tNPS'!DE:DE,G13,'SMS tNPS'!HB:HB,"No"),"") -> 0 | O13: =IFERROR(VLOOKUP($G13,'Technician Summary'!$G$7:$BK$372,14,FALSE),"") -> 4 | P13: =IFERROR(VLOOKUP($G13,'Technician Summary'!$G$7:$BK$372,15,FALSE),"") -> 0 | Q13: 0 | R13: =IFERROR(VLOOKUP($G13,'Technician Summary'!$G$7:$BK$372,17,FALSE),"") -> 3 | S13: =IFERROR(VLOOKUP($G13,'Technician Summary'!$G$7:$BK$372,18,FALSE),"") -> 0 | T13: 0 | U13: =IFERROR(VLOOKUP($G13,'Technician Summary'!$G$7:$BK$372,20,FALSE),"") -> 1 | V13: =IFERROR(VLOOKUP($G13,'Technician Summary'!$G$7:$BK$372,21,FALSE),"") -> 0 | W13: 0 | X13: =IF($G13="","",SUMIF('SQT Data'!$K:$K,$G13,'SQT Data'!$R:$R)) -> 0 | Y13: =IF($G13="","",SUMIF('SQT Data'!$K:$K,$G13,'SQT Data'!$S:$S)) -> 0 | AA13: =IF($G13="","",SUMIF('SQT Data'!$K:$K,$G13,'SQT Data'!$U:$U)) -> 0 | AB13: =IF($G13="","",SUMIF('SQT Data'!$K:$K,$G13,'SQT Data'!$V:$V)) -> 0 | AE13: =IFERROR(SUM(AD13/#REF!),"") ->  | AF13: =IFERROR(VLOOKUP($G13,'Technician Summary'!$G$7:$BK$372,7,FALSE),"") -> 4 | AG13: =IFERROR(VLOOKUP($G13,'Technician Summary'!$G$7:$BK$372,8,FALSE),"") -> 0 | AH13: 1 | AI13: =IFERROR(VLOOKUP($G13,'Technician Summary'!$G$7:$BK$372,34,FALSE),"") -> 3 | AJ13: =IFERROR(VLOOKUP($G13,'Technician Summary'!$G$7:$BK$372,35,FALSE),"") -> 0 | AK13: 1 | AL13: =IFERROR(VLOOKUP($G13,'Technician Summary'!$G$7:$BK$372,37,FALSE),"") -> 4 | AM13: =IFERROR(VLOOKUP($G13,'Technician Summary'!$G$7:$BK$372,38,FALSE),"") -> 4 | AN13: 1 | AO13: =COUNTIFS('Drop Validation'!$Q:$Q,$G13,'Drop Validation'!$G:$G,"In Scope") -> 0 | AP13: =COUNTIFS('Drop Validation'!$Q:$Q,$G13,'Drop Validation'!$AB:$AB,"Compliant",'Drop Validation'!$G:$G,"In Scope") -> 0
B14: Gainesville | F14: Davion Kelley | G14: 57523 | H14: 3.75 | I14: =IFERROR(VLOOKUP($G14,'Technician Summary'!$G$7:$BB$372,2,FALSE),"") -> 1 | J14: =(IFERROR(_xlfn.XLOOKUP($G14,'Technician Summary'!G:G,'Technician Summary'!I:I),"")) -> 0 | K14: 1 | L14: =IF(G14="","",COUNTIFS('SMS tNPS'!DE:DE,G14,'SMS tNPS'!HB:HB,"Yes")) -> 4 | M14: =IFERROR(IF(G14="","",COUNTIFS('SMS tNPS'!DE:DE,G14,'SMS tNPS'!HB:HB,"Yes"))+COUNTIFS('SMS tNPS'!DE:DE,G14,'SMS tNPS'!HB:HB,"No"),"") -> 6 | N14: 0.6667 | O14: =IFERROR(VLOOKUP($G14,'Technician Summary'!$G$7:$BK$372,14,FALSE),"") -> 42 | P14: =IFERROR(VLOOKUP($G14,'Technician Summary'!$G$7:$BK$372,15,FALSE),"") -> 3 | Q14: 0.0714 | R14: =IFERROR(VLOOKUP($G14,'Technician Summary'!$G$7:$BK$372,17,FALSE),"") -> 12 | S14: =IFERROR(VLOOKUP($G14,'Technician Summary'!$G$7:$BK$372,18,FALSE),"") -> 1 | T14: 0.0833 | U14: =IFERROR(VLOOKUP($G14,'Technician Summary'!$G$7:$BK$372,20,FALSE),"") -> 30 | V14: =IFERROR(VLOOKUP($G14,'Technician Summary'!$G$7:$BK$372,21,FALSE),"") -> 2 | W14: 0.0667 | X14: =IF($G14="","",SUMIF('SQT Data'!$K:$K,$G14,'SQT Data'!$R:$R)) -> 34 | Y14: =IF($G14="","",SUMIF('SQT Data'!$K:$K,$G14,'SQT Data'!$S:$S)) -> 31 | Z14: 0.9118 | AA14: =IF($G14="","",SUMIF('SQT Data'!$K:$K,$G14,'SQT Data'!$U:$U)) -> 248 | AB14: =IF($G14="","",SUMIF('SQT Data'!$K:$K,$G14,'SQT Data'!$V:$V)) -> 223 | AC14: 0.8992 | AE14: =IFERROR(SUM(AD14/#REF!),"") ->  | AF14: =IFERROR(VLOOKUP($G14,'Technician Summary'!$G$7:$BK$372,7,FALSE),"") -> 18 | AG14: =IFERROR(VLOOKUP($G14,'Technician Summary'!$G$7:$BK$372,8,FALSE),"") -> 0 | AH14: 1 | AI14: =IFERROR(VLOOKUP($G14,'Technician Summary'!$G$7:$BK$372,34,FALSE),"") -> 12 | AJ14: =IFERROR(VLOOKUP($G14,'Technician Summary'!$G$7:$BK$372,35,FALSE),"") -> 2 | AK14: 0.8333 | AL14: =IFERROR(VLOOKUP($G14,'Technician Summary'!$G$7:$BK$372,37,FALSE),"") -> 47 | AM14: =IFERROR(VLOOKUP($G14,'Technician Summary'!$G$7:$BK$372,38,FALSE),"") -> 42 | AN14: 0.8936 | AO14: =COUNTIFS('Drop Validation'!$Q:$Q,$G14,'Drop Validation'!$G:$G,"In Scope") -> 0 | AP14: =COUNTIFS('Drop Validation'!$Q:$Q,$G14,'Drop Validation'!$AB:$AB,"Compliant",'Drop Validation'!$G:$G,"In Scope") -> 0
B15: Macon | F15: Jahkiya Jackson | G15: 62514 | H15: 8.75 | I15: =IFERROR(VLOOKUP($G15,'Technician Summary'!$G$7:$BB$372,2,FALSE),"") -> 6 | J15: =(IFERROR(_xlfn.XLOOKUP($G15,'Technician Summary'!G:G,'Technician Summary'!I:I),"")) -> 0 | K15: 1 | L15: =IF(G15="","",COUNTIFS('SMS tNPS'!DE:DE,G15,'SMS tNPS'!HB:HB,"Yes")) -> 12 | M15: =IFERROR(IF(G15="","",COUNTIFS('SMS tNPS'!DE:DE,G15,'SMS tNPS'!HB:HB,"Yes"))+COUNTIFS('SMS tNPS'!DE:DE,G15,'SMS tNPS'!HB:HB,"No"),"") -> 13 | N15: 0.9231 | O15: =IFERROR(VLOOKUP($G15,'Technician Summary'!$G$7:$BK$372,14,FALSE),"") -> 52 | P15: =IFERROR(VLOOKUP($G15,'Technician Summary'!$G$7:$BK$372,15,FALSE),"") -> 0 | Q15: 0 | R15: =IFERROR(VLOOKUP($G15,'Technician Summary'!$G$7:$BK$372,17,FALSE),"") -> 12 | S15: =IFERROR(VLOOKUP($G15,'Technician Summary'!$G$7:$BK$372,18,FALSE),"") -> 0 | T15: 0 | U15: =IFERROR(VLOOKUP($G15,'Technician Summary'!$G$7:$BK$372,20,FALSE),"") -> 40 | V15: =IFERROR(VLOOKUP($G15,'Technician Summary'!$G$7:$BK$372,21,FALSE),"") -> 0 | W15: 0 | X15: =IF($G15="","",SUMIF('SQT Data'!$K:$K,$G15,'SQT Data'!$R:$R)) -> 29 | Y15: =IF($G15="","",SUMIF('SQT Data'!$K:$K,$G15,'SQT Data'!$S:$S)) -> 27 | Z15: 0.931 | AA15: =IF($G15="","",SUMIF('SQT Data'!$K:$K,$G15,'SQT Data'!$U:$U)) -> 216 | AB15: =IF($G15="","",SUMIF('SQT Data'!$K:$K,$G15,'SQT Data'!$V:$V)) -> 208 | AC15: 0.963 | AE15: =IFERROR(SUM(AD15/#REF!),"") ->  | AF15: =IFERROR(VLOOKUP($G15,'Technician Summary'!$G$7:$BK$372,7,FALSE),"") -> 24 | AG15: =IFERROR(VLOOKUP($G15,'Technician Summary'!$G$7:$BK$372,8,FALSE),"") -> 0 | AH15: 1 | AI15: =IFERROR(VLOOKUP($G15,'Technician Summary'!$G$7:$BK$372,34,FALSE),"") -> 12 | AJ15: =IFERROR(VLOOKUP($G15,'Technician Summary'!$G$7:$BK$372,35,FALSE),"") -> 3 | AK15: 0.75 | AL15: =IFERROR(VLOOKUP($G15,'Technician Summary'!$G$7:$BK$372,37,FALSE),"") -> 60 | AM15: =IFERROR(VLOOKUP($G15,'Technician Summary'!$G$7:$BK$372,38,FALSE),"") -> 52 | AN15: 0.8667 | AO15: =COUNTIFS('Drop Validation'!$Q:$Q,$G15,'Drop Validation'!$G:$G,"In Scope") -> 3 | AP15: =COUNTIFS('Drop Validation'!$Q:$Q,$G15,'Drop Validation'!$AB:$AB,"Compliant",'Drop Validation'!$G:$G,"In Scope") -> 3 | AQ15: 1
B16: Hampton Roads | F16: John Decker | G16: 80123 | H16: 7.5 | I16: =IFERROR(VLOOKUP($G16,'Technician Summary'!$G$7:$BB$372,2,FALSE),"") -> 2 | J16: =(IFERROR(_xlfn.XLOOKUP($G16,'Technician Summary'!G:G,'Technician Summary'!I:I),"")) -> 0 | K16: 1 | L16: =IF(G16="","",COUNTIFS('SMS tNPS'!DE:DE,G16,'SMS tNPS'!HB:HB,"Yes")) -> 6 | M16: =IFERROR(IF(G16="","",COUNTIFS('SMS tNPS'!DE:DE,G16,'SMS tNPS'!HB:HB,"Yes"))+COUNTIFS('SMS tNPS'!DE:DE,G16,'SMS tNPS'!HB:HB,"No"),"") -> 7 | N16: 0.8571 | O16: =IFERROR(VLOOKUP($G16,'Technician Summary'!$G$7:$BK$372,14,FALSE),"") -> 26 | P16: =IFERROR(VLOOKUP($G16,'Technician Summary'!$G$7:$BK$372,15,FALSE),"") -> 1 | Q16: 0.0385 | R16: =IFERROR(VLOOKUP($G16,'Technician Summary'!$G$7:$BK$372,17,FALSE),"") -> 9 | S16: =IFERROR(VLOOKUP($G16,'Technician Summary'!$G$7:$BK$372,18,FALSE),"") -> 0 | T16: 0 | U16: =IFERROR(VLOOKUP($G16,'Technician Summary'!$G$7:$BK$372,20,FALSE),"") -> 17 | V16: =IFERROR(VLOOKUP($G16,'Technician Summary'!$G$7:$BK$372,21,FALSE),"") -> 1 | W16: 0.0588 | X16: =IF($G16="","",SUMIF('SQT Data'!$K:$K,$G16,'SQT Data'!$R:$R)) -> 13 | Y16: =IF($G16="","",SUMIF('SQT Data'!$K:$K,$G16,'SQT Data'!$S:$S)) -> 13 | Z16: 1 | AA16: =IF($G16="","",SUMIF('SQT Data'!$K:$K,$G16,'SQT Data'!$U:$U)) -> 27 | AB16: =IF($G16="","",SUMIF('SQT Data'!$K:$K,$G16,'SQT Data'!$V:$V)) -> 27 | AC16: 1 | AE16: =IFERROR(SUM(AD16/#REF!),"") ->  | AF16: =IFERROR(VLOOKUP($G16,'Technician Summary'!$G$7:$BK$372,7,FALSE),"") -> 11 | AG16: =IFERROR(VLOOKUP($G16,'Technician Summary'!$G$7:$BK$372,8,FALSE),"") -> 0 | AH16: 1 | AI16: =IFERROR(VLOOKUP($G16,'Technician Summary'!$G$7:$BK$372,34,FALSE),"") -> 9 | AJ16: =IFERROR(VLOOKUP($G16,'Technician Summary'!$G$7:$BK$372,35,FALSE),"") -> 0 | AK16: 1 | AL16: =IFERROR(VLOOKUP($G16,'Technician Summary'!$G$7:$BK$372,37,FALSE),"") -> 29 | AM16: =IFERROR(VLOOKUP($G16,'Technician Summary'!$G$7:$BK$372,38,FALSE),"") -> 26 | AN16: 0.8966 | AO16: =COUNTIFS('Drop Validation'!$Q:$Q,$G16,'Drop Validation'!$G:$G,"In Scope") -> 0 | AP16: =COUNTIFS('Drop Validation'!$Q:$Q,$G16,'Drop Validation'!$AB:$AB,"Compliant",'Drop Validation'!$G:$G,"In Scope") -> 0
B17: Roanoke | F17: Trevor Byers | G17: 11922 | H17: 10 | I17: =IFERROR(VLOOKUP($G17,'Technician Summary'!$G$7:$BB$372,2,FALSE),"") -> 2 | J17: =(IFERROR(_xlfn.XLOOKUP($G17,'Technician Summary'!G:G,'Technician Summary'!I:I),"")) -> 0 | K17: 1 | L17: =IF(G17="","",COUNTIFS('SMS tNPS'!DE:DE,G17,'SMS tNPS'!HB:HB,"Yes")) -> 4 | M17: =IFERROR(IF(G17="","",COUNTIFS('SMS tNPS'!DE:DE,G17,'SMS tNPS'!HB:HB,"Yes"))+COUNTIFS('SMS tNPS'!DE:DE,G17,'SMS tNPS'!HB:HB,"No"),"") -> 4 | N17: 1 | O17: =IFERROR(VLOOKUP($G17,'Technician Summary'!$G$7:$BK$372,14,FALSE),"") -> 7 | P17: =IFERROR(VLOOKUP($G17,'Technician Summary'!$G$7:$BK$372,15,FALSE),"") -> 0 | Q17: 0 | R17: =IFERROR(VLOOKUP($G17,'Technician Summary'!$G$7:$BK$372,17,FALSE),"") -> 4 | S17: =IFERROR(VLOOKUP($G17,'Technician Summary'!$G$7:$BK$372,18,FALSE),"") -> 0 | T17: 0 | U17: =IFERROR(VLOOKUP($G17,'Technician Summary'!$G$7:$BK$372,20,FALSE),"") -> 3 | V17: =IFERROR(VLOOKUP($G17,'Technician Summary'!$G$7:$BK$372,21,FALSE),"") -> 0 | W17: 0 | X17: =IF($G17="","",SUMIF('SQT Data'!$K:$K,$G17,'SQT Data'!$R:$R)) -> 5 | Y17: =IF($G17="","",SUMIF('SQT Data'!$K:$K,$G17,'SQT Data'!$S:$S)) -> 5 | Z17: 1 | AA17: =IF($G17="","",SUMIF('SQT Data'!$K:$K,$G17,'SQT Data'!$U:$U)) -> 40 | AB17: =IF($G17="","",SUMIF('SQT Data'!$K:$K,$G17,'SQT Data'!$V:$V)) -> 39 | AC17: 0.975 | AE17: =IFERROR(SUM(AD17/#REF!),"") ->  | AF17: =IFERROR(VLOOKUP($G17,'Technician Summary'!$G$7:$BK$372,7,FALSE),"") -> 5 | AG17: =IFERROR(VLOOKUP($G17,'Technician Summary'!$G$7:$BK$372,8,FALSE),"") -> 0 | AH17: 1 | AI17: =IFERROR(VLOOKUP($G17,'Technician Summary'!$G$7:$BK$372,34,FALSE),"") -> 4 | AJ17: =IFERROR(VLOOKUP($G17,'Technician Summary'!$G$7:$BK$372,35,FALSE),"") -> 0 | AK17: 1 | AL17: =IFERROR(VLOOKUP($G17,'Technician Summary'!$G$7:$BK$372,37,FALSE),"") -> 9 | AM17: =IFERROR(VLOOKUP($G17,'Technician Summary'!$G$7:$BK$372,38,FALSE),"") -> 7 | AN17: 0.7778 | AO17: =COUNTIFS('Drop Validation'!$Q:$Q,$G17,'Drop Validation'!$G:$G,"In Scope") -> 0 | AP17: =COUNTIFS('Drop Validation'!$Q:$Q,$G17,'Drop Validation'!$AB:$AB,"Compliant",'Drop Validation'!$G:$G,"In Scope") -> 0
B18: Gulf Coast | F18: Vernon Welsh | G18: 96179 | I18: =IFERROR(VLOOKUP($G18,'Technician Summary'!$G$7:$BB$372,2,FALSE),"") ->  | J18: =(IFERROR(_xlfn.XLOOKUP($G18,'Technician Summary'!G:G,'Technician Summary'!I:I),"")) ->  | L18: =IF(G18="","",COUNTIFS('SMS tNPS'!DE:DE,G18,'SMS tNPS'!HB:HB,"Yes")) -> 0 | M18: =IFERROR(IF(G18="","",COUNTIFS('SMS tNPS'!DE:DE,G18,'SMS tNPS'!HB:HB,"Yes"))+COUNTIFS('SMS tNPS'!DE:DE,G18,'SMS tNPS'!HB:HB,"No"),"") -> 0 | O18: =IFERROR(VLOOKUP($G18,'Technician Summary'!$G$7:$BK$372,14,FALSE),"") ->  | P18: =IFERROR(VLOOKUP($G18,'Technician Summary'!$G$7:$BK$372,15,FALSE),"") ->  | R18: =IFERROR(VLOOKUP($G18,'Technician Summary'!$G$7:$BK$372,17,FALSE),"") ->  | S18: =IFERROR(VLOOKUP($G18,'Technician Summary'!$G$7:$BK$372,18,FALSE),"") ->  | U18: =IFERROR(VLOOKUP($G18,'Technician Summary'!$G$7:$BK$372,20,FALSE),"") ->  | V18: =IFERROR(VLOOKUP($G18,'Technician Summary'!$G$7:$BK$372,21,FALSE),"") ->  | X18: =IF($G18="","",SUMIF('SQT Data'!$K:$K,$G18,'SQT Data'!$R:$R)) -> 0 | Y18: =IF($G18="","",SUMIF('SQT Data'!$K:$K,$G18,'SQT Data'!$S:$S)) -> 0 | AA18: =IF($G18="","",SUMIF('SQT Data'!$K:$K,$G18,'SQT Data'!$U:$U)) -> 0 | AB18: =IF($G18="","",SUMIF('SQT Data'!$K:$K,$G18,'SQT Data'!$V:$V)) -> 0 | AE18: =IFERROR(SUM(AD18/#REF!),"") ->  | AF18: =IFERROR(VLOOKUP($G18,'Technician Summary'!$G$7:$BK$372,7,FALSE),"") ->  | AG18: =IFERROR(VLOOKUP($G18,'Technician Summary'!$G$7:$BK$372,8,FALSE),"") ->  | AI18: =IFERROR(VLOOKUP($G18,'Technician Summary'!$G$7:$BK$372,34,FALSE),"") ->  | AJ18: =IFERROR(VLOOKUP($G18,'Technician Summary'!$G$7:$BK$372,35,FALSE),"") ->  | AL18: =IFERROR(VLOOKUP($G18,'Technician Summary'!$G$7:$BK$372,37,FALSE),"") ->  | AM18: =IFERROR(VLOOKUP($G18,'Technician Summary'!$G$7:$BK$372,38,FALSE),"") ->  | AO18: =COUNTIFS('Drop Validation'!$Q:$Q,$G18,'Drop Validation'!$G:$G,"In Scope") -> 0 | AP18: =COUNTIFS('Drop Validation'!$Q:$Q,$G18,'Drop Validation'!$AB:$AB,"Compliant",'Drop Validation'!$G:$G,"In Scope") -> 0
B19: Oklahoma City | F19: Casey Bundrick | G19: 65542 | H19: 3.75 | I19: =IFERROR(VLOOKUP($G19,'Technician Summary'!$G$7:$BB$372,2,FALSE),"") -> 3 | J19: =(IFERROR(_xlfn.XLOOKUP($G19,'Technician Summary'!G:G,'Technician Summary'!I:I),"")) -> 0 | K19: 1 | L19: =IF(G19="","",COUNTIFS('SMS tNPS'!DE:DE,G19,'SMS tNPS'!HB:HB,"Yes")) -> 2 | M19: =IFERROR(IF(G19="","",COUNTIFS('SMS tNPS'!DE:DE,G19,'SMS tNPS'!HB:HB,"Yes"))+COUNTIFS('SMS tNPS'!DE:DE,G19,'SMS tNPS'!HB:HB,"No"),"") -> 2 | N19: 1 | O19: =IFERROR(VLOOKUP($G19,'Technician Summary'!$G$7:$BK$372,14,FALSE),"") -> 22 | P19: =IFERROR(VLOOKUP($G19,'Technician Summary'!$G$7:$BK$372,15,FALSE),"") -> 2 | Q19: 0.0909 | R19: =IFERROR(VLOOKUP($G19,'Technician Summary'!$G$7:$BK$372,17,FALSE),"") -> 13 | S19: =IFERROR(VLOOKUP($G19,'Technician Summary'!$G$7:$BK$372,18,FALSE),"") -> 2 | T19: 0.1538 | U19: =IFERROR(VLOOKUP($G19,'Technician Summary'!$G$7:$BK$372,20,FALSE),"") -> 9 | V19: =IFERROR(VLOOKUP($G19,'Technician Summary'!$G$7:$BK$372,21,FALSE),"") -> 0 | W19: 0 | X19: =IF($G19="","",SUMIF('SQT Data'!$K:$K,$G19,'SQT Data'!$R:$R)) -> 12 | Y19: =IF($G19="","",SUMIF('SQT Data'!$K:$K,$G19,'SQT Data'!$S:$S)) -> 9 | Z19: 0.75 | AA19: =IF($G19="","",SUMIF('SQT Data'!$K:$K,$G19,'SQT Data'!$U:$U)) -> 72 | AB19: =IF($G19="","",SUMIF('SQT Data'!$K:$K,$G19,'SQT Data'!$V:$V)) -> 68 | AC19: 0.9444 | AE19: =IFERROR(SUM(AD19/#REF!),"") ->  | AF19: =IFERROR(VLOOKUP($G19,'Technician Summary'!$G$7:$BK$372,7,FALSE),"") -> 14 | AG19: =IFERROR(VLOOKUP($G19,'Technician Summary'!$G$7:$BK$372,8,FALSE),"") -> 2 | AH19: 0.8571 | AI19: =IFERROR(VLOOKUP($G19,'Technician Summary'!$G$7:$BK$372,34,FALSE),"") -> 12 | AJ19: =IFERROR(VLOOKUP($G19,'Technician Summary'!$G$7:$BK$372,35,FALSE),"") -> 2 | AK19: 0.8333 | AL19: =IFERROR(VLOOKUP($G19,'Technician Summary'!$G$7:$BK$372,37,FALSE),"") -> 28 | AM19: =IFERROR(VLOOKUP($G19,'Technician Summary'!$G$7:$BK$372,38,FALSE),"") -> 22 | AN19: 0.7857 | AO19: =COUNTIFS('Drop Validation'!$Q:$Q,$G19,'Drop Validation'!$G:$G,"In Scope") -> 0 | AP19: =COUNTIFS('Drop Validation'!$Q:$Q,$G19,'Drop Validation'!$AB:$AB,"Compliant",'Drop Validation'!$G:$G,"In Scope") -> 0
B20: Tech Rankings | F20: Kristofer Bohart | G20: 60856 | H20: 2.5 | I20: =IFERROR(VLOOKUP($G20,'Technician Summary'!$G$7:$BB$372,2,FALSE),"") -> 1 | J20: =(IFERROR(_xlfn.XLOOKUP($G20,'Technician Summary'!G:G,'Technician Summary'!I:I),"")) -> 1 | K20: -1 | L20: =IF(G20="","",COUNTIFS('SMS tNPS'!DE:DE,G20,'SMS tNPS'!HB:HB,"Yes")) -> 6 | M20: =IFERROR(IF(G20="","",COUNTIFS('SMS tNPS'!DE:DE,G20,'SMS tNPS'!HB:HB,"Yes"))+COUNTIFS('SMS tNPS'!DE:DE,G20,'SMS tNPS'!HB:HB,"No"),"") -> 7 | N20: 0.8571 | O20: =IFERROR(VLOOKUP($G20,'Technician Summary'!$G$7:$BK$372,14,FALSE),"") -> 26 | P20: =IFERROR(VLOOKUP($G20,'Technician Summary'!$G$7:$BK$372,15,FALSE),"") -> 1 | Q20: 0.0385 | R20: =IFERROR(VLOOKUP($G20,'Technician Summary'!$G$7:$BK$372,17,FALSE),"") -> 8 | S20: =IFERROR(VLOOKUP($G20,'Technician Summary'!$G$7:$BK$372,18,FALSE),"") -> 0 | T20: 0 | U20: =IFERROR(VLOOKUP($G20,'Technician Summary'!$G$7:$BK$372,20,FALSE),"") -> 18 | V20: =IFERROR(VLOOKUP($G20,'Technician Summary'!$G$7:$BK$372,21,FALSE),"") -> 1 | W20: 0.0556 | X20: =IF($G20="","",SUMIF('SQT Data'!$K:$K,$G20,'SQT Data'!$R:$R)) -> 11 | Y20: =IF($G20="","",SUMIF('SQT Data'!$K:$K,$G20,'SQT Data'!$S:$S)) -> 9 | Z20: 0.8182 | AA20: =IF($G20="","",SUMIF('SQT Data'!$K:$K,$G20,'SQT Data'!$U:$U)) -> 72 | AB20: =IF($G20="","",SUMIF('SQT Data'!$K:$K,$G20,'SQT Data'!$V:$V)) -> 69 | AC20: 0.9583 | AE20: =IFERROR(SUM(AD20/#REF!),"") ->  | AF20: =IFERROR(VLOOKUP($G20,'Technician Summary'!$G$7:$BK$372,7,FALSE),"") -> 14 | AG20: =IFERROR(VLOOKUP($G20,'Technician Summary'!$G$7:$BK$372,8,FALSE),"") -> 0 | AH20: 1 | AI20: =IFERROR(VLOOKUP($G20,'Technician Summary'!$G$7:$BK$372,34,FALSE),"") -> 8 | AJ20: =IFERROR(VLOOKUP($G20,'Technician Summary'!$G$7:$BK$372,35,FALSE),"") -> 1 | AK20: 0.875 | AL20: =IFERROR(VLOOKUP($G20,'Technician Summary'!$G$7:$BK$372,37,FALSE),"") -> 29 | AM20: =IFERROR(VLOOKUP($G20,'Technician Summary'!$G$7:$BK$372,38,FALSE),"") -> 26 | AN20: 0.8966 | AO20: =COUNTIFS('Drop Validation'!$Q:$Q,$G20,'Drop Validation'!$G:$G,"In Scope") -> 4 | AP20: =COUNTIFS('Drop Validation'!$Q:$Q,$G20,'Drop Validation'!$AB:$AB,"Compliant",'Drop Validation'!$G:$G,"In Scope") -> 2 | AQ20: 0.5
B21: SMS Rankings | I21: =IFERROR(VLOOKUP($G21,'Technician Summary'!$G$7:$BB$372,2,FALSE),"") ->  | J21: =(IFERROR(_xlfn.XLOOKUP($G21,'Technician Summary'!G:G,'Technician Summary'!I:I),"")) ->  | L21: =IF(G21="","",COUNTIFS('SMS tNPS'!DE:DE,G21,'SMS tNPS'!HB:HB,"Yes")) ->  | M21: =IFERROR(IF(G21="","",COUNTIFS('SMS tNPS'!DE:DE,G21,'SMS tNPS'!HB:HB,"Yes"))+COUNTIFS('SMS tNPS'!DE:DE,G21,'SMS tNPS'!HB:HB,"No"),"") ->  | O21: =IFERROR(VLOOKUP($G21,'Technician Summary'!$G$7:$BK$372,14,FALSE),"") ->  | P21: =IFERROR(VLOOKUP($G21,'Technician Summary'!$G$7:$BK$372,15,FALSE),"") ->  | R21: =IFERROR(VLOOKUP($G21,'Technician Summary'!$G$7:$BK$372,17,FALSE),"") ->  | S21: =IFERROR(VLOOKUP($G21,'Technician Summary'!$G$7:$BK$372,18,FALSE),"") ->  | U21: =IFERROR(VLOOKUP($G21,'Technician Summary'!$G$7:$BK$372,20,FALSE),"") ->  | V21: =IFERROR(VLOOKUP($G21,'Technician Summary'!$G$7:$BK$372,21,FALSE),"") ->  | X21: =IF($G21="","",SUMIF('SQT Data'!$K:$K,$G21,'SQT Data'!$R:$R)) ->  | Y21: =IF($G21="","",SUMIF('SQT Data'!$K:$K,$G21,'SQT Data'!$S:$S)) ->  | AA21: =IF($G21="","",SUMIF('SQT Data'!$K:$K,$G21,'SQT Data'!$U:$U)) ->  | AB21: =IF($G21="","",SUMIF('SQT Data'!$K:$K,$G21,'SQT Data'!$V:$V)) ->  | AE21: =IFERROR(SUM(AD21/#REF!),"") ->  | AF21: =IFERROR(VLOOKUP($G21,'Technician Summary'!$G$7:$BK$372,7,FALSE),"") ->  | AG21: =IFERROR(VLOOKUP($G21,'Technician Summary'!$G$7:$BK$372,8,FALSE),"") ->  | AI21: =IFERROR(VLOOKUP($G21,'Technician Summary'!$G$7:$BK$372,34,FALSE),"") ->  | AJ21: =IFERROR(VLOOKUP($G21,'Technician Summary'!$G$7:$BK$372,35,FALSE),"") ->  | AL21: =IFERROR(VLOOKUP($G21,'Technician Summary'!$G$7:$BK$372,37,FALSE),"") ->  | AM21: =IFERROR(VLOOKUP($G21,'Technician Summary'!$G$7:$BK$372,38,FALSE),"") ->  | AO21: =COUNTIFS('Drop Validation'!$Q:$Q,$G21,'Drop Validation'!$G:$G,"In Scope") -> 0 | AP21: =COUNTIFS('Drop Validation'!$Q:$Q,$G21,'Drop Validation'!$AB:$AB,"Compliant",'Drop Validation'!$G:$G,"In Scope") -> 0
B22: SQT Comp Rankings | I22: =IFERROR(VLOOKUP($G22,'Technician Summary'!$G$7:$BB$372,2,FALSE),"") ->  | J22: =(IFERROR(_xlfn.XLOOKUP($G22,'Technician Summary'!G:G,'Technician Summary'!I:I),"")) ->  | L22: =IF(G22="","",COUNTIFS('SMS tNPS'!DE:DE,G22,'SMS tNPS'!HB:HB,"Yes")) ->  | M22: =IFERROR(IF(G22="","",COUNTIFS('SMS tNPS'!DE:DE,G22,'SMS tNPS'!HB:HB,"Yes"))+COUNTIFS('SMS tNPS'!DE:DE,G22,'SMS tNPS'!HB:HB,"No"),"") ->  | O22: =IFERROR(VLOOKUP($G22,'Technician Summary'!$G$7:$BK$372,14,FALSE),"") ->  | P22: =IFERROR(VLOOKUP($G22,'Technician Summary'!$G$7:$BK$372,15,FALSE),"") ->  | R22: =IFERROR(VLOOKUP($G22,'Technician Summary'!$G$7:$BK$372,17,FALSE),"") ->  | S22: =IFERROR(VLOOKUP($G22,'Technician Summary'!$G$7:$BK$372,18,FALSE),"") ->  | U22: =IFERROR(VLOOKUP($G22,'Technician Summary'!$G$7:$BK$372,20,FALSE),"") ->  | V22: =IFERROR(VLOOKUP($G22,'Technician Summary'!$G$7:$BK$372,21,FALSE),"") ->  | X22: =IF($G22="","",SUMIF('SQT Data'!$K:$K,$G22,'SQT Data'!$R:$R)) ->  | Y22: =IF($G22="","",SUMIF('SQT Data'!$K:$K,$G22,'SQT Data'!$S:$S)) ->  | AA22: =IF($G22="","",SUMIF('SQT Data'!$K:$K,$G22,'SQT Data'!$U:$U)) ->  | AB22: =IF($G22="","",SUMIF('SQT Data'!$K:$K,$G22,'SQT Data'!$V:$V)) ->  | AE22: =IFERROR(SUM(AD22/#REF!),"") ->  | AF22: =IFERROR(VLOOKUP($G22,'Technician Summary'!$G$7:$BK$372,7,FALSE),"") ->  | AG22: =IFERROR(VLOOKUP($G22,'Technician Summary'!$G$7:$BK$372,8,FALSE),"") ->  | AI22: =IFERROR(VLOOKUP($G22,'Technician Summary'!$G$7:$BK$372,34,FALSE),"") ->  | AJ22: =IFERROR(VLOOKUP($G22,'Technician Summary'!$G$7:$BK$372,35,FALSE),"") ->  | AL22: =IFERROR(VLOOKUP($G22,'Technician Summary'!$G$7:$BK$372,37,FALSE),"") ->  | AM22: =IFERROR(VLOOKUP($G22,'Technician Summary'!$G$7:$BK$372,38,FALSE),"") ->  | AO22: =COUNTIFS('Drop Validation'!$Q:$Q,$G22,'Drop Validation'!$G:$G,"In Scope") -> 0 | AP22: =COUNTIFS('Drop Validation'!$Q:$Q,$G22,'Drop Validation'!$AB:$AB,"Compliant",'Drop Validation'!$G:$G,"In Scope") -> 0
B23: SQT Pass Rankings | I23: =IFERROR(VLOOKUP($G23,'Technician Summary'!$G$7:$BB$372,2,FALSE),"") ->  | J23: =(IFERROR(_xlfn.XLOOKUP($G23,'Technician Summary'!G:G,'Technician Summary'!I:I),"")) ->  | L23: =IF(G23="","",COUNTIFS('SMS tNPS'!DE:DE,G23,'SMS tNPS'!HB:HB,"Yes")) ->  | M23: =IFERROR(IF(G23="","",COUNTIFS('SMS tNPS'!DE:DE,G23,'SMS tNPS'!HB:HB,"Yes"))+COUNTIFS('SMS tNPS'!DE:DE,G23,'SMS tNPS'!HB:HB,"No"),"") ->  | O23: =IFERROR(VLOOKUP($G23,'Technician Summary'!$G$7:$BK$372,14,FALSE),"") ->  | P23: =IFERROR(VLOOKUP($G23,'Technician Summary'!$G$7:$BK$372,15,FALSE),"") ->  | R23: =IFERROR(VLOOKUP($G23,'Technician Summary'!$G$7:$BK$372,17,FALSE),"") ->  | S23: =IFERROR(VLOOKUP($G23,'Technician Summary'!$G$7:$BK$372,18,FALSE),"") ->  | U23: =IFERROR(VLOOKUP($G23,'Technician Summary'!$G$7:$BK$372,20,FALSE),"") ->  | V23: =IFERROR(VLOOKUP($G23,'Technician Summary'!$G$7:$BK$372,21,FALSE),"") ->  | X23: =IF($G23="","",SUMIF('SQT Data'!$K:$K,$G23,'SQT Data'!$R:$R)) ->  | Y23: =IF($G23="","",SUMIF('SQT Data'!$K:$K,$G23,'SQT Data'!$S:$S)) ->  | AA23: =IF($G23="","",SUMIF('SQT Data'!$K:$K,$G23,'SQT Data'!$U:$U)) ->  | AB23: =IF($G23="","",SUMIF('SQT Data'!$K:$K,$G23,'SQT Data'!$V:$V)) ->  | AE23: =IFERROR(SUM(AD23/#REF!),"") ->  | AF23: =IFERROR(VLOOKUP($G23,'Technician Summary'!$G$7:$BK$372,7,FALSE),"") ->  | AG23: =IFERROR(VLOOKUP($G23,'Technician Summary'!$G$7:$BK$372,8,FALSE),"") ->  | AI23: =IFERROR(VLOOKUP($G23,'Technician Summary'!$G$7:$BK$372,34,FALSE),"") ->  | AJ23: =IFERROR(VLOOKUP($G23,'Technician Summary'!$G$7:$BK$372,35,FALSE),"") ->  | AL23: =IFERROR(VLOOKUP($G23,'Technician Summary'!$G$7:$BK$372,37,FALSE),"") ->  | AM23: =IFERROR(VLOOKUP($G23,'Technician Summary'!$G$7:$BK$372,38,FALSE),"") ->  | AO23: =COUNTIFS('Drop Validation'!$Q:$Q,$G23,'Drop Validation'!$G:$G,"In Scope") -> 0 | AP23: =COUNTIFS('Drop Validation'!$Q:$Q,$G23,'Drop Validation'!$AB:$AB,"Compliant",'Drop Validation'!$G:$G,"In Scope") -> 0
B24: Repeat Rankings | I24: =IFERROR(VLOOKUP($G24,'Technician Summary'!$G$7:$BB$372,2,FALSE),"") ->  | J24: =(IFERROR(_xlfn.XLOOKUP($G24,'Technician Summary'!G:G,'Technician Summary'!I:I),"")) -> 0 | L24: =IF(G24="","",COUNTIFS('SMS tNPS'!DE:DE,G24,'SMS tNPS'!HB:HB,"Yes")) ->  | M24: =IFERROR(IF(G24="","",COUNTIFS('SMS tNPS'!DE:DE,G24,'SMS tNPS'!HB:HB,"Yes"))+COUNTIFS('SMS tNPS'!DE:DE,G24,'SMS tNPS'!HB:HB,"No"),"") ->  | O24: =IFERROR(VLOOKUP($G24,'Technician Summary'!$G$7:$BK$372,14,FALSE),"") ->  | P24: =IFERROR(VLOOKUP($G24,'Technician Summary'!$G$7:$BK$372,15,FALSE),"") ->  | R24: =IFERROR(VLOOKUP($G24,'Technician Summary'!$G$7:$BK$372,17,FALSE),"") ->  | S24: =IFERROR(VLOOKUP($G24,'Technician Summary'!$G$7:$BK$372,18,FALSE),"") ->  | U24: =IFERROR(VLOOKUP($G24,'Technician Summary'!$G$7:$BK$372,20,FALSE),"") ->  | V24: =IFERROR(VLOOKUP($G24,'Technician Summary'!$G$7:$BK$372,21,FALSE),"") ->  | X24: =IF($G24="","",SUMIF('SQT Data'!$K:$K,$G24,'SQT Data'!$R:$R)) ->  | Y24: =IF($G24="","",SUMIF('SQT Data'!$K:$K,$G24,'SQT Data'!$S:$S)) ->  | AA24: =IF($G24="","",SUMIF('SQT Data'!$K:$K,$G24,'SQT Data'!$U:$U)) ->  | AB24: =IF($G24="","",SUMIF('SQT Data'!$K:$K,$G24,'SQT Data'!$V:$V)) ->  | AE24: =IFERROR(SUM(AD24/#REF!),"") ->  | AF24: =IFERROR(VLOOKUP($G24,'Technician Summary'!$G$7:$BK$372,7,FALSE),"") ->  | AG24: =IFERROR(VLOOKUP($G24,'Technician Summary'!$G$7:$BK$372,8,FALSE),"") ->  | AI24: =IFERROR(VLOOKUP($G24,'Technician Summary'!$G$7:$BK$372,34,FALSE),"") ->  | AJ24: =IFERROR(VLOOKUP($G24,'Technician Summary'!$G$7:$BK$372,35,FALSE),"") ->  | AL24: =IFERROR(VLOOKUP($G24,'Technician Summary'!$G$7:$BK$372,37,FALSE),"") ->  | AM24: =IFERROR(VLOOKUP($G24,'Technician Summary'!$G$7:$BK$372,38,FALSE),"") ->  | AO24: =COUNTIFS('Drop Validation'!$Q:$Q,$G24,'Drop Validation'!$G:$G,"In Scope") -> 0 | AP24: =COUNTIFS('Drop Validation'!$Q:$Q,$G24,'Drop Validation'!$AB:$AB,"Compliant",'Drop Validation'!$G:$G,"In Scope") -> 0
I25: =IFERROR(VLOOKUP($G25,'Technician Summary'!$G$7:$BB$372,2,FALSE),"") ->  | J25: =(IFERROR(_xlfn.XLOOKUP($G25,'Technician Summary'!G:G,'Technician Summary'!I:I),"")) ->  | L25: =IF(G25="","",COUNTIFS('SMS tNPS'!DE:DE,G25,'SMS tNPS'!HB:HB,"Yes")) ->  | M25: =IFERROR(IF(G25="","",COUNTIFS('SMS tNPS'!DE:DE,G25,'SMS tNPS'!HB:HB,"Yes"))+COUNTIFS('SMS tNPS'!DE:DE,G25,'SMS tNPS'!HB:HB,"No"),"") ->  | O25: =IFERROR(VLOOKUP($G25,'Technician Summary'!$G$7:$BK$372,14,FALSE),"") ->  | P25: =IFERROR(VLOOKUP($G25,'Technician Summary'!$G$7:$BK$372,15,FALSE),"") ->  | R25: =IFERROR(VLOOKUP($G25,'Technician Summary'!$G$7:$BK$372,17,FALSE),"") ->  | S25: =IFERROR(VLOOKUP($G25,'Technician Summary'!$G$7:$BK$372,18,FALSE),"") ->  | U25: =IFERROR(VLOOKUP($G25,'Technician Summary'!$G$7:$BK$372,20,FALSE),"") ->  | V25: =IFERROR(VLOOKUP($G25,'Technician Summary'!$G$7:$BK$372,21,FALSE),"") ->  | X25: =IF($G25="","",SUMIF('SQT Data'!$K:$K,$G25,'SQT Data'!$R:$R)) ->  | Y25: =IF($G25="","",SUMIF('SQT Data'!$K:$K,$G25,'SQT Data'!$S:$S)) ->  | AA25: =IF($G25="","",SUMIF('SQT Data'!$K:$K,$G25,'SQT Data'!$U:$U)) ->  | AB25: =IF($G25="","",SUMIF('SQT Data'!$K:$K,$G25,'SQT Data'!$V:$V)) ->  | AE25: =IFERROR(SUM(AD25/#REF!),"") ->  | AF25: =IFERROR(VLOOKUP($G25,'Technician Summary'!$G$7:$BK$372,7,FALSE),"") ->  | AG25: =IFERROR(VLOOKUP($G25,'Technician Summary'!$G$7:$BK$372,8,FALSE),"") ->  | AI25: =IFERROR(VLOOKUP($G25,'Technician Summary'!$G$7:$BK$372,34,FALSE),"") ->  | AJ25: =IFERROR(VLOOKUP($G25,'Technician Summary'!$G$7:$BK$372,35,FALSE),"") ->  | AL25: =IFERROR(VLOOKUP($G25,'Technician Summary'!$G$7:$BK$372,37,FALSE),"") ->  | AM25: =IFERROR(VLOOKUP($G25,'Technician Summary'!$G$7:$BK$372,38,FALSE),"") ->  | AO25: =COUNTIFS('Drop Validation'!$Q:$Q,$G25,'Drop Validation'!$G:$G,"In Scope") -> 0 | AP25: =COUNTIFS('Drop Validation'!$Q:$Q,$G25,'Drop Validation'!$AB:$AB,"Compliant",'Drop Validation'!$G:$G,"In Scope") -> 0
I26: =IFERROR(VLOOKUP($G26,'Technician Summary'!$G$7:$BB$372,2,FALSE),"") ->  | J26: =(IFERROR(_xlfn.XLOOKUP($G26,'Technician Summary'!G:G,'Technician Summary'!I:I),"")) ->  | L26: =IF(G26="","",COUNTIFS('SMS tNPS'!DE:DE,G26,'SMS tNPS'!HB:HB,"Yes")) ->  | M26: =IFERROR(IF(G26="","",COUNTIFS('SMS tNPS'!DE:DE,G26,'SMS tNPS'!HB:HB,"Yes"))+COUNTIFS('SMS tNPS'!DE:DE,G26,'SMS tNPS'!HB:HB,"No"),"") ->  | O26: =IFERROR(VLOOKUP($G26,'Technician Summary'!$G$7:$BK$372,14,FALSE),"") ->  | P26: =IFERROR(VLOOKUP($G26,'Technician Summary'!$G$7:$BK$372,15,FALSE),"") ->  | R26: =IFERROR(VLOOKUP($G26,'Technician Summary'!$G$7:$BK$372,17,FALSE),"") ->  | S26: =IFERROR(VLOOKUP($G26,'Technician Summary'!$G$7:$BK$372,18,FALSE),"") ->  | U26: =IFERROR(VLOOKUP($G26,'Technician Summary'!$G$7:$BK$372,20,FALSE),"") ->  | V26: =IFERROR(VLOOKUP($G26,'Technician Summary'!$G$7:$BK$372,21,FALSE),"") ->  | X26: =IF($G26="","",SUMIF('SQT Data'!$K:$K,$G26,'SQT Data'!$R:$R)) ->  | Y26: =IF($G26="","",SUMIF('SQT Data'!$K:$K,$G26,'SQT Data'!$S:$S)) ->  | AA26: =IF($G26="","",SUMIF('SQT Data'!$K:$K,$G26,'SQT Data'!$U:$U)) ->  | AB26: =IF($G26="","",SUMIF('SQT Data'!$K:$K,$G26,'SQT Data'!$V:$V)) ->  | AE26: =IFERROR(SUM(AD26/#REF!),"") ->  | AF26: =IFERROR(VLOOKUP($G26,'Technician Summary'!$G$7:$BK$372,7,FALSE),"") ->  | AG26: =IFERROR(VLOOKUP($G26,'Technician Summary'!$G$7:$BK$372,8,FALSE),"") ->  | AI26: =IFERROR(VLOOKUP($G26,'Technician Summary'!$G$7:$BK$372,34,FALSE),"") ->  | AJ26: =IFERROR(VLOOKUP($G26,'Technician Summary'!$G$7:$BK$372,35,FALSE),"") ->  | AL26: =IFERROR(VLOOKUP($G26,'Technician Summary'!$G$7:$BK$372,37,FALSE),"") ->  | AM26: =IFERROR(VLOOKUP($G26,'Technician Summary'!$G$7:$BK$372,38,FALSE),"") ->  | AO26: =COUNTIFS('Drop Validation'!$Q:$Q,$G26,'Drop Validation'!$G:$G,"In Scope") -> 0 | AP26: =COUNTIFS('Drop Validation'!$Q:$Q,$G26,'Drop Validation'!$AB:$AB,"Compliant",'Drop Validation'!$G:$G,"In Scope") -> 0
B27: Raw Data | I27: =IFERROR(VLOOKUP($G27,'Technician Summary'!$G$7:$BB$372,2,FALSE),"") ->  | J27: =(IFERROR(_xlfn.XLOOKUP($G27,'Technician Summary'!G:G,'Technician Summary'!I:I),"")) ->  | L27: =IF(G27="","",COUNTIFS('SMS tNPS'!DE:DE,G27,'SMS tNPS'!HB:HB,"Yes")) ->  | M27: =IFERROR(IF(G27="","",COUNTIFS('SMS tNPS'!DE:DE,G27,'SMS tNPS'!HB:HB,"Yes"))+COUNTIFS('SMS tNPS'!DE:DE,G27,'SMS tNPS'!HB:HB,"No"),"") ->  | O27: =IFERROR(VLOOKUP($G27,'Technician Summary'!$G$7:$BK$372,14,FALSE),"") ->  | P27: =IFERROR(VLOOKUP($G27,'Technician Summary'!$G$7:$BK$372,15,FALSE),"") ->  | R27: =IFERROR(VLOOKUP($G27,'Technician Summary'!$G$7:$BK$372,17,FALSE),"") ->  | S27: =IFERROR(VLOOKUP($G27,'Technician Summary'!$G$7:$BK$372,18,FALSE),"") ->  | U27: =IFERROR(VLOOKUP($G27,'Technician Summary'!$G$7:$BK$372,20,FALSE),"") ->  | V27: =IFERROR(VLOOKUP($G27,'Technician Summary'!$G$7:$BK$372,21,FALSE),"") ->  | X27: =IF($G27="","",SUMIF('SQT Data'!$K:$K,$G27,'SQT Data'!$R:$R)) ->  | Y27: =IF($G27="","",SUMIF('SQT Data'!$K:$K,$G27,'SQT Data'!$S:$S)) ->  | AA27: =IF($G27="","",SUMIF('SQT Data'!$K:$K,$G27,'SQT Data'!$U:$U)) ->  | AB27: =IF($G27="","",SUMIF('SQT Data'!$K:$K,$G27,'SQT Data'!$V:$V)) ->  | AE27: =IFERROR(SUM(AD27/#REF!),"") ->  | AF27: =IFERROR(VLOOKUP($G27,'Technician Summary'!$G$7:$BK$372,7,FALSE),"") ->  | AG27: =IFERROR(VLOOKUP($G27,'Technician Summary'!$G$7:$BK$372,8,FALSE),"") ->  | AI27: =IFERROR(VLOOKUP($G27,'Technician Summary'!$G$7:$BK$372,34,FALSE),"") ->  | AJ27: =IFERROR(VLOOKUP($G27,'Technician Summary'!$G$7:$BK$372,35,FALSE),"") ->  | AL27: =IFERROR(VLOOKUP($G27,'Technician Summary'!$G$7:$BK$372,37,FALSE),"") ->  | AM27: =IFERROR(VLOOKUP($G27,'Technician Summary'!$G$7:$BK$372,38,FALSE),"") ->  | AO27: =COUNTIFS('Drop Validation'!$Q:$Q,$G27,'Drop Validation'!$G:$G,"In Scope") -> 0 | AP27: =COUNTIFS('Drop Validation'!$Q:$Q,$G27,'Drop Validation'!$AB:$AB,"Compliant",'Drop Validation'!$G:$G,"In Scope") -> 0
I28: =IFERROR(VLOOKUP($G28,'Technician Summary'!$G$7:$BB$372,2,FALSE),"") ->  | J28: =(IFERROR(_xlfn.XLOOKUP($G28,'Technician Summary'!G:G,'Technician Summary'!I:I),"")) ->  | L28: =IF(G28="","",COUNTIFS('SMS tNPS'!DE:DE,G28,'SMS tNPS'!HB:HB,"Yes")) ->  | M28: =IFERROR(IF(G28="","",COUNTIFS('SMS tNPS'!DE:DE,G28,'SMS tNPS'!HB:HB,"Yes"))+COUNTIFS('SMS tNPS'!DE:DE,G28,'SMS tNPS'!HB:HB,"No"),"") ->  | O28: =IFERROR(VLOOKUP($G28,'Technician Summary'!$G$7:$BK$372,14,FALSE),"") ->  | P28: =IFERROR(VLOOKUP($G28,'Technician Summary'!$G$7:$BK$372,15,FALSE),"") ->  | R28: =IFERROR(VLOOKUP($G28,'Technician Summary'!$G$7:$BK$372,17,FALSE),"") ->  | S28: =IFERROR(VLOOKUP($G28,'Technician Summary'!$G$7:$BK$372,18,FALSE),"") ->  | U28: =IFERROR(VLOOKUP($G28,'Technician Summary'!$G$7:$BK$372,20,FALSE),"") ->  | V28: =IFERROR(VLOOKUP($G28,'Technician Summary'!$G$7:$BK$372,21,FALSE),"") ->  | X28: =IF($G28="","",SUMIF('SQT Data'!$K:$K,$G28,'SQT Data'!$R:$R)) ->  | Y28: =IF($G28="","",SUMIF('SQT Data'!$K:$K,$G28,'SQT Data'!$S:$S)) ->  | AA28: =IF($G28="","",SUMIF('SQT Data'!$K:$K,$G28,'SQT Data'!$U:$U)) ->  | AB28: =IF($G28="","",SUMIF('SQT Data'!$K:$K,$G28,'SQT Data'!$V:$V)) ->  | AE28: =IFERROR(SUM(AD28/#REF!),"") ->  | AF28: =IFERROR(VLOOKUP($G28,'Technician Summary'!$G$7:$BK$372,7,FALSE),"") ->  | AG28: =IFERROR(VLOOKUP($G28,'Technician Summary'!$G$7:$BK$372,8,FALSE),"") ->  | AI28: =IFERROR(VLOOKUP($G28,'Technician Summary'!$G$7:$BK$372,34,FALSE),"") ->  | AJ28: =IFERROR(VLOOKUP($G28,'Technician Summary'!$G$7:$BK$372,35,FALSE),"") ->  | AL28: =IFERROR(VLOOKUP($G28,'Technician Summary'!$G$7:$BK$372,37,FALSE),"") ->  | AM28: =IFERROR(VLOOKUP($G28,'Technician Summary'!$G$7:$BK$372,38,FALSE),"") ->  | AO28: =COUNTIFS('Drop Validation'!$Q:$Q,$G28,'Drop Validation'!$G:$G,"In Scope") -> 0 | AP28: =COUNTIFS('Drop Validation'!$Q:$Q,$G28,'Drop Validation'!$AB:$AB,"Compliant",'Drop Validation'!$G:$G,"In Scope") -> 0
I29: =IFERROR(VLOOKUP($G29,'Technician Summary'!$G$7:$BB$372,2,FALSE),"") ->  | J29: =(IFERROR(_xlfn.XLOOKUP($G29,'Technician Summary'!G:G,'Technician Summary'!I:I),"")) ->  | L29: =IF(G29="","",COUNTIFS('SMS tNPS'!DE:DE,G29,'SMS tNPS'!HB:HB,"Yes")) ->  | M29: =IFERROR(IF(G29="","",COUNTIFS('SMS tNPS'!DE:DE,G29,'SMS tNPS'!HB:HB,"Yes"))+COUNTIFS('SMS tNPS'!DE:DE,G29,'SMS tNPS'!HB:HB,"No"),"") ->  | O29: =IFERROR(VLOOKUP($G29,'Technician Summary'!$G$7:$BK$372,14,FALSE),"") ->  | P29: =IFERROR(VLOOKUP($G29,'Technician Summary'!$G$7:$BK$372,15,FALSE),"") ->  | R29: =IFERROR(VLOOKUP($G29,'Technician Summary'!$G$7:$BK$372,17,FALSE),"") ->  | S29: =IFERROR(VLOOKUP($G29,'Technician Summary'!$G$7:$BK$372,18,FALSE),"") ->  | U29: =IFERROR(VLOOKUP($G29,'Technician Summary'!$G$7:$BK$372,20,FALSE),"") ->  | V29: =IFERROR(VLOOKUP($G29,'Technician Summary'!$G$7:$BK$372,21,FALSE),"") ->  | X29: =IF($G29="","",SUMIF('SQT Data'!$K:$K,$G29,'SQT Data'!$R:$R)) ->  | Y29: =IF($G29="","",SUMIF('SQT Data'!$K:$K,$G29,'SQT Data'!$S:$S)) ->  | AA29: =IF($G29="","",SUMIF('SQT Data'!$K:$K,$G29,'SQT Data'!$U:$U)) ->  | AB29: =IF($G29="","",SUMIF('SQT Data'!$K:$K,$G29,'SQT Data'!$V:$V)) ->  | AE29: =IFERROR(SUM(AD29/#REF!),"") ->  | AF29: =IFERROR(VLOOKUP($G29,'Technician Summary'!$G$7:$BK$372,7,FALSE),"") ->  | AG29: =IFERROR(VLOOKUP($G29,'Technician Summary'!$G$7:$BK$372,8,FALSE),"") ->  | AI29: =IFERROR(VLOOKUP($G29,'Technician Summary'!$G$7:$BK$372,34,FALSE),"") ->  | AJ29: =IFERROR(VLOOKUP($G29,'Technician Summary'!$G$7:$BK$372,35,FALSE),"") ->  | AL29: =IFERROR(VLOOKUP($G29,'Technician Summary'!$G$7:$BK$372,37,FALSE),"") ->  | AM29: =IFERROR(VLOOKUP($G29,'Technician Summary'!$G$7:$BK$372,38,FALSE),"") ->  | AO29: =COUNTIFS('Drop Validation'!$Q:$Q,$G29,'Drop Validation'!$G:$G,"In Scope") -> 0 | AP29: =COUNTIFS('Drop Validation'!$Q:$Q,$G29,'Drop Validation'!$AB:$AB,"Compliant",'Drop Validation'!$G:$G,"In Scope") -> 0
I30: =IFERROR(VLOOKUP($G30,'Technician Summary'!$G$7:$BB$372,2,FALSE),"") ->  | J30: =(IFERROR(_xlfn.XLOOKUP($G30,'Technician Summary'!G:G,'Technician Summary'!I:I),"")) ->  | L30: =IF(G30="","",COUNTIFS('SMS tNPS'!DE:DE,G30,'SMS tNPS'!HB:HB,"Yes")) ->  | M30: =IFERROR(IF(G30="","",COUNTIFS('SMS tNPS'!DE:DE,G30,'SMS tNPS'!HB:HB,"Yes"))+COUNTIFS('SMS tNPS'!DE:DE,G30,'SMS tNPS'!HB:HB,"No"),"") ->  | O30: =IFERROR(VLOOKUP($G30,'Technician Summary'!$G$7:$BK$372,14,FALSE),"") ->  | P30: =IFERROR(VLOOKUP($G30,'Technician Summary'!$G$7:$BK$372,15,FALSE),"") ->  | R30: =IFERROR(VLOOKUP($G30,'Technician Summary'!$G$7:$BK$372,17,FALSE),"") ->  | S30: =IFERROR(VLOOKUP($G30,'Technician Summary'!$G$7:$BK$372,18,FALSE),"") ->  | U30: =IFERROR(VLOOKUP($G30,'Technician Summary'!$G$7:$BK$372,20,FALSE),"") ->  | V30: =IFERROR(VLOOKUP($G30,'Technician Summary'!$G$7:$BK$372,21,FALSE),"") ->  | X30: =IF($G30="","",SUMIF('SQT Data'!$K:$K,$G30,'SQT Data'!$R:$R)) ->  | Y30: =IF($G30="","",SUMIF('SQT Data'!$K:$K,$G30,'SQT Data'!$S:$S)) ->  | AA30: =IF($G30="","",SUMIF('SQT Data'!$K:$K,$G30,'SQT Data'!$U:$U)) ->  | AB30: =IF($G30="","",SUMIF('SQT Data'!$K:$K,$G30,'SQT Data'!$V:$V)) ->  | AE30: =IFERROR(SUM(AD30/#REF!),"") ->  | AF30: =IFERROR(VLOOKUP($G30,'Technician Summary'!$G$7:$BK$372,7,FALSE),"") ->  | AG30: =IFERROR(VLOOKUP($G30,'Technician Summary'!$G$7:$BK$372,8,FALSE),"") ->  | AI30: =IFERROR(VLOOKUP($G30,'Technician Summary'!$G$7:$BK$372,34,FALSE),"") ->  | AJ30: =IFERROR(VLOOKUP($G30,'Technician Summary'!$G$7:$BK$372,35,FALSE),"") ->  | AL30: =IFERROR(VLOOKUP($G30,'Technician Summary'!$G$7:$BK$372,37,FALSE),"") ->  | AM30: =IFERROR(VLOOKUP($G30,'Technician Summary'!$G$7:$BK$372,38,FALSE),"") ->  | AO30: =COUNTIFS('Drop Validation'!$Q:$Q,$G30,'Drop Validation'!$G:$G,"In Scope") -> 0 | AP30: =COUNTIFS('Drop Validation'!$Q:$Q,$G30,'Drop Validation'!$AB:$AB,"Compliant",'Drop Validation'!$G:$G,"In Scope") -> 0
I31: =IFERROR(VLOOKUP($G31,'Technician Summary'!$G$7:$BB$372,2,FALSE),"") ->  | J31: =(IFERROR(_xlfn.XLOOKUP($G31,'Technician Summary'!G:G,'Technician Summary'!I:I),"")) ->  | L31: =IF(G31="","",COUNTIFS('SMS tNPS'!DE:DE,G31,'SMS tNPS'!HB:HB,"Yes")) ->  | M31: =IFERROR(IF(G31="","",COUNTIFS('SMS tNPS'!DE:DE,G31,'SMS tNPS'!HB:HB,"Yes"))+COUNTIFS('SMS tNPS'!DE:DE,G31,'SMS tNPS'!HB:HB,"No"),"") ->  | O31: =IFERROR(VLOOKUP($G31,'Technician Summary'!$G$7:$BK$372,14,FALSE),"") ->  | P31: =IFERROR(VLOOKUP($G31,'Technician Summary'!$G$7:$BK$372,15,FALSE),"") ->  | R31: =IFERROR(VLOOKUP($G31,'Technician Summary'!$G$7:$BK$372,17,FALSE),"") ->  | S31: =IFERROR(VLOOKUP($G31,'Technician Summary'!$G$7:$BK$372,18,FALSE),"") ->  | U31: =IFERROR(VLOOKUP($G31,'Technician Summary'!$G$7:$BK$372,20,FALSE),"") ->  | V31: =IFERROR(VLOOKUP($G31,'Technician Summary'!$G$7:$BK$372,21,FALSE),"") ->  | X31: =IF($G31="","",SUMIF('SQT Data'!$K:$K,$G31,'SQT Data'!$R:$R)) ->  | Y31: =IF($G31="","",SUMIF('SQT Data'!$K:$K,$G31,'SQT Data'!$S:$S)) ->  | AA31: =IF($G31="","",SUMIF('SQT Data'!$K:$K,$G31,'SQT Data'!$U:$U)) ->  | AB31: =IF($G31="","",SUMIF('SQT Data'!$K:$K,$G31,'SQT Data'!$V:$V)) ->  | AE31: =IFERROR(SUM(AD31/#REF!),"") ->  | AF31: =IFERROR(VLOOKUP($G31,'Technician Summary'!$G$7:$BK$372,7,FALSE),"") ->  | AG31: =IFERROR(VLOOKUP($G31,'Technician Summary'!$G$7:$BK$372,8,FALSE),"") ->  | AI31: =IFERROR(VLOOKUP($G31,'Technician Summary'!$G$7:$BK$372,34,FALSE),"") ->  | AJ31: =IFERROR(VLOOKUP($G31,'Technician Summary'!$G$7:$BK$372,35,FALSE),"") ->  | AL31: =IFERROR(VLOOKUP($G31,'Technician Summary'!$G$7:$BK$372,37,FALSE),"") ->  | AM31: =IFERROR(VLOOKUP($G31,'Technician Summary'!$G$7:$BK$372,38,FALSE),"") ->  | AO31: =COUNTIFS('Drop Validation'!$Q:$Q,$G31,'Drop Validation'!$G:$G,"In Scope") -> 0 | AP31: =COUNTIFS('Drop Validation'!$Q:$Q,$G31,'Drop Validation'!$AB:$AB,"Compliant",'Drop Validation'!$G:$G,"In Scope") -> 0
I32: # NPS WO's | J32: # Failures | K32: NPS | L32: SMS Promoter Count | M32: SMS Count | N32: SMS tNPS | O32: Total Repeatable WO | P32: Total Repeats | Q32: Repeats | R32: Total Repeatable WO | S32: Repeat IN | T32: IN Repeat % | U32: Total Repeatable WO | V32: Repeat TC | W32: Repeat TC % | X32: Jobs | Y32: Test Run | Z32: SQT Compliance | AB32: Test Fail | AC32: SQT Pass | AD32: Test Passed | AE32: Ingress Test Pass | AF32: FCR WO | AG32: FCR Failures | AH32: FCR | AI32: Jobs | AJ32: Jobs Late | AK32: OTA | AL32: Jobs | AM32: Completed Jobs | AN32: Completion % | AO32: Total Jobs | AP32: Total Valid | AQ32: Drop Validation
I34: =SUMIF(I7:I31,">0") -> 26 | J34: =SUMIF(J7:J31,">0") -> 1 | K34: =IFERROR(1-((J34*2)/I34),"") -> 0.9231 | L34: =SUM(L7:L31) -> 75 | M34: =SUM(M7:M31) -> 86 | N34: =IFERROR(SUM(L34/M34),"") -> 0.8721 | O34: =SUM(O7:O31) -> 401 | P34: =SUM(P7:P31) -> 15 | Q34: =IFERROR(SUM(P34/O34),"") -> 0.0374 | R34: =SUM(R7:R31) -> 154 | S34: =SUM(S7:S31) -> 7 | T34: =IFERROR(SUM(S34/R34),"") -> 0.0455 | U34: =SUM(U7:U31) -> 247 | V34: =SUM(V7:V31) -> 8 | W34: =IFERROR(SUM(V34/U34),"") -> 0.0324 | X34: =SUMIF(X7:X31,">0") -> 221 | Y34: =SUMIF(Y7:Y31,">0") -> 209 | Z34: =IFERROR(SUM(Y34/X34),"") -> 0.9457 | AA34: =SUM(AA7:AA31) -> 1595 | AB34: =SUM(AB7:AB31) -> 1417 | AC34: =IFERROR(SUM(AB34/AA34),"") -> 0.8884 | AD34: =SUM(AD7:AD31) -> 0 | AE34: =IFERROR(SUM(AD34/#REF!),"") ->  | AF34: =SUM(AF7:AF31) -> 214 | AG34: =SUM(AG7:AG31) -> 8 | AH34: =IFERROR(1-AG34/AF34,"") -> 0.9626 | AI34: =SUM(AI7:AI31) -> 141 | AJ34: =SUM(AJ7:AJ31) -> 11 | AK34: =IFERROR(1-AJ34/AI34,"") -> 0.922 | AL34: =SUM(AL7:AL31) -> 438 | AM34: =SUM(AM7:AM31) -> 389 | AN34: =IFERROR(AM34/AL34,"") -> 0.8881 | AO34: =SUM(AO7:AO31) -> 8 | AP34: =SUM(AP7:AP31) -> 6 | AQ34: =IFERROR(1-AP34/AO34,"") -> 0.25

Sheet Baton Rouge
F3: Paul Cook
F5: Tech Name | G5: Tech ID | H5: Score | I5: # NPS WO's | J5: # Failures | K5: NPS | L5: SMS Promoter Count | M5: SMS Count | N5: SMS tNPS | O5: Total Repeatable WO | P5: Total Repeats | Q5: Repeats | R5: Total Repeatable WO | S5: Repeat IN | T5: IN Repeat % | U5: Total Repeatable WO | V5: Repeat TC | W5: Repeat TC % | X5: Jobs | Y5: Test Run | Z5: SQT Compliance | AA5: Parameters Tested | AB5: Parameters Passing | AC5: SQT Pass | AD5: Test Passed | AE5: Ingress Test Pass | AF5: FCR WO | AG5: FCR Failures | AH5: FCR | AI5: Jobs | AJ5: Jobs Late | AK5: OTA | AL5: Jobs | AM5: Completed Jobs | AN5: Completion % | AO5: Total Jobs | AP5: Total Valid | AQ5: Drop Validation
F7: Paul Cook | G7: 31939 | H7: =IF(Z7="","",IFERROR(IF(K7>=68.26%,1.25,0)+IF(Q7<=5.04%,2.5,0)+IF(Z7>=90%,2.5,0)+IF(AK7>=96%,1.25,0)+IF(N7>=90%,2.5,0),"")) ->  | I7: =IFERROR(VLOOKUP($G7,'Technician Summary'!$G$7:$BB$372,2,FALSE),"") ->  | J7: =IFERROR(VLOOKUP($G7,'Technician Summary'!$G$7:$BN$372,60,FALSE),"") ->  | K7: =IFERROR(1-(J7/I7),"") ->  | L7: =IF(G7="","",COUNTIFS('SMS tNPS'!DE:DE,G7,'SMS tNPS'!HB:HB,"Yes")) -> 0 | M7: =IFERROR(IF(G7="","",COUNTIFS('SMS tNPS'!DE:DE,G7,'SMS tNPS'!HB:HB,"Yes"))+COUNTIFS('SMS tNPS'!DE:DE,G7,'SMS tNPS'!HB:HB,"No"),"") -> 0 | N7: =IFERROR(SUM(L7/M7),"") ->  | O7: =IFERROR(VLOOKUP($G7,'Technician Summary'!$G$7:$BK$372,14,FALSE),"") ->  | P7: =IFERROR(VLOOKUP($G7,'Technician Summary'!$G$7:$BK$372,15,FALSE),"") ->  | Q7: =IFERROR(SUM(P7/O7),"") ->  | R7: =IFERROR(VLOOKUP($G7,'Technician Summary'!$G$7:$BK$372,17,FALSE),"") ->  | S7: =IFERROR(VLOOKUP($G7,'Technician Summary'!$G$7:$BK$372,18,FALSE),"") ->  | T7: =IFERROR(SUM(S7/R7),"") ->  | U7: =IFERROR(VLOOKUP($G7,'Technician Summary'!$G$7:$BK$372,20,FALSE),"") ->  | V7: =IFERROR(VLOOKUP($G7,'Technician Summary'!$G$7:$BK$372,21,FALSE),"") ->  | W7: =IFERROR(SUM(V7/U7),"") ->  | X7: =IF($G7="","",SUMIF('SQT Data'!$K:$K,$G7,'SQT Data'!$R:$R)) -> 0 | Y7: =IF($G7="","",SUMIF('SQT Data'!$K:$K,$G7,'SQT Data'!$S:$S)) -> 0 | Z7: =IFERROR(SUM(Y7/X7),"") ->  | AA7: =IF($G7="","",SUMIF('SQT Data'!$K:$K,$G7,'SQT Data'!$U:$U)) -> 0 | AB7: =IF($G7="","",SUMIF('SQT Data'!$K:$K,$G7,'SQT Data'!$V:$V)) -> 0 | AC7: =IFERROR(SUM(AB7/AA7),"") ->  | AE7: =IFERROR(SUM(AD7/#REF!),"") ->  | AF7: =IFERROR(VLOOKUP($G7,'Technician Summary'!$G$7:$BK$372,7,FALSE),"") ->  | AG7: =IFERROR(VLOOKUP($G7,'Technician Summary'!$G$7:$BK$372,8,FALSE),"") ->  | AH7: =IFERROR(1-AG7/AF7,"") ->  | AI7: =IFERROR(VLOOKUP($G7,'Technician Summary'!$G$7:$BK$372,34,FALSE),"") ->  | AJ7: =IFERROR(VLOOKUP($G7,'Technician Summary'!$G$7:$BK$372,35,FALSE),"") ->  | AK7: =IFERROR(1-AJ7/AI7,"") ->  | AL7: =IFERROR(VLOOKUP($G7,'Technician Summary'!$G$7:$BK$372,37,FALSE),"") ->  | AM7: =IFERROR(VLOOKUP($G7,'Technician Summary'!$G$7:$BK$372,38,FALSE),"") ->  | AN7: =IFERROR(AM7/AL7,"") ->  | AO7: =COUNTIFS('Drop Validation'!$Q:$Q,$G7,'Drop Validation'!$G:$G,"In Scope") -> 0 | AP7: =COUNTIFS('Drop Validation'!$Q:$Q,$G7,'Drop Validation'!$AB:$AB,"Compliant",'Drop Validation'!$G:$G,"In Scope") -> 0 | AQ7: =IFERROR(AP7/AO7,"") -> 
F8: Carlos Tejeda | G8: 42764 | I8: =IFERROR(VLOOKUP($G8,'Technician Summary'!$G$7:$BB$372,2,FALSE),"") ->  | J8: =IFERROR(VLOOKUP($G8,'Technician Summary'!$G$7:$BN$372,60,FALSE),"") ->  | K8: =IFERROR(1-(J8/I8),"") ->  | L8: =IF(G8="","",COUNTIFS('SMS tNPS'!DE:DE,G8,'SMS tNPS'!HB:HB,"Yes")) -> 0 | M8: =IFERROR(IF(G8="","",COUNTIFS('SMS tNPS'!DE:DE,G8,'SMS tNPS'!HB:HB,"Yes"))+COUNTIFS('SMS tNPS'!DE:DE,G8,'SMS tNPS'!HB:HB,"No"),"") -> 0 | N8: =IFERROR(SUM(L8/M8),"") ->  | O8: =IFERROR(VLOOKUP($G8,'Technician Summary'!$G$7:$BK$372,14,FALSE),"") ->  | P8: =IFERROR(VLOOKUP($G8,'Technician Summary'!$G$7:$BK$372,15,FALSE),"") ->  | Q8: =IFERROR(SUM(P8/O8),"") ->  | R8: =IFERROR(VLOOKUP($G8,'Technician Summary'!$G$7:$BK$372,17,FALSE),"") ->  | S8: =IFERROR(VLOOKUP($G8,'Technician Summary'!$G$7:$BK$372,18,FALSE),"") ->  | T8: =IFERROR(SUM(S8/R8),"") ->  | U8: =IFERROR(VLOOKUP($G8,'Technician Summary'!$G$7:$BK$372,20,FALSE),"") ->  | V8: =IFERROR(VLOOKUP($G8,'Technician Summary'!$G$7:$BK$372,21,FALSE),"") ->  | W8: =IFERROR(SUM(V8/U8),"") ->  | X8: =IF($G8="","",SUMIF('SQT Data'!$K:$K,$G8,'SQT Data'!$R:$R)) -> 0 | Y8: =IF($G8="","",SUMIF('SQT Data'!$K:$K,$G8,'SQT Data'!$S:$S)) -> 0 | Z8: =IFERROR(SUM(Y8/X8),"") ->  | AA8: =IF($G8="","",SUMIF('SQT Data'!$K:$K,$G8,'SQT Data'!$U:$U)) -> 0 | AB8: =IF($G8="","",SUMIF('SQT Data'!$K:$K,$G8,'SQT Data'!$V:$V)) -> 0 | AC8: =IFERROR(SUM(AB8/AA8),"") ->  | AE8: =IFERROR(SUM(AD8/#REF!),"") ->  | AF8: =IFERROR(VLOOKUP($G8,'Technician Summary'!$G$7:$BK$372,7,FALSE),"") ->  | AG8: =IFERROR(VLOOKUP($G8,'Technician Summary'!$G$7:$BK$372,8,FALSE),"") ->  | AH8: =IFERROR(1-AG8/AF8,"") ->  | AI8: =IFERROR(VLOOKUP($G8,'Technician Summary'!$G$7:$BK$372,34,FALSE),"") ->  | AJ8: =IFERROR(VLOOKUP($G8,'Technician Summary'!$G$7:$BK$372,35,FALSE),"") ->  | AK8: =IFERROR(1-AJ8/AI8,"") ->  | AL8: =IFERROR(VLOOKUP($G8,'Technician Summary'!$G$7:$BK$372,37,FALSE),"") ->  | AM8: =IFERROR(VLOOKUP($G8,'Technician Summary'!$G$7:$BK$372,38,FALSE),"") ->  | AN8: =IFERROR(AM8/AL8,"") ->  | AO8: =COUNTIFS('Drop Validation'!$Q:$Q,$G8,'Drop Validation'!$G:$G,"In Scope") -> 0 | AP8: =COUNTIFS('Drop Validation'!$Q:$Q,$G8,'Drop Validation'!$AB:$AB,"Compliant",'Drop Validation'!$G:$G,"In Scope") -> 0 | AQ8: =IFERROR(AP8/AO8,"") -> 
F9: Kirk Holder | G9: 31441 | I9: =IFERROR(VLOOKUP($G9,'Technician Summary'!$G$7:$BB$372,2,FALSE),"") ->  | J9: =IFERROR(VLOOKUP($G9,'Technician Summary'!$G$7:$BN$372,60,FALSE),"") ->  | L9: =IF(G9="","",COUNTIFS('SMS tNPS'!DE:DE,G9,'SMS tNPS'!HB:HB,"Yes")) -> 0 | M9: =IFERROR(IF(G9="","",COUNTIFS('SMS tNPS'!DE:DE,G9,'SMS tNPS'!HB:HB,"Yes"))+COUNTIFS('SMS tNPS'!DE:DE,G9,'SMS tNPS'!HB:HB,"No"),"") -> 0 | O9: =IFERROR(VLOOKUP($G9,'Technician Summary'!$G$7:$BK$372,14,FALSE),"") ->  | P9: =IFERROR(VLOOKUP($G9,'Technician Summary'!$G$7:$BK$372,15,FALSE),"") ->  | R9: =IFERROR(VLOOKUP($G9,'Technician Summary'!$G$7:$BK$372,17,FALSE),"") ->  | S9: =IFERROR(VLOOKUP($G9,'Technician Summary'!$G$7:$BK$372,18,FALSE),"") ->  | U9: =IFERROR(VLOOKUP($G9,'Technician Summary'!$G$7:$BK$372,20,FALSE),"") ->  | V9: =IFERROR(VLOOKUP($G9,'Technician Summary'!$G$7:$BK$372,21,FALSE),"") ->  | X9: =IF($G9="","",SUMIF('SQT Data'!$K:$K,$G9,'SQT Data'!$R:$R)) -> 0 | Y9: =IF($G9="","",SUMIF('SQT Data'!$K:$K,$G9,'SQT Data'!$S:$S)) -> 0 | AA9: =IF($G9="","",SUMIF('SQT Data'!$K:$K,$G9,'SQT Data'!$U:$U)) -> 0 | AB9: =IF($G9="","",SUMIF('SQT Data'!$K:$K,$G9,'SQT Data'!$V:$V)) -> 0 | AE9: =IFERROR(SUM(AD9/#REF!),"") ->  | AF9: =IFERROR(VLOOKUP($G9,'Technician Summary'!$G$7:$BK$372,7,FALSE),"") ->  | AG9: =IFERROR(VLOOKUP($G9,'Technician Summary'!$G$7:$BK$372,8,FALSE),"") ->  | AI9: =IFERROR(VLOOKUP($G9,'Technician Summary'!$G$7:$BK$372,34,FALSE),"") ->  | AJ9: =IFERROR(VLOOKUP($G9,'Technician Summary'!$G$7:$BK$372,35,FALSE),"") ->  | AL9: =IFERROR(VLOOKUP($G9,'Technician Summary'!$G$7:$BK$372,37,FALSE),"") ->  | AM9: =IFERROR(VLOOKUP($G9,'Technician Summary'!$G$7:$BK$372,38,FALSE),"") ->  | AO9: =COUNTIFS('Drop Validation'!$Q:$Q,$G9,'Drop Validation'!$G:$G,"In Scope") -> 0 | AP9: =COUNTIFS('Drop Validation'!$Q:$Q,$G9,'Drop Validation'!$AB:$AB,"Compliant",'Drop Validation'!$G:$G,"In Scope") -> 0
F10: Stephen Sylvester | G10: 97732 | I10: =IFERROR(VLOOKUP($G10,'Technician Summary'!$G$7:$BB$372,2,FALSE),"") ->  | J10: =IFERROR(VLOOKUP($G10,'Technician Summary'!$G$7:$BN$372,60,FALSE),"") ->  | L10: =IF(G10="","",COUNTIFS('SMS tNPS'!DE:DE,G10,'SMS tNPS'!HB:HB,"Yes")) -> 0 | M10: =IFERROR(IF(G10="","",COUNTIFS('SMS tNPS'!DE:DE,G10,'SMS tNPS'!HB:HB,"Yes"))+COUNTIFS('SMS tNPS'!DE:DE,G10,'SMS tNPS'!HB:HB,"No"),"") -> 0 | O10: =IFERROR(VLOOKUP($G10,'Technician Summary'!$G$7:$BK$372,14,FALSE),"") ->  | P10: =IFERROR(VLOOKUP($G10,'Technician Summary'!$G$7:$BK$372,15,FALSE),"") ->  | R10: =IFERROR(VLOOKUP($G10,'Technician Summary'!$G$7:$BK$372,17,FALSE),"") ->  | S10: =IFERROR(VLOOKUP($G10,'Technician Summary'!$G$7:$BK$372,18,FALSE),"") ->  | U10: =IFERROR(VLOOKUP($G10,'Technician Summary'!$G$7:$BK$372,20,FALSE),"") ->  | V10: =IFERROR(VLOOKUP($G10,'Technician Summary'!$G$7:$BK$372,21,FALSE),"") ->  | X10: =IF($G10="","",SUMIF('SQT Data'!$K:$K,$G10,'SQT Data'!$R:$R)) -> 0 | Y10: =IF($G10="","",SUMIF('SQT Data'!$K:$K,$G10,'SQT Data'!$S:$S)) -> 0 | AA10: =IF($G10="","",SUMIF('SQT Data'!$K:$K,$G10,'SQT Data'!$U:$U)) -> 0 | AB10: =IF($G10="","",SUMIF('SQT Data'!$K:$K,$G10,'SQT Data'!$V:$V)) -> 0 | AE10: =IFERROR(SUM(AD10/#REF!),"") ->  | AF10: =IFERROR(VLOOKUP($G10,'Technician Summary'!$G$7:$BK$372,7,FALSE),"") ->  | AG10: =IFERROR(VLOOKUP($G10,'Technician Summary'!$G$7:$BK$372,8,FALSE),"") ->  | AI10: =IFERROR(VLOOKUP($G10,'Technician Summary'!$G$7:$BK$372,34,FALSE),"") ->  | AJ10: =IFERROR(VLOOKUP($G10,'Technician Summary'!$G$7:$BK$372,35,FALSE),"") ->  | AL10: =IFERROR(VLOOKUP($G10,'Technician Summary'!$G$7:$BK$372,37,FALSE),"") ->  | AM10: =IFERROR(VLOOKUP($G10,'Technician Summary'!$G$7:$BK$372,38,FALSE),"") ->  | AO10: =COUNTIFS('Drop Validation'!$Q:$Q,$G10,'Drop Validation'!$G:$G,"In Scope") -> 0 | AP10: =COUNTIFS('Drop Validation'!$Q:$Q,$G10,'Drop Validation'!$AB:$AB,"Compliant",'Drop Validation'!$G:$G,"In Scope") -> 0
B11: Home | F11: Robert Gibson | G11: 1046 | I11: =IFERROR(VLOOKUP($G11,'Technician Summary'!$G$7:$BB$372,2,FALSE),"") ->  | J11: =IFERROR(VLOOKUP($G11,'Technician Summary'!$G$7:$BN$372,60,FALSE),"") ->  | L11: =IF(G11="","",COUNTIFS('SMS tNPS'!DE:DE,G11,'SMS tNPS'!HB:HB,"Yes")) -> 0 | M11: =IFERROR(IF(G11="","",COUNTIFS('SMS tNPS'!DE:DE,G11,'SMS tNPS'!HB:HB,"Yes"))+COUNTIFS('SMS tNPS'!DE:DE,G11,'SMS tNPS'!HB:HB,"No"),"") -> 0 | O11: =IFERROR(VLOOKUP($G11,'Technician Summary'!$G$7:$BK$372,14,FALSE),"") ->  | P11: =IFERROR(VLOOKUP($G11,'Technician Summary'!$G$7:$BK$372,15,FALSE),"") ->  | R11: =IFERROR(VLOOKUP($G11,'Technician Summary'!$G$7:$BK$372,17,FALSE),"") ->  | S11: =IFERROR(VLOOKUP($G11,'Technician Summary'!$G$7:$BK$372,18,FALSE),"") ->  | U11: =IFERROR(VLOOKUP($G11,'Technician Summary'!$G$7:$BK$372,20,FALSE),"") ->  | V11: =IFERROR(VLOOKUP($G11,'Technician Summary'!$G$7:$BK$372,21,FALSE),"") ->  | X11: =IF($G11="","",SUMIF('SQT Data'!$K:$K,$G11,'SQT Data'!$R:$R)) -> 0 | Y11: =IF($G11="","",SUMIF('SQT Data'!$K:$K,$G11,'SQT Data'!$S:$S)) -> 0 | AA11: =IF($G11="","",SUMIF('SQT Data'!$K:$K,$G11,'SQT Data'!$U:$U)) -> 0 | AB11: =IF($G11="","",SUMIF('SQT Data'!$K:$K,$G11,'SQT Data'!$V:$V)) -> 0 | AE11: =IFERROR(SUM(AD11/#REF!),"") ->  | AF11: =IFERROR(VLOOKUP($G11,'Technician Summary'!$G$7:$BK$372,7,FALSE),"") ->  | AG11: =IFERROR(VLOOKUP($G11,'Technician Summary'!$G$7:$BK$372,8,FALSE),"") ->  | AI11: =IFERROR(VLOOKUP($G11,'Technician Summary'!$G$7:$BK$372,34,FALSE),"") ->  | AJ11: =IFERROR(VLOOKUP($G11,'Technician Summary'!$G$7:$BK$372,35,FALSE),"") ->  | AL11: =IFERROR(VLOOKUP($G11,'Technician Summary'!$G$7:$BK$372,37,FALSE),"") ->  | AM11: =IFERROR(VLOOKUP($G11,'Technician Summary'!$G$7:$BK$372,38,FALSE),"") ->  | AO11: =COUNTIFS('Drop Validation'!$Q:$Q,$G11,'Drop Validation'!$G:$G,"In Scope") -> 0 | AP11: =COUNTIFS('Drop Validation'!$Q:$Q,$G11,'Drop Validation'!$AB:$AB,"Compliant",'Drop Validation'!$G:$G,"In Scope") -> 0
